Workbook

Sheet Introduction (hidden)

Sheet Start
D8: 4
D9: Project details
D11: Planning authority: | F11: Vale of White Horse
D12: Project name: | F12: 25 Orchard Way, Harwell
D13: Applicant: | F13: Feltham Properties
D14: Application type:
D15: Planning application reference:
D16: Completed by: | F16: GarethKnass Aluco Ecology Ltd
D17: Date of metric completion: | F17: 2024-03-14
D18: Reviewer:
D19: Version control: | F19: 2
D20: Consenting body reviewer:
D21: Date of consenting body review:
D22: Target % net gain: | F22: 10% | I22: =IF(OR(F22>=10%,F22=""),"","Target set below 10% ▲") -> 
D23: Irreplaceable habitat present on-site at baseline: | F23: No | I23: =IF(F23="Yes","Irreplaceable habitats at baseline, you must fill in the irreplaceable habitat tab ⚠",IF(F23="","You must specify if irreplaceable habitats are on-site at baseline ▲","")) -> 
D24: Total site area (including irreplaceable habitat area): | F24: ='Detailed Results'!D21+'Irreplaceable Habitats'!S38 -> 0.35 | I24: Irreplaceable habitat area at baseline: | J24: ='Irreplaceable Habitats'!M32 -> 0.00
D27: Contains deviations from the statutory metric - this must be agreed with consenting body | I27: =IF(F27="Yes", "Only acceptable in exceptionally rare circumstances, ensure any deviations have been agreed with the consenting body ⚠", "") -> 
D29: Cell style conventions
D30: ⚠ | F30: Attention required
D31: ▲ | F31: Input error/rules and principles not met
F32: Use of this cell is not appropriate
F33: Enter data
F34: Automatic lookup
F35: Result
D55: On-site baseline map reference number | I55: On-site post-intervention map reference number
D66: Off-site baseline map reference number | I66: Off-site post-intervention reference number

Sheet Instructions (hidden)

Sheet Irreplaceable Habitats (hidden)
B2: Irreplaceable habitats
B4: 👁 For further information please refer to the irreplaceable habitats section of the metric user guide.
B9: Habitat module type | E9: Habitat type | K9: Length (km) | M9: Area (ha) | O9: Habitat retained, enhanced, or lost? | S9: Is the habitat included in the relevant baseline tab? | U9: Notes and metric sheet reference | Z9: Has bespoke compensation been agreed with the relevant consenting body?
AA10: =IF(AND($O10="Lost", $Z10<>"Yes"), "Irreplaceable habitat lost, bespoke compensation must be agreed with concenting body ▲", "") ->  | AB10: =IF(S10="Yes","Please provide a reference to the row number within the baseline where this habitat is mentioned ⚠", "") -> 
AA11: =IF(AND($O11="Lost", $Z11<>"Yes"), "Irreplaceable habitat lost, bespoke compensation must be agreed with concenting body ▲", "") ->  | AB11: =IF(S11="Yes","Please provide a reference to the row number within the baseline where this habitat is mentioned ⚠", "") -> 
K32: =SUM(K10:L31) -> 0.00 | M32: =SUM(M10:N31) -> 0.00
B35: Ancient/Veteran trees (No of trees): | K35: Trees retained: | O35: Trees enhanced: | S35: Trees lost: | U35: Total number of trees: | W35: =M35+Q35+T35 -> 0
S36: =SUMIF(S10:S31,"Yes",M11:N31) -> 0
B37: Summary table | S37: =M32-S36 -> 0.00
B38: Area habitats | S38: =SUMIF(S10:S31,"No",M10:N31) -> 0
B39: Total site area (ha) | I39: =K32-S36 -> 0.00
B40: Total irreplaceable habitats area (ha) | I40: =M32 -> 0.00
B41: % Area of site taken up by irreplaceable habitats (ha) | I41: =IF(OR(M32=0,I39=0),"0.00",(M32/I39)) -> 0.00
B42: Total retained irreplaceable habitat area (ha) | I42: =SUMIF(O10:R31, "Retained",M10:N31) -> 0.00
B43: Total enhanced irreplaceable habitat area (ha) | I43: =SUMIF(O10:R31,"Enhanced",M11:N31) -> 0.00
B44: Total lost irreplaceable habitat area (ha) | I44: =SUMIF(O10:R31, "Lost",M10:N31) -> 0.00 | O44: Yes
B45: Hedgerows | O45: No
B46: Total irreplaceable hedgerow length (km) | I46: =SUMIF(B10:D31, "=Hedgerows",K10:L31) -> 0.00
B47: Total retained irreplaceable hedgerow length (km) | I47: =SUM(SUMIFS(K10:K31,B10:B31, ("=Hedgerows"),O10:O31, ("=Retained"))) -> 0.00 | O47: Hedgerows
B48: Total enhanced irreplaceable hedgerow length (km) | I48: =SUM(SUMIFS(K10:K31,B10:B31, ("=Hedgerows"),O10:O31, ("=Enhanced"))) -> 0.00 | O48: Yes
B49: Total lost irreplaceable hedgerow length (km) | I49: =SUM(SUMIFS(K10:K31,B10:B31, ("=Hedgerows"),O10:O31, ("=Lost"))) -> 0.00
B50: Watercourses
B51: Total irreplaceable watercourse length (km) | I51: =SUMIF(B10:D31, "=Watercourse",K10:L31) -> 0.00
B52: Total retained irreplaceable watercourse length (km) | I52: =SUMIFS(K10:K32,B10:B32, "=Watercourse", O10:O32, "=Retained") -> 0.00
B53: Total enhanced irreplaceable watercourse length (km) | I53: =SUMIFS(K10:K31,B10:B31, "=Watercourse", O10:O31, "=Enhanced") -> 0.00
B54: Total lost irreplaceable watercourse length (km) | I54: =SUM(SUMIFS(K10:K31,B10:B31, ("=Watercourse"),O10:O31, ("=Lost"))) -> 0.00

Sheet Main Menu
Q3: Tree helper
Q4: Tree size | R4: Number of trees and area (ha) for each condition state
R5: Poor | S5: Area | T5: Moderate | U5: Area | V5: Good | W5: Area
Q6: Small | R6: 6 | S6: =R6*'G-3 Multipliers'!$Z$4 -> 0.0244 | U6: =T6*'G-3 Multipliers'!$Z$4 -> 0.0000 | W6: =V6*'G-3 Multipliers'!$Z$4 -> 0.0000
Q7: Medium | S7: =R7*'G-3 Multipliers'!$Z$5 -> 0.0000 | U7: =T7*'G-3 Multipliers'!$Z$5 -> 0.0000 | W7: =V7*'G-3 Multipliers'!$Z$5 -> 0.0000
Q8: Large | S8: =R8*'G-3 Multipliers'!$Z$6 -> 0.0000 | U8: =T8*'G-3 Multipliers'!$Z$6 -> 0.0000 | W8: =V8*'G-3 Multipliers'!$Z$6 -> 0.0000
Q9: Total | R9: =SUM(R6:R8) -> 6 | S9: 0.0244 | T9: 0 | U9: 0.0000 | V9: 0 | W9: 0.0000

Sheet Results

Sheet Headline Results
B2: =IF(Start!$F$12="","",Start!$F$12) -> 25 Orchard Way, Harwell | F2: =IF(OR(B56="This metric contains deviations from the statutory metric - these deviations are only acceptable in extremely rare circumstances and must be agreed with the consenting body ⚠",B57="You must specify if irreplaceable habitats are on-site at baseline ▲",B58="Unacceptable loss of irreplaceable habitat recorded - no bespoke compensation for lossess has been agreed ▲"),"Errors flagged below - please investigate further ▲","") -> 
B3: =MID(CELL("filename",A1),FIND("]",CELL("filename",A1))+1,256) -> Headline Results
B5: Scroll down for final results ⚠
B8: On-site baseline | F8: Habitat units | H8: =IFERROR('A-1 On-Site Habitat Baseline'!Q259,"Check Data ⚠") -> 1.17
F9: Hedgerow units | H9: =IFERROR('B-1 On-Site Hedge Baseline'!N258,"Check Data ⚠") -> 0.01
F10: Watercourse units | H10: ='C-1 On-Site WaterC'' Baseline'!R258 -> 0.00
B12: On-site post-intervention (Including habitat retention, creation & enhancement) | F12: Habitat units | H12: =IFERROR('A-2 On-Site Habitat Creation'!Y257+'A-3 On-Site Habitat Enhancement'!AN258+'A-1 On-Site Habitat Baseline'!U259,"Check Data ⚠") -> 0.32
F13: Hedgerow units | H13: =IFERROR('B-2 On-Site Hedge Creation'!W260+'B-3 On-Site Hedge Enhancement'!AH258+'B-1 On-Site Hedge Baseline'!R258,"Check Data⚠") -> 0.04
F14: Watercourse units | H14: =IFERROR('C-2 On-Site WaterC'' Creation'!Z260 + 'C-3 On-Site WaterC'' Enhancement'!AM258+'C-1 On-Site WaterC'' Baseline'!V258,"Check Data ⚠") -> 0.00
B16: On-site net change (units & percentage) | F16: Habitat units | H16: =IFERROR(H12-H8, "Error ▲") -> -0.85 | J16: =IF(H8=0,0,IF(AND(H8=0,H12>0),1,IFERROR((H12/H8)-1,"Check Data ⚠"))) -> -72.84% | K16: =IF(OR(AND(H8=0,H12=0),J16>=Start!$F$22)," ","On-site net gain is less than target set ⚠") -> On-site net gain is less than target set ⚠
F17: Hedgerow units | H17: =IFERROR(H13-H9, "Error ▲") -> 0.03 | J17: =IF(H9=0,0,IF(AND(H9=0,H13>0),1,IFERROR((H13/H9)-1,"Check Data ⚠"))) -> 372.99% | K17: =IF(OR(AND(H9=0,H13=0),J17>=Start!$F$22)," ","On-site net gain is less than target set ⚠") -> 
F18: Watercourse units | H18: 0.00 | J18: =IF(H10=0,0,IF(AND(H10=0,H14>0),1,IFERROR((H14/H10)-1,"Check Data ⚠"))) -> 0.00% | K18: =IF(OR(AND(H10=0,H14=0),J18>=Start!$F$22)," ","On-site net gain is less than target set ⚠") -> 
B20: Off-site baseline | F20: Habitat units | H20: =IFERROR('D-1 Off-Site Habitat Baseline'!T259,"Check Data ⚠") -> 0.00 | L20: =IFERROR('D-1 Off-Site Habitat Baseline'!Q259,"Check Data ⚠") -> 0.00
F21: Hedgerow units | H21: =IFERROR('E-1 Off-Site Hedge Baseline'!Q258,"Check Data ⚠") -> 0.00 | L21: =IFERROR('E-1 Off-Site Hedge Baseline'!N258,"Check Data ⚠") -> 0.00
F22: Watercourse units | H22: =IFERROR('F-1 Off-Site WaterC'' Baseline'!U258,"Check Data ⚠") -> 0.00 | L22: =IFERROR('F-1 Off-Site WaterC'' Baseline'!R258,"Check Data ⚠") -> 0.00
B24: Off-site post-intervention (Including habitat retention, creation & enhancement) | F24: Habitat units | H24: =IFERROR('D-1 Off-Site Habitat Baseline'!$X$259+'D-2 Off-Site Habitat Creation'!AB257+'D-3 Off-Site Habitat Enhancment'!AQ259,"Check Data ⚠") -> 0.00 | L24: =IFERROR('D-1 Off-Site Habitat Baseline'!$AY$259+'D-2 Off-Site Habitat Creation'!AA257+'D-3 Off-Site Habitat Enhancment'!AP259,"Check Data ⚠") -> 0.00
F25: Hedgerow units | H25: =IFERROR('E-1 Off-Site Hedge Baseline'!U258+'E-2 Off-Site Hedge Creation'!Z260+'E-3 Off-Site Hedge Enhancement'!AK258,"Check Data ⚠") -> 0.00 | L25: =IFERROR('E-1 Off-Site Hedge Baseline'!AY258+'E-2 Off-Site Hedge Creation'!Y260+'E-3 Off-Site Hedge Enhancement'!AJ258,"Check Data ⚠") -> 0.00
F26: Watercourse units | H26: =IFERROR('F-1 Off-Site WaterC'' Baseline'!Y258+'F-2 Off-Site WaterC'' Creation'!AC260+'F-3 Off-Site WaterC Enhancement'!AP258,"Check Data ⚠") -> 0.00 | L26: =IFERROR('F-1 Off-Site WaterC'' Baseline'!AZ258+'F-2 Off-Site WaterC'' Creation'!AB260+'F-3 Off-Site WaterC Enhancement'!AO258,"Check Data ⚠") -> 0.00
B28: Off-site net change (units & percentage) | F28: Habitat units | H28: =IFERROR(H24-H20, "Error ▲") -> 0.00 | J28: =IF(H20=0,0,IF(AND(H20=0,H24>0),1,IFERROR((H24/H20)-1,"Check Data ⚠"))) -> 0.00%
F29: Hedgerow units | H29: =IFERROR(H25-H21, "Error ▲") -> 0.00 | J29: =IF(H21=0,0,IF(AND(H21=0,H25>0),1,IFERROR((H25/H21)-1,"Check Data ⚠"))) -> 0.00%
F30: Watercourse units | H30: 0.00 | J30: =IF(H22=0,0,IF(AND(H22=0,H26>0),1,IFERROR((H26/H22)-1,"Check Data ⚠"))) -> 0.00%
B32: Off-site unit change (with Spatial Risk Multiplier applied) | F32: Habitat units | H32: =IF(H28<0, "N/A", (L24-L20)) -> 0.00 | J32: =IF(H32="N/A", "SRM only applies where unit change is positive (uplift)", " ") -> 
F33: Hedgerow units | H33: =IF(H29<0, "N/A", (L25-L21)) -> 0.00 | J33: =IF(H33="N/A", "SRM only applies where unit change is positive", " ") -> 
F34: Watercourse units | H34: =IF(H30<0, "N/A", (L26-L22)) -> 0.00
B37: Combined net unit change (Including all on-site & off-site habitat retention, creation & enhancement) | F37: Habitat units | H37: =IFERROR((H16)+(H28),"Check Data ⚠") -> -0.85
F38: Hedgerow units | H38: =IFERROR((H17)+(H29),"Check Data ⚠") -> 0.03
F39: Watercourse units | H39: =IFERROR((H18)+(H30),"Check Data ⚠") -> 0.00
B41: Spatial risk multiplier (SRM) deductions | F41: Habitat units | H41: =IFERROR(H28-H32, "0.00") -> 0.00
F42: Hedgerow units | H42: =IFERROR(H29-H33, "0.00") -> 0.00
F43: Watercourse units | H43: =IFERROR(H30-H34, "0.00") -> 0.00
B45: FINAL RESULTS
B47: Total net unit change (Including all on-site & off-site habitat retention, creation & enhancement) | F47: Habitat units | H47: =IFERROR(IF(H32="N/A", (H12-H8)+(H28), (H12-H8)+(H32)),"Check Data ⚠") -> -0.85
F48: Hedgerow units | H48: =IFERROR(IF(H33="N/A", (H13-H9)+(H29), (H13-H9)+(H33)),"Check Data ⚠") -> 0.03
F49: Watercourse units | H49: =IFERROR(IF(H34="N/A", (H14-H10)+(H30), (H14-H10)+(H34)),"Check Data ⚠") -> 0.00
B51: Total net % change (Including all on-site & off-site habitat retention, creation & enhancement) | F51: Habitat units | H51: =IF(H47=0,0,IF(AND(H8=0,H20=0,H47>0),1,IFERROR((H47/H8),"Check Data ⚠"))) -> -72.84% | J51: =IF(OR(AND(H8=0,H12=0,H20=0,H24=0),H51>=Start!$F$22)," ","Total net gain achieved is less than target set ⚠") -> Total net gain achieved is less than target set ⚠
F52: Hedgerow units | H52: =IF(H48=0,0,IF(AND(H9=0,H21=0,H48>0),1,IFERROR((H48/H9),"Check Data ⚠"))) -> 372.99% | J52: =IF(OR(AND(H9=0,H13=0,H21=0,H25=0),H52>=Start!$F$22)," ","Total net gain achieved is less than target set ⚠") -> 
F53: Watercourse units | H53: =IF(H49=0,0,IF(AND(H10=0,H22=0,H49>0),1,IFERROR((H49/H10),"Check Data ⚠"))) -> 0.00% | J53: =IF(OR(AND(H10=0,H14=0,H22=0,H26=0),H53>=Start!$F$22)," ","Total net gain achieved is less than target set ⚠") -> 
B55: Trading rules satisfied? | F55: =IF(OR('Trading Summary Area Habitats'!G5="No ▲",'Trading Summary Area Habitats'!G6="No ▲",'Trading Summary Area Habitats'!G7="No ▲",'Trading Summary Area Habitats'!G8="No ▲",'Trading Summary Hedgerows'!G5="No ▲",'Trading Summary Hedgerows'!G6:H6="No ▲", 'Trading Summary Hedgerows'!G7="No ▲", 'Trading Summary Hedgerows'!G8="No ▲", 'Trading Summary WaterC''s'!G5="No ▲", 'Trading Summary WaterC''s'!G6="No ▲", 'Trading Summary WaterC''s'!G7="No ▲", 'Trading Summary WaterC''s'!G8="No ▲"),"No - Check Trading Summaries ▲","Yes ✓") -> No - Check Trading Summaries ▲
B56: =IF(Start!F27="Yes", "This metric contains deviations from the statutory metric - these deviations are only acceptable in extremely rare circumstances and must be agreed with the consenting body ⚠", "") -> 
B57: =IF(Start!I23="You must specify if irreplaceable habitats are on-site at baseline ▲", "You must specify if irreplaceable habitats are on-site at baseline ▲", "") -> 
B58: =IF(OR('Irreplaceable Habitats'!AA10:AA31="Irreplaceable habitat lost, bespoke compensation must be agreed with concenting body ▲"), "Unacceptable loss of irreplaceable habitat recorded - no bespoke compensation for lossess has been agreed ▲", "") -> 
B60: Unit Type | D60: Target | E60: Baseline Units | F60: Units Required | H60: Unit Deficit
B61: Habitat units | D61: =Start!F22 -> 10.00% | E61: =H8 -> 1.17 | F61: =IFERROR(E61*(1+D61), "Error ▲") -> 1.28 | H61: =IFERROR(IF(H32="N/A",(IF(F61-(H12+(H28))<0,0,F61-(H12+(H28)))),(IF(F61-(H12+H32)<0,0,F61-(H12+H32)))), "Error ▲") -> 0.97 | J61: =IF(H61=0, "Unit requirement met or surpassed ✓", " ") -> 
B62: Hedgerow units | D62: =Start!F22 -> 10.00% | E62: =H9 -> 0.01 | F62: =IFERROR(E62*(1+D62), "Error ▲") -> 0.01 | H62: =IFERROR(IF(H33="N/A",(IF(F62-(H13+(H29))<0,0,F62-(H13+(H29)))),(IF(F62-(H13+H33)<0,0,F62-(H13+H33)))), "Error ▲") -> 0.00 | J62: =IF(H62=0, "Unit requirement met or surpassed ✓", " ") -> Unit requirement met or surpassed ✓
B63: Watercourse units | D63: =Start!F22 -> 10.00% | E63: 0.00 | F63: 0.00 | H63: 0.00 | J63: =IF(H63=0, "Unit requirement met or surpassed ✓", " ") -> Unit requirement met or surpassed ✓

Sheet Detailed Results (hidden)
B2: =IF(Start!$F$12="","",Start!$F$12) -> 25 Orchard Way, Harwell
B3: =MID(CELL("filename",A1),FIND("]",CELL("filename",A1))+1,256) -> Detailed Results
B7: Summary Figures
B10: Net project biodiversity units (Including all on-site & off-site habitat retention / creation) | F10: Habitat units | H10: =IFERROR('Headline Results'!$H$47:$I$47,"Check Data ⚠") -> -0.85
F11: Hedgerow units | H11: =IFERROR('Headline Results'!$H$48:$I$48,"Check Data ⚠") -> 0.03
F12: Watercourse units | H12: =IFERROR('Headline Results'!$H$49:$I$49,"Check Data ⚠") -> 0.00
B14: Total project biodiversity % change (Including all on-site & off-site habitat creation + retained habitats) | F14: Habitat units | H14: =IFERROR('Headline Results'!$H$51:$I$51,"Check Data ⚠") -> -72.84%
F15: Hedgerow units | H15: =IFERROR('Headline Results'!$H$52:$I$52,"Check Data ⚠") -> 372.99%
F16: Watercourse units | H16: =IFERROR('Headline Results'!$H$53:$I$53,"Check Data ⚠") -> 0.00%
B18: Combined habitat retention and enhancement
D20: Habitats | F20: Hedgerows | H20: Watercourses
B21: Total on-site and off-site baseline area / length | D21: =IF(AND($K$40=0,'A-1 On-Site Habitat Baseline'!Y11:Y258<>"No",'D-1 Off-Site Habitat Baseline'!AB11:AB258<>"No"),'A-1 On-Site Habitat Baseline'!$H259+'D-1 Off-Site Habitat Baseline'!H259,"Error ▲") -> 0.35 | F21: ='B-1 On-Site Hedge Baseline'!$E$258+'E-1 Off-Site Hedge Baseline'!$E$258 -> 0.01 | H21: ='C-1 On-Site WaterC'' Baseline'!$E$258+'F-1 Off-Site WaterC'' Baseline'!$E$258 -> 0.00
B22: Total on-site and off-site baseline units | D22: =IF(AND($K$40=0,'A-1 On-Site Habitat Baseline'!Y11:Y258<>"No",'D-1 Off-Site Habitat Baseline'!AB11:AB258<>"No"),'A-1 On-Site Habitat Baseline'!$Q259+'D-1 Off-Site Habitat Baseline'!T259,"Error ▲") -> 1.17 | F22: ='B-1 On-Site Hedge Baseline'!$N$258+'E-1 Off-Site Hedge Baseline'!$Q$258 -> 0.01 | H22: ='C-1 On-Site WaterC'' Baseline'!$R$258+'F-1 Off-Site WaterC'' Baseline'!$U$258 -> 0.00
B24: Total on-site and off-site baseline area / length retained | D24: =IF(AND($K$40=0,'A-1 On-Site Habitat Baseline'!Y11:Y258<>"No",'D-1 Off-Site Habitat Baseline'!AB11:AB258<>"No"),'A-1 On-Site Habitat Baseline'!$S259+'D-1 Off-Site Habitat Baseline'!V259,"Error ▲") -> 0.00 | F24: ='B-1 On-Site Hedge Baseline'!$P$258+'E-1 Off-Site Hedge Baseline'!$S$258 -> 0.00 | H24: ='C-1 On-Site WaterC'' Baseline'!T258+'F-1 Off-Site WaterC'' Baseline'!W258 -> 0.00
B25: Total on-site and off-site baseline units retained | D25: =IF(AND($K$40=0,'A-1 On-Site Habitat Baseline'!Y11:Y258<>"No",'D-1 Off-Site Habitat Baseline'!AB11:AB258<>"No"),'A-1 On-Site Habitat Baseline'!$U259+'D-1 Off-Site Habitat Baseline'!X259,"Error ▲") -> 0.00 | F25: ='B-1 On-Site Hedge Baseline'!R258+'E-1 Off-Site Hedge Baseline'!U258 -> 0.00 | H25: ='C-1 On-Site WaterC'' Baseline'!V258+'F-1 Off-Site WaterC'' Baseline'!Y258 -> 0.00
B27: Area / length proposed for enhancement | D27: =IF(AND($K$40=0,'A-1 On-Site Habitat Baseline'!Y11:Y258<>"No",'D-1 Off-Site Habitat Baseline'!AB11:AB258<>"No"),'A-1 On-Site Habitat Baseline'!$T259+'D-1 Off-Site Habitat Baseline'!W259,"Error ▲") -> 0.00 | F27: ='B-1 On-Site Hedge Baseline'!$Q$258+'E-1 Off-Site Hedge Baseline'!$T$258 -> 0.00 | H27: ='C-1 On-Site WaterC'' Baseline'!U258+'F-1 Off-Site WaterC'' Baseline'!X258 -> 0.00
B28: Baseline units proposed for enhancement | D28: =IF(AND($K$40=0,'A-1 On-Site Habitat Baseline'!Y11:Y258<>"No",'D-1 Off-Site Habitat Baseline'!AB11:AB258<>"No"),'A-1 On-Site Habitat Baseline'!$V259+'D-1 Off-Site Habitat Baseline'!Y259,"Error ▲") -> 0.00 | F28: ='B-1 On-Site Hedge Baseline'!$S$258+'E-1 Off-Site Hedge Baseline'!$V$258 -> 0.00 | H28: ='C-1 On-Site WaterC'' Baseline'!W258+'F-1 Off-Site WaterC'' Baseline'!Z258 -> 0.00
B30: Total on-site and off-site baseline area / length lost | D30: =IF(AND($K$40=0,'A-1 On-Site Habitat Baseline'!Y11:Y258<>"No",'D-1 Off-Site Habitat Baseline'!AB11:AB258<>"No"),'A-1 On-Site Habitat Baseline'!$W259+'D-1 Off-Site Habitat Baseline'!Z259,"Error ▲") -> 0.35 | F30: ='B-1 On-Site Hedge Baseline'!$T$258+'E-1 Off-Site Hedge Baseline'!$W$258 -> 0.01 | H30: ='C-1 On-Site WaterC'' Baseline'!X258+'F-1 Off-Site WaterC'' Baseline'!AA258 -> 0.00
B31: Total on-site and off-site baseline units lost | D31: =IF(AND($K$40=0,'A-1 On-Site Habitat Baseline'!Y11:Y258<>"No",'D-1 Off-Site Habitat Baseline'!AB11:AB258<>"No"),'A-1 On-Site Habitat Baseline'!$X259+'D-1 Off-Site Habitat Baseline'!AA259,"Error ▲") -> 1.17 | F31: ='B-1 On-Site Hedge Baseline'!$U$258+'E-1 Off-Site Hedge Baseline'!$X$258 -> 0.01 | H31: ='C-1 On-Site WaterC'' Baseline'!Y258+'F-1 Off-Site WaterC'' Baseline'!AB258 -> 0.00
A33: Area Habitats Area Habitats Area Habitats
B34: Area habitats
B36: On-site change by broad habitat type | J36: Combined area lost by distinctiveness band
C37: Baseline | E37: Post-development on-site | G37: On-site change
B38: Habitat group | C38: On-site existing area | D38: On-site existing value | E38: On-site proposed area | F38: On-site proposed value | G38: On-site area change | H38: On-site unit change | J38: Category | K38: Area lost (hectares) | L38: Area lost (%)
B39: Cropland | C39: ='G-2 Habitat groups'!$AK$4 -> 0.00 | D39: ='G-2 Habitat groups'!$AL$4 -> 0.00 | E39: ='G-2 Habitat groups'!$AM$4 -> 0.00 | F39: ='G-2 Habitat groups'!$AN$4 -> 0.00 | G39: =E39-C39 -> 0.00 | H39: =F39-D39 -> 0.00
B40: Grassland | C40: ='G-2 Habitat groups'!$AK$5 -> 0.00 | D40: ='G-2 Habitat groups'!$AL$5 -> 0.00 | E40: ='G-2 Habitat groups'!$AM$5 -> 0.02 | F40: ='G-2 Habitat groups'!$AN$5 -> 0.07 | G40: =E40-C40 -> 0.02 | H40: =F40-D40 -> 0.07 | J40: ='G-1 All Habitats'!$V$3 -> V.High | K40: =SUMIF('A-1 On-Site Habitat Baseline'!$I$11:$I$258,'Detailed Results'!J40,'A-1 On-Site Habitat Baseline'!$W$11:$W$258)+SUMIF('D-1 Off-Site Habitat Baseline'!$I$11:$I$258,'Detailed Results'!J40,'D-1 Off-Site Habitat Baseline'!$Z$11:$Z$258) -> 0 | L40: =IF(K40=0,"",(K40/(SUM($K$40:$K$49)))*100) -> 
B41: Heathland and shrub | C41: ='G-2 Habitat groups'!$AK$6 -> 0.00 | D41: ='G-2 Habitat groups'!$AL$6 -> 0.00 | E41: ='G-2 Habitat groups'!$AM$6 -> 0.00 | F41: ='G-2 Habitat groups'!$AN$6 -> 0.00 | G41: 0.00 | H41: 0.00
B42: Lakes | C42: ='G-2 Habitat groups'!$AK$7 -> 0.00 | D42: ='G-2 Habitat groups'!$AL$7 -> 0.00 | E42: ='G-2 Habitat groups'!$AM$7 -> 0.00 | F42: ='G-2 Habitat groups'!$AN$7 -> 0.00 | G42: 0.00 | H42: 0.00 | J42: ='G-1 All Habitats'!$V$4 -> High | K42: =SUMIF('A-1 On-Site Habitat Baseline'!$I$11:$I$258,'Detailed Results'!J42,'A-1 On-Site Habitat Baseline'!$W$11:$W$258)+SUMIF('D-1 Off-Site Habitat Baseline'!$I$11:$I$258,'Detailed Results'!J42,'D-1 Off-Site Habitat Baseline'!$Z$11:$Z$258) -> 0 | L42: =IF(K42=0,"",(K42/(SUM($K$40:$K$49)))*100) -> 
B43: Sparsely vegetated land | C43: ='G-2 Habitat groups'!$AK$8 -> 0.00 | D43: ='G-2 Habitat groups'!$AL$8 -> 0.00 | E43: ='G-2 Habitat groups'!$AM$8 -> 0.00 | F43: ='G-2 Habitat groups'!$AN$8 -> 0.00 | G43: 0.00 | H43: 0.00
B44: Urban | C44: ='G-2 Habitat groups'!$AK$9 -> 0.23 | D44: ='G-2 Habitat groups'!$AL$9 -> 0.39 | E44: ='G-2 Habitat groups'!$AM$9 -> 0.21 | F44: ='G-2 Habitat groups'!$AN$9 -> 0.18 | G44: -0.02 | H44: -0.21 | J44: ='G-1 All Habitats'!$V5 -> Medium | K44: =SUMIF('A-1 On-Site Habitat Baseline'!$I$11:$I$258,'Detailed Results'!J44,'A-1 On-Site Habitat Baseline'!$W$11:$W$258)+SUMIF('D-1 Off-Site Habitat Baseline'!$I$11:$I$258,'Detailed Results'!J44,'D-1 Off-Site Habitat Baseline'!$Z$11:$Z$258) -> 0.1222 | L44: =IF(K44=0,"",(K44/(SUM($K$40:$K$49)))*100) -> 35
B45: Wetland | C45: ='G-2 Habitat groups'!$AK$10 -> 0.00 | D45: ='G-2 Habitat groups'!$AL$10 -> 0.00 | E45: ='G-2 Habitat groups'!$AM$10 -> 0.00 | F45: ='G-2 Habitat groups'!$AN$10 -> 0.00 | G45: 0.00 | H45: 0.00
B46: Woodland and forest | C46: ='G-2 Habitat groups'!$AK$11 -> 0.00 | D46: ='G-2 Habitat groups'!$AL$11 -> 0.00 | E46: ='G-2 Habitat groups'!$AM$11 -> 0.00 | F46: ='G-2 Habitat groups'!$AN$11 -> 0.00 | G46: 0.00 | H46: 0.00 | J46: ='G-1 All Habitats'!$V$6 -> Low | K46: =SUMIF('A-1 On-Site Habitat Baseline'!$I$11:$I$258,'Detailed Results'!J46,'A-1 On-Site Habitat Baseline'!$W$11:$W$258)+SUMIF('D-1 Off-Site Habitat Baseline'!$I$11:$I$258,'Detailed Results'!J46,'D-1 Off-Site Habitat Baseline'!$Z$11:$Z$258) -> 0.1926 | L46: =IF(K46=0,"",(K46/(SUM($K$40:$K$49)))*100) -> 54
B47: Intertidal sediment | C47: ='G-2 Habitat groups'!$AK$12 -> 0.00 | D47: ='G-2 Habitat groups'!$AL$12 -> 0.00 | E47: ='G-2 Habitat groups'!$AM$12 -> 0.00 | F47: ='G-2 Habitat groups'!$AN$12 -> 0.00 | G47: 0.00 | H47: 0.00
B48: Coastal saltmarsh | C48: ='G-2 Habitat groups'!$AK$13 -> 0.00 | D48: ='G-2 Habitat groups'!$AL$13 -> 0.00 | E48: ='G-2 Habitat groups'!$AM$13 -> 0.00 | F48: ='G-2 Habitat groups'!$AN$13 -> 0.00 | G48: 0.00 | H48: 0.00 | J48: ='G-1 All Habitats'!$V$7 -> V.Low | K48: =SUMIF('A-1 On-Site Habitat Baseline'!$I$11:$I$258,'Detailed Results'!J48,'A-1 On-Site Habitat Baseline'!$W$11:$W$258)+SUMIF('D-1 Off-Site Habitat Baseline'!$I$11:$I$258,'Detailed Results'!J48,'D-1 Off-Site Habitat Baseline'!$Z$11:$Z$258) -> 0.039 | L48: =IF(K48=0,"",(K48/(SUM($K$40:$K$49)))*100) -> 11
B49: Rocky shore | C49: ='G-2 Habitat groups'!$AK$14 -> 0.00 | D49: ='G-2 Habitat groups'!$AL$14 -> 0.00 | E49: ='G-2 Habitat groups'!$AM$14 -> 0.00 | F49: ='G-2 Habitat groups'!$AN$14 -> 0.00 | G49: 0.00 | H49: 0.00
B50: Coastal lagoons | C50: ='G-2 Habitat groups'!$AK$15 -> 0.00 | D50: ='G-2 Habitat groups'!$AL$15 -> 0.00 | E50: ='G-2 Habitat groups'!$AM$15 -> 0.00 | F50: ='G-2 Habitat groups'!$AN$15 -> 0.00 | G50: 0.00 | H50: 0.00
B51: Intertidal hard structures | C51: ='G-2 Habitat groups'!$AK$16 -> 0.00 | D51: ='G-2 Habitat groups'!$AL$16 -> 0.00 | E51: ='G-2 Habitat groups'!$AM$16 -> 0.00 | F51: ='G-2 Habitat groups'!$AN$16 -> 0.00 | G51: =E51-C51 -> 0.00 | H51: 0.00
B52: Watercourse footprint | C52: ='G-2 Habitat groups'!$AK$18 -> 0.00 | D52: ='G-2 Habitat groups'!$AL$18 -> 0.00 | E52: ='G-2 Habitat groups'!$AM$18 -> 0.00 | F52: ='G-2 Habitat groups'!$AN$18 -> 0.00 | G52: 0.00 | H52: 0.00
B53: Individual trees | C53: ='G-2 Habitat groups'!$AK$17 -> 0.12 | D53: ='G-2 Habitat groups'!$AL$17 -> 0.78 | E53: ='G-2 Habitat groups'!$AM$17 -> 0.02 | F53: ='G-2 Habitat groups'!$AN$17 -> 0.07 | G53: -0.10 | H53: -0.71
B56: Off-site change by broad habitat type
C57: Baseline | E57: Post-development off-site | G57: Off-site change
B58: Habitat group | C58: Off-site existing area | D58: Off-site existing value | E58: Off-site proposed area | F58: Off-site proposed value | G58: Off-site area change | H58: Off-site unit change
B59: Cropland | C59: ='G-2 Habitat groups'!$AK$21 -> 0.00 | D59: ='G-2 Habitat groups'!$AL$21 -> 0.00 | E59: ='G-2 Habitat groups'!$AM$21 -> 0.00 | F59: ='G-2 Habitat groups'!$AN$21 -> 0.00 | G59: =E59-C59 -> 0.00 | H59: =F59-D59 -> 0.00
B60: Grassland | C60: ='G-2 Habitat groups'!$AK$22 -> 0.00 | D60: ='G-2 Habitat groups'!$AL$22 -> 0.00 | E60: ='G-2 Habitat groups'!$AM$22 -> 0.00 | F60: ='G-2 Habitat groups'!$AN$22 -> 0.00 | G60: 0.00 | H60: 0.00
B61: Heathland and shrub | C61: ='G-2 Habitat groups'!$AK$23 -> 0.00 | D61: ='G-2 Habitat groups'!$AL$23 -> 0.00 | E61: ='G-2 Habitat groups'!$AM$23 -> 0.00 | F61: ='G-2 Habitat groups'!$AN$23 -> 0.00 | G61: 0.00 | H61: 0.00
B62: Lakes | C62: ='G-2 Habitat groups'!$AK$24 -> 0.00 | D62: ='G-2 Habitat groups'!$AL$24 -> 0.00 | E62: ='G-2 Habitat groups'!$AM$24 -> 0.00 | F62: ='G-2 Habitat groups'!$AN$24 -> 0.00 | G62: 0.00 | H62: 0.00
B63: Sparsely vegetated land | C63: ='G-2 Habitat groups'!$AK$25 -> 0.00 | D63: ='G-2 Habitat groups'!$AL$25 -> 0.00 | E63: ='G-2 Habitat groups'!$AM$25 -> 0.00 | F63: ='G-2 Habitat groups'!$AN$25 -> 0.00 | G63: 0.00 | H63: 0.00
B64: Urban | C64: ='G-2 Habitat groups'!$AK$26 -> 0.00 | D64: ='G-2 Habitat groups'!$AL$26 -> 0.00 | E64: ='G-2 Habitat groups'!$AM$26 -> 0.00 | F64: ='G-2 Habitat groups'!$AN$26 -> 0.00 | G64: 0.00 | H64: 0.00
B65: Wetland | C65: ='G-2 Habitat groups'!$AK$27 -> 0.00 | D65: ='G-2 Habitat groups'!$AL$27 -> 0.00 | E65: ='G-2 Habitat groups'!$AM$27 -> 0.00 | F65: ='G-2 Habitat groups'!$AN$27 -> 0.00 | G65: 0.00 | H65: 0.00
B66: Woodland and forest | C66: ='G-2 Habitat groups'!$AK$28 -> 0.00 | D66: ='G-2 Habitat groups'!$AL$28 -> 0.00 | E66: ='G-2 Habitat groups'!$AM$28 -> 0.00 | F66: ='G-2 Habitat groups'!$AN$28 -> 0.00 | G66: 0.00 | H66: 0.00
B67: Intertidal sediment | C67: ='G-2 Habitat groups'!$AK$29 -> 0.00 | D67: ='G-2 Habitat groups'!$AL$29 -> 0.00 | E67: ='G-2 Habitat groups'!$AM$29 -> 0.00 | F67: ='G-2 Habitat groups'!$AN$29 -> 0.00 | G67: 0.00 | H67: 0.00
B68: Coastal saltmarsh | C68: ='G-2 Habitat groups'!$AK$30 -> 0.00 | D68: ='G-2 Habitat groups'!$AL$30 -> 0.00 | E68: ='G-2 Habitat groups'!$AM$30 -> 0.00 | F68: ='G-2 Habitat groups'!$AN$30 -> 0.00 | G68: 0.00 | H68: 0.00
B69: Rocky shore | C69: ='G-2 Habitat groups'!$AK$31 -> 0.00 | D69: ='G-2 Habitat groups'!$AL$31 -> 0.00 | E69: ='G-2 Habitat groups'!$AM$31 -> 0.00 | F69: ='G-2 Habitat groups'!$AN$31 -> 0.00 | G69: 0.00 | H69: 0.00
B70: Coastal lagoons | C70: ='G-2 Habitat groups'!$AK$32 -> 0.00 | D70: ='G-2 Habitat groups'!$AL$32 -> 0.00 | E70: ='G-2 Habitat groups'!$AM$32 -> 0.00 | F70: ='G-2 Habitat groups'!$AN$32 -> 0.00 | G70: 0.00 | H70: 0.00
B71: Intertidal hard structures | C71: ='G-2 Habitat groups'!$AK$33 -> 0.00 | D71: ='G-2 Habitat groups'!$AL$33 -> 0.00 | E71: ='G-2 Habitat groups'!$AM$33 -> 0.00 | F71: ='G-2 Habitat groups'!$AN$33 -> 0.00 | G71: =E71-C71 -> 0.00 | H71: 0.00
B72: Watercourse footprint | C72: ='G-2 Habitat groups'!$AK$35 -> 0.00 | D72: ='G-2 Habitat groups'!$AL$35 -> 0.00 | E72: ='G-2 Habitat groups'!$AM$35 -> 0.00 | F72: ='G-2 Habitat groups'!$AN$35 -> 0.00 | G72: =E72-C72 -> 0.00 | H72: =F72-D72 -> 0.00
B73: Individual trees | C73: ='G-2 Habitat groups'!$AK$34 -> 0.00 | D73: ='G-2 Habitat groups'!$AL$34 -> 0.00 | E73: ='G-2 Habitat groups'!$AM$34 -> 0.00 | F73: ='G-2 Habitat groups'!$AN$34 -> 0.00 | G73: =E73-C73 -> 0.00 | H73: =F73-D73 -> 0.00
B75: Combined on-site and off-site change by broad habitat type
C76: Baseline | E76: On-site and off-site post-development | G76: Combined change
B77: Habitat group | C77: Combined existing area | D77: Combined existing value | E77: Combined proposed area | F77: Combined proposed value | G77: Combined area change | H77: Combined unit change
B78: Cropland | C78: =C39+C59 -> 0.00 | D78: 0.00 | E78: 0.00 | F78: 0.00 | G78: 0.00 | H78: 0.00
B79: Grassland | C79: 0.00 | D79: 0.00 | E79: 0.02 | F79: 0.07 | G79: 0.02 | H79: 0.07
B80: Heathland and shrub | C80: 0.00 | D80: 0.00 | E80: 0.00 | F80: 0.00 | G80: 0.00 | H80: 0.00
B81: Lakes | C81: 0.00 | D81: 0.00 | E81: 0.00 | F81: 0.00 | G81: 0.00 | H81: 0.00
B82: Sparsely vegetated land | C82: 0.00 | D82: 0.00 | E82: 0.00 | F82: 0.00 | G82: 0.00 | H82: 0.00
B83: Urban | C83: 0.23 | D83: 0.39 | E83: 0.21 | F83: 0.18 | G83: -0.02 | H83: -0.21
B84: Wetland | C84: 0.00 | D84: 0.00 | E84: 0.00 | F84: 0.00 | G84: 0.00 | H84: 0.00
B85: Woodland and forest | C85: 0.00 | D85: 0.00 | E85: 0.00 | F85: 0.00 | G85: 0.00 | H85: 0.00
B86: Intertidal sediment | C86: 0.00 | D86: 0.00 | E86: 0.00 | F86: 0.00 | G86: 0.00 | H86: 0.00
B87: Coastal saltmarsh | C87: 0.00 | D87: 0.00 | E87: 0.00 | F87: 0.00 | G87: 0.00 | H87: 0.00
B88: Rocky shore | C88: 0.00 | D88: 0.00 | E88: 0.00 | F88: 0.00 | G88: 0.00 | H88: 0.00
B89: Coastal lagoons | C89: 0.00 | D89: 0.00 | E89: 0.00 | F89: 0.00 | G89: 0.00 | H89: 0.00
B90: Intertidal hard structures | C90: 0.00 | D90: 0.00 | E90: 0.00 | F90: 0.00 | G90: 0.00 | H90: 0.00
B91: Watercourse footprint | C91: 0.00 | D91: 0.00 | E91: 0.00 | F91: 0.00 | G91: 0.00 | H91: 0.00
B92: Individual trees | C92: =C53+C73 -> 0.12 | D92: 0.78 | E92: 0.02 | F92: 0.07 | G92: -0.10 | H92: -0.71
A93: Hedgerows and Lines of Trees Hedgerows and Lines of Trees Hedgerows and Lines of Trees
B94: Hedgerows and lines of trees
B97: On-site change by hedgerow type | J97: Combined length lost by distinctiveness band
C98: Baseline | E98: Post-development on-site | G98: On-site change
B99: Hedgerow type | C99: On-site existing length | D99: On-site existing value | E99: On-site proposed length | F99: On-site proposed value | G99: On-site length change | H99: On-site unit change | J99: Category | K99: Length lost (km) | L99: Length lost (%)
B100: Species-rich native hedgerow with trees - associated with bank or ditch | C100: ='G-2 Habitat groups'!E150 -> 0.00 | D100: ='G-2 Habitat groups'!F150 -> 0.00 | E100: ='G-2 Habitat groups'!O150 -> 0.00 | F100: ='G-2 Habitat groups'!P150 -> 0.00 | G100: =E100-C100 -> 0.00 | H100: =F100-D100 -> 0.00
B101: Species-rich native hedgerow with trees | C101: ='G-2 Habitat groups'!E151 -> 0.00 | D101: ='G-2 Habitat groups'!F151 -> 0.00 | E101: ='G-2 Habitat groups'!O151 -> 0.00 | F101: ='G-2 Habitat groups'!P151 -> 0.00 | G101: =E101-C101 -> 0.00 | H101: 0.00 | J101: ='G-1 All Habitats'!$V$3 -> V.High | K101: =SUMIF('B-1 On-Site Hedge Baseline'!$F$10:$F$257,'Detailed Results'!J101,'B-1 On-Site Hedge Baseline'!$T$10:$T$257)+SUMIF('E-1 Off-Site Hedge Baseline'!$F$10:$F$257,'Detailed Results'!J101,'E-1 Off-Site Hedge Baseline'!$W$10:$W$257) -> 0 | L101: =IF(K101=0,"",(K101/(SUM($K$101:$K$110)))*100) -> 
B102: Species-rich native hedgerow - associated with bank or ditch | C102: ='G-2 Habitat groups'!E152 -> 0.00 | D102: ='G-2 Habitat groups'!F152 -> 0.00 | E102: ='G-2 Habitat groups'!O152 -> 0.00 | F102: ='G-2 Habitat groups'!P152 -> 0.00 | G102: 0.00 | H102: 0.00
B103: Native hedgerow with trees - associated with bank or ditch | C103: ='G-2 Habitat groups'!E153 -> 0.00 | D103: ='G-2 Habitat groups'!F153 -> 0.00 | E103: ='G-2 Habitat groups'!O153 -> 0.00 | F103: ='G-2 Habitat groups'!P153 -> 0.00 | G103: 0.00 | H103: 0.00 | J103: ='G-1 All Habitats'!$V$4 -> High | K103: =SUMIF('B-1 On-Site Hedge Baseline'!$F$10:$F$257,'Detailed Results'!J103,'B-1 On-Site Hedge Baseline'!$T$10:$T$257)+SUMIF('E-1 Off-Site Hedge Baseline'!$F$10:$F$257,'Detailed Results'!J103,'E-1 Off-Site Hedge Baseline'!$W$10:$W$257) -> 0 | L103: =IF(K103=0,"",(K103/(SUM($K$101:$K$110)))*100) -> 
B104: Species-rich native hedgerow | C104: ='G-2 Habitat groups'!E154 -> 0.00 | D104: ='G-2 Habitat groups'!F154 -> 0.00 | E104: ='G-2 Habitat groups'!O154 -> 0.01 | F104: ='G-2 Habitat groups'!P154 -> 0.04 | G104: 0.01 | H104: 0.04
B105: Native hedgerow - associated with bank or ditch | C105: ='G-2 Habitat groups'!E155 -> 0.00 | D105: ='G-2 Habitat groups'!F155 -> 0.00 | E105: ='G-2 Habitat groups'!O155 -> 0.00 | F105: ='G-2 Habitat groups'!P155 -> 0.00 | G105: 0.00 | H105: 0.00 | J105: ='G-1 All Habitats'!$V$5 -> Medium | K105: =SUMIF('B-1 On-Site Hedge Baseline'!$F$10:$F$257,'Detailed Results'!J105,'B-1 On-Site Hedge Baseline'!$T$10:$T$257)+SUMIF('E-1 Off-Site Hedge Baseline'!$F$10:$F$257,'Detailed Results'!J105,'E-1 Off-Site Hedge Baseline'!$W$10:$W$257) -> 0 | L105: =IF(K105=0,"",(K105/(SUM($K$101:$K$110)))*100) -> 
B106: Native hedgerow with trees | C106: ='G-2 Habitat groups'!E156 -> 0.00 | D106: ='G-2 Habitat groups'!F156 -> 0.00 | E106: ='G-2 Habitat groups'!O156 -> 0.00 | F106: ='G-2 Habitat groups'!P156 -> 0.00 | G106: 0.00 | H106: 0.00
B107: Ecologically valuable line of trees | C107: ='G-2 Habitat groups'!E157 -> 0.00 | D107: ='G-2 Habitat groups'!F157 -> 0.00 | E107: ='G-2 Habitat groups'!O157 -> 0.00 | F107: ='G-2 Habitat groups'!P157 -> 0.00 | G107: 0.00 | H107: 0.00 | J107: ='G-1 All Habitats'!$V$6 -> Low | K107: =SUMIF('B-1 On-Site Hedge Baseline'!$F$10:$F$257,'Detailed Results'!J107,'B-1 On-Site Hedge Baseline'!$T$10:$T$257)+SUMIF('E-1 Off-Site Hedge Baseline'!$F$10:$F$257,'Detailed Results'!J107,'E-1 Off-Site Hedge Baseline'!$W$10:$W$257) -> 0 | L107: =IF(K107=0,"",(K107/(SUM($K$101:$K$110)))*100) -> 
B108: Ecologically valuable line of trees - associated with bank or ditch | C108: ='G-2 Habitat groups'!E158 -> 0.00 | D108: ='G-2 Habitat groups'!F158 -> 0.00 | E108: ='G-2 Habitat groups'!O158 -> 0.00 | F108: ='G-2 Habitat groups'!P158 -> 0.00 | G108: 0.00 | H108: 0.00
B109: Native hedgerow | C109: ='G-2 Habitat groups'!E159 -> 0.00 | D109: ='G-2 Habitat groups'!F159 -> 0.00 | E109: ='G-2 Habitat groups'!O159 -> 0.00 | F109: ='G-2 Habitat groups'!P159 -> 0.00 | G109: 0.00 | H109: 0.00 | J109: ='G-1 All Habitats'!$V$7 -> V.Low | K109: =SUMIF('B-1 On-Site Hedge Baseline'!$F$10:$F$257,'Detailed Results'!J109,'B-1 On-Site Hedge Baseline'!$T$10:$T$257)+SUMIF('E-1 Off-Site Hedge Baseline'!$F$10:$F$257,'Detailed Results'!J109,'E-1 Off-Site Hedge Baseline'!$W$10:$W$257) -> 0.0092 | L109: =IF(K109=0,"",(K109/(SUM($K$101:$K$110)))*100) -> 100
B110: Line of trees | C110: ='G-2 Habitat groups'!E160 -> 0.00 | D110: ='G-2 Habitat groups'!F160 -> 0.00 | E110: ='G-2 Habitat groups'!O160 -> 0.00 | F110: ='G-2 Habitat groups'!P160 -> 0.00 | G110: 0.00 | H110: 0.00
B111: Line of trees - associated with bank or ditch | C111: ='G-2 Habitat groups'!E161 -> 0.00 | D111: ='G-2 Habitat groups'!F161 -> 0.00 | E111: ='G-2 Habitat groups'!O161 -> 0.00 | F111: ='G-2 Habitat groups'!P161 -> 0.00 | G111: 0.00 | H111: 0.00
B112: Non-native and ornamental hedgerow | C112: ='G-2 Habitat groups'!E162 -> 0.01 | D112: ='G-2 Habitat groups'!F162 -> 0.01 | E112: ='G-2 Habitat groups'!O162 -> 0.00 | F112: ='G-2 Habitat groups'!P162 -> 0.00 | G112: -0.01 | H112: -0.01
B117: Off-site change by hedgerow type
C118: Off-site baseline | E118: Post-development off-site | G118: Off-site change
B119: Hedgerow type | C119: Off-site existing length | D119: Off-site existing value | E119: Off-site proposed length | F119: Off-site proposed value | G119: Off-site length change | H119: Off-site unit change
B120: Species-rich native hedgerow with trees - associated with bank or ditch | C120: ='G-2 Habitat groups'!S150 -> 0.00 | D120: ='G-2 Habitat groups'!T150 -> 0.00 | E120: ='G-2 Habitat groups'!AA150 -> 0.00 | F120: ='G-2 Habitat groups'!AB150 -> 0.00 | G120: =E120-C120 -> 0.00 | H120: =F120-D120 -> 0.00
B121: Species-rich native hedgerow with trees | C121: ='G-2 Habitat groups'!S151 -> 0.00 | D121: ='G-2 Habitat groups'!T151 -> 0.00 | E121: ='G-2 Habitat groups'!AA151 -> 0.00 | F121: ='G-2 Habitat groups'!AB151 -> 0.00 | G121: 0.00 | H121: 0.00
B122: Species-rich native hedgerow - associated with bank or ditch | C122: ='G-2 Habitat groups'!S152 -> 0.00 | D122: ='G-2 Habitat groups'!T152 -> 0.00 | E122: ='G-2 Habitat groups'!AA152 -> 0.00 | F122: ='G-2 Habitat groups'!AB152 -> 0.00 | G122: 0.00 | H122: 0.00
B123: Native hedgerow with trees - associated with bank or ditch | C123: ='G-2 Habitat groups'!S153 -> 0.00 | D123: ='G-2 Habitat groups'!T153 -> 0.00 | E123: ='G-2 Habitat groups'!AA153 -> 0.00 | F123: ='G-2 Habitat groups'!AB153 -> 0.00 | G123: 0.00 | H123: 0.00
B124: Species-rich native hedgerow | C124: ='G-2 Habitat groups'!S154 -> 0.00 | D124: ='G-2 Habitat groups'!T154 -> 0.00 | E124: ='G-2 Habitat groups'!AA154 -> 0.00 | F124: ='G-2 Habitat groups'!AB154 -> 0.00 | G124: 0.00 | H124: 0.00
B125: Native hedgerow - associated with bank or ditch | C125: ='G-2 Habitat groups'!S155 -> 0.00 | D125: ='G-2 Habitat groups'!T155 -> 0.00 | E125: ='G-2 Habitat groups'!AA155 -> 0.00 | F125: ='G-2 Habitat groups'!AB155 -> 0.00 | G125: 0.00 | H125: 0.00
B126: Native hedgerow with trees | C126: ='G-2 Habitat groups'!S156 -> 0.00 | D126: ='G-2 Habitat groups'!T156 -> 0.00 | E126: ='G-2 Habitat groups'!AA156 -> 0.00 | F126: ='G-2 Habitat groups'!AB156 -> 0.00 | G126: 0.00 | H126: 0.00
B127: Ecologically valuable line of trees | C127: ='G-2 Habitat groups'!S157 -> 0.00 | D127: ='G-2 Habitat groups'!T157 -> 0.00 | E127: ='G-2 Habitat groups'!AA157 -> 0.00 | F127: ='G-2 Habitat groups'!AB157 -> 0.00 | G127: 0.00 | H127: 0.00
B128: Ecologically valuable line of trees - associated with bank or ditch | C128: ='G-2 Habitat groups'!S158 -> 0.00 | D128: ='G-2 Habitat groups'!T158 -> 0.00 | E128: ='G-2 Habitat groups'!AA158 -> 0.00 | F128: ='G-2 Habitat groups'!AB158 -> 0.00 | G128: 0.00 | H128: 0.00
B129: Native hedgerow | C129: ='G-2 Habitat groups'!S159 -> 0.00 | D129: ='G-2 Habitat groups'!T159 -> 0.00 | E129: ='G-2 Habitat groups'!AA159 -> 0.00 | F129: ='G-2 Habitat groups'!AB159 -> 0.00 | G129: 0.00 | H129: 0.00
B130: Line of trees | C130: ='G-2 Habitat groups'!S160 -> 0.00 | D130: ='G-2 Habitat groups'!T160 -> 0.00 | E130: ='G-2 Habitat groups'!AA160 -> 0.00 | F130: ='G-2 Habitat groups'!AB160 -> 0.00 | G130: 0.00 | H130: 0.00
B131: Line of trees - associated with bank or ditch | C131: ='G-2 Habitat groups'!S161 -> 0.00 | D131: ='G-2 Habitat groups'!T161 -> 0.00 | E131: ='G-2 Habitat groups'!AA161 -> 0.00 | F131: ='G-2 Habitat groups'!AB161 -> 0.00 | G131: 0.00 | H131: 0.00
B132: Non-native and ornamental hedgerow | C132: ='G-2 Habitat groups'!S162 -> 0.00 | D132: ='G-2 Habitat groups'!T162 -> 0.00 | E132: ='G-2 Habitat groups'!AA162 -> 0.00 | F132: ='G-2 Habitat groups'!AB162 -> 0.00 | G132: 0.00 | H132: 0.00
B137: Combined on-site and off-site change by hedgerow type
C138: Baseline | E138: Post-development | G138: Change
B139: Hedgerow type | C139: Combined existing length | D139: Combined existing value | E139: Combined proposed length | F139: Combined proposed value | G139: Combined length change | H139: Combined unit change
B140: Species-rich native hedgerow with trees - associated with bank or ditch | C140: =C100+C120 -> 0.00 | D140: 0.00 | E140: 0.00 | F140: 0.00 | G140: 0.00 | H140: 0.00
B141: Species-rich native hedgerow with trees | C141: =C101+C121 -> 0.00 | D141: 0.00 | E141: 0.00 | F141: 0.00 | G141: 0.00 | H141: 0.00
B142: Species-rich native hedgerow - associated with bank or ditch | C142: =C102+C122 -> 0.00 | D142: 0.00 | E142: 0.00 | F142: 0.00 | G142: 0.00 | H142: 0.00
B143: Native hedgerow with trees - associated with bank or ditch | C143: =C103+C123 -> 0.00 | D143: 0.00 | E143: 0.00 | F143: 0.00 | G143: 0.00 | H143: 0.00
B144: Species-rich native hedgerow | C144: =C104+C124 -> 0.00 | D144: 0.00 | E144: 0.01 | F144: 0.04 | G144: 0.01 | H144: 0.04
B145: Native hedgerow - associated with bank or ditch | C145: =C105+C125 -> 0.00 | D145: 0.00 | E145: 0.00 | F145: 0.00 | G145: 0.00 | H145: 0.00
B146: Native hedgerow with trees | C146: =C106+C126 -> 0.00 | D146: 0.00 | E146: 0.00 | F146: 0.00 | G146: 0.00 | H146: 0.00
B147: Ecologically valuable line of trees | C147: =C107+C127 -> 0.00 | D147: 0.00 | E147: 0.00 | F147: 0.00 | G147: 0.00 | H147: 0.00
B148: Ecologically valuable line of trees - associated with bank or ditch | C148: =C108+C128 -> 0.00 | D148: 0.00 | E148: 0.00 | F148: 0.00 | G148: 0.00 | H148: 0.00
B149: Native hedgerow | C149: =C109+C129 -> 0.00 | D149: 0.00 | E149: 0.00 | F149: 0.00 | G149: 0.00 | H149: 0.00
B150: Line of trees | C150: =C110+C130 -> 0.00 | D150: 0.00 | E150: 0.00 | F150: 0.00 | G150: 0.00 | H150: 0.00
B151: Line of trees - associated with bank or ditch | C151: =C111+C131 -> 0.00 | D151: 0.00 | E151: 0.00 | F151: 0.00 | G151: 0.00 | H151: 0.00
B152: Non-native and ornamental hedgerow | C152: =C112+C132 -> 0.01 | D152: 0.01 | E152: 0.00 | F152: 0.00 | G152: -0.01 | H152: -0.01
A155: Watercourses Watercourses Watercourses
B157: Watercourses
B160: On-site change by watercourse type | J160: Combined length lost by distinctiveness band
C161: Baseline | E161: Post-development on site | G161: On-site Change
B162: Watercourse type | C162: On-site existing length | D162: On-site existing value | E162: On-site proposed length | F162: On-site proposed value | G162: On-site length change | H162: On-site unit change | J162: Category | K162: Length lost (km) | L162: Length lost (%)
B163: Priority habitat | C163: ='G-2 Habitat groups'!E172 -> 0.0 | D163: ='G-2 Habitat groups'!F172 -> 0.0 | E163: ='G-2 Habitat groups'!O172 -> 0.0 | F163: ='G-2 Habitat groups'!P172 -> 0.0 | G163: =E163-C163 -> 0.0 | H163: 0.0
B164: Other rivers and streams | C164: ='G-2 Habitat groups'!E173 -> 0.0 | D164: ='G-2 Habitat groups'!F173 -> 0.0 | E164: ='G-2 Habitat groups'!O173 -> 0.0 | F164: ='G-2 Habitat groups'!P173 -> 0.0 | G164: 0.0 | H164: 0.0 | J164: ='G-1 All Habitats'!$V$3 -> V.High | K164: =SUMIF('C-1 On-Site WaterC'' Baseline'!$F$10:$F$257,'Detailed Results'!J164,'C-1 On-Site WaterC'' Baseline'!$X$10:$X$257)+SUMIF('F-1 Off-Site WaterC'' Baseline'!$F$10:$F$257,'Detailed Results'!J164,'F-1 Off-Site WaterC'' Baseline'!$AA$10:$AA$257) -> 0 | L164: =IF(K164=0,"",(K164/(SUM($K$164:$K$171)))*100) -> 
B165: Ditches | C165: ='G-2 Habitat groups'!E174 -> 0.0 | D165: ='G-2 Habitat groups'!F174 -> 0.0 | E165: ='G-2 Habitat groups'!O174 -> 0.0 | F165: ='G-2 Habitat groups'!P174 -> 0.0 | G165: 0.0 | H165: 0.0
B166: Canals | C166: ='G-2 Habitat groups'!E175 -> 0.0 | D166: ='G-2 Habitat groups'!F175 -> 0.0 | E166: ='G-2 Habitat groups'!O175 -> 0.0 | F166: ='G-2 Habitat groups'!P175 -> 0.0 | G166: 0.0 | H166: 0.0 | J166: ='G-1 All Habitats'!$V$4 -> High | K166: =SUMIF('C-1 On-Site WaterC'' Baseline'!$F$10:$F$257,'Detailed Results'!J166,'C-1 On-Site WaterC'' Baseline'!$X$10:$X$257)+SUMIF('F-1 Off-Site WaterC'' Baseline'!$F$10:$F$257,'Detailed Results'!J166,'F-1 Off-Site WaterC'' Baseline'!$AA$10:$AA$257) -> 0 | L166: =IF(K166=0,"",(K166/(SUM($K$164:$K$171)))*100) -> 
B167: Culvert | C167: ='G-2 Habitat groups'!E176 -> 0.0 | D167: ='G-2 Habitat groups'!F176 -> 0.0 | E167: ='G-2 Habitat groups'!O176 -> 0.0 | F167: ='G-2 Habitat groups'!P176 -> 0.0 | G167: 0.0 | H167: 0.0
J168: ='G-1 All Habitats'!$V$5 -> Medium | K168: =SUMIF('C-1 On-Site WaterC'' Baseline'!$F$10:$F$257,'Detailed Results'!J168,'C-1 On-Site WaterC'' Baseline'!$X$10:$X$257)+SUMIF('F-1 Off-Site WaterC'' Baseline'!$F$10:$F$257,'Detailed Results'!J168,'F-1 Off-Site WaterC'' Baseline'!$AA$10:$AA$257) -> 0 | L168: =IF(K168=0,"",(K168/(SUM($K$164:$K$171)))*100) -> 
J170: ='G-1 All Habitats'!$V$6 -> Low | K170: =SUMIF('C-1 On-Site WaterC'' Baseline'!$F$10:$F$257,'Detailed Results'!J170,'C-1 On-Site WaterC'' Baseline'!$X$10:$X$257)+SUMIF('F-1 Off-Site WaterC'' Baseline'!$F$10:$F$257,'Detailed Results'!J170,'F-1 Off-Site WaterC'' Baseline'!$AA$10:$AA$257) -> 0 | L170: =IF(K170=0,"",(K170/(SUM($K$164:$K$171)))*100) -> 
B180: Off-site change by watercourse type
C181: Baseline | E181: Post development off-site | G181: Off-site Change
B182: Watercourse type | C182: Off-site existing length | D182: Off-site existing value | E182: Off-site proposed length | F182: Off-site proposed value | G182: Off-site length change | H182: Off-site unit change
B183: Priority habitat | C183: ='G-2 Habitat groups'!S172 -> 0.0 | D183: ='G-2 Habitat groups'!T172 -> 0.0 | E183: ='G-2 Habitat groups'!AA172 -> 0.0 | F183: ='G-2 Habitat groups'!AB172 -> 0.0 | G183: =E183-C183 -> 0.0 | H183: 0.0
B184: Other rivers and streams | C184: ='G-2 Habitat groups'!S173 -> 0.0 | D184: ='G-2 Habitat groups'!T173 -> 0.0 | E184: ='G-2 Habitat groups'!AA173 -> 0.0 | F184: ='G-2 Habitat groups'!AB173 -> 0.0 | G184: 0.0 | H184: 0.0
B185: Ditches | C185: ='G-2 Habitat groups'!S174 -> 0.0 | D185: ='G-2 Habitat groups'!T174 -> 0.0 | E185: ='G-2 Habitat groups'!AA174 -> 0.0 | F185: ='G-2 Habitat groups'!AB174 -> 0.0 | G185: 0.0 | H185: 0.0
B186: Canals | C186: ='G-2 Habitat groups'!S175 -> 0.0 | D186: ='G-2 Habitat groups'!T175 -> 0.0 | E186: ='G-2 Habitat groups'!AA175 -> 0.0 | F186: ='G-2 Habitat groups'!AB175 -> 0.0 | G186: 0.0 | H186: 0.0
B187: Culvert | C187: ='G-2 Habitat groups'!S176 -> 0.0 | D187: ='G-2 Habitat groups'!T176 -> 0.0 | E187: ='G-2 Habitat groups'!AA176 -> 0.0 | F187: ='G-2 Habitat groups'!AB176 -> 0.0 | G187: 0.0 | H187: 0.0
B200: Combined on-site and off-site change by watercourse type
C201: Baseline | E201: Post-development on-site | G201: On-site change
B202: Watercourse type | C202: Combined existing length | D202: Combined existing value | E202: Combined proposed length | F202: Combined proposed value | G202: Combined length change | H202: Combined unit change
B203: Priority habitat | C203: =C163+C183 -> 0.0 | D203: 0.0 | E203: 0.0 | F203: 0.0 | G203: 0.0 | H203: 0.0
B204: Other rivers and streams | C204: 0.0 | D204: 0.0 | E204: 0.0 | F204: 0.0 | G204: 0.0 | H204: 0.0
B205: Ditches | C205: =C165+C185 -> 0.0 | D205: 0.0 | E205: 0.0 | F205: 0.0 | G205: 0.0 | H205: 0.0
B206: Canals | C206: =C166+C186 -> 0.0 | D206: 0.0 | E206: 0.0 | F206: 0.0 | G206: 0.0 | H206: 0.0
B207: Culvert | C207: =C167+C187 -> 0.0 | D207: 0.0 | E207: 0.0 | F207: 0.0 | G207: 0.0 | H207: 0.0

Sheet Trading Summary Area Habitats (hidden)
B2: Trading Summary
B3: Distinctiveness Group | C3: Trading Rule | G3: Trading Satisfied?
B5: Very High | C5: Bespoke compensation likely to be required 🛠 | G5: =IF(('A-1 On-Site Habitat Baseline'!AQ259+'D-1 Off-Site Habitat Baseline'!AU259)>0,"No ▲","Yes ✓") -> Yes ✓
B6: High | C6: Same habitat required = | G6: =IFERROR(IF(J41<0,"No ▲","Yes ✓"),"") -> Yes ✓
B7: Medium | C7: Same broad habitat or a higher distinctiveness habitat required (≥) | G7: =IF(J40+J12+J89<0,"No ▲","Yes ✓") -> No ▲
B8: Low | C8: Same distinctiveness or better habitat required ≥ | G8: =IF(J126<0,"No ▲","Yes ✓") -> No ▲
B11: Very High Distinctiveness | I11: Very High Distinctiveness Summary
B12: Habitat group | C12: Group | D12: On-site unit change | E12: Off-site unit change | F12: Project-wide unit change | G12: Unit losses | I12: Very High Distinctiveness Units available to offset lower distinctiveness deficit | J12: =SUMIF($F$13:$F$32,">0") -> 0.00
B13: ='G-2 Habitat groups'!AU5 -> Grassland - Lowland dry acid grassland | C13: ='G-2 Habitat groups'!AV5 -> Grassland | D13: ='G-2 Habitat groups'!BB5 -> 0.00 | E13: ='G-2 Habitat groups'!BD5 -> 0.00 | F13: ='G-2 Habitat groups'!BE5 -> 0.00 | G13: ='G-2 Habitat groups'!BF5 ->  | I13: =IF($G$33<0,"Very high distinctiveness unit defecit - CHECK DATA","") -> 
B14: ='G-2 Habitat groups'!AU6 -> Grassland - Lowland meadows | C14: ='G-2 Habitat groups'!AV6 -> Grassland | D14: ='G-2 Habitat groups'!BB6 -> 0.00 | E14: ='G-2 Habitat groups'!BD6 -> 0.00 | F14: ='G-2 Habitat groups'!BE6 -> 0.00 | G14: ='G-2 Habitat groups'!BF6 -> 
B15: ='G-2 Habitat groups'!AU7 -> Grassland - Upland hay meadows | C15: ='G-2 Habitat groups'!AV7 -> Grassland | D15: ='G-2 Habitat groups'!BB7 -> 0.00 | E15: ='G-2 Habitat groups'!BD7 -> 0.00 | F15: ='G-2 Habitat groups'!BE7 -> 0.00 | G15: ='G-2 Habitat groups'!BF7 -> 
B16: ='G-2 Habitat groups'!AU8 -> Heathland and shrub - Mountain heaths and willow scrub | C16: ='G-2 Habitat groups'!AV8 -> Heathland and shrub | D16: ='G-2 Habitat groups'!BB8 -> 0.00 | E16: ='G-2 Habitat groups'!BD8 -> 0.00 | F16: ='G-2 Habitat groups'!BE8 -> 0.00 | G16: ='G-2 Habitat groups'!BF8 -> 
B17: ='G-2 Habitat groups'!AU9 -> Lakes - Aquifer fed naturally fluctuating water bodies | C17: ='G-2 Habitat groups'!AV9 -> Lakes | D17: ='G-2 Habitat groups'!BB9 -> 0.00 | E17: ='G-2 Habitat groups'!BD9 -> 0.00 | F17: ='G-2 Habitat groups'!BE9 -> 0.00 | G17: ='G-2 Habitat groups'!BF9 -> 
B18: ='G-2 Habitat groups'!AU10 -> Sparsely vegetated land - Calaminarian grasslands | C18: ='G-2 Habitat groups'!AV10 -> Sparsely vegetated land | D18: ='G-2 Habitat groups'!BB10 -> 0.00 | E18: ='G-2 Habitat groups'!BD10 -> 0.00 | F18: ='G-2 Habitat groups'!BE10 -> 0.00 | G18: ='G-2 Habitat groups'!BF10 -> 
B19: ='G-2 Habitat groups'!AU11 -> Sparsely vegetated land - Limestone pavement | C19: ='G-2 Habitat groups'!AV11 -> Sparsely vegetated land | D19: ='G-2 Habitat groups'!BB11 -> 0.00 | E19: ='G-2 Habitat groups'!BD11 -> 0.00 | F19: ='G-2 Habitat groups'!BE11 -> 0.00 | G19: ='G-2 Habitat groups'!BF11 -> 
B20: ='G-2 Habitat groups'!AU12 -> Wetland - Blanket bog | C20: ='G-2 Habitat groups'!AV12 -> Wetland | D20: ='G-2 Habitat groups'!BB12 -> 0.00 | E20: ='G-2 Habitat groups'!BD12 -> 0.00 | F20: ='G-2 Habitat groups'!BE12 -> 0.00 | G20: ='G-2 Habitat groups'!BF12 -> 
B21: ='G-2 Habitat groups'!AU13 -> Wetland - Depressions on peat substrates (H7150) | C21: ='G-2 Habitat groups'!AV13 -> Wetland | D21: ='G-2 Habitat groups'!BB13 -> 0.00 | E21: ='G-2 Habitat groups'!BD13 -> 0.00 | F21: ='G-2 Habitat groups'!BE13 -> 0.00 | G21: ='G-2 Habitat groups'!BF13 -> 
B22: ='G-2 Habitat groups'!AU14 -> Wetland - Fens (upland and lowland) | C22: ='G-2 Habitat groups'!AV14 -> Wetland | D22: ='G-2 Habitat groups'!BB14 -> 0.00 | E22: ='G-2 Habitat groups'!BD14 -> 0.00 | F22: ='G-2 Habitat groups'!BE14 -> 0.00 | G22: ='G-2 Habitat groups'!BF14 -> 
B23: ='G-2 Habitat groups'!AU15 -> Wetland - Lowland raised bog | C23: ='G-2 Habitat groups'!AV15 -> Wetland | D23: ='G-2 Habitat groups'!BB15 -> 0.00 | E23: ='G-2 Habitat groups'!BD15 -> 0.00 | F23: ='G-2 Habitat groups'!BE15 -> 0.00 | G23: ='G-2 Habitat groups'!BF15 -> 
B24: ='G-2 Habitat groups'!AU16 -> Wetland - Oceanic valley mire[1] (D2.1) | C24: ='G-2 Habitat groups'!AV16 -> Wetland | D24: ='G-2 Habitat groups'!BB16 -> 0.00 | E24: ='G-2 Habitat groups'!BD16 -> 0.00 | F24: ='G-2 Habitat groups'!BE16 -> 0.00 | G24: ='G-2 Habitat groups'!BF16 -> 
B25: ='G-2 Habitat groups'!AU17 -> Wetland - Purple moor grass and rush pastures | C25: ='G-2 Habitat groups'!AV17 -> Wetland | D25: ='G-2 Habitat groups'!BB17 -> 0.00 | E25: ='G-2 Habitat groups'!BD17 -> 0.00 | F25: ='G-2 Habitat groups'!BE17 -> 0.00 | G25: ='G-2 Habitat groups'!BF17 -> 
B26: ='G-2 Habitat groups'!AU18 -> Wetland - Transition mires and quaking bogs (H7140) | C26: ='G-2 Habitat groups'!AV18 -> Wetland | D26: ='G-2 Habitat groups'!BB18 -> 0.00 | E26: ='G-2 Habitat groups'!BD18 -> 0.00 | F26: ='G-2 Habitat groups'!BE18 -> 0.00 | G26: ='G-2 Habitat groups'!BF18 -> 
B27: ='G-2 Habitat groups'!AU19 -> Woodland and forest - Wood-pasture and parkland | C27: ='G-2 Habitat groups'!AV19 -> Woodland and forest | D27: ='G-2 Habitat groups'!BB19 -> 0.00 | E27: ='G-2 Habitat groups'!BD19 -> 0.00 | F27: ='G-2 Habitat groups'!BE19 -> 0.00 | G27: ='G-2 Habitat groups'!BF19 -> 
B28: ='G-2 Habitat groups'!AU20 -> Rocky shore - High energy littoral rock - on peat, clay or chalk | C28: ='G-2 Habitat groups'!AV20 -> Rocky shore | D28: ='G-2 Habitat groups'!BB20 -> 0.00 | E28: ='G-2 Habitat groups'!BD20 -> 0.00 | F28: ='G-2 Habitat groups'!BE20 -> 0.00 | G28: ='G-2 Habitat groups'!BF20 -> 
B29: ='G-2 Habitat groups'!AU21 -> Rocky shore - Moderate energy littoral rock - on peat, clay or chalk | C29: ='G-2 Habitat groups'!AV21 -> Rocky shore | D29: ='G-2 Habitat groups'!BB21 -> 0.00 | E29: ='G-2 Habitat groups'!BD21 -> 0.00 | F29: ='G-2 Habitat groups'!BE21 -> 0.00 | G29: ='G-2 Habitat groups'!BF21 -> 
B30: ='G-2 Habitat groups'!AU22 -> Rocky shore - Low energy littoral rock - on peat, clay or chalk | C30: ='G-2 Habitat groups'!AV22 -> Rocky shore | D30: ='G-2 Habitat groups'!BB22 -> 0.00 | E30: ='G-2 Habitat groups'!BD22 -> 0.00 | F30: ='G-2 Habitat groups'!BE22 -> 0.00 | G30: ='G-2 Habitat groups'!BF22 -> 
B31: ='G-2 Habitat groups'!AU23 -> Rocky shore - Features of littoral rock - on peat, clay or chalk | C31: ='G-2 Habitat groups'!AV23 -> Rocky shore | D31: ='G-2 Habitat groups'!BB23 -> 0.00 | E31: ='G-2 Habitat groups'!BD23 -> 0.00 | F31: ='G-2 Habitat groups'!BE23 -> 0.00 | G31: ='G-2 Habitat groups'!BF23 -> 
B32: ='G-2 Habitat groups'!AU24 -> Intertidal sediment - Littoral seagrass on peat, clay or chalk | C32: ='G-2 Habitat groups'!AV24 -> Intertidal sediment | D32: ='G-2 Habitat groups'!BB24 -> 0.00 | E32: ='G-2 Habitat groups'!BD24 -> 0.00 | F32: ='G-2 Habitat groups'!BE24 -> 0.00 | G32: ='G-2 Habitat groups'!BF24 -> 
D33: =SUM(D13:D32) -> 0.00 | E33: =SUM(E13:E32) -> 0.00 | F33: =SUM(F13:F32) -> 0.00 | G33: =SUM(G13:G32) -> 0.00
B39: High Distinctiveness | I39: High Distinctiveness Summary
B40: Habitat group | C40: Group | D40: On-site unit change | E40: Off-site unit change | F40: Project-wide unit change | G40: Losses not yet accounted for | I40: High Distinctiveness Units available to offset lower distinctiveness deficit | J40: =SUMIF($F$41:$F$81,">0") -> 0.00
B41: ='G-2 Habitat groups'!AU30 -> Grassland - Traditional orchards | C41: ='G-2 Habitat groups'!AV30 -> Grassland | D41: ='G-2 Habitat groups'!BB30 -> 0.00 | E41: ='G-2 Habitat groups'!BD30 -> 0.00 | F41: ='G-2 Habitat groups'!BE30 -> 0.00 | G41: ='G-2 Habitat groups'!BF30 ->  | I41: Unit Deficit; Like for like not satisfied | J41: =G83 -> 0.00
B42: ='G-2 Habitat groups'!AU31 -> Grassland - Floodplain wetland mosaic and CFGM | C42: ='G-2 Habitat groups'!AV31 -> Grassland | D42: ='G-2 Habitat groups'!BB31 -> 0.00 | E42: ='G-2 Habitat groups'!BD31 -> 0.00 | F42: ='G-2 Habitat groups'!BE31 -> 0.00 | G42: ='G-2 Habitat groups'!BF31 -> 
B43: ='G-2 Habitat groups'!AU32 -> Grassland - Lowland calcareous grassland | C43: ='G-2 Habitat groups'!AV32 -> Grassland | D43: ='G-2 Habitat groups'!BB32 -> 0.00 | E43: ='G-2 Habitat groups'!BD32 -> 0.00 | F43: ='G-2 Habitat groups'!BE32 -> 0.00 | G43: ='G-2 Habitat groups'!BF32 -> 
B44: ='G-2 Habitat groups'!AU33 -> Grassland - Tall herb communities (H6430) | C44: ='G-2 Habitat groups'!AV33 -> Grassland | D44: ='G-2 Habitat groups'!BB33 -> 0.00 | E44: ='G-2 Habitat groups'!BD33 -> 0.00 | F44: ='G-2 Habitat groups'!BE33 -> 0.00 | G44: ='G-2 Habitat groups'!BF33 -> 
B45: ='G-2 Habitat groups'!AU34 -> Grassland - Upland calcareous grassland | C45: ='G-2 Habitat groups'!AV34 -> Grassland | D45: ='G-2 Habitat groups'!BB34 -> 0.00 | E45: ='G-2 Habitat groups'!BD34 -> 0.00 | F45: ='G-2 Habitat groups'!BE34 -> 0.00 | G45: ='G-2 Habitat groups'!BF34 -> 
B46: ='G-2 Habitat groups'!AU35 -> Heathland and shrub - Lowland Heathland | C46: ='G-2 Habitat groups'!AV35 -> Heathland and shrub | D46: ='G-2 Habitat groups'!BB35 -> 0.00 | E46: ='G-2 Habitat groups'!BD35 -> 0.00 | F46: ='G-2 Habitat groups'!BE35 -> 0.00 | G46: ='G-2 Habitat groups'!BF35 -> 
B47: ='G-2 Habitat groups'!AU36 -> Heathland and shrub - Dunes with sea buckthorn (H2160) | C47: ='G-2 Habitat groups'!AV36 -> Heathland and shrub | D47: ='G-2 Habitat groups'!BB36 -> 0.00 | E47: ='G-2 Habitat groups'!BD36 -> 0.00 | F47: ='G-2 Habitat groups'!BE36 -> 0.00 | G47: ='G-2 Habitat groups'!BF36 -> 
B48: ='G-2 Habitat groups'!AU37 -> Heathland and shrub - Upland heathland | C48: ='G-2 Habitat groups'!AV37 -> Heathland and shrub | D48: ='G-2 Habitat groups'!BB37 -> 0.00 | E48: ='G-2 Habitat groups'!BD37 -> 0.00 | F48: ='G-2 Habitat groups'!BE37 -> 0.00 | G48: ='G-2 Habitat groups'!BF37 -> 
B49: ='G-2 Habitat groups'!AU39 -> Lakes - High alkalinity lakes | C49: ='G-2 Habitat groups'!AV39 -> Lakes | D49: ='G-2 Habitat groups'!BB39 -> 0.00 | E49: ='G-2 Habitat groups'!BD39 -> 0.00 | F49: ='G-2 Habitat groups'!BE39 -> 0.00 | G49: ='G-2 Habitat groups'!BF39 -> 
B50: ='G-2 Habitat groups'!AU40 -> Lakes - Low alkalinity lakes | C50: ='G-2 Habitat groups'!AV40 -> Lakes | D50: ='G-2 Habitat groups'!BB40 -> 0.00 | E50: ='G-2 Habitat groups'!BD40 -> 0.00 | F50: ='G-2 Habitat groups'!BE40 -> 0.00 | G50: ='G-2 Habitat groups'!BF40 -> 
B51: ='G-2 Habitat groups'!AU41 -> Lakes - Marl lakes | C51: ='G-2 Habitat groups'!AV41 -> Lakes | D51: ='G-2 Habitat groups'!BB41 -> 0.00 | E51: ='G-2 Habitat groups'!BD41 -> 0.00 | F51: ='G-2 Habitat groups'!BE41 -> 0.00 | G51: ='G-2 Habitat groups'!BF41 -> 
B52: ='G-2 Habitat groups'!AU42 -> Lakes - Moderate alkalinity lakes | C52: ='G-2 Habitat groups'!AV42 -> Lakes | D52: ='G-2 Habitat groups'!BB42 -> 0.00 | E52: ='G-2 Habitat groups'!BD42 -> 0.00 | F52: ='G-2 Habitat groups'!BE42 -> 0.00 | G52: ='G-2 Habitat groups'!BF42 -> 
B53: ='G-2 Habitat groups'!AU43 -> Lakes - Peat lakes | C53: ='G-2 Habitat groups'!AV43 -> Lakes | D53: ='G-2 Habitat groups'!BB43 -> 0.00 | E53: ='G-2 Habitat groups'!BD43 -> 0.00 | F53: ='G-2 Habitat groups'!BE43 -> 0.00 | G53: ='G-2 Habitat groups'!BF43 -> 
B54: ='G-2 Habitat groups'!AU44 -> Lakes - Ponds (priority habitat) | C54: ='G-2 Habitat groups'!AV44 -> Lakes | D54: ='G-2 Habitat groups'!BB44 -> 0.00 | E54: ='G-2 Habitat groups'!BD44 -> 0.00 | F54: ='G-2 Habitat groups'!BE44 -> 0.00 | G54: ='G-2 Habitat groups'!BF44 -> 
B55: ='G-2 Habitat groups'!AU45 -> Lakes - Temporary lakes ponds and pools (H3170) | C55: ='G-2 Habitat groups'!AV45 -> Lakes | D55: ='G-2 Habitat groups'!BB45 -> 0.00 | E55: ='G-2 Habitat groups'!BD45 -> 0.00 | F55: ='G-2 Habitat groups'!BE45 -> 0.00 | G55: ='G-2 Habitat groups'!BF45 -> 
B56: ='G-2 Habitat groups'!AU46 -> Sparsely vegetated land - Coastal sand dunes | C56: ='G-2 Habitat groups'!AV46 -> Sparsely vegetated land | D56: ='G-2 Habitat groups'!BB46 -> 0.00 | E56: ='G-2 Habitat groups'!BD46 -> 0.00 | F56: ='G-2 Habitat groups'!BE46 -> 0.00 | G56: ='G-2 Habitat groups'!BF46 -> 
B57: ='G-2 Habitat groups'!AU47 -> Sparsely vegetated land - Coastal vegetated shingle | C57: ='G-2 Habitat groups'!AV47 -> Sparsely vegetated land | D57: ='G-2 Habitat groups'!BB47 -> 0.00 | E57: ='G-2 Habitat groups'!BD47 -> 0.00 | F57: ='G-2 Habitat groups'!BE47 -> 0.00 | G57: ='G-2 Habitat groups'!BF47 -> 
B58: ='G-2 Habitat groups'!AU48 -> Sparsely vegetated land - Inland rock outcrop and scree habitats | C58: ='G-2 Habitat groups'!AV48 -> Sparsely vegetated land | D58: ='G-2 Habitat groups'!BB48 -> 0.00 | E58: ='G-2 Habitat groups'!BD48 -> 0.00 | F58: ='G-2 Habitat groups'!BE48 -> 0.00 | G58: ='G-2 Habitat groups'!BF48 -> 
B59: ='G-2 Habitat groups'!AU49 -> Sparsely vegetated land - Maritime cliff and slopes | C59: ='G-2 Habitat groups'!AV49 -> Sparsely vegetated land | D59: ='G-2 Habitat groups'!BB49 -> 0.00 | E59: ='G-2 Habitat groups'!BD49 -> 0.00 | F59: ='G-2 Habitat groups'!BE49 -> 0.00 | G59: ='G-2 Habitat groups'!BF49 -> 
B60: ='G-2 Habitat groups'!AU50 -> Urban - Open mosaic habitats on previously developed land | C60: ='G-2 Habitat groups'!AV50 -> Urban | D60: ='G-2 Habitat groups'!BB50 -> 0.00 | E60: ='G-2 Habitat groups'!BD50 -> 0.00 | F60: ='G-2 Habitat groups'!BE50 -> 0.00 | G60: ='G-2 Habitat groups'!BF50 -> 
B61: ='G-2 Habitat groups'!AU51 -> Wetland - Reedbeds | C61: ='G-2 Habitat groups'!AV51 -> Wetland | D61: ='G-2 Habitat groups'!BB51 -> 0.00 | E61: ='G-2 Habitat groups'!BD51 -> 0.00 | F61: ='G-2 Habitat groups'!BE51 -> 0.00 | G61: ='G-2 Habitat groups'!BF51 -> 
B62: ='G-2 Habitat groups'!AU52 -> Woodland and forest - Felled | C62: ='G-2 Habitat groups'!AV52 -> Woodland and forest | D62: ='G-2 Habitat groups'!BB52 -> 0.00 | E62: ='G-2 Habitat groups'!BD52 -> 0.00 | F62: ='G-2 Habitat groups'!BE52 -> 0.00 | G62: ='G-2 Habitat groups'!BF52 -> 
B63: ='G-2 Habitat groups'!AU53 -> Woodland and forest - Lowland beech and yew woodland | C63: ='G-2 Habitat groups'!AV53 -> Woodland and forest | D63: ='G-2 Habitat groups'!BB53 -> 0.00 | E63: ='G-2 Habitat groups'!BD53 -> 0.00 | F63: ='G-2 Habitat groups'!BE53 -> 0.00 | G63: ='G-2 Habitat groups'!BF53 -> 
B64: ='G-2 Habitat groups'!AU54 -> Woodland and forest - Lowland mixed deciduous woodland | C64: ='G-2 Habitat groups'!AV54 -> Woodland and forest | D64: ='G-2 Habitat groups'!BB54 -> 0.00 | E64: ='G-2 Habitat groups'!BD54 -> 0.00 | F64: ='G-2 Habitat groups'!BE54 -> 0.00 | G64: ='G-2 Habitat groups'!BF54 -> 
B65: ='G-2 Habitat groups'!AU56 -> Woodland and forest - Native pine woodlands | C65: ='G-2 Habitat groups'!AV56 -> Woodland and forest | D65: ='G-2 Habitat groups'!BB56 -> 0.00 | E65: ='G-2 Habitat groups'!BD56 -> 0.00 | F65: ='G-2 Habitat groups'!BE56 -> 0.00 | G65: ='G-2 Habitat groups'!BF56 -> 
B66: ='G-2 Habitat groups'!AU57 -> Woodland and forest - Upland birchwoods | C66: ='G-2 Habitat groups'!AV57 -> Woodland and forest | D66: ='G-2 Habitat groups'!BB57 -> 0.00 | E66: ='G-2 Habitat groups'!BD57 -> 0.00 | F66: ='G-2 Habitat groups'!BE57 -> 0.00 | G66: ='G-2 Habitat groups'!BF57 -> 
B67: ='G-2 Habitat groups'!AU58 -> Woodland and forest - Upland mixed ashwoods | C67: ='G-2 Habitat groups'!AV58 -> Woodland and forest | D67: ='G-2 Habitat groups'!BB58 -> 0.00 | E67: ='G-2 Habitat groups'!BD58 -> 0.00 | F67: ='G-2 Habitat groups'!BE58 -> 0.00 | G67: ='G-2 Habitat groups'!BF58 -> 
B68: ='G-2 Habitat groups'!AU59 -> Woodland and forest - Upland oakwood | C68: ='G-2 Habitat groups'!AV59 -> Woodland and forest | D68: ='G-2 Habitat groups'!BB59 -> 0.00 | E68: ='G-2 Habitat groups'!BD59 -> 0.00 | F68: ='G-2 Habitat groups'!BE59 -> 0.00 | G68: ='G-2 Habitat groups'!BF59 -> 
B69: ='G-2 Habitat groups'!AU60 -> Woodland and forest - Wet woodland | C69: ='G-2 Habitat groups'!AV60 -> Woodland and forest | D69: ='G-2 Habitat groups'!BB60 -> 0.00 | E69: ='G-2 Habitat groups'!BD60 -> 0.00 | F69: ='G-2 Habitat groups'!BE60 -> 0.00 | G69: ='G-2 Habitat groups'!BF60 -> 
B70: ='G-2 Habitat groups'!AU61 -> Coastal lagoons - Coastal lagoons | C70: ='G-2 Habitat groups'!AV61 -> Coastal lagoons | D70: ='G-2 Habitat groups'!BB61 -> 0.00 | E70: ='G-2 Habitat groups'!BD61 -> 0.00 | F70: ='G-2 Habitat groups'!BE61 -> 0.00 | G70: ='G-2 Habitat groups'!BF61 -> 
B71: ='G-2 Habitat groups'!AU62 -> Rocky shore - High energy littoral rock | C71: ='G-2 Habitat groups'!AV62 -> Rocky shore | D71: ='G-2 Habitat groups'!BB62 -> 0.00 | E71: ='G-2 Habitat groups'!BD62 -> 0.00 | F71: ='G-2 Habitat groups'!BE62 -> 0.00 | G71: ='G-2 Habitat groups'!BF62 -> 
B72: ='G-2 Habitat groups'!AU63 -> Rocky shore - Moderate energy littoral rock | C72: ='G-2 Habitat groups'!AV63 -> Rocky shore | D72: ='G-2 Habitat groups'!BB63 -> 0.00 | E72: ='G-2 Habitat groups'!BD63 -> 0.00 | F72: ='G-2 Habitat groups'!BE63 -> 0.00 | G72: ='G-2 Habitat groups'!BF63 -> 
B73: ='G-2 Habitat groups'!AU64 -> Rocky shore - Low energy littoral rock | C73: ='G-2 Habitat groups'!AV64 -> Rocky shore | D73: ='G-2 Habitat groups'!BB64 -> 0.00 | E73: ='G-2 Habitat groups'!BD64 -> 0.00 | F73: ='G-2 Habitat groups'!BE64 -> 0.00 | G73: ='G-2 Habitat groups'!BF64 -> 
B74: ='G-2 Habitat groups'!AU65 -> Rocky shore - Features of littoral rock | C74: ='G-2 Habitat groups'!AV65 -> Rocky shore | D74: ='G-2 Habitat groups'!BB65 -> 0.00 | E74: ='G-2 Habitat groups'!BD65 -> 0.00 | F74: ='G-2 Habitat groups'!BE65 -> 0.00 | G74: ='G-2 Habitat groups'!BF65 -> 
B75: ='G-2 Habitat groups'!AU66 -> Intertidal sediment - Littoral mud | C75: ='G-2 Habitat groups'!AV66 -> Intertidal sediment | D75: ='G-2 Habitat groups'!BB66 -> 0.00 | E75: ='G-2 Habitat groups'!BD66 -> 0.00 | F75: ='G-2 Habitat groups'!BE66 -> 0.00 | G75: ='G-2 Habitat groups'!BF66 -> 
B76: ='G-2 Habitat groups'!AU67 -> Intertidal sediment - Littoral mixed sediments | C76: ='G-2 Habitat groups'!AV67 -> Intertidal sediment | D76: ='G-2 Habitat groups'!BB67 -> 0.00 | E76: ='G-2 Habitat groups'!BD67 -> 0.00 | F76: ='G-2 Habitat groups'!BE67 -> 0.00 | G76: ='G-2 Habitat groups'!BF67 -> 
B77: ='G-2 Habitat groups'!AU68 -> Coastal saltmarsh - Saltmarshes and saline reedbeds | C77: ='G-2 Habitat groups'!AV68 -> Coastal saltmarsh | D77: ='G-2 Habitat groups'!BB68 -> 0.00 | E77: ='G-2 Habitat groups'!BD68 -> 0.00 | F77: ='G-2 Habitat groups'!BE68 -> 0.00 | G77: ='G-2 Habitat groups'!BF68 -> 
B78: ='G-2 Habitat groups'!AU69 -> Intertidal sediment - Littoral biogenic reefs - Mussels | C78: ='G-2 Habitat groups'!AV69 -> Intertidal sediment | D78: ='G-2 Habitat groups'!BB69 -> 0.00 | E78: ='G-2 Habitat groups'!BD69 -> 0.00 | F78: ='G-2 Habitat groups'!BE69 -> 0.00 | G78: ='G-2 Habitat groups'!BF69 -> 
B79: ='G-2 Habitat groups'!AU70 -> Intertidal sediment - Littoral biogenic reefs - Sabellaria | C79: ='G-2 Habitat groups'!AV70 -> Intertidal sediment | D79: ='G-2 Habitat groups'!BB70 -> 0.00 | E79: ='G-2 Habitat groups'!BD70 -> 0.00 | F79: ='G-2 Habitat groups'!BE70 -> 0.00 | G79: ='G-2 Habitat groups'!BF70 -> 
B80: ='G-2 Habitat groups'!AU71 -> Intertidal sediment - Features of littoral sediment | C80: ='G-2 Habitat groups'!AV71 -> Intertidal sediment | D80: ='G-2 Habitat groups'!BB71 -> 0.00 | E80: ='G-2 Habitat groups'!BD71 -> 0.00 | F80: ='G-2 Habitat groups'!BE71 -> 0.00 | G80: ='G-2 Habitat groups'!BF71 -> 
B81: ='G-2 Habitat groups'!AU72 -> Intertidal sediment - Littoral muddy sand | C81: ='G-2 Habitat groups'!AV72 -> Intertidal sediment | D81: ='G-2 Habitat groups'!BB72 -> 0.00 | E81: ='G-2 Habitat groups'!BD72 -> 0.00 | F81: ='G-2 Habitat groups'!BE72 -> 0.00 | G81: ='G-2 Habitat groups'!BF72 -> 
B82: Intertidal sediment - Littoral seagrass | C82: ='G-2 Habitat groups'!AV73 -> Intertidal sediment | D82: ='G-2 Habitat groups'!BB73 -> 0.00 | E82: ='G-2 Habitat groups'!BD73 -> 0.00 | F82: ='G-2 Habitat groups'!BE73 -> 0.00 | G82: ='G-2 Habitat groups'!BF73 -> 
D83: =SUM(D41:D81) -> 0.00 | E83: =SUM(E41:E81) -> 0.00 | F83: =SUM(F41:F81) -> 0.00 | G83: =SUM(G41:G81) -> 0.00
B87: Medium Distinctiveness | I87: Medium Distinctiveness Summary
B88: Habitat group | C88: Group | D88: On-site unit change | E88: Off-site unit change | F88: Project wide unit change | G88: Cumulative broad habitat change | I88: Medium Distinctiveness Units available to offset Lower Distinctiveness Deficit | J88: =SUMIF(G89:G115,">0") -> 0.00
B89: ='G-2 Habitat groups'!AU79 -> Cropland - Arable field margins cultivated annually | C89: ='G-2 Habitat groups'!AV79 -> Cropland | D89: ='G-2 Habitat groups'!BB79 -> 0.00 | E89: ='G-2 Habitat groups'!BD79 -> 0.00 | F89: ='G-2 Habitat groups'!BE79 -> 0.00 | G89: =SUM(F89:F92) -> 0.00 | I89: Medium Distinctiveness Broad Habitat Deficit to be offset by trading up | J89: =SUMIF(G89:G115,"<0") -> -0.71
B90: ='G-2 Habitat groups'!AU81 -> Cropland - Arable field margins game bird mix | C90: ='G-2 Habitat groups'!AV81 -> Cropland | D90: ='G-2 Habitat groups'!BB81 -> 0.00 | E90: ='G-2 Habitat groups'!BD81 -> 0.00 | F90: ='G-2 Habitat groups'!BE81 -> 0.00 | I90: Higher Distinctiveness Surplus Units minus Medium Distinctiveness Broad Habitat Deficit | J90: =J40+J12+J89 -> -0.71
B91: ='G-2 Habitat groups'!AU82 -> Cropland - Arable field margins pollen and nectar | C91: ='G-2 Habitat groups'!AV82 -> Cropland | D91: ='G-2 Habitat groups'!BB82 -> 0.00 | E91: ='G-2 Habitat groups'!BD82 -> 0.00 | F91: ='G-2 Habitat groups'!BE82 -> 0.00 | I91: Cumulative surplus of units | J91: =J90+J88 -> -0.71
B92: ='G-2 Habitat groups'!AU83 -> Cropland - Arable field margins tussocky | C92: ='G-2 Habitat groups'!AV83 -> Cropland | D92: ='G-2 Habitat groups'!BB83 -> 0.00 | E92: ='G-2 Habitat groups'!BD83 -> 0.00 | F92: ='G-2 Habitat groups'!BE83 -> 0.00
B93: ='G-2 Habitat groups'!AU84 -> Grassland - Other lowland acid grassland | C93: ='G-2 Habitat groups'!AV84 -> Grassland | D93: ='G-2 Habitat groups'!BB84 -> 0.00 | E93: ='G-2 Habitat groups'!BD84 -> 0.00 | F93: ='G-2 Habitat groups'!BE84 -> 0.00 | G93: =SUM(F93:F95) -> 0.00
B94: ='G-2 Habitat groups'!AU85 -> Grassland - Other neutral grassland | C94: ='G-2 Habitat groups'!AV85 -> Grassland | D94: ='G-2 Habitat groups'!BB85 -> 0.00 | E94: ='G-2 Habitat groups'!BD85 -> 0.00 | F94: ='G-2 Habitat groups'!BE85 -> 0.00
B95: ='G-2 Habitat groups'!AU86 -> Grassland - Upland acid grassland | C95: ='G-2 Habitat groups'!AV86 -> Grassland | D95: ='G-2 Habitat groups'!BB86 -> 0.00 | E95: ='G-2 Habitat groups'!BD86 -> 0.00 | F95: ='G-2 Habitat groups'!BE86 -> 0.00
B96: ='G-2 Habitat groups'!AU87 -> Heathland and shrub - Blackthorn scrub | C96: ='G-2 Habitat groups'!AV87 -> Heathland and shrub | D96: ='G-2 Habitat groups'!BB87 -> 0.00 | E96: ='G-2 Habitat groups'!BD87 -> 0.00 | F96: ='G-2 Habitat groups'!BE87 -> 0.00 | G96: =SUM(F96:F102) -> 0.00
B97: ='G-2 Habitat groups'!AU88 -> Heathland and shrub - Bramble scrub | C97: ='G-2 Habitat groups'!AV88 -> Heathland and shrub | D97: ='G-2 Habitat groups'!BB88 -> 0.00 | E97: ='G-2 Habitat groups'!BD88 -> 0.00 | F97: ='G-2 Habitat groups'!BE88 -> 0.00
B98: ='G-2 Habitat groups'!AU89 -> Heathland and shrub - Gorse scrub | C98: ='G-2 Habitat groups'!AV89 -> Heathland and shrub | D98: ='G-2 Habitat groups'!BB89 -> 0.00 | E98: ='G-2 Habitat groups'!BD89 -> 0.00 | F98: ='G-2 Habitat groups'!BE89 -> 0.00
B99: ='G-2 Habitat groups'!AU90 -> Heathland and shrub - Hawthorn scrub | C99: ='G-2 Habitat groups'!AV104 -> Heathland and shrub | D99: ='G-2 Habitat groups'!BB90 -> 0.00 | E99: ='G-2 Habitat groups'!BD90 -> 0.00 | F99: ='G-2 Habitat groups'!BE90 -> 0.00
B100: ='G-2 Habitat groups'!AU104 -> Heathland and shrub - Willow scrub | C100: ='G-2 Habitat groups'!AV91 -> Heathland and shrub | D100: ='G-2 Habitat groups'!BB104 -> 0.00 | E100: ='G-2 Habitat groups'!BD104 -> 0.00 | F100: ='G-2 Habitat groups'!BE104 -> 0.00
B101: ='G-2 Habitat groups'!AU91 -> Heathland and shrub - Hazel scrub | C101: ='G-2 Habitat groups'!AV91 -> Heathland and shrub | D101: ='G-2 Habitat groups'!BB91 -> 0.00 | E101: ='G-2 Habitat groups'!BD91 -> 0.00 | F101: ='G-2 Habitat groups'!BE91 -> 0.00
B102: ='G-2 Habitat groups'!AU92 -> Heathland and shrub - Mixed scrub | C102: ='G-2 Habitat groups'!AV92 -> Heathland and shrub | D102: ='G-2 Habitat groups'!BB92 -> 0.00 | E102: ='G-2 Habitat groups'!BD92 -> 0.00 | F102: ='G-2 Habitat groups'!BE92 -> 0.00
B103: ='G-2 Habitat groups'!AU93 -> Lakes - Ponds (non-priority habitat) | C103: ='G-2 Habitat groups'!AV93 -> Lakes | D103: ='G-2 Habitat groups'!BB93 -> 0.00 | E103: ='G-2 Habitat groups'!BD93 -> 0.00 | F103: ='G-2 Habitat groups'!BE93 -> 0.00 | G103: =SUM(F103:F104) -> 0.00
B104: ='G-2 Habitat groups'!AU94 -> Lakes - Reservoirs | C104: ='G-2 Habitat groups'!AV94 -> Lakes | D104: ='G-2 Habitat groups'!BB94 -> 0.00 | E104: ='G-2 Habitat groups'!BD94 -> 0.00 | F104: ='G-2 Habitat groups'!BE94 -> 0.00
B105: ='G-2 Habitat groups'!AU95 -> Sparsely vegetated land - Other inland rock and scree | C105: ='G-2 Habitat groups'!AV95 -> Sparsely vegetated land | D105: ='G-2 Habitat groups'!BB95 -> 0.00 | E105: ='G-2 Habitat groups'!BD95 -> 0.00 | F105: ='G-2 Habitat groups'!BE95 -> 0.00 | G105: =F105 -> 0.00
B106: ='G-2 Habitat groups'!AU96 -> Urban - Cemeteries and churchyards | C106: ='G-2 Habitat groups'!AV96 -> Urban | D106: ='G-2 Habitat groups'!BB96 -> 0.00 | E106: ='G-2 Habitat groups'!BD96 -> 0.00 | F106: ='G-2 Habitat groups'!BE96 -> 0.00 | G106: =SUM(F106:F107) -> 0.00
B107: ='G-2 Habitat groups'!AU97 -> Urban - Biodiverse green roof | C107: ='G-2 Habitat groups'!AV97 -> Urban | D107: ='G-2 Habitat groups'!BB97 -> 0.00 | E107: ='G-2 Habitat groups'!BD97 -> 0.00 | F107: ='G-2 Habitat groups'!BE97 -> 0.00
B108: ='G-2 Habitat groups'!AU105 -> Individual trees - Urban tree | C108: ='G-2 Habitat groups'!AV105 -> Individual trees | D108: ='G-2 Habitat groups'!BB105 -> -0.71 | E108: ='G-2 Habitat groups'!BD105 -> 0.00 | F108: ='G-2 Habitat groups'!BE105 -> -0.71 | G108: =SUM(F108:F109) -> -0.71
B109: ='G-2 Habitat groups'!AU80 -> Individual trees - Rural tree | C109: ='G-2 Habitat groups'!AV80 -> Individual trees | D109: ='G-2 Habitat groups'!BB80 -> 0.00 | E109: ='G-2 Habitat groups'!BD80 -> 0.00 | F109: ='G-2 Habitat groups'!BE80 -> 0.00
B110: ='G-2 Habitat groups'!AU98 -> Woodland and forest - Other Scot's pine woodland | C110: ='G-2 Habitat groups'!AV98 -> Woodland and forest | D110: ='G-2 Habitat groups'!BB98 -> 0.00 | E110: ='G-2 Habitat groups'!BD98 -> 0.00 | F110: ='G-2 Habitat groups'!BE98 -> 0.00 | G110: =SUM(F110:F112) -> 0.00
B111: ='G-2 Habitat groups'!AU99 -> Woodland and forest - Other woodland; broadleaved | C111: ='G-2 Habitat groups'!AV99 -> Woodland and forest | D111: ='G-2 Habitat groups'!BB99 -> 0.00 | E111: ='G-2 Habitat groups'!BD99 -> 0.00 | F111: ='G-2 Habitat groups'!BE99 -> 0.00
B112: ='G-2 Habitat groups'!AU100 -> Woodland and forest - Other woodland; mixed | C112: ='G-2 Habitat groups'!AV100 -> Woodland and forest | D112: ='G-2 Habitat groups'!BB100 -> 0.00 | E112: ='G-2 Habitat groups'!BD100 -> 0.00 | F112: ='G-2 Habitat groups'!BE100 -> 0.00
B113: ='G-2 Habitat groups'!AU101 -> Intertidal sediment - Littoral coarse sediment | C113: ='G-2 Habitat groups'!AV101 -> Intertidal sediment | D113: ='G-2 Habitat groups'!BB101 -> 0.00 | E113: ='G-2 Habitat groups'!BD101 -> 0.00 | F113: ='G-2 Habitat groups'!BE101 -> 0.00 | G113: =SUM(F113:F115) -> 0.00
B114: ='G-2 Habitat groups'!AU102 -> Intertidal sediment - Littoral sand | C114: ='G-2 Habitat groups'!AV102 -> Intertidal sediment | D114: ='G-2 Habitat groups'!BB102 -> 0.00 | E114: ='G-2 Habitat groups'!BD102 -> 0.00 | F114: ='G-2 Habitat groups'!BE102 -> 0.00
B115: ='G-2 Habitat groups'!AU103 -> Intertidal hard structures - Artificial hard structures with integrated greening of grey infrastructure (IGGI) | C115: ='G-2 Habitat groups'!AV103 -> Intertidal hard structures | D115: ='G-2 Habitat groups'!BB103 -> 0.00 | E115: ='G-2 Habitat groups'!BD103 -> 0.00 | F115: ='G-2 Habitat groups'!BE103 -> 0.00
D116: =SUM(D89:D115) -> -0.71 | E116: =SUM(E89:E115) -> 0.00 | F116: =SUM(F89:F115) -> -0.71
B123: Low Distinctiveness
B124: Habitat group | C124: Group | D124: On-site unit change | E124: Off-site unit change | F124: Project wide unit change | I124: Low Distinctiveness Summary
B125: ='G-2 Habitat groups'!AU113 -> Cropland - Cereal crops | C125: ='G-2 Habitat groups'!AV113 -> Cropland | D125: ='G-2 Habitat groups'!BB113 -> 0.00 | E125: ='G-2 Habitat groups'!BD113 -> 0.00 | F125: ='G-2 Habitat groups'!BE113 -> 0.00 | I125: Low Distinctiveness net change in units | J125: =F163 -> -0.14
B126: ='G-2 Habitat groups'!AU114 -> Cropland - Horticulture | C126: ='G-2 Habitat groups'!AV114 -> Cropland | D126: ='G-2 Habitat groups'!BB114 -> 0.00 | E126: ='G-2 Habitat groups'!BD114 -> 0.00 | F126: ='G-2 Habitat groups'!BE114 -> 0.00 | I126: Cumulative surplus of units | J126: =J125+J91 -> -0.85
B127: ='G-2 Habitat groups'!AU115 -> Cropland - Intensive orchards | C127: ='G-2 Habitat groups'!AV115 -> Cropland | D127: ='G-2 Habitat groups'!BB115 -> 0.00 | E127: ='G-2 Habitat groups'!BD115 -> 0.00 | F127: ='G-2 Habitat groups'!BE115 -> 0.00
B128: ='G-2 Habitat groups'!AU116 -> Cropland - Non-cereal crops | C128: ='G-2 Habitat groups'!AV116 -> Cropland | D128: ='G-2 Habitat groups'!BB116 -> 0.00 | E128: ='G-2 Habitat groups'!BD116 -> 0.00 | F128: ='G-2 Habitat groups'!BE116 -> 0.00
B129: ='G-2 Habitat groups'!AU117 -> Cropland - Temporary grass and clover leys | C129: ='G-2 Habitat groups'!AV117 -> Cropland | D129: ='G-2 Habitat groups'!BB117 -> 0.00 | E129: ='G-2 Habitat groups'!BD117 -> 0.00 | F129: ='G-2 Habitat groups'!BE117 -> 0.00
B130: ='G-2 Habitat groups'!AU118 -> Cropland - Winter stubble | C130: ='G-2 Habitat groups'!AV118 -> Cropland | D130: ='G-2 Habitat groups'!BB118 -> 0.00 | E130: ='G-2 Habitat groups'!BD118 -> 0.00 | F130: ='G-2 Habitat groups'!BE118 -> 0.00
B131: ='G-2 Habitat groups'!AU119 -> Grassland - Modified grassland | C131: ='G-2 Habitat groups'!AV119 -> Grassland | D131: ='G-2 Habitat groups'!BB119 -> 0.07 | E131: ='G-2 Habitat groups'!BD119 -> 0.00 | F131: ='G-2 Habitat groups'!BE119 -> 0.07
B132: ='G-2 Habitat groups'!AU120 -> Grassland - Bracken | C132: ='G-2 Habitat groups'!AV120 -> Grassland | D132: ='G-2 Habitat groups'!BB120 -> 0.00 | E132: ='G-2 Habitat groups'!BD120 -> 0.00 | F132: ='G-2 Habitat groups'!BE120 -> 0.00
B133: ='G-2 Habitat groups'!AU121 -> Heathland and shrub - Rhododendron scrub | C133: ='G-2 Habitat groups'!AV121 -> Heathland and shrub | D133: ='G-2 Habitat groups'!BB121 -> 0.00 | E133: ='G-2 Habitat groups'!BD121 -> 0.00 | F133: ='G-2 Habitat groups'!BE121 -> 0.00
B134: ='G-2 Habitat groups'!AU122 -> Lakes - Ornamental lake or pond | C134: ='G-2 Habitat groups'!AV122 -> Lakes | D134: ='G-2 Habitat groups'!BB122 -> 0.00 | E134: ='G-2 Habitat groups'!BD122 -> 0.00 | F134: ='G-2 Habitat groups'!BE122 -> 0.00
B135: ='G-2 Habitat groups'!AU123 -> Sparsely vegetated land - Ruderal/ephemeral | C135: ='G-2 Habitat groups'!AV123 -> Sparsely vegetated land | D135: ='G-2 Habitat groups'!BB123 -> 0.00 | E135: ='G-2 Habitat groups'!BD123 -> 0.00 | F135: ='G-2 Habitat groups'!BE123 -> 0.00
B136: ='G-2 Habitat groups'!AU151 -> Sparsely vegetated land - Tall forbs | C136: ='G-2 Habitat groups'!AV151 -> Sparsely vegetated land | D136: ='G-2 Habitat groups'!BB151 -> 0.00 | E136: ='G-2 Habitat groups'!BD151 -> 0.00 | F136: ='G-2 Habitat groups'!BE151 -> 0.00
B137: ='G-2 Habitat groups'!AU124 -> Urban - Bioswale | C137: ='G-2 Habitat groups'!AV124 -> Urban | D137: ='G-2 Habitat groups'!BB124 -> 0.00 | E137: ='G-2 Habitat groups'!BD124 -> 0.00 | F137: ='G-2 Habitat groups'!BE124 -> 0.00
B138: ='G-2 Habitat groups'!AU134 -> Urban - Bare ground | C138: ='G-2 Habitat groups'!AV134 -> Urban | D138: ='G-2 Habitat groups'!BB134 -> 0.00 | E138: ='G-2 Habitat groups'!BD134 -> 0.00 | F138: ='G-2 Habitat groups'!BE134 -> 0.00
B139: ='G-2 Habitat groups'!AU125 -> Urban - Allotments | C139: ='G-2 Habitat groups'!AV125 -> Urban | D139: ='G-2 Habitat groups'!BB125 -> 0.00 | E139: ='G-2 Habitat groups'!BD125 -> 0.00 | F139: ='G-2 Habitat groups'!BE125 -> 0.00
B140: ='G-2 Habitat groups'!AU126 -> Urban - Facade-bound green wall | C140: ='G-2 Habitat groups'!AV126 -> Urban | D140: ='G-2 Habitat groups'!BB126 -> 0.00 | E140: ='G-2 Habitat groups'!BD126 -> 0.00 | F140: ='G-2 Habitat groups'!BE126 -> 0.00
B141: ='G-2 Habitat groups'!AU127 -> Urban - Ground based green wall | C141: ='G-2 Habitat groups'!AV127 -> Urban | D141: ='G-2 Habitat groups'!BB127 -> 0.00 | E141: ='G-2 Habitat groups'!BD127 -> 0.00 | F141: ='G-2 Habitat groups'!BE127 -> 0.00
B142: ='G-2 Habitat groups'!AU128 -> Urban - Ground level planters | C142: ='G-2 Habitat groups'!AV128 -> Urban | D142: ='G-2 Habitat groups'!BB128 -> 0.00 | E142: ='G-2 Habitat groups'!BD128 -> 0.00 | F142: ='G-2 Habitat groups'!BE128 -> 0.00
B143: ='G-2 Habitat groups'!AU129 -> Urban - Other green roof | C143: ='G-2 Habitat groups'!AV129 -> Urban | D143: ='G-2 Habitat groups'!BB129 -> 0.00 | E143: ='G-2 Habitat groups'!BD129 -> 0.00 | F143: ='G-2 Habitat groups'!BE129 -> 0.00
B144: ='G-2 Habitat groups'!AU150 -> Urban - Intensive green roof | C144: ='G-2 Habitat groups'!AV150 -> Urban | D144: ='G-2 Habitat groups'!BB150 -> 0.00 | E144: ='G-2 Habitat groups'!BD150 -> 0.00 | F144: ='G-2 Habitat groups'!BE150 -> 0.00
B145: ='G-2 Habitat groups'!AU130 -> Urban - Introduced shrub | C145: ='G-2 Habitat groups'!AV130 -> Urban | D145: ='G-2 Habitat groups'!BB130 -> 0.00 | E145: ='G-2 Habitat groups'!BD130 -> 0.00 | F145: ='G-2 Habitat groups'!BE130 -> 0.00
B146: ='G-2 Habitat groups'!AU131 -> Urban - Rain garden | C146: ='G-2 Habitat groups'!AV131 -> Urban | D146: ='G-2 Habitat groups'!BB131 -> 0.00 | E146: ='G-2 Habitat groups'!BD131 -> 0.00 | F146: ='G-2 Habitat groups'!BE131 -> 0.00
B147: ='G-2 Habitat groups'!AU132 -> Urban - Actively worked sand pit quarry or open cast mine | C147: ='G-2 Habitat groups'!AV132 -> Urban | D147: ='G-2 Habitat groups'!BB132 -> 0.00 | E147: ='G-2 Habitat groups'!BD132 -> 0.00 | F147: ='G-2 Habitat groups'!BE132 -> 0.00
B148: ='G-2 Habitat groups'!AU135 -> Urban - Sustainable drainage system | C148: ='G-2 Habitat groups'!AV135 -> Urban | D148: ='G-2 Habitat groups'!BB135 -> 0.00 | E148: ='G-2 Habitat groups'!BD135 -> 0.00 | F148: ='G-2 Habitat groups'!BE135 -> 0.00
B149: ='G-2 Habitat groups'!AU136 -> Urban - Vacant or derelict land | C149: ='G-2 Habitat groups'!AV136 -> Urban | D149: ='G-2 Habitat groups'!BB136 -> 0.00 | E149: ='G-2 Habitat groups'!BD136 -> 0.00 | F149: ='G-2 Habitat groups'!BE136 -> 0.00
B150: ='G-2 Habitat groups'!AU137 -> Urban - Vegetated garden | C150: ='G-2 Habitat groups'!AV137 -> Urban | D150: ='G-2 Habitat groups'!BB137 -> -0.21 | E150: ='G-2 Habitat groups'!BD137 -> 0.00 | F150: ='G-2 Habitat groups'!BE137 -> -0.21
B151: ='G-2 Habitat groups'!AU138 -> Woodland and forest - Other coniferous woodland | C151: ='G-2 Habitat groups'!AV138 -> Woodland and forest | D151: ='G-2 Habitat groups'!BB138 -> 0.00 | E151: ='G-2 Habitat groups'!BD138 -> 0.00 | F151: ='G-2 Habitat groups'!BE138 -> 0.00
B152: ='G-2 Habitat groups'!AU139 -> Coastal saltmarsh - Artificial saltmarshes and saline reedbeds | C152: ='G-2 Habitat groups'!AV139 -> Coastal saltmarsh | D152: ='G-2 Habitat groups'!BB139 -> 0.00 | E152: ='G-2 Habitat groups'!BD139 -> 0.00 | F152: ='G-2 Habitat groups'!BE139 -> 0.00
B153: ='G-2 Habitat groups'!AU140 -> Intertidal sediment - Artificial littoral coarse sediment | C153: ='G-2 Habitat groups'!AV140 -> Intertidal sediment | D153: ='G-2 Habitat groups'!BB140 -> 0.00 | E153: ='G-2 Habitat groups'!BD140 -> 0.00 | F153: ='G-2 Habitat groups'!BE140 -> 0.00
B154: ='G-2 Habitat groups'!AU141 -> Intertidal sediment - Artificial littoral mud | C154: ='G-2 Habitat groups'!AV141 -> Intertidal sediment | D154: ='G-2 Habitat groups'!BB141 -> 0.00 | E154: ='G-2 Habitat groups'!BD141 -> 0.00 | F154: ='G-2 Habitat groups'!BE141 -> 0.00
B155: ='G-2 Habitat groups'!AU142 -> Intertidal sediment - Artificial littoral sand | C155: ='G-2 Habitat groups'!AV142 -> Intertidal sediment | D155: ='G-2 Habitat groups'!BB142 -> 0.00 | E155: ='G-2 Habitat groups'!BD142 -> 0.00 | F155: ='G-2 Habitat groups'!BE142 -> 0.00
B156: ='G-2 Habitat groups'!AU143 -> Intertidal sediment - Artificial littoral muddy sand | C156: ='G-2 Habitat groups'!AV143 -> Intertidal sediment | D156: ='G-2 Habitat groups'!BB143 -> 0.00 | E156: ='G-2 Habitat groups'!BD143 -> 0.00 | F156: ='G-2 Habitat groups'!BE143 -> 0.00
B157: ='G-2 Habitat groups'!AU144 -> Intertidal sediment - Artificial littoral mixed sediments | C157: ='G-2 Habitat groups'!AV144 -> Intertidal sediment | D157: ='G-2 Habitat groups'!BB144 -> 0.00 | E157: ='G-2 Habitat groups'!BD144 -> 0.00 | F157: ='G-2 Habitat groups'!BE144 -> 0.00
B158: ='G-2 Habitat groups'!AU145 -> Intertidal sediment - Artificial littoral seagrass | C158: ='G-2 Habitat groups'!AV145 -> Intertidal sediment | D158: ='G-2 Habitat groups'!BB145 -> 0.00 | E158: ='G-2 Habitat groups'!BD145 -> 0.00 | F158: ='G-2 Habitat groups'!BE145 -> 0.00
B159: ='G-2 Habitat groups'!AU146 -> Intertidal sediment - Artificial littoral biogenic reefs | C159: ='G-2 Habitat groups'!AV146 -> Intertidal sediment | D159: ='G-2 Habitat groups'!BB146 -> 0.00 | E159: ='G-2 Habitat groups'!BD146 -> 0.00 | F159: ='G-2 Habitat groups'!BE146 -> 0.00
B160: ='G-2 Habitat groups'!AU147 -> Intertidal hard structures - Artificial hard structures | C160: ='G-2 Habitat groups'!AV147 -> Intertidal hard structures | D160: ='G-2 Habitat groups'!BB147 -> 0.00 | E160: ='G-2 Habitat groups'!BD147 -> 0.00 | F160: ='G-2 Habitat groups'!BE147 -> 0.00
B161: ='G-2 Habitat groups'!AU148 -> Intertidal hard structures - Artificial features of hard structures | C161: ='G-2 Habitat groups'!AV148 -> Intertidal hard structures | D161: ='G-2 Habitat groups'!BB148 -> 0.00 | E161: ='G-2 Habitat groups'!BD148 -> 0.00 | F161: ='G-2 Habitat groups'!BE148 -> 0.00
B162: ='G-2 Habitat groups'!AU149 -> Heathland and shrub - Other sea buckthorn scrub | C162: ='G-2 Habitat groups'!AV149 -> Heathland and shrub | D162: ='G-2 Habitat groups'!BB149 -> 0.00 | E162: ='G-2 Habitat groups'!BD149 -> 0.00 | F162: ='G-2 Habitat groups'!BE149 -> 0.00
D163: =SUM(D125:D162) -> -0.14 | F163: =SUM(F125:F162) -> -0.14

Sheet Trading Summary Hedgerows (hidden)
B2: Trading Summary
B3: Distinctiveness Group | C3: Trading Rule | G3: Trading Satisfied?
B5: Very High | C5: Same habitat required = | G5: =IFERROR(IF(H14<0,"No ▲","Yes ✓"),"") -> Yes ✓
B6: High | C6: Like for like or better | G6: =IF(H22+H13<0, "No ▲","Yes ✓") -> Yes ✓
B7: Medium | C7: Same distinctiveness or better habitat required | G7: =IF(H33<0, "No ▲","Yes ✓") -> Yes ✓
B8: Low/Very Low | C8: Same distinctiveness or better habitat required | G8: =IF(H44<0,"No ▲","Yes ✓") -> Yes ✓
B12: Very High Distinctiveness | G12: Very High Distinctiveness Summary
B13: Habitat group | C13: On-site unit change | D13: Off-site unit change | E13: Project-wide unit change | G13: High Distinctiveness Units available to offset lower distinctiveness deficit | H13: =SUMIF($E$14:$E$14,">0") -> 0.00
B14: ='G-2 Habitat groups'!A150 -> Species-rich native hedgerow with trees - associated with bank or ditch | C14: ='G-2 Habitat groups'!R150 -> 0.00 | D14: ='G-2 Habitat groups'!AD150 -> 0.00 | E14: ='G-2 Habitat groups'!AF150 -> 0.00 | G14: Unit Deficit; Like for like not satisfied | H14: =SUMIF(E14, "<0", E14) -> 0.00
C15: =SUM(C14:C14) -> 0.00 | D15: =SUM(D14:D14) -> 0.00 | E15: =SUM(E14:E14) -> 0.00
B20: High Distinctiveness | G20: High Distinctiveness Summary
B21: Habitat group | C21: On-site unit change | D21: Off-site unit change | E21: Project wide unit change | G21: High Distinctiveness Units available to offset lower distinctiveness deficit | H21: =SUMIF(E22:E24,">0") -> 0.00
B22: ='G-2 Habitat groups'!A151 -> Species-rich native hedgerow with trees | C22: ='G-2 Habitat groups'!R151 -> 0.00 | D22: ='G-2 Habitat groups'!AD151 -> 0.00 | E22: ='G-2 Habitat groups'!AF151 -> 0.00 | G22: Unit Deficit; Like for like or better not satisfied | H22: =(SUMIF(E22:E24, "<0", E22:E24))+H13 -> 0.00
B23: ='G-2 Habitat groups'!A152 -> Species-rich native hedgerow - associated with bank or ditch | C23: ='G-2 Habitat groups'!R152 -> 0.00 | D23: ='G-2 Habitat groups'!AD152 -> 0.00 | E23: ='G-2 Habitat groups'!AF152 -> 0.00
B24: ='G-2 Habitat groups'!A153 -> Native hedgerow with trees - associated with bank or ditch | C24: ='G-2 Habitat groups'!R153 -> 0.00 | D24: ='G-2 Habitat groups'!AD153 -> 0.00 | E24: ='G-2 Habitat groups'!AF153 -> 0.00
B25: ='G-2 Habitat groups'!A158 -> Ecologically valuable line of trees - associated with bank or ditch | C25: ='G-2 Habitat groups'!BB87 -> 0.00 | D25: ='G-2 Habitat groups'!BD87 -> 0.00 | E25: ='G-2 Habitat groups'!BE87 -> 0.00 | G25: =SUM(E25:E25) -> 0.00
C26: =SUM(C22:C25) -> 0.00 | D26: =SUM(D22:D25) -> 0.00 | E26: =SUM(E22:E25) -> 0.00
B30: Medium Distinctiveness | G30: Medium Distinctiveness Summary
B31: Habitat group | C31: On-site unit change | D31: Off-site unit change | E31: Project wide unit change | G31: Units available from higher distinctiveness habitats | H31: =IF(H22>0, H22, 0) -> 0.00
B32: ='G-2 Habitat groups'!A154 -> Species-rich native hedgerow | C32: ='G-2 Habitat groups'!R154 -> 0.04 | D32: ='G-2 Habitat groups'!AD154 -> 0.00 | E32: ='G-2 Habitat groups'!AF154 -> 0.04 | G32: Medium Distinctiveness net change in units | H32: =E38 -> 0.04
B33: ='G-2 Habitat groups'!A155 -> Native hedgerow - associated with bank or ditch | C33: ='G-2 Habitat groups'!R155 -> 0.00 | D33: ='G-2 Habitat groups'!AD155 -> 0.00 | E33: ='G-2 Habitat groups'!AF155 -> 0.00 | G33: Cumulative availability of units | H33: =H32+H31 -> 0.04
B34: ='G-2 Habitat groups'!A156 -> Native hedgerow with trees | C34: ='G-2 Habitat groups'!R156 -> 0.00 | D34: ='G-2 Habitat groups'!AD156 -> 0.00 | E34: ='G-2 Habitat groups'!AF156 -> 0.00
B35: ='G-2 Habitat groups'!A157 -> Ecologically valuable line of trees | C35: ='G-2 Habitat groups'!R157 -> 0.00 | D35: ='G-2 Habitat groups'!AD157 -> 0.00 | E35: ='G-2 Habitat groups'!AF157 -> 0.00
B36: ='G-2 Habitat groups'!A158 -> Ecologically valuable line of trees - associated with bank or ditch | C36: ='G-2 Habitat groups'!R158 -> 0.00 | D36: ='G-2 Habitat groups'!AD158 -> 0.00 | E36: ='G-2 Habitat groups'!AF158 -> 0.00
B37: ='G-2 Habitat groups'!A158 -> Ecologically valuable line of trees - associated with bank or ditch | C37: ='G-2 Habitat groups'!BB30 -> 0.00 | D37: ='G-2 Habitat groups'!BD30 -> 0.00 | E37: ='G-2 Habitat groups'!BE30 -> 0.00 | G37: =SUM(E37:E37) -> 0.00
C38: =SUM(C32:C37) -> 0.04 | D38: =SUM(D32:D37) -> 0.00 | E38: =SUM(E32:E37) -> 0.04
B42: Low/Very Low Distinctiveness | G42: Low Distinctiveness Summary
B43: Habitat group | C43: On-site unit change | D43: Off-site unit change | E43: Project wide unit change | G43: Low Distinctiveness net change in units | H43: =E48 -> -0.01
B44: ='G-2 Habitat groups'!A159 -> Native hedgerow | C44: ='G-2 Habitat groups'!R159 -> 0.00 | D44: ='G-2 Habitat groups'!AD159 -> 0.00 | E44: ='G-2 Habitat groups'!AF159 -> 0.00 | G44: Cumulative availability of units | H44: =IF(H33>0, H43+H33, H43) -> 0.03
B45: ='G-2 Habitat groups'!A160 -> Line of trees | C45: ='G-2 Habitat groups'!R160 -> 0.00 | D45: ='G-2 Habitat groups'!AD160 -> 0.00 | E45: ='G-2 Habitat groups'!AF160 -> 0.00
B46: ='G-2 Habitat groups'!A161 -> Line of trees - associated with bank or ditch | C46: ='G-2 Habitat groups'!R161 -> 0.00 | D46: ='G-2 Habitat groups'!AD161 -> 0.00 | E46: ='G-2 Habitat groups'!AF161 -> 0.00
B47: ='G-2 Habitat groups'!A162 -> Non-native and ornamental hedgerow | C47: ='G-2 Habitat groups'!R162 -> -0.01 | D47: ='G-2 Habitat groups'!AD162 -> 0.00 | E47: ='G-2 Habitat groups'!AF162 -> -0.01
C48: =SUM(C44:C47) -> -0.01 | D48: =SUM(D44:D47) -> 0.00 | E48: =SUM(E44:E47) -> -0.01

Sheet Trading Summary WaterC's (hidden)
B2: Trading Summary
B3: Distinctiveness Group | C3: Trading Rule | G3: Trading Satisfied?
B5: Very High | C5: Bespoke compensation likely to be required 🛠 | G5: =IFERROR(IF(E14<0,"No ▲","Yes ✓"),"") -> Yes ✓
B6: High | C6: Same habitat required = | G6: =IF(H22<0, "No ▲","Yes ✓") -> Yes ✓
B7: Medium | C7: Same habitat required = | G7: =IF(H30<0, "No ▲","Yes ✓") -> Yes ✓
B8: Low | C8: Better distinctiveness habitat required | G8: =IF(H42<0,"No ▲","Yes ✓") -> Yes ✓
B11: Very High Distinctiveness | G11: Very High Distinctiveness Summary
B12: Habitat group | C12: On-site unit change | D12: Off-site unit change | E12: Project-wide unit change | G12: Very High Distinctiveness Units available to offset lower distinctiveness deficit | H12: =SUMIF($E$13:$E$13,">0") -> 0.00
B13: ='G-2 Habitat groups'!A172 -> Priority habitat | C13: ='G-2 Habitat groups'!R172 -> 0.00 | D13: ='G-2 Habitat groups'!AD172 -> 0.00 | E13: ='G-2 Habitat groups'!AF172 -> 0.00
C14: =SUM(C13:C13) -> 0.00 | D14: =SUM(D13:D13) -> 0.00 | E14: =SUM(E13:E13) -> 0.00
B20: High Distinctiveness | G20: High Distinctiveness Summary
B21: Habitat group | C21: On-site unit change | D21: Off-site unit change | E21: Project-wide unit change | G21: High Distinctiveness Units available to offset lower distinctiveness deficit | H21: =IF(E23>0, E23, 0) -> 0.00
B22: ='G-2 Habitat groups'!A173 -> Other rivers and streams | C22: ='G-2 Habitat groups'!R173 -> 0.00 | D22: ='G-2 Habitat groups'!AD173 -> 0.00 | E22: ='G-2 Habitat groups'!AF173 -> 0.00 | G22: Unit Deficit; Like for like not satisfied | H22: =IF(E23<0, E23, 0) -> 0.00
C23: =SUM(C22:C22) -> 0.00 | D23: =SUM(D22:D22) -> 0.00 | E23: =SUM(E22:E22) -> 0.00
B28: Medium Distinctiveness | G28: Medium Distinctiveness Summary
B29: Habitat group | C29: On-site unit change | D29: Off-site unit change | E29: Project wide unit change | G29: Medium Distinctiveness Units available to offset Lower Distinctiveness Deficit | H29: =IF(E32>0, E32, 0) -> 0.00
B30: ='G-2 Habitat groups'!A174 -> Ditches | C30: ='G-2 Habitat groups'!R174 -> 0.00 | D30: ='G-2 Habitat groups'!AD174 -> 0.00 | E30: ='G-2 Habitat groups'!AF174 -> 0.00 | G30: Unit Deficit; Like for like not satisfied | H30: =SUMIF(E30:E31, "<0", E30:E31) -> 0.00
B31: ='G-2 Habitat groups'!A175 -> Canals | C31: ='G-2 Habitat groups'!R175 -> 0.00 | D31: ='G-2 Habitat groups'!AD175 -> 0.00 | E31: ='G-2 Habitat groups'!AF175 -> 0.00
C32: =SUM(C30:C31) -> 0.00 | D32: =SUM(D30:D31) -> 0.00 | E32: =SUM(E30:E31) -> 0.00
B40: Low Distinctiveness | G40: Low Distinctiveness Summary
B41: Habitat group | C41: On-site unit change | D41: Off-site unit change | E41: Project wide unit change | G41: Low Distinctiveness net change in units | H41: =E43 -> 0.00
B42: ='G-2 Habitat groups'!A176 -> Culvert | C42: ='G-2 Habitat groups'!R176 -> 0.00 | D42: ='G-2 Habitat groups'!AD176 -> 0.00 | E42: ='G-2 Habitat groups'!AF176 -> 0.00 | G42: Cumulative availability of units | H42: =H41+(H29+H21+H12) -> 0.00
C43: =SUM(C42:C42) -> 0.00 | D43: =D42 -> 0.00 | E43: =SUM(E42:E42) -> 0.00

Sheet Off-site gain site summary (hidden)
B3: Summary of sites providing area habitat unit gains | N3: Summary of sites providing hedgerow unit gains | W3: Summary of sites providing watercourse unit gains
B5: Gain site reference | C5: Off-site units baseline | D5: Off-site units retained | F5: Off-site units enhanced | H5: Off-site unit creation | J5: Off-site unit change per gain site (pre-SRM) | K5: SRM | L5: Off-site unit change per gain site (post-SRM) | N5: Gain site reference | O5: Off-site units baseline | P5: Off-site units retained | Q5: Off-site units enhanced | R5: Off-site unit creation | S5: Off-site unit change per gain site (pre-SRM) | T5: SRM | U5: Off-site unit change per gain site (post-SRM) | W5: Gain site reference | X5: Off-site units baseline | Y5: Off-site units retained | Z5: Off-site units enhanced | AA5: Off-site units Created | AB5: Off-site unit change per gain site (pre-SRM) | AC5: SRM | AD5: Off-site unit change per gain site (post-SRM)
A7: ='D-1 Off-Site Habitat Baseline'!AF11 -> 0 | B7: =_xlfn.UNIQUE(_xlfn._xlws.FILTER(A7:A747,A7:A747<>0)) ->  | C7: =SUMIF('D-1 Off-Site Habitat Baseline'!AF11:AF14,B7,'D-1 Off-Site Habitat Baseline'!T11:T14) -> 0 | D7: =SUMIF('D-1 Off-Site Habitat Baseline'!$AF$11:$AF$258,'Off-site gain site summary'!$B$7,'D-1 Off-Site Habitat Baseline'!$X$11:$X$258) -> 0 | F7: =SUMIF('D-3 Off-Site Habitat Enhancment'!$AU$12:$AU$258,'Off-site gain site summary'!B7,'D-3 Off-Site Habitat Enhancment'!$AQ$12:$AQ$258) -> 0 | H7: =SUMIF('D-2 Off-Site Habitat Creation'!$AF$11:$AF$256,'Off-site gain site summary'!B7,'D-2 Off-Site Habitat Creation'!$AB$11:$AB$256) -> 0 | J7: =(H7+F7+D7)-(C7) -> 0 | K7: =IFERROR(_xlfn.XLOOKUP(B7,'D-2 Off-Site Habitat Creation'!$AF$11:$AF$256,'D-2 Off-Site Habitat Creation'!$Z$11:$Z$256), IFERROR(_xlfn.XLOOKUP(B7,'D-1 Off-Site Habitat Baseline'!AF11:AF258,'D-1 Off-Site Habitat Baseline'!S11:S258), " ")) ->  | L7: =IF(J7>0,IFERROR(J7*K7, "0"), J7) -> 0 | M7: ='E-1 Off-Site Hedge Baseline'!AB10 -> 0 | N7: =_xlfn.UNIQUE(_xlfn._xlws.FILTER(M7:M745,M7:M745<>0)) ->  | O7: =SUMIF('E-1 Off-Site Hedge Baseline'!AB10:AB257,'Off-site gain site summary'!N7,'E-1 Off-Site Hedge Baseline'!Q10:Q257) -> 0 | P7: =SUMIF('E-1 Off-Site Hedge Baseline'!$AB$10:$AB$257,'Off-site gain site summary'!$N7,'E-1 Off-Site Hedge Baseline'!$U$10:$U$257) -> 0 | Q7: =SUMIF('E-3 Off-Site Hedge Enhancement'!$AO$12:$AO$257,'Off-site gain site summary'!$N7,'E-3 Off-Site Hedge Enhancement'!$AK$12:$AK$257) -> 0 | R7: =SUMIF('E-2 Off-Site Hedge Creation'!$AD$12:$AD$259,'Off-site gain site summary'!$N7,'E-2 Off-Site Hedge Creation'!$Z$12:$Z$259) -> 0 | S7: =(R7+Q7+P7)-O7 -> 0 | T7: =IFERROR(_xlfn.XLOOKUP(N7,'E-2 Off-Site Hedge Creation'!AD12:AD259,'E-2 Off-Site Hedge Creation'!N12:N259), IFERROR(_xlfn.XLOOKUP(N7,'E-1 Off-Site Hedge Baseline'!AB10:AB257,'E-1 Off-Site Hedge Baseline'!P10:P257), " ")) ->  | U7: =IF(S7>0,IFERROR(S7*T7, "0"), S7) -> 0 | V7: ='F-1 Off-Site WaterC'' Baseline'!AG10 -> 0 | W7: =_xlfn.UNIQUE(_xlfn._xlws.FILTER(V7:V748, V7:V748<>0)) ->  | X7: =SUMIF('F-1 Off-Site WaterC'' Baseline'!$AG$10:$AG$257,'Off-site gain site summary'!$W7,'F-1 Off-Site WaterC'' Baseline'!$U$10:$U$257) -> 0 | Y7: =SUMIF('F-1 Off-Site WaterC'' Baseline'!$AG$10:$AG$257,'Off-site gain site summary'!$W7,'F-1 Off-Site WaterC'' Baseline'!$Y$10:$Y$257) -> 0 | Z7: =SUMIF('F-3 Off-Site WaterC Enhancement'!$AT$12:$AT$257,'Off-site gain site summary'!$W7,'F-3 Off-Site WaterC Enhancement'!$AP$12:$AP$257) -> 0 | AA7: =SUMIF('F-2 Off-Site WaterC'' Creation'!$AG$12:$AG$259,'Off-site gain site summary'!$W7,'F-2 Off-Site WaterC'' Creation'!$AC$12:$AC$259) -> 0 | AB7: =(Z7+AA7+Y7)-X7 -> 0 | AC7: =IFERROR(_xlfn.XLOOKUP(W7,'F-2 Off-Site WaterC'' Creation'!AG12:AG258,'F-2 Off-Site WaterC'' Creation'!AA12:AA259), IFERROR(_xlfn.XLOOKUP(W7,'F-1 Off-Site WaterC'' Baseline'!AG10:AG257,'F-1 Off-Site WaterC'' Baseline'!T10:T257)," ")) ->  | AD7: =IF(AB7>0,IFERROR(AB7*AC7, "0"), AB7) -> 0
A8: ='D-1 Off-Site Habitat Baseline'!AF12 -> 0 | C8: =SUMIF('D-1 Off-Site Habitat Baseline'!AF12:AF15,B8,'D-1 Off-Site Habitat Baseline'!T12:T15) -> 0 | D8: =SUMIF('D-1 Off-Site Habitat Baseline'!$AF$11:$AF$258,'Off-site gain site summary'!$B$7,'D-1 Off-Site Habitat Baseline'!$X$11:$X$258) -> 0 | F8: =SUMIF('D-3 Off-Site Habitat Enhancment'!$AU$12:$AU$258,'Off-site gain site summary'!B8,'D-3 Off-Site Habitat Enhancment'!$AQ$12:$AQ$258) -> 0 | H8: =SUMIF('D-2 Off-Site Habitat Creation'!$AF$11:$AF$256,'Off-site gain site summary'!B8,'D-2 Off-Site Habitat Creation'!$AB$11:$AB$256) -> 0 | J8: =(H8+F8+D8)-(C8) -> 0 | K8: =IFERROR(_xlfn.XLOOKUP(B8,'D-2 Off-Site Habitat Creation'!$AF$11:$AF$256,'D-2 Off-Site Habitat Creation'!$Z$11:$Z$256), IFERROR(_xlfn.XLOOKUP(B8,'D-1 Off-Site Habitat Baseline'!AF12:AF259,'D-1 Off-Site Habitat Baseline'!S12:S259), " ")) ->  | L8: =IF(J8>0,IFERROR(J8*K8, "0"), J8) -> 0 | M8: ='E-1 Off-Site Hedge Baseline'!AB11 -> 0 | O8: =SUMIF('E-1 Off-Site Hedge Baseline'!AB11:AB258,'Off-site gain site summary'!N8,'E-1 Off-Site Hedge Baseline'!Q11:Q258) -> 0 | P8: =SUMIF('E-1 Off-Site Hedge Baseline'!$AB$10:$AB$257,'Off-site gain site summary'!$N8,'E-1 Off-Site Hedge Baseline'!$U$10:$U$257) -> 0 | Q8: =SUMIF('E-3 Off-Site Hedge Enhancement'!$AO$12:$AO$257,'Off-site gain site summary'!$N8,'E-3 Off-Site Hedge Enhancement'!$AK$12:$AK$257) -> 0 | R8: =SUMIF('E-2 Off-Site Hedge Creation'!$AD$12:$AD$259,'Off-site gain site summary'!$N8,'E-2 Off-Site Hedge Creation'!$Z$12:$Z$259) -> 0 | S8: =(R8+Q8+P8)-O8 -> 0 | T8: =IFERROR(_xlfn.XLOOKUP(N8,'E-2 Off-Site Hedge Creation'!AD13:AD260,'E-2 Off-Site Hedge Creation'!N13:N260), IFERROR(_xlfn.XLOOKUP(N8,'E-1 Off-Site Hedge Baseline'!AB11:AB258,'E-1 Off-Site Hedge Baseline'!P11:P258), " ")) ->  | U8: =IF(S8>0,IFERROR(S8*T8, "0"), S8) -> 0 | V8: ='F-1 Off-Site WaterC'' Baseline'!AG11 -> 0 | X8: =SUMIF('F-1 Off-Site WaterC'' Baseline'!$AG$10:$AG$257,'Off-site gain site summary'!$W8,'F-1 Off-Site WaterC'' Baseline'!$U$10:$U$257) -> 0 | Y8: =SUMIF('F-1 Off-Site WaterC'' Baseline'!$AG$10:$AG$257,'Off-site gain site summary'!$W8,'F-1 Off-Site WaterC'' Baseline'!$Y$10:$Y$257) -> 0 | Z8: =SUMIF('F-3 Off-Site WaterC Enhancement'!$AT$12:$AT$257,'Off-site gain site summary'!$W8,'F-3 Off-Site WaterC Enhancement'!$AP$12:$AP$257) -> 0 | AA8: =SUMIF('F-2 Off-Site WaterC'' Creation'!$AG$12:$AG$259,'Off-site gain site summary'!$W8,'F-2 Off-Site WaterC'' Creation'!$AC$12:$AC$259) -> 0 | AB8: =(Z8+AA8+Y8)-X8 -> 0 | AC8: =IFERROR(_xlfn.XLOOKUP(W8,'F-2 Off-Site WaterC'' Creation'!AG13:AG259,'F-2 Off-Site WaterC'' Creation'!AA13:AA260), IFERROR(_xlfn.XLOOKUP(W8,'F-1 Off-Site WaterC'' Baseline'!AG11:AG258,'F-1 Off-Site WaterC'' Baseline'!T11:T258)," ")) ->  | AD8: =IF(AB8>0,IFERROR(AB8*AC8, "0"), AB8) -> 0
A9: ='D-1 Off-Site Habitat Baseline'!AF13 -> 0 | C9: =SUMIF('D-1 Off-Site Habitat Baseline'!AF13:AF16,B9,'D-1 Off-Site Habitat Baseline'!T13:T16) -> 0 | D9: =SUMIF('D-1 Off-Site Habitat Baseline'!$AF$11:$AF$258,'Off-site gain site summary'!$B$7,'D-1 Off-Site Habitat Baseline'!$X$11:$X$258) -> 0 | F9: =SUMIF('D-3 Off-Site Habitat Enhancment'!$AU$12:$AU$258,'Off-site gain site summary'!B9,'D-3 Off-Site Habitat Enhancment'!$AQ$12:$AQ$258) -> 0 | H9: =SUMIF('D-2 Off-Site Habitat Creation'!$AF$11:$AF$256,'Off-site gain site summary'!B9,'D-2 Off-Site Habitat Creation'!$AB$11:$AB$256) -> 0 | J9: 0 | K9: =IFERROR(_xlfn.XLOOKUP(B9,'D-2 Off-Site Habitat Creation'!$AF$11:$AF$256,'D-2 Off-Site Habitat Creation'!$Z$11:$Z$256), IFERROR(_xlfn.XLOOKUP(B9,'D-1 Off-Site Habitat Baseline'!AF13:AF260,'D-1 Off-Site Habitat Baseline'!S13:S260), " ")) ->  | L9: 0 | M9: ='E-1 Off-Site Hedge Baseline'!AB12 -> 0 | O9: =SUMIF('E-1 Off-Site Hedge Baseline'!AB12:AB259,'Off-site gain site summary'!N9,'E-1 Off-Site Hedge Baseline'!Q12:Q259) -> 0 | P9: =SUMIF('E-1 Off-Site Hedge Baseline'!$AB$10:$AB$257,'Off-site gain site summary'!$N9,'E-1 Off-Site Hedge Baseline'!$U$10:$U$257) -> 0 | Q9: =SUMIF('E-3 Off-Site Hedge Enhancement'!$AO$12:$AO$257,'Off-site gain site summary'!$N9,'E-3 Off-Site Hedge Enhancement'!$AK$12:$AK$257) -> 0 | R9: =SUMIF('E-2 Off-Site Hedge Creation'!$AD$12:$AD$259,'Off-site gain site summary'!$N9,'E-2 Off-Site Hedge Creation'!$Z$12:$Z$259) -> 0 | S9: 0 | T9: =IFERROR(_xlfn.XLOOKUP(N9,'E-2 Off-Site Hedge Creation'!AD14:AD261,'E-2 Off-Site Hedge Creation'!N14:N261), IFERROR(_xlfn.XLOOKUP(N9,'E-1 Off-Site Hedge Baseline'!AB12:AB259,'E-1 Off-Site Hedge Baseline'!P12:P259), " ")) ->  | U9: 0 | V9: ='F-1 Off-Site WaterC'' Baseline'!AG12 -> 0 | X9: =SUMIF('F-1 Off-Site WaterC'' Baseline'!$AG$10:$AG$257,'Off-site gain site summary'!$W9,'F-1 Off-Site WaterC'' Baseline'!$U$10:$U$257) -> 0 | Y9: =SUMIF('F-1 Off-Site WaterC'' Baseline'!$AG$10:$AG$257,'Off-site gain site summary'!$W9,'F-1 Off-Site WaterC'' Baseline'!$Y$10:$Y$257) -> 0 | Z9: =SUMIF('F-3 Off-Site WaterC Enhancement'!$AT$12:$AT$257,'Off-site gain site summary'!$W9,'F-3 Off-Site WaterC Enhancement'!$AP$12:$AP$257) -> 0 | AA9: =SUMIF('F-2 Off-Site WaterC'' Creation'!$AG$12:$AG$259,'Off-site gain site summary'!$W9,'F-2 Off-Site WaterC'' Creation'!$AC$12:$AC$259) -> 0 | AB9: 0 | AC9: =IFERROR(_xlfn.XLOOKUP(W9,'F-2 Off-Site WaterC'' Creation'!AG14:AG260,'F-2 Off-Site WaterC'' Creation'!AA14:AA261), IFERROR(_xlfn.XLOOKUP(W9,'F-1 Off-Site WaterC'' Baseline'!AG12:AG259,'F-1 Off-Site WaterC'' Baseline'!T12:T259)," ")) ->  | AD9: 0
A10: ='D-1 Off-Site Habitat Baseline'!AF14 -> 0 | C10: =SUMIF('D-1 Off-Site Habitat Baseline'!AF14:AF17,B10,'D-1 Off-Site Habitat Baseline'!T14:T17) -> 0 | D10: =SUMIF('D-1 Off-Site Habitat Baseline'!$AF$11:$AF$258,'Off-site gain site summary'!$B$7,'D-1 Off-Site Habitat Baseline'!$X$11:$X$258) -> 0 | F10: =SUMIF('D-3 Off-Site Habitat Enhancment'!$AU$12:$AU$258,'Off-site gain site summary'!B10,'D-3 Off-Site Habitat Enhancment'!$AQ$12:$AQ$258) -> 0 | H10: =SUMIF('D-2 Off-Site Habitat Creation'!$AF$11:$AF$256,'Off-site gain site summary'!B10,'D-2 Off-Site Habitat Creation'!$AB$11:$AB$256) -> 0 | J10: 0 | K10: =IFERROR(_xlfn.XLOOKUP(B10,'D-2 Off-Site Habitat Creation'!$AF$11:$AF$256,'D-2 Off-Site Habitat Creation'!$Z$11:$Z$256), IFERROR(_xlfn.XLOOKUP(B10,'D-1 Off-Site Habitat Baseline'!AF14:AF261,'D-1 Off-Site Habitat Baseline'!S14:S261), " ")) ->  | L10: 0 | M10: ='E-1 Off-Site Hedge Baseline'!AB13 -> 0 | O10: =SUMIF('E-1 Off-Site Hedge Baseline'!AB13:AB260,'Off-site gain site summary'!N10,'E-1 Off-Site Hedge Baseline'!Q13:Q260) -> 0 | P10: =SUMIF('E-1 Off-Site Hedge Baseline'!$AB$10:$AB$257,'Off-site gain site summary'!$N10,'E-1 Off-Site Hedge Baseline'!$U$10:$U$257) -> 0 | Q10: =SUMIF('E-3 Off-Site Hedge Enhancement'!$AO$12:$AO$257,'Off-site gain site summary'!$N10,'E-3 Off-Site Hedge Enhancement'!$AK$12:$AK$257) -> 0 | R10: =SUMIF('E-2 Off-Site Hedge Creation'!$AD$12:$AD$259,'Off-site gain site summary'!$N10,'E-2 Off-Site Hedge Creation'!$Z$12:$Z$259) -> 0 | S10: 0 | T10: =IFERROR(_xlfn.XLOOKUP(N10,'E-2 Off-Site Hedge Creation'!AD15:AD262,'E-2 Off-Site Hedge Creation'!N15:N262), IFERROR(_xlfn.XLOOKUP(N10,'E-1 Off-Site Hedge Baseline'!AB13:AB260,'E-1 Off-Site Hedge Baseline'!P13:P260), " ")) ->  | U10: 0 | V10: ='F-1 Off-Site WaterC'' Baseline'!AG13 -> 0 | X10: =SUMIF('F-1 Off-Site WaterC'' Baseline'!$AG$10:$AG$257,'Off-site gain site summary'!$W10,'F-1 Off-Site WaterC'' Baseline'!$U$10:$U$257) -> 0 | Y10: =SUMIF('F-1 Off-Site WaterC'' Baseline'!$AG$10:$AG$257,'Off-site gain site summary'!$W10,'F-1 Off-Site WaterC'' Baseline'!$Y$10:$Y$257) -> 0 | Z10: =SUMIF('F-3 Off-Site WaterC Enhancement'!$AT$12:$AT$257,'Off-site gain site summary'!$W10,'F-3 Off-Site WaterC Enhancement'!$AP$12:$AP$257) -> 0 | AA10: =SUMIF('F-2 Off-Site WaterC'' Creation'!$AG$12:$AG$259,'Off-site gain site summary'!$W10,'F-2 Off-Site WaterC'' Creation'!$AC$12:$AC$259) -> 0 | AB10: 0 | AC10: =IFERROR(_xlfn.XLOOKUP(W10,'F-2 Off-Site WaterC'' Creation'!AG15:AG261,'F-2 Off-Site WaterC'' Creation'!AA15:AA262), IFERROR(_xlfn.XLOOKUP(W10,'F-1 Off-Site WaterC'' Baseline'!AG13:AG260,'F-1 Off-Site WaterC'' Baseline'!T13:T260)," ")) ->  | AD10: 0
A11: ='D-1 Off-Site Habitat Baseline'!AF15 -> 0 | C11: =SUMIF('D-1 Off-Site Habitat Baseline'!AF15:AF18,B11,'D-1 Off-Site Habitat Baseline'!T15:T18) -> 0 | D11: =SUMIF('D-1 Off-Site Habitat Baseline'!$AF$11:$AF$258,'Off-site gain site summary'!$B$7,'D-1 Off-Site Habitat Baseline'!$X$11:$X$258) -> 0 | F11: =SUMIF('D-3 Off-Site Habitat Enhancment'!$AU$12:$AU$258,'Off-site gain site summary'!B11,'D-3 Off-Site Habitat Enhancment'!$AQ$12:$AQ$258) -> 0 | H11: =SUMIF('D-2 Off-Site Habitat Creation'!$AF$11:$AF$256,'Off-site gain site summary'!B11,'D-2 Off-Site Habitat Creation'!$AB$11:$AB$256) -> 0 | J11: 0 | K11: =IFERROR(_xlfn.XLOOKUP(B11,'D-2 Off-Site Habitat Creation'!$AF$11:$AF$256,'D-2 Off-Site Habitat Creation'!$Z$11:$Z$256), IFERROR(_xlfn.XLOOKUP(B11,'D-1 Off-Site Habitat Baseline'!AF15:AF262,'D-1 Off-Site Habitat Baseline'!S15:S262), " ")) ->  | L11: 0 | M11: ='E-1 Off-Site Hedge Baseline'!AB14 -> 0 | O11: =SUMIF('E-1 Off-Site Hedge Baseline'!AB14:AB261,'Off-site gain site summary'!N11,'E-1 Off-Site Hedge Baseline'!Q14:Q261) -> 0 | P11: =SUMIF('E-1 Off-Site Hedge Baseline'!$AB$10:$AB$257,'Off-site gain site summary'!$N11,'E-1 Off-Site Hedge Baseline'!$U$10:$U$257) -> 0 | Q11: =SUMIF('E-3 Off-Site Hedge Enhancement'!$AO$12:$AO$257,'Off-site gain site summary'!$N11,'E-3 Off-Site Hedge Enhancement'!$AK$12:$AK$257) -> 0 | R11: =SUMIF('E-2 Off-Site Hedge Creation'!$AD$12:$AD$259,'Off-site gain site summary'!$N11,'E-2 Off-Site Hedge Creation'!$Z$12:$Z$259) -> 0 | S11: 0 | T11: =IFERROR(_xlfn.XLOOKUP(N11,'E-2 Off-Site Hedge Creation'!AD16:AD263,'E-2 Off-Site Hedge Creation'!N16:N263), IFERROR(_xlfn.XLOOKUP(N11,'E-1 Off-Site Hedge Baseline'!AB14:AB261,'E-1 Off-Site Hedge Baseline'!P14:P261), " ")) ->  | U11: 0 | V11: ='F-1 Off-Site WaterC'' Baseline'!AG14 -> 0 | X11: =SUMIF('F-1 Off-Site WaterC'' Baseline'!$AG$10:$AG$257,'Off-site gain site summary'!$W11,'F-1 Off-Site WaterC'' Baseline'!$U$10:$U$257) -> 0 | Y11: =SUMIF('F-1 Off-Site WaterC'' Baseline'!$AG$10:$AG$257,'Off-site gain site summary'!$W11,'F-1 Off-Site WaterC'' Baseline'!$Y$10:$Y$257) -> 0 | Z11: =SUMIF('F-3 Off-Site WaterC Enhancement'!$AT$12:$AT$257,'Off-site gain site summary'!$W11,'F-3 Off-Site WaterC Enhancement'!$AP$12:$AP$257) -> 0 | AA11: =SUMIF('F-2 Off-Site WaterC'' Creation'!$AG$12:$AG$259,'Off-site gain site summary'!$W11,'F-2 Off-Site WaterC'' Creation'!$AC$12:$AC$259) -> 0 | AB11: 0 | AC11: =IFERROR(_xlfn.XLOOKUP(W11,'F-2 Off-Site WaterC'' Creation'!AG16:AG262,'F-2 Off-Site WaterC'' Creation'!AA16:AA263), IFERROR(_xlfn.XLOOKUP(W11,'F-1 Off-Site WaterC'' Baseline'!AG14:AG261,'F-1 Off-Site WaterC'' Baseline'!T14:T261)," ")) ->  | AD11: 0
A12: ='D-1 Off-Site Habitat Baseline'!AF16 -> 0 | C12: =SUMIF('D-1 Off-Site Habitat Baseline'!AF16:AF19,B12,'D-1 Off-Site Habitat Baseline'!T16:T19) -> 0 | D12: =SUMIF('D-1 Off-Site Habitat Baseline'!$AF$11:$AF$258,'Off-site gain site summary'!$B$7,'D-1 Off-Site Habitat Baseline'!$X$11:$X$258) -> 0 | F12: =SUMIF('D-3 Off-Site Habitat Enhancment'!$AU$12:$AU$258,'Off-site gain site summary'!B12,'D-3 Off-Site Habitat Enhancment'!$AQ$12:$AQ$258) -> 0 | H12: =SUMIF('D-2 Off-Site Habitat Creation'!$AF$11:$AF$256,'Off-site gain site summary'!B12,'D-2 Off-Site Habitat Creation'!$AB$11:$AB$256) -> 0 | J12: 0 | K12: =IFERROR(_xlfn.XLOOKUP(B12,'D-2 Off-Site Habitat Creation'!$AF$11:$AF$256,'D-2 Off-Site Habitat Creation'!$Z$11:$Z$256), IFERROR(_xlfn.XLOOKUP(B12,'D-1 Off-Site Habitat Baseline'!AF16:AF263,'D-1 Off-Site Habitat Baseline'!S16:S263), " ")) ->  | L12: 0 | M12: ='E-1 Off-Site Hedge Baseline'!AB15 -> 0 | O12: =SUMIF('E-1 Off-Site Hedge Baseline'!AB15:AB262,'Off-site gain site summary'!N12,'E-1 Off-Site Hedge Baseline'!Q15:Q262) -> 0 | P12: =SUMIF('E-1 Off-Site Hedge Baseline'!$AB$10:$AB$257,'Off-site gain site summary'!$N12,'E-1 Off-Site Hedge Baseline'!$U$10:$U$257) -> 0 | Q12: =SUMIF('E-3 Off-Site Hedge Enhancement'!$AO$12:$AO$257,'Off-site gain site summary'!$N12,'E-3 Off-Site Hedge Enhancement'!$AK$12:$AK$257) -> 0 | R12: =SUMIF('E-2 Off-Site Hedge Creation'!$AD$12:$AD$259,'Off-site gain site summary'!$N12,'E-2 Off-Site Hedge Creation'!$Z$12:$Z$259) -> 0 | S12: 0 | T12: =IFERROR(_xlfn.XLOOKUP(N12,'E-2 Off-Site Hedge Creation'!AD17:AD264,'E-2 Off-Site Hedge Creation'!N17:N264), IFERROR(_xlfn.XLOOKUP(N12,'E-1 Off-Site Hedge Baseline'!AB15:AB262,'E-1 Off-Site Hedge Baseline'!P15:P262), " ")) ->  | U12: 0 | V12: ='F-1 Off-Site WaterC'' Baseline'!AG15 -> 0 | X12: =SUMIF('F-1 Off-Site WaterC'' Baseline'!$AG$10:$AG$257,'Off-site gain site summary'!$W12,'F-1 Off-Site WaterC'' Baseline'!$U$10:$U$257) -> 0 | Y12: =SUMIF('F-1 Off-Site WaterC'' Baseline'!$AG$10:$AG$257,'Off-site gain site summary'!$W12,'F-1 Off-Site WaterC'' Baseline'!$Y$10:$Y$257) -> 0 | Z12: =SUMIF('F-3 Off-Site WaterC Enhancement'!$AT$12:$AT$257,'Off-site gain site summary'!$W12,'F-3 Off-Site WaterC Enhancement'!$AP$12:$AP$257) -> 0 | AA12: =SUMIF('F-2 Off-Site WaterC'' Creation'!$AG$12:$AG$259,'Off-site gain site summary'!$W12,'F-2 Off-Site WaterC'' Creation'!$AC$12:$AC$259) -> 0 | AB12: 0 | AC12: =IFERROR(_xlfn.XLOOKUP(W12,'F-2 Off-Site WaterC'' Creation'!AG17:AG263,'F-2 Off-Site WaterC'' Creation'!AA17:AA264), IFERROR(_xlfn.XLOOKUP(W12,'F-1 Off-Site WaterC'' Baseline'!AG15:AG262,'F-1 Off-Site WaterC'' Baseline'!T15:T262)," ")) ->  | AD12: 0
A13: ='D-1 Off-Site Habitat Baseline'!AF17 -> 0 | C13: =SUMIF('D-1 Off-Site Habitat Baseline'!AF17:AF20,B13,'D-1 Off-Site Habitat Baseline'!T17:T20) -> 0 | D13: =SUMIF('D-1 Off-Site Habitat Baseline'!$AF$11:$AF$258,'Off-site gain site summary'!$B$7,'D-1 Off-Site Habitat Baseline'!$X$11:$X$258) -> 0 | F13: =SUMIF('D-3 Off-Site Habitat Enhancment'!$AU$12:$AU$258,'Off-site gain site summary'!B13,'D-3 Off-Site Habitat Enhancment'!$AQ$12:$AQ$258) -> 0 | H13: =SUMIF('D-2 Off-Site Habitat Creation'!$AF$11:$AF$256,'Off-site gain site summary'!B13,'D-2 Off-Site Habitat Creation'!$AB$11:$AB$256) -> 0 | J13: 0 | K13: =IFERROR(_xlfn.XLOOKUP(B13,'D-2 Off-Site Habitat Creation'!$AF$11:$AF$256,'D-2 Off-Site Habitat Creation'!$Z$11:$Z$256), IFERROR(_xlfn.XLOOKUP(B13,'D-1 Off-Site Habitat Baseline'!AF17:AF264,'D-1 Off-Site Habitat Baseline'!S17:S264), " ")) ->  | L13: 0 | M13: ='E-1 Off-Site Hedge Baseline'!AB16 -> 0 | O13: =SUMIF('E-1 Off-Site Hedge Baseline'!AB16:AB263,'Off-site gain site summary'!N13,'E-1 Off-Site Hedge Baseline'!Q16:Q263) -> 0 | P13: =SUMIF('E-1 Off-Site Hedge Baseline'!$AB$10:$AB$257,'Off-site gain site summary'!$N13,'E-1 Off-Site Hedge Baseline'!$U$10:$U$257) -> 0 | Q13: =SUMIF('E-3 Off-Site Hedge Enhancement'!$AO$12:$AO$257,'Off-site gain site summary'!$N13,'E-3 Off-Site Hedge Enhancement'!$AK$12:$AK$257) -> 0 | R13: =SUMIF('E-2 Off-Site Hedge Creation'!$AD$12:$AD$259,'Off-site gain site summary'!$N13,'E-2 Off-Site Hedge Creation'!$Z$12:$Z$259) -> 0 | S13: 0 | T13: =IFERROR(_xlfn.XLOOKUP(N13,'E-2 Off-Site Hedge Creation'!AD18:AD265,'E-2 Off-Site Hedge Creation'!N18:N265), IFERROR(_xlfn.XLOOKUP(N13,'E-1 Off-Site Hedge Baseline'!AB16:AB263,'E-1 Off-Site Hedge Baseline'!P16:P263), " ")) ->  | U13: 0 | V13: ='F-1 Off-Site WaterC'' Baseline'!AG16 -> 0 | X13: =SUMIF('F-1 Off-Site WaterC'' Baseline'!$AG$10:$AG$257,'Off-site gain site summary'!$W13,'F-1 Off-Site WaterC'' Baseline'!$U$10:$U$257) -> 0 | Y13: =SUMIF('F-1 Off-Site WaterC'' Baseline'!$AG$10:$AG$257,'Off-site gain site summary'!$W13,'F-1 Off-Site WaterC'' Baseline'!$Y$10:$Y$257) -> 0 | Z13: =SUMIF('F-3 Off-Site WaterC Enhancement'!$AT$12:$AT$257,'Off-site gain site summary'!$W13,'F-3 Off-Site WaterC Enhancement'!$AP$12:$AP$257) -> 0 | AA13: =SUMIF('F-2 Off-Site WaterC'' Creation'!$AG$12:$AG$259,'Off-site gain site summary'!$W13,'F-2 Off-Site WaterC'' Creation'!$AC$12:$AC$259) -> 0 | AB13: 0 | AC13: =IFERROR(_xlfn.XLOOKUP(W13,'F-2 Off-Site WaterC'' Creation'!AG18:AG264,'F-2 Off-Site WaterC'' Creation'!AA18:AA265), IFERROR(_xlfn.XLOOKUP(W13,'F-1 Off-Site WaterC'' Baseline'!AG16:AG263,'F-1 Off-Site WaterC'' Baseline'!T16:T263)," ")) ->  | AD13: 0
A14: ='D-1 Off-Site Habitat Baseline'!AF18 -> 0 | C14: =SUMIF('D-1 Off-Site Habitat Baseline'!AF18:AF21,B14,'D-1 Off-Site Habitat Baseline'!T18:T21) -> 0 | D14: =SUMIF('D-1 Off-Site Habitat Baseline'!$AF$11:$AF$258,'Off-site gain site summary'!$B$7,'D-1 Off-Site Habitat Baseline'!$X$11:$X$258) -> 0 | F14: =SUMIF('D-3 Off-Site Habitat Enhancment'!$AU$12:$AU$258,'Off-site gain site summary'!B14,'D-3 Off-Site Habitat Enhancment'!$AQ$12:$AQ$258) -> 0 | H14: =SUMIF('D-2 Off-Site Habitat Creation'!$AF$11:$AF$256,'Off-site gain site summary'!B14,'D-2 Off-Site Habitat Creation'!$AB$11:$AB$256) -> 0 | J14: 0 | K14: =IFERROR(_xlfn.XLOOKUP(B14,'D-2 Off-Site Habitat Creation'!$AF$11:$AF$256,'D-2 Off-Site Habitat Creation'!$Z$11:$Z$256), IFERROR(_xlfn.XLOOKUP(B14,'D-1 Off-Site Habitat Baseline'!AF18:AF265,'D-1 Off-Site Habitat Baseline'!S18:S265), " ")) ->  | L14: 0 | M14: ='E-1 Off-Site Hedge Baseline'!AB17 -> 0 | O14: =SUMIF('E-1 Off-Site Hedge Baseline'!AB17:AB264,'Off-site gain site summary'!N14,'E-1 Off-Site Hedge Baseline'!Q17:Q264) -> 0 | P14: =SUMIF('E-1 Off-Site Hedge Baseline'!$AB$10:$AB$257,'Off-site gain site summary'!$N14,'E-1 Off-Site Hedge Baseline'!$U$10:$U$257) -> 0 | Q14: =SUMIF('E-3 Off-Site Hedge Enhancement'!$AO$12:$AO$257,'Off-site gain site summary'!$N14,'E-3 Off-Site Hedge Enhancement'!$AK$12:$AK$257) -> 0 | R14: =SUMIF('E-2 Off-Site Hedge Creation'!$AD$12:$AD$259,'Off-site gain site summary'!$N14,'E-2 Off-Site Hedge Creation'!$Z$12:$Z$259) -> 0 | S14: 0 | T14: =IFERROR(_xlfn.XLOOKUP(N14,'E-2 Off-Site Hedge Creation'!AD19:AD266,'E-2 Off-Site Hedge Creation'!N19:N266), IFERROR(_xlfn.XLOOKUP(N14,'E-1 Off-Site Hedge Baseline'!AB17:AB264,'E-1 Off-Site Hedge Baseline'!P17:P264), " ")) ->  | U14: 0 | V14: ='F-1 Off-Site WaterC'' Baseline'!AG17 -> 0 | X14: =SUMIF('F-1 Off-Site WaterC'' Baseline'!$AG$10:$AG$257,'Off-site gain site summary'!$W14,'F-1 Off-Site WaterC'' Baseline'!$U$10:$U$257) -> 0 | Y14: =SUMIF('F-1 Off-Site WaterC'' Baseline'!$AG$10:$AG$257,'Off-site gain site summary'!$W14,'F-1 Off-Site WaterC'' Baseline'!$Y$10:$Y$257) -> 0 | Z14: =SUMIF('F-3 Off-Site WaterC Enhancement'!$AT$12:$AT$257,'Off-site gain site summary'!$W14,'F-3 Off-Site WaterC Enhancement'!$AP$12:$AP$257) -> 0 | AA14: =SUMIF('F-2 Off-Site WaterC'' Creation'!$AG$12:$AG$259,'Off-site gain site summary'!$W14,'F-2 Off-Site WaterC'' Creation'!$AC$12:$AC$259) -> 0 | AB14: 0 | AC14: =IFERROR(_xlfn.XLOOKUP(W14,'F-2 Off-Site WaterC'' Creation'!AG19:AG265,'F-2 Off-Site WaterC'' Creation'!AA19:AA266), IFERROR(_xlfn.XLOOKUP(W14,'F-1 Off-Site WaterC'' Baseline'!AG17:AG264,'F-1 Off-Site WaterC'' Baseline'!T17:T264)," ")) ->  | AD14: 0
A15: ='D-1 Off-Site Habitat Baseline'!AF19 -> 0 | C15: =SUMIF('D-1 Off-Site Habitat Baseline'!AF19:AF22,B15,'D-1 Off-Site Habitat Baseline'!T19:T22) -> 0 | D15: =SUMIF('D-1 Off-Site Habitat Baseline'!$AF$11:$AF$258,'Off-site gain site summary'!$B$7,'D-1 Off-Site Habitat Baseline'!$X$11:$X$258) -> 0 | F15: =SUMIF('D-3 Off-Site Habitat Enhancment'!$AU$12:$AU$258,'Off-site gain site summary'!B15,'D-3 Off-Site Habitat Enhancment'!$AQ$12:$AQ$258) -> 0 | H15: =SUMIF('D-2 Off-Site Habitat Creation'!$AF$11:$AF$256,'Off-site gain site summary'!B15,'D-2 Off-Site Habitat Creation'!$AB$11:$AB$256) -> 0 | J15: 0 | K15: =IFERROR(_xlfn.XLOOKUP(B15,'D-2 Off-Site Habitat Creation'!$AF$11:$AF$256,'D-2 Off-Site Habitat Creation'!$Z$11:$Z$256), IFERROR(_xlfn.XLOOKUP(B15,'D-1 Off-Site Habitat Baseline'!AF19:AF266,'D-1 Off-Site Habitat Baseline'!S19:S266), " ")) ->  | L15: 0 | M15: ='E-1 Off-Site Hedge Baseline'!AB18 -> 0 | O15: =SUMIF('E-1 Off-Site Hedge Baseline'!AB18:AB265,'Off-site gain site summary'!N15,'E-1 Off-Site Hedge Baseline'!Q18:Q265) -> 0 | P15: =SUMIF('E-1 Off-Site Hedge Baseline'!$AB$10:$AB$257,'Off-site gain site summary'!$N15,'E-1 Off-Site Hedge Baseline'!$U$10:$U$257) -> 0 | Q15: =SUMIF('E-3 Off-Site Hedge Enhancement'!$AO$12:$AO$257,'Off-site gain site summary'!$N15,'E-3 Off-Site Hedge Enhancement'!$AK$12:$AK$257) -> 0 | R15: =SUMIF('E-2 Off-Site Hedge Creation'!$AD$12:$AD$259,'Off-site gain site summary'!$N15,'E-2 Off-Site Hedge Creation'!$Z$12:$Z$259) -> 0 | S15: 0 | T15: =IFERROR(_xlfn.XLOOKUP(N15,'E-2 Off-Site Hedge Creation'!AD20:AD267,'E-2 Off-Site Hedge Creation'!N20:N267), IFERROR(_xlfn.XLOOKUP(N15,'E-1 Off-Site Hedge Baseline'!AB18:AB265,'E-1 Off-Site Hedge Baseline'!P18:P265), " ")) ->  | U15: 0 | V15: ='F-1 Off-Site WaterC'' Baseline'!AG18 -> 0 | X15: =SUMIF('F-1 Off-Site WaterC'' Baseline'!$AG$10:$AG$257,'Off-site gain site summary'!$W15,'F-1 Off-Site WaterC'' Baseline'!$U$10:$U$257) -> 0 | Y15: =SUMIF('F-1 Off-Site WaterC'' Baseline'!$AG$10:$AG$257,'Off-site gain site summary'!$W15,'F-1 Off-Site WaterC'' Baseline'!$Y$10:$Y$257) -> 0 | Z15: =SUMIF('F-3 Off-Site WaterC Enhancement'!$AT$12:$AT$257,'Off-site gain site summary'!$W15,'F-3 Off-Site WaterC Enhancement'!$AP$12:$AP$257) -> 0 | AA15: =SUMIF('F-2 Off-Site WaterC'' Creation'!$AG$12:$AG$259,'Off-site gain site summary'!$W15,'F-2 Off-Site WaterC'' Creation'!$AC$12:$AC$259) -> 0 | AB15: 0 | AC15: =IFERROR(_xlfn.XLOOKUP(W15,'F-2 Off-Site WaterC'' Creation'!AG20:AG266,'F-2 Off-Site WaterC'' Creation'!AA20:AA267), IFERROR(_xlfn.XLOOKUP(W15,'F-1 Off-Site WaterC'' Baseline'!AG18:AG265,'F-1 Off-Site WaterC'' Baseline'!T18:T265)," ")) ->  | AD15: 0
A16: ='D-1 Off-Site Habitat Baseline'!AF20 -> 0 | C16: =SUMIF('D-1 Off-Site Habitat Baseline'!AF20:AF23,B16,'D-1 Off-Site Habitat Baseline'!T20:T23) -> 0 | D16: =SUMIF('D-1 Off-Site Habitat Baseline'!$AF$11:$AF$258,'Off-site gain site summary'!$B$7,'D-1 Off-Site Habitat Baseline'!$X$11:$X$258) -> 0 | F16: =SUMIF('D-3 Off-Site Habitat Enhancment'!$AU$12:$AU$258,'Off-site gain site summary'!B16,'D-3 Off-Site Habitat Enhancment'!$AQ$12:$AQ$258) -> 0 | H16: =SUMIF('D-2 Off-Site Habitat Creation'!$AF$11:$AF$256,'Off-site gain site summary'!B16,'D-2 Off-Site Habitat Creation'!$AB$11:$AB$256) -> 0 | J16: 0 | K16: =IFERROR(_xlfn.XLOOKUP(B16,'D-2 Off-Site Habitat Creation'!$AF$11:$AF$256,'D-2 Off-Site Habitat Creation'!$Z$11:$Z$256), IFERROR(_xlfn.XLOOKUP(B16,'D-1 Off-Site Habitat Baseline'!AF20:AF267,'D-1 Off-Site Habitat Baseline'!S20:S267), " ")) ->  | L16: 0 | M16: ='E-1 Off-Site Hedge Baseline'!AB19 -> 0 | O16: =SUMIF('E-1 Off-Site Hedge Baseline'!AB19:AB266,'Off-site gain site summary'!N16,'E-1 Off-Site Hedge Baseline'!Q19:Q266) -> 0 | P16: =SUMIF('E-1 Off-Site Hedge Baseline'!$AB$10:$AB$257,'Off-site gain site summary'!$N16,'E-1 Off-Site Hedge Baseline'!$U$10:$U$257) -> 0 | Q16: =SUMIF('E-3 Off-Site Hedge Enhancement'!$AO$12:$AO$257,'Off-site gain site summary'!$N16,'E-3 Off-Site Hedge Enhancement'!$AK$12:$AK$257) -> 0 | R16: =SUMIF('E-2 Off-Site Hedge Creation'!$AD$12:$AD$259,'Off-site gain site summary'!$N16,'E-2 Off-Site Hedge Creation'!$Z$12:$Z$259) -> 0 | S16: 0 | T16: =IFERROR(_xlfn.XLOOKUP(N16,'E-2 Off-Site Hedge Creation'!AD21:AD268,'E-2 Off-Site Hedge Creation'!N21:N268), IFERROR(_xlfn.XLOOKUP(N16,'E-1 Off-Site Hedge Baseline'!AB19:AB266,'E-1 Off-Site Hedge Baseline'!P19:P266), " ")) ->  | U16: 0 | V16: ='F-1 Off-Site WaterC'' Baseline'!AG19 -> 0 | X16: =SUMIF('F-1 Off-Site WaterC'' Baseline'!$AG$10:$AG$257,'Off-site gain site summary'!$W16,'F-1 Off-Site WaterC'' Baseline'!$U$10:$U$257) -> 0 | Y16: =SUMIF('F-1 Off-Site WaterC'' Baseline'!$AG$10:$AG$257,'Off-site gain site summary'!$W16,'F-1 Off-Site WaterC'' Baseline'!$Y$10:$Y$257) -> 0 | Z16: =SUMIF('F-3 Off-Site WaterC Enhancement'!$AT$12:$AT$257,'Off-site gain site summary'!$W16,'F-3 Off-Site WaterC Enhancement'!$AP$12:$AP$257) -> 0 | AA16: =SUMIF('F-2 Off-Site WaterC'' Creation'!$AG$12:$AG$259,'Off-site gain site summary'!$W16,'F-2 Off-Site WaterC'' Creation'!$AC$12:$AC$259) -> 0 | AB16: 0 | AC16: =IFERROR(_xlfn.XLOOKUP(W16,'F-2 Off-Site WaterC'' Creation'!AG21:AG267,'F-2 Off-Site WaterC'' Creation'!AA21:AA268), IFERROR(_xlfn.XLOOKUP(W16,'F-1 Off-Site WaterC'' Baseline'!AG19:AG266,'F-1 Off-Site WaterC'' Baseline'!T19:T266)," ")) ->  | AD16: 0
A17: ='D-1 Off-Site Habitat Baseline'!AF21 -> 0 | C17: =SUMIF('D-1 Off-Site Habitat Baseline'!AF21:AF24,B17,'D-1 Off-Site Habitat Baseline'!T21:T24) -> 0 | D17: =SUMIF('D-1 Off-Site Habitat Baseline'!$AF$11:$AF$258,'Off-site gain site summary'!$B$7,'D-1 Off-Site Habitat Baseline'!$X$11:$X$258) -> 0 | F17: =SUMIF('D-3 Off-Site Habitat Enhancment'!$AU$12:$AU$258,'Off-site gain site summary'!B17,'D-3 Off-Site Habitat Enhancment'!$AQ$12:$AQ$258) -> 0 | H17: =SUMIF('D-2 Off-Site Habitat Creation'!$AF$11:$AF$256,'Off-site gain site summary'!B17,'D-2 Off-Site Habitat Creation'!$AB$11:$AB$256) -> 0 | J17: 0 | K17: =IFERROR(_xlfn.XLOOKUP(B17,'D-2 Off-Site Habitat Creation'!$AF$11:$AF$256,'D-2 Off-Site Habitat Creation'!$Z$11:$Z$256), IFERROR(_xlfn.XLOOKUP(B17,'D-1 Off-Site Habitat Baseline'!AF21:AF268,'D-1 Off-Site Habitat Baseline'!S21:S268), " ")) ->  | L17: 0 | M17: ='E-1 Off-Site Hedge Baseline'!AB20 -> 0 | O17: =SUMIF('E-1 Off-Site Hedge Baseline'!AB20:AB267,'Off-site gain site summary'!N17,'E-1 Off-Site Hedge Baseline'!Q20:Q267) -> 0 | P17: =SUMIF('E-1 Off-Site Hedge Baseline'!$AB$10:$AB$257,'Off-site gain site summary'!$N17,'E-1 Off-Site Hedge Baseline'!$U$10:$U$257) -> 0 | Q17: =SUMIF('E-3 Off-Site Hedge Enhancement'!$AO$12:$AO$257,'Off-site gain site summary'!$N17,'E-3 Off-Site Hedge Enhancement'!$AK$12:$AK$257) -> 0 | R17: =SUMIF('E-2 Off-Site Hedge Creation'!$AD$12:$AD$259,'Off-site gain site summary'!$N17,'E-2 Off-Site Hedge Creation'!$Z$12:$Z$259) -> 0 | S17: 0 | T17: =IFERROR(_xlfn.XLOOKUP(N17,'E-2 Off-Site Hedge Creation'!AD22:AD269,'E-2 Off-Site Hedge Creation'!N22:N269), IFERROR(_xlfn.XLOOKUP(N17,'E-1 Off-Site Hedge Baseline'!AB20:AB267,'E-1 Off-Site Hedge Baseline'!P20:P267), " ")) ->  | U17: 0 | V17: ='F-1 Off-Site WaterC'' Baseline'!AG20 -> 0 | X17: =SUMIF('F-1 Off-Site WaterC'' Baseline'!$AG$10:$AG$257,'Off-site gain site summary'!$W17,'F-1 Off-Site WaterC'' Baseline'!$U$10:$U$257) -> 0 | Y17: =SUMIF('F-1 Off-Site WaterC'' Baseline'!$AG$10:$AG$257,'Off-site gain site summary'!$W17,'F-1 Off-Site WaterC'' Baseline'!$Y$10:$Y$257) -> 0 | Z17: =SUMIF('F-3 Off-Site WaterC Enhancement'!$AT$12:$AT$257,'Off-site gain site summary'!$W17,'F-3 Off-Site WaterC Enhancement'!$AP$12:$AP$257) -> 0 | AA17: =SUMIF('F-2 Off-Site WaterC'' Creation'!$AG$12:$AG$259,'Off-site gain site summary'!$W17,'F-2 Off-Site WaterC'' Creation'!$AC$12:$AC$259) -> 0 | AB17: 0 | AC17: =IFERROR(_xlfn.XLOOKUP(W17,'F-2 Off-Site WaterC'' Creation'!AG22:AG268,'F-2 Off-Site WaterC'' Creation'!AA22:AA269), IFERROR(_xlfn.XLOOKUP(W17,'F-1 Off-Site WaterC'' Baseline'!AG20:AG267,'F-1 Off-Site WaterC'' Baseline'!T20:T267)," ")) ->  | AD17: 0
A18: ='D-1 Off-Site Habitat Baseline'!AF22 -> 0 | C18: =SUMIF('D-1 Off-Site Habitat Baseline'!AF22:AF25,B18,'D-1 Off-Site Habitat Baseline'!T22:T25) -> 0 | D18: =SUMIF('D-1 Off-Site Habitat Baseline'!$AF$11:$AF$258,'Off-site gain site summary'!$B$7,'D-1 Off-Site Habitat Baseline'!$X$11:$X$258) -> 0 | F18: =SUMIF('D-3 Off-Site Habitat Enhancment'!$AU$12:$AU$258,'Off-site gain site summary'!B18,'D-3 Off-Site Habitat Enhancment'!$AQ$12:$AQ$258) -> 0 | H18: =SUMIF('D-2 Off-Site Habitat Creation'!$AF$11:$AF$256,'Off-site gain site summary'!B18,'D-2 Off-Site Habitat Creation'!$AB$11:$AB$256) -> 0 | J18: 0 | K18: =IFERROR(_xlfn.XLOOKUP(B18,'D-2 Off-Site Habitat Creation'!$AF$11:$AF$256,'D-2 Off-Site Habitat Creation'!$Z$11:$Z$256), IFERROR(_xlfn.XLOOKUP(B18,'D-1 Off-Site Habitat Baseline'!AF22:AF269,'D-1 Off-Site Habitat Baseline'!S22:S269), " ")) ->  | L18: 0 | M18: ='E-1 Off-Site Hedge Baseline'!AB21 -> 0 | O18: =SUMIF('E-1 Off-Site Hedge Baseline'!AB21:AB268,'Off-site gain site summary'!N18,'E-1 Off-Site Hedge Baseline'!Q21:Q268) -> 0 | P18: =SUMIF('E-1 Off-Site Hedge Baseline'!$AB$10:$AB$257,'Off-site gain site summary'!$N18,'E-1 Off-Site Hedge Baseline'!$U$10:$U$257) -> 0 | Q18: =SUMIF('E-3 Off-Site Hedge Enhancement'!$AO$12:$AO$257,'Off-site gain site summary'!$N18,'E-3 Off-Site Hedge Enhancement'!$AK$12:$AK$257) -> 0 | R18: =SUMIF('E-2 Off-Site Hedge Creation'!$AD$12:$AD$259,'Off-site gain site summary'!$N18,'E-2 Off-Site Hedge Creation'!$Z$12:$Z$259) -> 0 | S18: 0 | T18: =IFERROR(_xlfn.XLOOKUP(N18,'E-2 Off-Site Hedge Creation'!AD23:AD270,'E-2 Off-Site Hedge Creation'!N23:N270), IFERROR(_xlfn.XLOOKUP(N18,'E-1 Off-Site Hedge Baseline'!AB21:AB268,'E-1 Off-Site Hedge Baseline'!P21:P268), " ")) ->  | U18: 0 | V18: ='F-1 Off-Site WaterC'' Baseline'!AG21 -> 0 | X18: =SUMIF('F-1 Off-Site WaterC'' Baseline'!$AG$10:$AG$257,'Off-site gain site summary'!$W18,'F-1 Off-Site WaterC'' Baseline'!$U$10:$U$257) -> 0 | Y18: =SUMIF('F-1 Off-Site WaterC'' Baseline'!$AG$10:$AG$257,'Off-site gain site summary'!$W18,'F-1 Off-Site WaterC'' Baseline'!$Y$10:$Y$257) -> 0 | Z18: =SUMIF('F-3 Off-Site WaterC Enhancement'!$AT$12:$AT$257,'Off-site gain site summary'!$W18,'F-3 Off-Site WaterC Enhancement'!$AP$12:$AP$257) -> 0 | AA18: =SUMIF('F-2 Off-Site WaterC'' Creation'!$AG$12:$AG$259,'Off-site gain site summary'!$W18,'F-2 Off-Site WaterC'' Creation'!$AC$12:$AC$259) -> 0 | AB18: 0 | AC18: =IFERROR(_xlfn.XLOOKUP(W18,'F-2 Off-Site WaterC'' Creation'!AG23:AG269,'F-2 Off-Site WaterC'' Creation'!AA23:AA270), IFERROR(_xlfn.XLOOKUP(W18,'F-1 Off-Site WaterC'' Baseline'!AG21:AG268,'F-1 Off-Site WaterC'' Baseline'!T21:T268)," ")) ->  | AD18: 0
A19: ='D-1 Off-Site Habitat Baseline'!AF23 -> 0 | C19: =SUMIF('D-1 Off-Site Habitat Baseline'!AF23:AF26,B19,'D-1 Off-Site Habitat Baseline'!T23:T26) -> 0 | D19: =SUMIF('D-1 Off-Site Habitat Baseline'!$AF$11:$AF$258,'Off-site gain site summary'!$B$7,'D-1 Off-Site Habitat Baseline'!$X$11:$X$258) -> 0 | F19: =SUMIF('D-3 Off-Site Habitat Enhancment'!$AU$12:$AU$258,'Off-site gain site summary'!B19,'D-3 Off-Site Habitat Enhancment'!$AQ$12:$AQ$258) -> 0 | H19: =SUMIF('D-2 Off-Site Habitat Creation'!$AF$11:$AF$256,'Off-site gain site summary'!B19,'D-2 Off-Site Habitat Creation'!$AB$11:$AB$256) -> 0 | J19: 0 | K19: =IFERROR(_xlfn.XLOOKUP(B19,'D-2 Off-Site Habitat Creation'!$AF$11:$AF$256,'D-2 Off-Site Habitat Creation'!$Z$11:$Z$256), IFERROR(_xlfn.XLOOKUP(B19,'D-1 Off-Site Habitat Baseline'!AF23:AF270,'D-1 Off-Site Habitat Baseline'!S23:S270), " ")) ->  | L19: 0 | M19: ='E-1 Off-Site Hedge Baseline'!AB22 -> 0 | O19: =SUMIF('E-1 Off-Site Hedge Baseline'!AB22:AB269,'Off-site gain site summary'!N19,'E-1 Off-Site Hedge Baseline'!Q22:Q269) -> 0 | P19: =SUMIF('E-1 Off-Site Hedge Baseline'!$AB$10:$AB$257,'Off-site gain site summary'!$N19,'E-1 Off-Site Hedge Baseline'!$U$10:$U$257) -> 0 | Q19: =SUMIF('E-3 Off-Site Hedge Enhancement'!$AO$12:$AO$257,'Off-site gain site summary'!$N19,'E-3 Off-Site Hedge Enhancement'!$AK$12:$AK$257) -> 0 | R19: =SUMIF('E-2 Off-Site Hedge Creation'!$AD$12:$AD$259,'Off-site gain site summary'!$N19,'E-2 Off-Site Hedge Creation'!$Z$12:$Z$259) -> 0 | S19: 0 | T19: =IFERROR(_xlfn.XLOOKUP(N19,'E-2 Off-Site Hedge Creation'!AD24:AD271,'E-2 Off-Site Hedge Creation'!N24:N271), IFERROR(_xlfn.XLOOKUP(N19,'E-1 Off-Site Hedge Baseline'!AB22:AB269,'E-1 Off-Site Hedge Baseline'!P22:P269), " ")) ->  | U19: 0 | V19: ='F-1 Off-Site WaterC'' Baseline'!AG22 -> 0 | X19: =SUMIF('F-1 Off-Site WaterC'' Baseline'!$AG$10:$AG$257,'Off-site gain site summary'!$W19,'F-1 Off-Site WaterC'' Baseline'!$U$10:$U$257) -> 0 | Y19: =SUMIF('F-1 Off-Site WaterC'' Baseline'!$AG$10:$AG$257,'Off-site gain site summary'!$W19,'F-1 Off-Site WaterC'' Baseline'!$Y$10:$Y$257) -> 0 | Z19: =SUMIF('F-3 Off-Site WaterC Enhancement'!$AT$12:$AT$257,'Off-site gain site summary'!$W19,'F-3 Off-Site WaterC Enhancement'!$AP$12:$AP$257) -> 0 | AA19: =SUMIF('F-2 Off-Site WaterC'' Creation'!$AG$12:$AG$259,'Off-site gain site summary'!$W19,'F-2 Off-Site WaterC'' Creation'!$AC$12:$AC$259) -> 0 | AB19: 0 | AC19: =IFERROR(_xlfn.XLOOKUP(W19,'F-2 Off-Site WaterC'' Creation'!AG24:AG270,'F-2 Off-Site WaterC'' Creation'!AA24:AA271), IFERROR(_xlfn.XLOOKUP(W19,'F-1 Off-Site WaterC'' Baseline'!AG22:AG269,'F-1 Off-Site WaterC'' Baseline'!T22:T269)," ")) ->  | AD19: 0
A20: ='D-1 Off-Site Habitat Baseline'!AF24 -> 0 | C20: =SUMIF('D-1 Off-Site Habitat Baseline'!AF24:AF27,B20,'D-1 Off-Site Habitat Baseline'!T24:T27) -> 0 | D20: =SUMIF('D-1 Off-Site Habitat Baseline'!$AF$11:$AF$258,'Off-site gain site summary'!$B$7,'D-1 Off-Site Habitat Baseline'!$X$11:$X$258) -> 0 | F20: =SUMIF('D-3 Off-Site Habitat Enhancment'!$AU$12:$AU$258,'Off-site gain site summary'!B20,'D-3 Off-Site Habitat Enhancment'!$AQ$12:$AQ$258) -> 0 | H20: =SUMIF('D-2 Off-Site Habitat Creation'!$AF$11:$AF$256,'Off-site gain site summary'!B20,'D-2 Off-Site Habitat Creation'!$AB$11:$AB$256) -> 0 | J20: 0 | K20: =IFERROR(_xlfn.XLOOKUP(B20,'D-2 Off-Site Habitat Creation'!$AF$11:$AF$256,'D-2 Off-Site Habitat Creation'!$Z$11:$Z$256), IFERROR(_xlfn.XLOOKUP(B20,'D-1 Off-Site Habitat Baseline'!AF24:AF271,'D-1 Off-Site Habitat Baseline'!S24:S271), " ")) ->  | L20: 0 | M20: ='E-1 Off-Site Hedge Baseline'!AB23 -> 0 | O20: =SUMIF('E-1 Off-Site Hedge Baseline'!AB23:AB270,'Off-site gain site summary'!N20,'E-1 Off-Site Hedge Baseline'!Q23:Q270) -> 0 | P20: =SUMIF('E-1 Off-Site Hedge Baseline'!$AB$10:$AB$257,'Off-site gain site summary'!$N20,'E-1 Off-Site Hedge Baseline'!$U$10:$U$257) -> 0 | Q20: =SUMIF('E-3 Off-Site Hedge Enhancement'!$AO$12:$AO$257,'Off-site gain site summary'!$N20,'E-3 Off-Site Hedge Enhancement'!$AK$12:$AK$257) -> 0 | R20: =SUMIF('E-2 Off-Site Hedge Creation'!$AD$12:$AD$259,'Off-site gain site summary'!$N20,'E-2 Off-Site Hedge Creation'!$Z$12:$Z$259) -> 0 | S20: 0 | T20: =IFERROR(_xlfn.XLOOKUP(N20,'E-2 Off-Site Hedge Creation'!AD25:AD272,'E-2 Off-Site Hedge Creation'!N25:N272), IFERROR(_xlfn.XLOOKUP(N20,'E-1 Off-Site Hedge Baseline'!AB23:AB270,'E-1 Off-Site Hedge Baseline'!P23:P270), " ")) ->  | U20: 0 | V20: ='F-1 Off-Site WaterC'' Baseline'!AG23 -> 0 | X20: =SUMIF('F-1 Off-Site WaterC'' Baseline'!$AG$10:$AG$257,'Off-site gain site summary'!$W20,'F-1 Off-Site WaterC'' Baseline'!$U$10:$U$257) -> 0 | Y20: =SUMIF('F-1 Off-Site WaterC'' Baseline'!$AG$10:$AG$257,'Off-site gain site summary'!$W20,'F-1 Off-Site WaterC'' Baseline'!$Y$10:$Y$257) -> 0 | Z20: =SUMIF('F-3 Off-Site WaterC Enhancement'!$AT$12:$AT$257,'Off-site gain site summary'!$W20,'F-3 Off-Site WaterC Enhancement'!$AP$12:$AP$257) -> 0 | AA20: =SUMIF('F-2 Off-Site WaterC'' Creation'!$AG$12:$AG$259,'Off-site gain site summary'!$W20,'F-2 Off-Site WaterC'' Creation'!$AC$12:$AC$259) -> 0 | AB20: 0 | AC20: =IFERROR(_xlfn.XLOOKUP(W20,'F-2 Off-Site WaterC'' Creation'!AG25:AG271,'F-2 Off-Site WaterC'' Creation'!AA25:AA272), IFERROR(_xlfn.XLOOKUP(W20,'F-1 Off-Site WaterC'' Baseline'!AG23:AG270,'F-1 Off-Site WaterC'' Baseline'!T23:T270)," ")) ->  | AD20: 0
A21: ='D-1 Off-Site Habitat Baseline'!AF25 -> 0 | C21: =SUMIF('D-1 Off-Site Habitat Baseline'!AF25:AF28,B21,'D-1 Off-Site Habitat Baseline'!T25:T28) -> 0 | D21: =SUMIF('D-1 Off-Site Habitat Baseline'!$AF$11:$AF$258,'Off-site gain site summary'!$B$7,'D-1 Off-Site Habitat Baseline'!$X$11:$X$258) -> 0 | F21: =SUMIF('D-3 Off-Site Habitat Enhancment'!$AU$12:$AU$258,'Off-site gain site summary'!B21,'D-3 Off-Site Habitat Enhancment'!$AQ$12:$AQ$258) -> 0 | H21: =SUMIF('D-2 Off-Site Habitat Creation'!$AF$11:$AF$256,'Off-site gain site summary'!B21,'D-2 Off-Site Habitat Creation'!$AB$11:$AB$256) -> 0 | J21: 0 | K21: =IFERROR(_xlfn.XLOOKUP(B21,'D-2 Off-Site Habitat Creation'!$AF$11:$AF$256,'D-2 Off-Site Habitat Creation'!$Z$11:$Z$256), IFERROR(_xlfn.XLOOKUP(B21,'D-1 Off-Site Habitat Baseline'!AF25:AF272,'D-1 Off-Site Habitat Baseline'!S25:S272), " ")) ->  | L21: 0 | M21: ='E-1 Off-Site Hedge Baseline'!AB24 -> 0 | O21: =SUMIF('E-1 Off-Site Hedge Baseline'!AB24:AB271,'Off-site gain site summary'!N21,'E-1 Off-Site Hedge Baseline'!Q24:Q271) -> 0 | P21: =SUMIF('E-1 Off-Site Hedge Baseline'!$AB$10:$AB$257,'Off-site gain site summary'!$N21,'E-1 Off-Site Hedge Baseline'!$U$10:$U$257) -> 0 | Q21: =SUMIF('E-3 Off-Site Hedge Enhancement'!$AO$12:$AO$257,'Off-site gain site summary'!$N21,'E-3 Off-Site Hedge Enhancement'!$AK$12:$AK$257) -> 0 | R21: =SUMIF('E-2 Off-Site Hedge Creation'!$AD$12:$AD$259,'Off-site gain site summary'!$N21,'E-2 Off-Site Hedge Creation'!$Z$12:$Z$259) -> 0 | S21: 0 | T21: =IFERROR(_xlfn.XLOOKUP(N21,'E-2 Off-Site Hedge Creation'!AD26:AD273,'E-2 Off-Site Hedge Creation'!N26:N273), IFERROR(_xlfn.XLOOKUP(N21,'E-1 Off-Site Hedge Baseline'!AB24:AB271,'E-1 Off-Site Hedge Baseline'!P24:P271), " ")) ->  | U21: 0 | V21: ='F-1 Off-Site WaterC'' Baseline'!AG24 -> 0 | X21: =SUMIF('F-1 Off-Site WaterC'' Baseline'!$AG$10:$AG$257,'Off-site gain site summary'!$W21,'F-1 Off-Site WaterC'' Baseline'!$U$10:$U$257) -> 0 | Y21: =SUMIF('F-1 Off-Site WaterC'' Baseline'!$AG$10:$AG$257,'Off-site gain site summary'!$W21,'F-1 Off-Site WaterC'' Baseline'!$Y$10:$Y$257) -> 0 | Z21: =SUMIF('F-3 Off-Site WaterC Enhancement'!$AT$12:$AT$257,'Off-site gain site summary'!$W21,'F-3 Off-Site WaterC Enhancement'!$AP$12:$AP$257) -> 0 | AA21: =SUMIF('F-2 Off-Site WaterC'' Creation'!$AG$12:$AG$259,'Off-site gain site summary'!$W21,'F-2 Off-Site WaterC'' Creation'!$AC$12:$AC$259) -> 0 | AB21: 0 | AC21: =IFERROR(_xlfn.XLOOKUP(W21,'F-2 Off-Site WaterC'' Creation'!AG26:AG272,'F-2 Off-Site WaterC'' Creation'!AA26:AA273), IFERROR(_xlfn.XLOOKUP(W21,'F-1 Off-Site WaterC'' Baseline'!AG24:AG271,'F-1 Off-Site WaterC'' Baseline'!T24:T271)," ")) ->  | AD21: 0
A22: ='D-1 Off-Site Habitat Baseline'!AF26 -> 0 | C22: =SUMIF('D-1 Off-Site Habitat Baseline'!AF26:AF29,B22,'D-1 Off-Site Habitat Baseline'!T26:T29) -> 0 | D22: =SUMIF('D-1 Off-Site Habitat Baseline'!$AF$11:$AF$258,'Off-site gain site summary'!$B$7,'D-1 Off-Site Habitat Baseline'!$X$11:$X$258) -> 0 | F22: =SUMIF('D-3 Off-Site Habitat Enhancment'!$AU$12:$AU$258,'Off-site gain site summary'!B22,'D-3 Off-Site Habitat Enhancment'!$AQ$12:$AQ$258) -> 0 | H22: =SUMIF('D-2 Off-Site Habitat Creation'!$AF$11:$AF$256,'Off-site gain site summary'!B22,'D-2 Off-Site Habitat Creation'!$AB$11:$AB$256) -> 0 | J22: 0 | K22: =IFERROR(_xlfn.XLOOKUP(B22,'D-2 Off-Site Habitat Creation'!$AF$11:$AF$256,'D-2 Off-Site Habitat Creation'!$Z$11:$Z$256), IFERROR(_xlfn.XLOOKUP(B22,'D-1 Off-Site Habitat Baseline'!AF26:AF273,'D-1 Off-Site Habitat Baseline'!S26:S273), " ")) ->  | L22: 0 | M22: ='E-1 Off-Site Hedge Baseline'!AB25 -> 0 | O22: =SUMIF('E-1 Off-Site Hedge Baseline'!AB25:AB272,'Off-site gain site summary'!N22,'E-1 Off-Site Hedge Baseline'!Q25:Q272) -> 0 | P22: =SUMIF('E-1 Off-Site Hedge Baseline'!$AB$10:$AB$257,'Off-site gain site summary'!$N22,'E-1 Off-Site Hedge Baseline'!$U$10:$U$257) -> 0 | Q22: =SUMIF('E-3 Off-Site Hedge Enhancement'!$AO$12:$AO$257,'Off-site gain site summary'!$N22,'E-3 Off-Site Hedge Enhancement'!$AK$12:$AK$257) -> 0 | R22: =SUMIF('E-2 Off-Site Hedge Creation'!$AD$12:$AD$259,'Off-site gain site summary'!$N22,'E-2 Off-Site Hedge Creation'!$Z$12:$Z$259) -> 0 | S22: 0 | T22: =IFERROR(_xlfn.XLOOKUP(N22,'E-2 Off-Site Hedge Creation'!AD27:AD274,'E-2 Off-Site Hedge Creation'!N27:N274), IFERROR(_xlfn.XLOOKUP(N22,'E-1 Off-Site Hedge Baseline'!AB25:AB272,'E-1 Off-Site Hedge Baseline'!P25:P272), " ")) ->  | U22: 0 | V22: ='F-1 Off-Site WaterC'' Baseline'!AG25 -> 0 | X22: =SUMIF('F-1 Off-Site WaterC'' Baseline'!$AG$10:$AG$257,'Off-site gain site summary'!$W22,'F-1 Off-Site WaterC'' Baseline'!$U$10:$U$257) -> 0 | Y22: =SUMIF('F-1 Off-Site WaterC'' Baseline'!$AG$10:$AG$257,'Off-site gain site summary'!$W22,'F-1 Off-Site WaterC'' Baseline'!$Y$10:$Y$257) -> 0 | Z22: =SUMIF('F-3 Off-Site WaterC Enhancement'!$AT$12:$AT$257,'Off-site gain site summary'!$W22,'F-3 Off-Site WaterC Enhancement'!$AP$12:$AP$257) -> 0 | AA22: =SUMIF('F-2 Off-Site WaterC'' Creation'!$AG$12:$AG$259,'Off-site gain site summary'!$W22,'F-2 Off-Site WaterC'' Creation'!$AC$12:$AC$259) -> 0 | AB22: 0 | AC22: =IFERROR(_xlfn.XLOOKUP(W22,'F-2 Off-Site WaterC'' Creation'!AG27:AG273,'F-2 Off-Site WaterC'' Creation'!AA27:AA274), IFERROR(_xlfn.XLOOKUP(W22,'F-1 Off-Site WaterC'' Baseline'!AG25:AG272,'F-1 Off-Site WaterC'' Baseline'!T25:T272)," ")) ->  | AD22: 0
A23: ='D-1 Off-Site Habitat Baseline'!AF27 -> 0 | C23: =SUMIF('D-1 Off-Site Habitat Baseline'!AF27:AF30,B23,'D-1 Off-Site Habitat Baseline'!T27:T30) -> 0 | D23: =SUMIF('D-1 Off-Site Habitat Baseline'!$AF$11:$AF$258,'Off-site gain site summary'!$B$7,'D-1 Off-Site Habitat Baseline'!$X$11:$X$258) -> 0 | F23: =SUMIF('D-3 Off-Site Habitat Enhancment'!$AU$12:$AU$258,'Off-site gain site summary'!B23,'D-3 Off-Site Habitat Enhancment'!$AQ$12:$AQ$258) -> 0 | H23: =SUMIF('D-2 Off-Site Habitat Creation'!$AF$11:$AF$256,'Off-site gain site summary'!B23,'D-2 Off-Site Habitat Creation'!$AB$11:$AB$256) -> 0 | J23: 0 | K23: =IFERROR(_xlfn.XLOOKUP(B23,'D-2 Off-Site Habitat Creation'!$AF$11:$AF$256,'D-2 Off-Site Habitat Creation'!$Z$11:$Z$256), IFERROR(_xlfn.XLOOKUP(B23,'D-1 Off-Site Habitat Baseline'!AF27:AF274,'D-1 Off-Site Habitat Baseline'!S27:S274), " ")) ->  | L23: 0 | M23: ='E-1 Off-Site Hedge Baseline'!AB26 -> 0 | O23: =SUMIF('E-1 Off-Site Hedge Baseline'!AB26:AB273,'Off-site gain site summary'!N23,'E-1 Off-Site Hedge Baseline'!Q26:Q273) -> 0 | P23: =SUMIF('E-1 Off-Site Hedge Baseline'!$AB$10:$AB$257,'Off-site gain site summary'!$N23,'E-1 Off-Site Hedge Baseline'!$U$10:$U$257) -> 0 | Q23: =SUMIF('E-3 Off-Site Hedge Enhancement'!$AO$12:$AO$257,'Off-site gain site summary'!$N23,'E-3 Off-Site Hedge Enhancement'!$AK$12:$AK$257) -> 0 | R23: =SUMIF('E-2 Off-Site Hedge Creation'!$AD$12:$AD$259,'Off-site gain site summary'!$N23,'E-2 Off-Site Hedge Creation'!$Z$12:$Z$259) -> 0 | S23: 0 | T23: =IFERROR(_xlfn.XLOOKUP(N23,'E-2 Off-Site Hedge Creation'!AD28:AD275,'E-2 Off-Site Hedge Creation'!N28:N275), IFERROR(_xlfn.XLOOKUP(N23,'E-1 Off-Site Hedge Baseline'!AB26:AB273,'E-1 Off-Site Hedge Baseline'!P26:P273), " ")) ->  | U23: 0 | V23: ='F-1 Off-Site WaterC'' Baseline'!AG26 -> 0 | X23: =SUMIF('F-1 Off-Site WaterC'' Baseline'!$AG$10:$AG$257,'Off-site gain site summary'!$W23,'F-1 Off-Site WaterC'' Baseline'!$U$10:$U$257) -> 0 | Y23: =SUMIF('F-1 Off-Site WaterC'' Baseline'!$AG$10:$AG$257,'Off-site gain site summary'!$W23,'F-1 Off-Site WaterC'' Baseline'!$Y$10:$Y$257) -> 0 | Z23: =SUMIF('F-3 Off-Site WaterC Enhancement'!$AT$12:$AT$257,'Off-site gain site summary'!$W23,'F-3 Off-Site WaterC Enhancement'!$AP$12:$AP$257) -> 0 | AA23: =SUMIF('F-2 Off-Site WaterC'' Creation'!$AG$12:$AG$259,'Off-site gain site summary'!$W23,'F-2 Off-Site WaterC'' Creation'!$AC$12:$AC$259) -> 0 | AB23: 0 | AC23: =IFERROR(_xlfn.XLOOKUP(W23,'F-2 Off-Site WaterC'' Creation'!AG28:AG274,'F-2 Off-Site WaterC'' Creation'!AA28:AA275), IFERROR(_xlfn.XLOOKUP(W23,'F-1 Off-Site WaterC'' Baseline'!AG26:AG273,'F-1 Off-Site WaterC'' Baseline'!T26:T273)," ")) ->  | AD23: 0
A24: ='D-1 Off-Site Habitat Baseline'!AF28 -> 0 | C24: =SUMIF('D-1 Off-Site Habitat Baseline'!AF28:AF31,B24,'D-1 Off-Site Habitat Baseline'!T28:T31) -> 0 | D24: =SUMIF('D-1 Off-Site Habitat Baseline'!$AF$11:$AF$258,'Off-site gain site summary'!$B$7,'D-1 Off-Site Habitat Baseline'!$X$11:$X$258) -> 0 | F24: =SUMIF('D-3 Off-Site Habitat Enhancment'!$AU$12:$AU$258,'Off-site gain site summary'!B24,'D-3 Off-Site Habitat Enhancment'!$AQ$12:$AQ$258) -> 0 | H24: =SUMIF('D-2 Off-Site Habitat Creation'!$AF$11:$AF$256,'Off-site gain site summary'!B24,'D-2 Off-Site Habitat Creation'!$AB$11:$AB$256) -> 0 | J24: 0 | K24: =IFERROR(_xlfn.XLOOKUP(B24,'D-2 Off-Site Habitat Creation'!$AF$11:$AF$256,'D-2 Off-Site Habitat Creation'!$Z$11:$Z$256), IFERROR(_xlfn.XLOOKUP(B24,'D-1 Off-Site Habitat Baseline'!AF28:AF275,'D-1 Off-Site Habitat Baseline'!S28:S275), " ")) ->  | L24: 0 | M24: ='E-1 Off-Site Hedge Baseline'!AB27 -> 0 | O24: =SUMIF('E-1 Off-Site Hedge Baseline'!AB27:AB274,'Off-site gain site summary'!N24,'E-1 Off-Site Hedge Baseline'!Q27:Q274) -> 0 | P24: =SUMIF('E-1 Off-Site Hedge Baseline'!$AB$10:$AB$257,'Off-site gain site summary'!$N24,'E-1 Off-Site Hedge Baseline'!$U$10:$U$257) -> 0 | Q24: =SUMIF('E-3 Off-Site Hedge Enhancement'!$AO$12:$AO$257,'Off-site gain site summary'!$N24,'E-3 Off-Site Hedge Enhancement'!$AK$12:$AK$257) -> 0 | R24: =SUMIF('E-2 Off-Site Hedge Creation'!$AD$12:$AD$259,'Off-site gain site summary'!$N24,'E-2 Off-Site Hedge Creation'!$Z$12:$Z$259) -> 0 | S24: 0 | T24: =IFERROR(_xlfn.XLOOKUP(N24,'E-2 Off-Site Hedge Creation'!AD29:AD276,'E-2 Off-Site Hedge Creation'!N29:N276), IFERROR(_xlfn.XLOOKUP(N24,'E-1 Off-Site Hedge Baseline'!AB27:AB274,'E-1 Off-Site Hedge Baseline'!P27:P274), " ")) ->  | U24: 0 | V24: ='F-1 Off-Site WaterC'' Baseline'!AG27 -> 0 | X24: =SUMIF('F-1 Off-Site WaterC'' Baseline'!$AG$10:$AG$257,'Off-site gain site summary'!$W24,'F-1 Off-Site WaterC'' Baseline'!$U$10:$U$257) -> 0 | Y24: =SUMIF('F-1 Off-Site WaterC'' Baseline'!$AG$10:$AG$257,'Off-site gain site summary'!$W24,'F-1 Off-Site WaterC'' Baseline'!$Y$10:$Y$257) -> 0 | Z24: =SUMIF('F-3 Off-Site WaterC Enhancement'!$AT$12:$AT$257,'Off-site gain site summary'!$W24,'F-3 Off-Site WaterC Enhancement'!$AP$12:$AP$257) -> 0 | AA24: =SUMIF('F-2 Off-Site WaterC'' Creation'!$AG$12:$AG$259,'Off-site gain site summary'!$W24,'F-2 Off-Site WaterC'' Creation'!$AC$12:$AC$259) -> 0 | AB24: 0 | AC24: =IFERROR(_xlfn.XLOOKUP(W24,'F-2 Off-Site WaterC'' Creation'!AG29:AG275,'F-2 Off-Site WaterC'' Creation'!AA29:AA276), IFERROR(_xlfn.XLOOKUP(W24,'F-1 Off-Site WaterC'' Baseline'!AG27:AG274,'F-1 Off-Site WaterC'' Baseline'!T27:T274)," ")) ->  | AD24: 0
A25: ='D-1 Off-Site Habitat Baseline'!AF29 -> 0 | C25: =SUMIF('D-1 Off-Site Habitat Baseline'!AF29:AF32,B25,'D-1 Off-Site Habitat Baseline'!T29:T32) -> 0 | D25: =SUMIF('D-1 Off-Site Habitat Baseline'!$AF$11:$AF$258,'Off-site gain site summary'!$B$7,'D-1 Off-Site Habitat Baseline'!$X$11:$X$258) -> 0 | F25: =SUMIF('D-3 Off-Site Habitat Enhancment'!$AU$12:$AU$258,'Off-site gain site summary'!B25,'D-3 Off-Site Habitat Enhancment'!$AQ$12:$AQ$258) -> 0 | H25: =SUMIF('D-2 Off-Site Habitat Creation'!$AF$11:$AF$256,'Off-site gain site summary'!B25,'D-2 Off-Site Habitat Creation'!$AB$11:$AB$256) -> 0 | J25: 0 | K25: =IFERROR(_xlfn.XLOOKUP(B25,'D-2 Off-Site Habitat Creation'!$AF$11:$AF$256,'D-2 Off-Site Habitat Creation'!$Z$11:$Z$256), IFERROR(_xlfn.XLOOKUP(B25,'D-1 Off-Site Habitat Baseline'!AF29:AF276,'D-1 Off-Site Habitat Baseline'!S29:S276), " ")) ->  | L25: 0 | M25: ='E-1 Off-Site Hedge Baseline'!AB28 -> 0 | O25: =SUMIF('E-1 Off-Site Hedge Baseline'!AB28:AB275,'Off-site gain site summary'!N25,'E-1 Off-Site Hedge Baseline'!Q28:Q275) -> 0 | P25: =SUMIF('E-1 Off-Site Hedge Baseline'!$AB$10:$AB$257,'Off-site gain site summary'!$N25,'E-1 Off-Site Hedge Baseline'!$U$10:$U$257) -> 0 | Q25: =SUMIF('E-3 Off-Site Hedge Enhancement'!$AO$12:$AO$257,'Off-site gain site summary'!$N25,'E-3 Off-Site Hedge Enhancement'!$AK$12:$AK$257) -> 0 | R25: =SUMIF('E-2 Off-Site Hedge Creation'!$AD$12:$AD$259,'Off-site gain site summary'!$N25,'E-2 Off-Site Hedge Creation'!$Z$12:$Z$259) -> 0 | S25: 0 | T25: =IFERROR(_xlfn.XLOOKUP(N25,'E-2 Off-Site Hedge Creation'!AD30:AD277,'E-2 Off-Site Hedge Creation'!N30:N277), IFERROR(_xlfn.XLOOKUP(N25,'E-1 Off-Site Hedge Baseline'!AB28:AB275,'E-1 Off-Site Hedge Baseline'!P28:P275), " ")) ->  | U25: 0 | V25: ='F-1 Off-Site WaterC'' Baseline'!AG28 -> 0 | X25: =SUMIF('F-1 Off-Site WaterC'' Baseline'!$AG$10:$AG$257,'Off-site gain site summary'!$W25,'F-1 Off-Site WaterC'' Baseline'!$U$10:$U$257) -> 0 | Y25: =SUMIF('F-1 Off-Site WaterC'' Baseline'!$AG$10:$AG$257,'Off-site gain site summary'!$W25,'F-1 Off-Site WaterC'' Baseline'!$Y$10:$Y$257) -> 0 | Z25: =SUMIF('F-3 Off-Site WaterC Enhancement'!$AT$12:$AT$257,'Off-site gain site summary'!$W25,'F-3 Off-Site WaterC Enhancement'!$AP$12:$AP$257) -> 0 | AA25: =SUMIF('F-2 Off-Site WaterC'' Creation'!$AG$12:$AG$259,'Off-site gain site summary'!$W25,'F-2 Off-Site WaterC'' Creation'!$AC$12:$AC$259) -> 0 | AB25: 0 | AC25: =IFERROR(_xlfn.XLOOKUP(W25,'F-2 Off-Site WaterC'' Creation'!AG30:AG276,'F-2 Off-Site WaterC'' Creation'!AA30:AA277), IFERROR(_xlfn.XLOOKUP(W25,'F-1 Off-Site WaterC'' Baseline'!AG28:AG275,'F-1 Off-Site WaterC'' Baseline'!T28:T275)," ")) ->  | AD25: 0
A26: ='D-1 Off-Site Habitat Baseline'!AF30 -> 0 | C26: =SUMIF('D-1 Off-Site Habitat Baseline'!AF30:AF33,B26,'D-1 Off-Site Habitat Baseline'!T30:T33) -> 0 | D26: =SUMIF('D-1 Off-Site Habitat Baseline'!$AF$11:$AF$258,'Off-site gain site summary'!$B$7,'D-1 Off-Site Habitat Baseline'!$X$11:$X$258) -> 0 | F26: =SUMIF('D-3 Off-Site Habitat Enhancment'!$AU$12:$AU$258,'Off-site gain site summary'!B26,'D-3 Off-Site Habitat Enhancment'!$AQ$12:$AQ$258) -> 0 | H26: =SUMIF('D-2 Off-Site Habitat Creation'!$AF$11:$AF$256,'Off-site gain site summary'!B26,'D-2 Off-Site Habitat Creation'!$AB$11:$AB$256) -> 0 | J26: 0 | K26: =IFERROR(_xlfn.XLOOKUP(B26,'D-2 Off-Site Habitat Creation'!$AF$11:$AF$256,'D-2 Off-Site Habitat Creation'!$Z$11:$Z$256), IFERROR(_xlfn.XLOOKUP(B26,'D-1 Off-Site Habitat Baseline'!AF30:AF277,'D-1 Off-Site Habitat Baseline'!S30:S277), " ")) ->  | L26: 0 | M26: ='E-1 Off-Site Hedge Baseline'!AB29 -> 0 | O26: =SUMIF('E-1 Off-Site Hedge Baseline'!AB29:AB276,'Off-site gain site summary'!N26,'E-1 Off-Site Hedge Baseline'!Q29:Q276) -> 0 | P26: =SUMIF('E-1 Off-Site Hedge Baseline'!$AB$10:$AB$257,'Off-site gain site summary'!$N26,'E-1 Off-Site Hedge Baseline'!$U$10:$U$257) -> 0 | Q26: =SUMIF('E-3 Off-Site Hedge Enhancement'!$AO$12:$AO$257,'Off-site gain site summary'!$N26,'E-3 Off-Site Hedge Enhancement'!$AK$12:$AK$257) -> 0 | R26: =SUMIF('E-2 Off-Site Hedge Creation'!$AD$12:$AD$259,'Off-site gain site summary'!$N26,'E-2 Off-Site Hedge Creation'!$Z$12:$Z$259) -> 0 | S26: 0 | T26: =IFERROR(_xlfn.XLOOKUP(N26,'E-2 Off-Site Hedge Creation'!AD31:AD278,'E-2 Off-Site Hedge Creation'!N31:N278), IFERROR(_xlfn.XLOOKUP(N26,'E-1 Off-Site Hedge Baseline'!AB29:AB276,'E-1 Off-Site Hedge Baseline'!P29:P276), " ")) ->  | U26: 0 | V26: ='F-1 Off-Site WaterC'' Baseline'!AG29 -> 0 | X26: =SUMIF('F-1 Off-Site WaterC'' Baseline'!$AG$10:$AG$257,'Off-site gain site summary'!$W26,'F-1 Off-Site WaterC'' Baseline'!$U$10:$U$257) -> 0 | Y26: =SUMIF('F-1 Off-Site WaterC'' Baseline'!$AG$10:$AG$257,'Off-site gain site summary'!$W26,'F-1 Off-Site WaterC'' Baseline'!$Y$10:$Y$257) -> 0 | Z26: =SUMIF('F-3 Off-Site WaterC Enhancement'!$AT$12:$AT$257,'Off-site gain site summary'!$W26,'F-3 Off-Site WaterC Enhancement'!$AP$12:$AP$257) -> 0 | AA26: =SUMIF('F-2 Off-Site WaterC'' Creation'!$AG$12:$AG$259,'Off-site gain site summary'!$W26,'F-2 Off-Site WaterC'' Creation'!$AC$12:$AC$259) -> 0 | AB26: 0 | AC26: =IFERROR(_xlfn.XLOOKUP(W26,'F-2 Off-Site WaterC'' Creation'!AG31:AG277,'F-2 Off-Site WaterC'' Creation'!AA31:AA278), IFERROR(_xlfn.XLOOKUP(W26,'F-1 Off-Site WaterC'' Baseline'!AG29:AG276,'F-1 Off-Site WaterC'' Baseline'!T29:T276)," ")) ->  | AD26: 0
A27: ='D-1 Off-Site Habitat Baseline'!AF31 -> 0 | C27: =SUMIF('D-1 Off-Site Habitat Baseline'!AF31:AF34,B27,'D-1 Off-Site Habitat Baseline'!T31:T34) -> 0 | D27: =SUMIF('D-1 Off-Site Habitat Baseline'!$AF$11:$AF$258,'Off-site gain site summary'!$B$7,'D-1 Off-Site Habitat Baseline'!$X$11:$X$258) -> 0 | F27: =SUMIF('D-3 Off-Site Habitat Enhancment'!$AU$12:$AU$258,'Off-site gain site summary'!B27,'D-3 Off-Site Habitat Enhancment'!$AQ$12:$AQ$258) -> 0 | H27: =SUMIF('D-2 Off-Site Habitat Creation'!$AF$11:$AF$256,'Off-site gain site summary'!B27,'D-2 Off-Site Habitat Creation'!$AB$11:$AB$256) -> 0 | J27: 0 | K27: =IFERROR(_xlfn.XLOOKUP(B27,'D-2 Off-Site Habitat Creation'!$AF$11:$AF$256,'D-2 Off-Site Habitat Creation'!$Z$11:$Z$256), IFERROR(_xlfn.XLOOKUP(B27,'D-1 Off-Site Habitat Baseline'!AF31:AF278,'D-1 Off-Site Habitat Baseline'!S31:S278), " ")) ->  | L27: 0 | M27: ='E-1 Off-Site Hedge Baseline'!AB30 -> 0 | O27: =SUMIF('E-1 Off-Site Hedge Baseline'!AB30:AB277,'Off-site gain site summary'!N27,'E-1 Off-Site Hedge Baseline'!Q30:Q277) -> 0 | P27: =SUMIF('E-1 Off-Site Hedge Baseline'!$AB$10:$AB$257,'Off-site gain site summary'!$N27,'E-1 Off-Site Hedge Baseline'!$U$10:$U$257) -> 0 | Q27: =SUMIF('E-3 Off-Site Hedge Enhancement'!$AO$12:$AO$257,'Off-site gain site summary'!$N27,'E-3 Off-Site Hedge Enhancement'!$AK$12:$AK$257) -> 0 | R27: =SUMIF('E-2 Off-Site Hedge Creation'!$AD$12:$AD$259,'Off-site gain site summary'!$N27,'E-2 Off-Site Hedge Creation'!$Z$12:$Z$259) -> 0 | S27: 0 | T27: =IFERROR(_xlfn.XLOOKUP(N27,'E-2 Off-Site Hedge Creation'!AD32:AD279,'E-2 Off-Site Hedge Creation'!N32:N279), IFERROR(_xlfn.XLOOKUP(N27,'E-1 Off-Site Hedge Baseline'!AB30:AB277,'E-1 Off-Site Hedge Baseline'!P30:P277), " ")) ->  | U27: 0 | V27: ='F-1 Off-Site WaterC'' Baseline'!AG30 -> 0 | X27: =SUMIF('F-1 Off-Site WaterC'' Baseline'!$AG$10:$AG$257,'Off-site gain site summary'!$W27,'F-1 Off-Site WaterC'' Baseline'!$U$10:$U$257) -> 0 | Y27: =SUMIF('F-1 Off-Site WaterC'' Baseline'!$AG$10:$AG$257,'Off-site gain site summary'!$W27,'F-1 Off-Site WaterC'' Baseline'!$Y$10:$Y$257) -> 0 | Z27: =SUMIF('F-3 Off-Site WaterC Enhancement'!$AT$12:$AT$257,'Off-site gain site summary'!$W27,'F-3 Off-Site WaterC Enhancement'!$AP$12:$AP$257) -> 0 | AA27: =SUMIF('F-2 Off-Site WaterC'' Creation'!$AG$12:$AG$259,'Off-site gain site summary'!$W27,'F-2 Off-Site WaterC'' Creation'!$AC$12:$AC$259) -> 0 | AB27: 0 | AC27: =IFERROR(_xlfn.XLOOKUP(W27,'F-2 Off-Site WaterC'' Creation'!AG32:AG278,'F-2 Off-Site WaterC'' Creation'!AA32:AA279), IFERROR(_xlfn.XLOOKUP(W27,'F-1 Off-Site WaterC'' Baseline'!AG30:AG277,'F-1 Off-Site WaterC'' Baseline'!T30:T277)," ")) ->  | AD27: 0
A28: ='D-1 Off-Site Habitat Baseline'!AF32 -> 0 | C28: =SUMIF('D-1 Off-Site Habitat Baseline'!AF32:AF35,B28,'D-1 Off-Site Habitat Baseline'!T32:T35) -> 0 | D28: =SUMIF('D-1 Off-Site Habitat Baseline'!$AF$11:$AF$258,'Off-site gain site summary'!$B$7,'D-1 Off-Site Habitat Baseline'!$X$11:$X$258) -> 0 | F28: =SUMIF('D-3 Off-Site Habitat Enhancment'!$AU$12:$AU$258,'Off-site gain site summary'!B28,'D-3 Off-Site Habitat Enhancment'!$AQ$12:$AQ$258) -> 0 | H28: =SUMIF('D-2 Off-Site Habitat Creation'!$AF$11:$AF$256,'Off-site gain site summary'!B28,'D-2 Off-Site Habitat Creation'!$AB$11:$AB$256) -> 0 | J28: 0 | K28: =IFERROR(_xlfn.XLOOKUP(B28,'D-2 Off-Site Habitat Creation'!$AF$11:$AF$256,'D-2 Off-Site Habitat Creation'!$Z$11:$Z$256), IFERROR(_xlfn.XLOOKUP(B28,'D-1 Off-Site Habitat Baseline'!AF32:AF279,'D-1 Off-Site Habitat Baseline'!S32:S279), " ")) ->  | L28: 0 | M28: ='E-1 Off-Site Hedge Baseline'!AB31 -> 0 | O28: =SUMIF('E-1 Off-Site Hedge Baseline'!AB31:AB278,'Off-site gain site summary'!N28,'E-1 Off-Site Hedge Baseline'!Q31:Q278) -> 0 | P28: =SUMIF('E-1 Off-Site Hedge Baseline'!$AB$10:$AB$257,'Off-site gain site summary'!$N28,'E-1 Off-Site Hedge Baseline'!$U$10:$U$257) -> 0 | Q28: =SUMIF('E-3 Off-Site Hedge Enhancement'!$AO$12:$AO$257,'Off-site gain site summary'!$N28,'E-3 Off-Site Hedge Enhancement'!$AK$12:$AK$257) -> 0 | R28: =SUMIF('E-2 Off-Site Hedge Creation'!$AD$12:$AD$259,'Off-site gain site summary'!$N28,'E-2 Off-Site Hedge Creation'!$Z$12:$Z$259) -> 0 | S28: 0 | T28: =IFERROR(_xlfn.XLOOKUP(N28,'E-2 Off-Site Hedge Creation'!AD33:AD280,'E-2 Off-Site Hedge Creation'!N33:N280), IFERROR(_xlfn.XLOOKUP(N28,'E-1 Off-Site Hedge Baseline'!AB31:AB278,'E-1 Off-Site Hedge Baseline'!P31:P278), " ")) ->  | U28: 0 | V28: ='F-1 Off-Site WaterC'' Baseline'!AG31 -> 0 | X28: =SUMIF('F-1 Off-Site WaterC'' Baseline'!$AG$10:$AG$257,'Off-site gain site summary'!$W28,'F-1 Off-Site WaterC'' Baseline'!$U$10:$U$257) -> 0 | Y28: =SUMIF('F-1 Off-Site WaterC'' Baseline'!$AG$10:$AG$257,'Off-site gain site summary'!$W28,'F-1 Off-Site WaterC'' Baseline'!$Y$10:$Y$257) -> 0 | Z28: =SUMIF('F-3 Off-Site WaterC Enhancement'!$AT$12:$AT$257,'Off-site gain site summary'!$W28,'F-3 Off-Site WaterC Enhancement'!$AP$12:$AP$257) -> 0 | AA28: =SUMIF('F-2 Off-Site WaterC'' Creation'!$AG$12:$AG$259,'Off-site gain site summary'!$W28,'F-2 Off-Site WaterC'' Creation'!$AC$12:$AC$259) -> 0 | AB28: 0 | AC28: =IFERROR(_xlfn.XLOOKUP(W28,'F-2 Off-Site WaterC'' Creation'!AG33:AG279,'F-2 Off-Site WaterC'' Creation'!AA33:AA280), IFERROR(_xlfn.XLOOKUP(W28,'F-1 Off-Site WaterC'' Baseline'!AG31:AG278,'F-1 Off-Site WaterC'' Baseline'!T31:T278)," ")) ->  | AD28: 0
A29: ='D-1 Off-Site Habitat Baseline'!AF33 -> 0 | C29: =SUMIF('D-1 Off-Site Habitat Baseline'!AF33:AF36,B29,'D-1 Off-Site Habitat Baseline'!T33:T36) -> 0 | D29: =SUMIF('D-1 Off-Site Habitat Baseline'!$AF$11:$AF$258,'Off-site gain site summary'!$B$7,'D-1 Off-Site Habitat Baseline'!$X$11:$X$258) -> 0 | F29: =SUMIF('D-3 Off-Site Habitat Enhancment'!$AU$12:$AU$258,'Off-site gain site summary'!B29,'D-3 Off-Site Habitat Enhancment'!$AQ$12:$AQ$258) -> 0 | H29: =SUMIF('D-2 Off-Site Habitat Creation'!$AF$11:$AF$256,'Off-site gain site summary'!B29,'D-2 Off-Site Habitat Creation'!$AB$11:$AB$256) -> 0 | J29: 0 | K29: =IFERROR(_xlfn.XLOOKUP(B29,'D-2 Off-Site Habitat Creation'!$AF$11:$AF$256,'D-2 Off-Site Habitat Creation'!$Z$11:$Z$256), IFERROR(_xlfn.XLOOKUP(B29,'D-1 Off-Site Habitat Baseline'!AF33:AF280,'D-1 Off-Site Habitat Baseline'!S33:S280), " ")) ->  | L29: 0 | M29: ='E-1 Off-Site Hedge Baseline'!AB32 -> 0 | O29: =SUMIF('E-1 Off-Site Hedge Baseline'!AB32:AB279,'Off-site gain site summary'!N29,'E-1 Off-Site Hedge Baseline'!Q32:Q279) -> 0 | P29: =SUMIF('E-1 Off-Site Hedge Baseline'!$AB$10:$AB$257,'Off-site gain site summary'!$N29,'E-1 Off-Site Hedge Baseline'!$U$10:$U$257) -> 0 | Q29: =SUMIF('E-3 Off-Site Hedge Enhancement'!$AO$12:$AO$257,'Off-site gain site summary'!$N29,'E-3 Off-Site Hedge Enhancement'!$AK$12:$AK$257) -> 0 | R29: =SUMIF('E-2 Off-Site Hedge Creation'!$AD$12:$AD$259,'Off-site gain site summary'!$N29,'E-2 Off-Site Hedge Creation'!$Z$12:$Z$259) -> 0 | S29: 0 | T29: =IFERROR(_xlfn.XLOOKUP(N29,'E-2 Off-Site Hedge Creation'!AD34:AD281,'E-2 Off-Site Hedge Creation'!N34:N281), IFERROR(_xlfn.XLOOKUP(N29,'E-1 Off-Site Hedge Baseline'!AB32:AB279,'E-1 Off-Site Hedge Baseline'!P32:P279), " ")) ->  | U29: 0 | V29: ='F-1 Off-Site WaterC'' Baseline'!AG32 -> 0 | X29: =SUMIF('F-1 Off-Site WaterC'' Baseline'!$AG$10:$AG$257,'Off-site gain site summary'!$W29,'F-1 Off-Site WaterC'' Baseline'!$U$10:$U$257) -> 0 | Y29: =SUMIF('F-1 Off-Site WaterC'' Baseline'!$AG$10:$AG$257,'Off-site gain site summary'!$W29,'F-1 Off-Site WaterC'' Baseline'!$Y$10:$Y$257) -> 0 | Z29: =SUMIF('F-3 Off-Site WaterC Enhancement'!$AT$12:$AT$257,'Off-site gain site summary'!$W29,'F-3 Off-Site WaterC Enhancement'!$AP$12:$AP$257) -> 0 | AA29: =SUMIF('F-2 Off-Site WaterC'' Creation'!$AG$12:$AG$259,'Off-site gain site summary'!$W29,'F-2 Off-Site WaterC'' Creation'!$AC$12:$AC$259) -> 0 | AB29: 0 | AC29: =IFERROR(_xlfn.XLOOKUP(W29,'F-2 Off-Site WaterC'' Creation'!AG34:AG280,'F-2 Off-Site WaterC'' Creation'!AA34:AA281), IFERROR(_xlfn.XLOOKUP(W29,'F-1 Off-Site WaterC'' Baseline'!AG32:AG279,'F-1 Off-Site WaterC'' Baseline'!T32:T279)," ")) ->  | AD29: 0
A30: ='D-1 Off-Site Habitat Baseline'!AF34 -> 0 | C30: =SUMIF('D-1 Off-Site Habitat Baseline'!AF34:AF37,B30,'D-1 Off-Site Habitat Baseline'!T34:T37) -> 0 | D30: =SUMIF('D-1 Off-Site Habitat Baseline'!$AF$11:$AF$258,'Off-site gain site summary'!$B$7,'D-1 Off-Site Habitat Baseline'!$X$11:$X$258) -> 0 | F30: =SUMIF('D-3 Off-Site Habitat Enhancment'!$AU$12:$AU$258,'Off-site gain site summary'!B30,'D-3 Off-Site Habitat Enhancment'!$AQ$12:$AQ$258) -> 0 | H30: =SUMIF('D-2 Off-Site Habitat Creation'!$AF$11:$AF$256,'Off-site gain site summary'!B30,'D-2 Off-Site Habitat Creation'!$AB$11:$AB$256) -> 0 | J30: 0 | K30: =IFERROR(_xlfn.XLOOKUP(B30,'D-2 Off-Site Habitat Creation'!$AF$11:$AF$256,'D-2 Off-Site Habitat Creation'!$Z$11:$Z$256), IFERROR(_xlfn.XLOOKUP(B30,'D-1 Off-Site Habitat Baseline'!AF34:AF281,'D-1 Off-Site Habitat Baseline'!S34:S281), " ")) ->  | L30: 0 | M30: ='E-1 Off-Site Hedge Baseline'!AB33 -> 0 | O30: =SUMIF('E-1 Off-Site Hedge Baseline'!AB33:AB280,'Off-site gain site summary'!N30,'E-1 Off-Site Hedge Baseline'!Q33:Q280) -> 0 | P30: =SUMIF('E-1 Off-Site Hedge Baseline'!$AB$10:$AB$257,'Off-site gain site summary'!$N30,'E-1 Off-Site Hedge Baseline'!$U$10:$U$257) -> 0 | Q30: =SUMIF('E-3 Off-Site Hedge Enhancement'!$AO$12:$AO$257,'Off-site gain site summary'!$N30,'E-3 Off-Site Hedge Enhancement'!$AK$12:$AK$257) -> 0 | R30: =SUMIF('E-2 Off-Site Hedge Creation'!$AD$12:$AD$259,'Off-site gain site summary'!$N30,'E-2 Off-Site Hedge Creation'!$Z$12:$Z$259) -> 0 | S30: 0 | T30: =IFERROR(_xlfn.XLOOKUP(N30,'E-2 Off-Site Hedge Creation'!AD35:AD282,'E-2 Off-Site Hedge Creation'!N35:N282), IFERROR(_xlfn.XLOOKUP(N30,'E-1 Off-Site Hedge Baseline'!AB33:AB280,'E-1 Off-Site Hedge Baseline'!P33:P280), " ")) ->  | U30: 0 | V30: ='F-1 Off-Site WaterC'' Baseline'!AG33 -> 0 | X30: =SUMIF('F-1 Off-Site WaterC'' Baseline'!$AG$10:$AG$257,'Off-site gain site summary'!$W30,'F-1 Off-Site WaterC'' Baseline'!$U$10:$U$257) -> 0 | Y30: =SUMIF('F-1 Off-Site WaterC'' Baseline'!$AG$10:$AG$257,'Off-site gain site summary'!$W30,'F-1 Off-Site WaterC'' Baseline'!$Y$10:$Y$257) -> 0 | Z30: =SUMIF('F-3 Off-Site WaterC Enhancement'!$AT$12:$AT$257,'Off-site gain site summary'!$W30,'F-3 Off-Site WaterC Enhancement'!$AP$12:$AP$257) -> 0 | AA30: =SUMIF('F-2 Off-Site WaterC'' Creation'!$AG$12:$AG$259,'Off-site gain site summary'!$W30,'F-2 Off-Site WaterC'' Creation'!$AC$12:$AC$259) -> 0 | AB30: 0 | AC30: =IFERROR(_xlfn.XLOOKUP(W30,'F-2 Off-Site WaterC'' Creation'!AG35:AG281,'F-2 Off-Site WaterC'' Creation'!AA35:AA282), IFERROR(_xlfn.XLOOKUP(W30,'F-1 Off-Site WaterC'' Baseline'!AG33:AG280,'F-1 Off-Site WaterC'' Baseline'!T33:T280)," ")) ->  | AD30: 0
A31: ='D-1 Off-Site Habitat Baseline'!AF35 -> 0 | C31: =SUMIF('D-1 Off-Site Habitat Baseline'!AF35:AF38,B31,'D-1 Off-Site Habitat Baseline'!T35:T38) -> 0 | D31: =SUMIF('D-1 Off-Site Habitat Baseline'!$AF$11:$AF$258,'Off-site gain site summary'!$B$7,'D-1 Off-Site Habitat Baseline'!$X$11:$X$258) -> 0 | F31: =SUMIF('D-3 Off-Site Habitat Enhancment'!$AU$12:$AU$258,'Off-site gain site summary'!B31,'D-3 Off-Site Habitat Enhancment'!$AQ$12:$AQ$258) -> 0 | H31: =SUMIF('D-2 Off-Site Habitat Creation'!$AF$11:$AF$256,'Off-site gain site summary'!B31,'D-2 Off-Site Habitat Creation'!$AB$11:$AB$256) -> 0 | J31: 0 | K31: =IFERROR(_xlfn.XLOOKUP(B31,'D-2 Off-Site Habitat Creation'!$AF$11:$AF$256,'D-2 Off-Site Habitat Creation'!$Z$11:$Z$256), IFERROR(_xlfn.XLOOKUP(B31,'D-1 Off-Site Habitat Baseline'!AF35:AF282,'D-1 Off-Site Habitat Baseline'!S35:S282), " ")) ->  | L31: 0 | M31: ='E-1 Off-Site Hedge Baseline'!AB34 -> 0 | O31: =SUMIF('E-1 Off-Site Hedge Baseline'!AB34:AB281,'Off-site gain site summary'!N31,'E-1 Off-Site Hedge Baseline'!Q34:Q281) -> 0 | P31: =SUMIF('E-1 Off-Site Hedge Baseline'!$AB$10:$AB$257,'Off-site gain site summary'!$N31,'E-1 Off-Site Hedge Baseline'!$U$10:$U$257) -> 0 | Q31: =SUMIF('E-3 Off-Site Hedge Enhancement'!$AO$12:$AO$257,'Off-site gain site summary'!$N31,'E-3 Off-Site Hedge Enhancement'!$AK$12:$AK$257) -> 0 | R31: =SUMIF('E-2 Off-Site Hedge Creation'!$AD$12:$AD$259,'Off-site gain site summary'!$N31,'E-2 Off-Site Hedge Creation'!$Z$12:$Z$259) -> 0 | S31: 0 | T31: =IFERROR(_xlfn.XLOOKUP(N31,'E-2 Off-Site Hedge Creation'!AD36:AD283,'E-2 Off-Site Hedge Creation'!N36:N283), IFERROR(_xlfn.XLOOKUP(N31,'E-1 Off-Site Hedge Baseline'!AB34:AB281,'E-1 Off-Site Hedge Baseline'!P34:P281), " ")) ->  | U31: 0 | V31: ='F-1 Off-Site WaterC'' Baseline'!AG34 -> 0 | X31: =SUMIF('F-1 Off-Site WaterC'' Baseline'!$AG$10:$AG$257,'Off-site gain site summary'!$W31,'F-1 Off-Site WaterC'' Baseline'!$U$10:$U$257) -> 0 | Y31: =SUMIF('F-1 Off-Site WaterC'' Baseline'!$AG$10:$AG$257,'Off-site gain site summary'!$W31,'F-1 Off-Site WaterC'' Baseline'!$Y$10:$Y$257) -> 0 | Z31: =SUMIF('F-3 Off-Site WaterC Enhancement'!$AT$12:$AT$257,'Off-site gain site summary'!$W31,'F-3 Off-Site WaterC Enhancement'!$AP$12:$AP$257) -> 0 | AA31: =SUMIF('F-2 Off-Site WaterC'' Creation'!$AG$12:$AG$259,'Off-site gain site summary'!$W31,'F-2 Off-Site WaterC'' Creation'!$AC$12:$AC$259) -> 0 | AB31: 0 | AC31: =IFERROR(_xlfn.XLOOKUP(W31,'F-2 Off-Site WaterC'' Creation'!AG36:AG282,'F-2 Off-Site WaterC'' Creation'!AA36:AA283), IFERROR(_xlfn.XLOOKUP(W31,'F-1 Off-Site WaterC'' Baseline'!AG34:AG281,'F-1 Off-Site WaterC'' Baseline'!T34:T281)," ")) ->  | AD31: 0
A32: ='D-1 Off-Site Habitat Baseline'!AF36 -> 0 | C32: =SUMIF('D-1 Off-Site Habitat Baseline'!AF36:AF39,B32,'D-1 Off-Site Habitat Baseline'!T36:T39) -> 0 | D32: =SUMIF('D-1 Off-Site Habitat Baseline'!$AF$11:$AF$258,'Off-site gain site summary'!$B$7,'D-1 Off-Site Habitat Baseline'!$X$11:$X$258) -> 0 | F32: =SUMIF('D-3 Off-Site Habitat Enhancment'!$AU$12:$AU$258,'Off-site gain site summary'!B32,'D-3 Off-Site Habitat Enhancment'!$AQ$12:$AQ$258) -> 0 | H32: =SUMIF('D-2 Off-Site Habitat Creation'!$AF$11:$AF$256,'Off-site gain site summary'!B32,'D-2 Off-Site Habitat Creation'!$AB$11:$AB$256) -> 0 | J32: 0 | K32: =IFERROR(_xlfn.XLOOKUP(B32,'D-2 Off-Site Habitat Creation'!$AF$11:$AF$256,'D-2 Off-Site Habitat Creation'!$Z$11:$Z$256), IFERROR(_xlfn.XLOOKUP(B32,'D-1 Off-Site Habitat Baseline'!AF36:AF283,'D-1 Off-Site Habitat Baseline'!S36:S283), " ")) ->  | L32: 0 | M32: ='E-1 Off-Site Hedge Baseline'!AB35 -> 0 | O32: =SUMIF('E-1 Off-Site Hedge Baseline'!AB35:AB282,'Off-site gain site summary'!N32,'E-1 Off-Site Hedge Baseline'!Q35:Q282) -> 0 | P32: =SUMIF('E-1 Off-Site Hedge Baseline'!$AB$10:$AB$257,'Off-site gain site summary'!$N32,'E-1 Off-Site Hedge Baseline'!$U$10:$U$257) -> 0 | Q32: =SUMIF('E-3 Off-Site Hedge Enhancement'!$AO$12:$AO$257,'Off-site gain site summary'!$N32,'E-3 Off-Site Hedge Enhancement'!$AK$12:$AK$257) -> 0 | R32: =SUMIF('E-2 Off-Site Hedge Creation'!$AD$12:$AD$259,'Off-site gain site summary'!$N32,'E-2 Off-Site Hedge Creation'!$Z$12:$Z$259) -> 0 | S32: 0 | T32: =IFERROR(_xlfn.XLOOKUP(N32,'E-2 Off-Site Hedge Creation'!AD37:AD284,'E-2 Off-Site Hedge Creation'!N37:N284), IFERROR(_xlfn.XLOOKUP(N32,'E-1 Off-Site Hedge Baseline'!AB35:AB282,'E-1 Off-Site Hedge Baseline'!P35:P282), " ")) ->  | U32: 0 | V32: ='F-1 Off-Site WaterC'' Baseline'!AG35 -> 0 | X32: =SUMIF('F-1 Off-Site WaterC'' Baseline'!$AG$10:$AG$257,'Off-site gain site summary'!$W32,'F-1 Off-Site WaterC'' Baseline'!$U$10:$U$257) -> 0 | Y32: =SUMIF('F-1 Off-Site WaterC'' Baseline'!$AG$10:$AG$257,'Off-site gain site summary'!$W32,'F-1 Off-Site WaterC'' Baseline'!$Y$10:$Y$257) -> 0 | Z32: =SUMIF('F-3 Off-Site WaterC Enhancement'!$AT$12:$AT$257,'Off-site gain site summary'!$W32,'F-3 Off-Site WaterC Enhancement'!$AP$12:$AP$257) -> 0 | AA32: =SUMIF('F-2 Off-Site WaterC'' Creation'!$AG$12:$AG$259,'Off-site gain site summary'!$W32,'F-2 Off-Site WaterC'' Creation'!$AC$12:$AC$259) -> 0 | AB32: 0 | AC32: =IFERROR(_xlfn.XLOOKUP(W32,'F-2 Off-Site WaterC'' Creation'!AG37:AG283,'F-2 Off-Site WaterC'' Creation'!AA37:AA284), IFERROR(_xlfn.XLOOKUP(W32,'F-1 Off-Site WaterC'' Baseline'!AG35:AG282,'F-1 Off-Site WaterC'' Baseline'!T35:T282)," ")) ->  | AD32: 0
A33: ='D-1 Off-Site Habitat Baseline'!AF37 -> 0 | C33: =SUMIF('D-1 Off-Site Habitat Baseline'!AF37:AF40,B33,'D-1 Off-Site Habitat Baseline'!T37:T40) -> 0 | D33: =SUMIF('D-1 Off-Site Habitat Baseline'!$AF$11:$AF$258,'Off-site gain site summary'!$B$7,'D-1 Off-Site Habitat Baseline'!$X$11:$X$258) -> 0 | F33: =SUMIF('D-3 Off-Site Habitat Enhancment'!$AU$12:$AU$258,'Off-site gain site summary'!B33,'D-3 Off-Site Habitat Enhancment'!$AQ$12:$AQ$258) -> 0 | H33: =SUMIF('D-2 Off-Site Habitat Creation'!$AF$11:$AF$256,'Off-site gain site summary'!B33,'D-2 Off-Site Habitat Creation'!$AB$11:$AB$256) -> 0 | J33: 0 | K33: =IFERROR(_xlfn.XLOOKUP(B33,'D-2 Off-Site Habitat Creation'!$AF$11:$AF$256,'D-2 Off-Site Habitat Creation'!$Z$11:$Z$256), IFERROR(_xlfn.XLOOKUP(B33,'D-1 Off-Site Habitat Baseline'!AF37:AF284,'D-1 Off-Site Habitat Baseline'!S37:S284), " ")) ->  | L33: 0 | M33: ='E-1 Off-Site Hedge Baseline'!AB36 -> 0 | O33: =SUMIF('E-1 Off-Site Hedge Baseline'!AB36:AB283,'Off-site gain site summary'!N33,'E-1 Off-Site Hedge Baseline'!Q36:Q283) -> 0 | P33: =SUMIF('E-1 Off-Site Hedge Baseline'!$AB$10:$AB$257,'Off-site gain site summary'!$N33,'E-1 Off-Site Hedge Baseline'!$U$10:$U$257) -> 0 | Q33: =SUMIF('E-3 Off-Site Hedge Enhancement'!$AO$12:$AO$257,'Off-site gain site summary'!$N33,'E-3 Off-Site Hedge Enhancement'!$AK$12:$AK$257) -> 0 | R33: =SUMIF('E-2 Off-Site Hedge Creation'!$AD$12:$AD$259,'Off-site gain site summary'!$N33,'E-2 Off-Site Hedge Creation'!$Z$12:$Z$259) -> 0 | S33: 0 | T33: =IFERROR(_xlfn.XLOOKUP(N33,'E-2 Off-Site Hedge Creation'!AD38:AD285,'E-2 Off-Site Hedge Creation'!N38:N285), IFERROR(_xlfn.XLOOKUP(N33,'E-1 Off-Site Hedge Baseline'!AB36:AB283,'E-1 Off-Site Hedge Baseline'!P36:P283), " ")) ->  | U33: 0 | V33: ='F-1 Off-Site WaterC'' Baseline'!AG36 -> 0 | X33: =SUMIF('F-1 Off-Site WaterC'' Baseline'!$AG$10:$AG$257,'Off-site gain site summary'!$W33,'F-1 Off-Site WaterC'' Baseline'!$U$10:$U$257) -> 0 | Y33: =SUMIF('F-1 Off-Site WaterC'' Baseline'!$AG$10:$AG$257,'Off-site gain site summary'!$W33,'F-1 Off-Site WaterC'' Baseline'!$Y$10:$Y$257) -> 0 | Z33: =SUMIF('F-3 Off-Site WaterC Enhancement'!$AT$12:$AT$257,'Off-site gain site summary'!$W33,'F-3 Off-Site WaterC Enhancement'!$AP$12:$AP$257) -> 0 | AA33: =SUMIF('F-2 Off-Site WaterC'' Creation'!$AG$12:$AG$259,'Off-site gain site summary'!$W33,'F-2 Off-Site WaterC'' Creation'!$AC$12:$AC$259) -> 0 | AB33: 0 | AC33: =IFERROR(_xlfn.XLOOKUP(W33,'F-2 Off-Site WaterC'' Creation'!AG38:AG284,'F-2 Off-Site WaterC'' Creation'!AA38:AA285), IFERROR(_xlfn.XLOOKUP(W33,'F-1 Off-Site WaterC'' Baseline'!AG36:AG283,'F-1 Off-Site WaterC'' Baseline'!T36:T283)," ")) ->  | AD33: 0
A34: ='D-1 Off-Site Habitat Baseline'!AF38 -> 0 | C34: =SUMIF('D-1 Off-Site Habitat Baseline'!AF38:AF41,B34,'D-1 Off-Site Habitat Baseline'!T38:T41) -> 0 | D34: =SUMIF('D-1 Off-Site Habitat Baseline'!$AF$11:$AF$258,'Off-site gain site summary'!$B$7,'D-1 Off-Site Habitat Baseline'!$X$11:$X$258) -> 0 | F34: =SUMIF('D-3 Off-Site Habitat Enhancment'!$AU$12:$AU$258,'Off-site gain site summary'!B34,'D-3 Off-Site Habitat Enhancment'!$AQ$12:$AQ$258) -> 0 | H34: =SUMIF('D-2 Off-Site Habitat Creation'!$AF$11:$AF$256,'Off-site gain site summary'!B34,'D-2 Off-Site Habitat Creation'!$AB$11:$AB$256) -> 0 | J34: 0 | K34: =IFERROR(_xlfn.XLOOKUP(B34,'D-2 Off-Site Habitat Creation'!$AF$11:$AF$256,'D-2 Off-Site Habitat Creation'!$Z$11:$Z$256), IFERROR(_xlfn.XLOOKUP(B34,'D-1 Off-Site Habitat Baseline'!AF38:AF285,'D-1 Off-Site Habitat Baseline'!S38:S285), " ")) ->  | L34: 0 | M34: ='E-1 Off-Site Hedge Baseline'!AB37 -> 0 | O34: =SUMIF('E-1 Off-Site Hedge Baseline'!AB37:AB284,'Off-site gain site summary'!N34,'E-1 Off-Site Hedge Baseline'!Q37:Q284) -> 0 | P34: =SUMIF('E-1 Off-Site Hedge Baseline'!$AB$10:$AB$257,'Off-site gain site summary'!$N34,'E-1 Off-Site Hedge Baseline'!$U$10:$U$257) -> 0 | Q34: =SUMIF('E-3 Off-Site Hedge Enhancement'!$AO$12:$AO$257,'Off-site gain site summary'!$N34,'E-3 Off-Site Hedge Enhancement'!$AK$12:$AK$257) -> 0 | R34: =SUMIF('E-2 Off-Site Hedge Creation'!$AD$12:$AD$259,'Off-site gain site summary'!$N34,'E-2 Off-Site Hedge Creation'!$Z$12:$Z$259) -> 0 | S34: 0 | T34: =IFERROR(_xlfn.XLOOKUP(N34,'E-2 Off-Site Hedge Creation'!AD39:AD286,'E-2 Off-Site Hedge Creation'!N39:N286), IFERROR(_xlfn.XLOOKUP(N34,'E-1 Off-Site Hedge Baseline'!AB37:AB284,'E-1 Off-Site Hedge Baseline'!P37:P284), " ")) ->  | U34: 0 | V34: ='F-1 Off-Site WaterC'' Baseline'!AG37 -> 0 | X34: =SUMIF('F-1 Off-Site WaterC'' Baseline'!$AG$10:$AG$257,'Off-site gain site summary'!$W34,'F-1 Off-Site WaterC'' Baseline'!$U$10:$U$257) -> 0 | Y34: =SUMIF('F-1 Off-Site WaterC'' Baseline'!$AG$10:$AG$257,'Off-site gain site summary'!$W34,'F-1 Off-Site WaterC'' Baseline'!$Y$10:$Y$257) -> 0 | Z34: =SUMIF('F-3 Off-Site WaterC Enhancement'!$AT$12:$AT$257,'Off-site gain site summary'!$W34,'F-3 Off-Site WaterC Enhancement'!$AP$12:$AP$257) -> 0 | AA34: =SUMIF('F-2 Off-Site WaterC'' Creation'!$AG$12:$AG$259,'Off-site gain site summary'!$W34,'F-2 Off-Site WaterC'' Creation'!$AC$12:$AC$259) -> 0 | AB34: 0 | AC34: =IFERROR(_xlfn.XLOOKUP(W34,'F-2 Off-Site WaterC'' Creation'!AG39:AG285,'F-2 Off-Site WaterC'' Creation'!AA39:AA286), IFERROR(_xlfn.XLOOKUP(W34,'F-1 Off-Site WaterC'' Baseline'!AG37:AG284,'F-1 Off-Site WaterC'' Baseline'!T37:T284)," ")) ->  | AD34: 0
A35: ='D-1 Off-Site Habitat Baseline'!AF39 -> 0 | C35: =SUMIF('D-1 Off-Site Habitat Baseline'!AF39:AF42,B35,'D-1 Off-Site Habitat Baseline'!T39:T42) -> 0 | D35: =SUMIF('D-1 Off-Site Habitat Baseline'!$AF$11:$AF$258,'Off-site gain site summary'!$B$7,'D-1 Off-Site Habitat Baseline'!$X$11:$X$258) -> 0 | F35: =SUMIF('D-3 Off-Site Habitat Enhancment'!$AU$12:$AU$258,'Off-site gain site summary'!B35,'D-3 Off-Site Habitat Enhancment'!$AQ$12:$AQ$258) -> 0 | H35: =SUMIF('D-2 Off-Site Habitat Creation'!$AF$11:$AF$256,'Off-site gain site summary'!B35,'D-2 Off-Site Habitat Creation'!$AB$11:$AB$256) -> 0 | J35: 0 | K35: =IFERROR(_xlfn.XLOOKUP(B35,'D-2 Off-Site Habitat Creation'!$AF$11:$AF$256,'D-2 Off-Site Habitat Creation'!$Z$11:$Z$256), IFERROR(_xlfn.XLOOKUP(B35,'D-1 Off-Site Habitat Baseline'!AF39:AF286,'D-1 Off-Site Habitat Baseline'!S39:S286), " ")) ->  | L35: 0 | M35: ='E-1 Off-Site Hedge Baseline'!AB38 -> 0 | O35: =SUMIF('E-1 Off-Site Hedge Baseline'!AB38:AB285,'Off-site gain site summary'!N35,'E-1 Off-Site Hedge Baseline'!Q38:Q285) -> 0 | P35: =SUMIF('E-1 Off-Site Hedge Baseline'!$AB$10:$AB$257,'Off-site gain site summary'!$N35,'E-1 Off-Site Hedge Baseline'!$U$10:$U$257) -> 0 | Q35: =SUMIF('E-3 Off-Site Hedge Enhancement'!$AO$12:$AO$257,'Off-site gain site summary'!$N35,'E-3 Off-Site Hedge Enhancement'!$AK$12:$AK$257) -> 0 | R35: =SUMIF('E-2 Off-Site Hedge Creation'!$AD$12:$AD$259,'Off-site gain site summary'!$N35,'E-2 Off-Site Hedge Creation'!$Z$12:$Z$259) -> 0 | S35: 0 | T35: =IFERROR(_xlfn.XLOOKUP(N35,'E-2 Off-Site Hedge Creation'!AD40:AD287,'E-2 Off-Site Hedge Creation'!N40:N287), IFERROR(_xlfn.XLOOKUP(N35,'E-1 Off-Site Hedge Baseline'!AB38:AB285,'E-1 Off-Site Hedge Baseline'!P38:P285), " ")) ->  | U35: 0 | V35: ='F-1 Off-Site WaterC'' Baseline'!AG38 -> 0 | X35: =SUMIF('F-1 Off-Site WaterC'' Baseline'!$AG$10:$AG$257,'Off-site gain site summary'!$W35,'F-1 Off-Site WaterC'' Baseline'!$U$10:$U$257) -> 0 | Y35: =SUMIF('F-1 Off-Site WaterC'' Baseline'!$AG$10:$AG$257,'Off-site gain site summary'!$W35,'F-1 Off-Site WaterC'' Baseline'!$Y$10:$Y$257) -> 0 | Z35: =SUMIF('F-3 Off-Site WaterC Enhancement'!$AT$12:$AT$257,'Off-site gain site summary'!$W35,'F-3 Off-Site WaterC Enhancement'!$AP$12:$AP$257) -> 0 | AA35: =SUMIF('F-2 Off-Site WaterC'' Creation'!$AG$12:$AG$259,'Off-site gain site summary'!$W35,'F-2 Off-Site WaterC'' Creation'!$AC$12:$AC$259) -> 0 | AB35: 0 | AC35: =IFERROR(_xlfn.XLOOKUP(W35,'F-2 Off-Site WaterC'' Creation'!AG40:AG286,'F-2 Off-Site WaterC'' Creation'!AA40:AA287), IFERROR(_xlfn.XLOOKUP(W35,'F-1 Off-Site WaterC'' Baseline'!AG38:AG285,'F-1 Off-Site WaterC'' Baseline'!T38:T285)," ")) ->  | AD35: 0
A36: ='D-1 Off-Site Habitat Baseline'!AF40 -> 0 | C36: =SUMIF('D-1 Off-Site Habitat Baseline'!AF40:AF43,B36,'D-1 Off-Site Habitat Baseline'!T40:T43) -> 0 | D36: =SUMIF('D-1 Off-Site Habitat Baseline'!$AF$11:$AF$258,'Off-site gain site summary'!$B$7,'D-1 Off-Site Habitat Baseline'!$X$11:$X$258) -> 0 | F36: =SUMIF('D-3 Off-Site Habitat Enhancment'!$AU$12:$AU$258,'Off-site gain site summary'!B36,'D-3 Off-Site Habitat Enhancment'!$AQ$12:$AQ$258) -> 0 | H36: =SUMIF('D-2 Off-Site Habitat Creation'!$AF$11:$AF$256,'Off-site gain site summary'!B36,'D-2 Off-Site Habitat Creation'!$AB$11:$AB$256) -> 0 | J36: 0 | K36: =IFERROR(_xlfn.XLOOKUP(B36,'D-2 Off-Site Habitat Creation'!$AF$11:$AF$256,'D-2 Off-Site Habitat Creation'!$Z$11:$Z$256), IFERROR(_xlfn.XLOOKUP(B36,'D-1 Off-Site Habitat Baseline'!AF40:AF287,'D-1 Off-Site Habitat Baseline'!S40:S287), " ")) ->  | L36: 0 | M36: ='E-1 Off-Site Hedge Baseline'!AB39 -> 0 | O36: =SUMIF('E-1 Off-Site Hedge Baseline'!AB39:AB286,'Off-site gain site summary'!N36,'E-1 Off-Site Hedge Baseline'!Q39:Q286) -> 0 | P36: =SUMIF('E-1 Off-Site Hedge Baseline'!$AB$10:$AB$257,'Off-site gain site summary'!$N36,'E-1 Off-Site Hedge Baseline'!$U$10:$U$257) -> 0 | Q36: =SUMIF('E-3 Off-Site Hedge Enhancement'!$AO$12:$AO$257,'Off-site gain site summary'!$N36,'E-3 Off-Site Hedge Enhancement'!$AK$12:$AK$257) -> 0 | R36: =SUMIF('E-2 Off-Site Hedge Creation'!$AD$12:$AD$259,'Off-site gain site summary'!$N36,'E-2 Off-Site Hedge Creation'!$Z$12:$Z$259) -> 0 | S36: 0 | T36: =IFERROR(_xlfn.XLOOKUP(N36,'E-2 Off-Site Hedge Creation'!AD41:AD288,'E-2 Off-Site Hedge Creation'!N41:N288), IFERROR(_xlfn.XLOOKUP(N36,'E-1 Off-Site Hedge Baseline'!AB39:AB286,'E-1 Off-Site Hedge Baseline'!P39:P286), " ")) ->  | U36: 0 | V36: ='F-1 Off-Site WaterC'' Baseline'!AG39 -> 0 | X36: =SUMIF('F-1 Off-Site WaterC'' Baseline'!$AG$10:$AG$257,'Off-site gain site summary'!$W36,'F-1 Off-Site WaterC'' Baseline'!$U$10:$U$257) -> 0 | Y36: =SUMIF('F-1 Off-Site WaterC'' Baseline'!$AG$10:$AG$257,'Off-site gain site summary'!$W36,'F-1 Off-Site WaterC'' Baseline'!$Y$10:$Y$257) -> 0 | Z36: =SUMIF('F-3 Off-Site WaterC Enhancement'!$AT$12:$AT$257,'Off-site gain site summary'!$W36,'F-3 Off-Site WaterC Enhancement'!$AP$12:$AP$257) -> 0 | AA36: =SUMIF('F-2 Off-Site WaterC'' Creation'!$AG$12:$AG$259,'Off-site gain site summary'!$W36,'F-2 Off-Site WaterC'' Creation'!$AC$12:$AC$259) -> 0 | AB36: 0 | AC36: =IFERROR(_xlfn.XLOOKUP(W36,'F-2 Off-Site WaterC'' Creation'!AG41:AG287,'F-2 Off-Site WaterC'' Creation'!AA41:AA288), IFERROR(_xlfn.XLOOKUP(W36,'F-1 Off-Site WaterC'' Baseline'!AG39:AG286,'F-1 Off-Site WaterC'' Baseline'!T39:T286)," ")) ->  | AD36: 0
A37: ='D-1 Off-Site Habitat Baseline'!AF41 -> 0 | C37: =SUMIF('D-1 Off-Site Habitat Baseline'!AF41:AF44,B37,'D-1 Off-Site Habitat Baseline'!T41:T44) -> 0 | D37: =SUMIF('D-1 Off-Site Habitat Baseline'!$AF$11:$AF$258,'Off-site gain site summary'!$B$7,'D-1 Off-Site Habitat Baseline'!$X$11:$X$258) -> 0 | F37: =SUMIF('D-3 Off-Site Habitat Enhancment'!$AU$12:$AU$258,'Off-site gain site summary'!B37,'D-3 Off-Site Habitat Enhancment'!$AQ$12:$AQ$258) -> 0 | H37: =SUMIF('D-2 Off-Site Habitat Creation'!$AF$11:$AF$256,'Off-site gain site summary'!B37,'D-2 Off-Site Habitat Creation'!$AB$11:$AB$256) -> 0 | J37: 0 | K37: =IFERROR(_xlfn.XLOOKUP(B37,'D-2 Off-Site Habitat Creation'!$AF$11:$AF$256,'D-2 Off-Site Habitat Creation'!$Z$11:$Z$256), IFERROR(_xlfn.XLOOKUP(B37,'D-1 Off-Site Habitat Baseline'!AF41:AF288,'D-1 Off-Site Habitat Baseline'!S41:S288), " ")) ->  | L37: 0 | M37: ='E-1 Off-Site Hedge Baseline'!AB40 -> 0 | O37: =SUMIF('E-1 Off-Site Hedge Baseline'!AB40:AB287,'Off-site gain site summary'!N37,'E-1 Off-Site Hedge Baseline'!Q40:Q287) -> 0 | P37: =SUMIF('E-1 Off-Site Hedge Baseline'!$AB$10:$AB$257,'Off-site gain site summary'!$N37,'E-1 Off-Site Hedge Baseline'!$U$10:$U$257) -> 0 | Q37: =SUMIF('E-3 Off-Site Hedge Enhancement'!$AO$12:$AO$257,'Off-site gain site summary'!$N37,'E-3 Off-Site Hedge Enhancement'!$AK$12:$AK$257) -> 0 | R37: =SUMIF('E-2 Off-Site Hedge Creation'!$AD$12:$AD$259,'Off-site gain site summary'!$N37,'E-2 Off-Site Hedge Creation'!$Z$12:$Z$259) -> 0 | S37: 0 | T37: =IFERROR(_xlfn.XLOOKUP(N37,'E-2 Off-Site Hedge Creation'!AD42:AD289,'E-2 Off-Site Hedge Creation'!N42:N289), IFERROR(_xlfn.XLOOKUP(N37,'E-1 Off-Site Hedge Baseline'!AB40:AB287,'E-1 Off-Site Hedge Baseline'!P40:P287), " ")) ->  | U37: 0 | V37: ='F-1 Off-Site WaterC'' Baseline'!AG40 -> 0 | X37: =SUMIF('F-1 Off-Site WaterC'' Baseline'!$AG$10:$AG$257,'Off-site gain site summary'!$W37,'F-1 Off-Site WaterC'' Baseline'!$U$10:$U$257) -> 0 | Y37: =SUMIF('F-1 Off-Site WaterC'' Baseline'!$AG$10:$AG$257,'Off-site gain site summary'!$W37,'F-1 Off-Site WaterC'' Baseline'!$Y$10:$Y$257) -> 0 | Z37: =SUMIF('F-3 Off-Site WaterC Enhancement'!$AT$12:$AT$257,'Off-site gain site summary'!$W37,'F-3 Off-Site WaterC Enhancement'!$AP$12:$AP$257) -> 0 | AA37: =SUMIF('F-2 Off-Site WaterC'' Creation'!$AG$12:$AG$259,'Off-site gain site summary'!$W37,'F-2 Off-Site WaterC'' Creation'!$AC$12:$AC$259) -> 0 | AB37: 0 | AC37: =IFERROR(_xlfn.XLOOKUP(W37,'F-2 Off-Site WaterC'' Creation'!AG42:AG288,'F-2 Off-Site WaterC'' Creation'!AA42:AA289), IFERROR(_xlfn.XLOOKUP(W37,'F-1 Off-Site WaterC'' Baseline'!AG40:AG287,'F-1 Off-Site WaterC'' Baseline'!T40:T287)," ")) ->  | AD37: 0
A38: ='D-1 Off-Site Habitat Baseline'!AF42 -> 0 | C38: =SUMIF('D-1 Off-Site Habitat Baseline'!AF42:AF45,B38,'D-1 Off-Site Habitat Baseline'!T42:T45) -> 0 | D38: =SUMIF('D-1 Off-Site Habitat Baseline'!$AF$11:$AF$258,'Off-site gain site summary'!$B$7,'D-1 Off-Site Habitat Baseline'!$X$11:$X$258) -> 0 | F38: =SUMIF('D-3 Off-Site Habitat Enhancment'!$AU$12:$AU$258,'Off-site gain site summary'!B38,'D-3 Off-Site Habitat Enhancment'!$AQ$12:$AQ$258) -> 0 | H38: =SUMIF('D-2 Off-Site Habitat Creation'!$AF$11:$AF$256,'Off-site gain site summary'!B38,'D-2 Off-Site Habitat Creation'!$AB$11:$AB$256) -> 0 | J38: 0 | K38: =IFERROR(_xlfn.XLOOKUP(B38,'D-2 Off-Site Habitat Creation'!$AF$11:$AF$256,'D-2 Off-Site Habitat Creation'!$Z$11:$Z$256), IFERROR(_xlfn.XLOOKUP(B38,'D-1 Off-Site Habitat Baseline'!AF42:AF289,'D-1 Off-Site Habitat Baseline'!S42:S289), " ")) ->  | L38: 0 | M38: ='E-1 Off-Site Hedge Baseline'!AB41 -> 0 | O38: =SUMIF('E-1 Off-Site Hedge Baseline'!AB41:AB288,'Off-site gain site summary'!N38,'E-1 Off-Site Hedge Baseline'!Q41:Q288) -> 0 | P38: =SUMIF('E-1 Off-Site Hedge Baseline'!$AB$10:$AB$257,'Off-site gain site summary'!$N38,'E-1 Off-Site Hedge Baseline'!$U$10:$U$257) -> 0 | Q38: =SUMIF('E-3 Off-Site Hedge Enhancement'!$AO$12:$AO$257,'Off-site gain site summary'!$N38,'E-3 Off-Site Hedge Enhancement'!$AK$12:$AK$257) -> 0 | R38: =SUMIF('E-2 Off-Site Hedge Creation'!$AD$12:$AD$259,'Off-site gain site summary'!$N38,'E-2 Off-Site Hedge Creation'!$Z$12:$Z$259) -> 0 | S38: 0 | T38: =IFERROR(_xlfn.XLOOKUP(N38,'E-2 Off-Site Hedge Creation'!AD43:AD290,'E-2 Off-Site Hedge Creation'!N43:N290), IFERROR(_xlfn.XLOOKUP(N38,'E-1 Off-Site Hedge Baseline'!AB41:AB288,'E-1 Off-Site Hedge Baseline'!P41:P288), " ")) ->  | U38: 0 | V38: ='F-1 Off-Site WaterC'' Baseline'!AG41 -> 0 | X38: =SUMIF('F-1 Off-Site WaterC'' Baseline'!$AG$10:$AG$257,'Off-site gain site summary'!$W38,'F-1 Off-Site WaterC'' Baseline'!$U$10:$U$257) -> 0 | Y38: =SUMIF('F-1 Off-Site WaterC'' Baseline'!$AG$10:$AG$257,'Off-site gain site summary'!$W38,'F-1 Off-Site WaterC'' Baseline'!$Y$10:$Y$257) -> 0 | Z38: =SUMIF('F-3 Off-Site WaterC Enhancement'!$AT$12:$AT$257,'Off-site gain site summary'!$W38,'F-3 Off-Site WaterC Enhancement'!$AP$12:$AP$257) -> 0 | AA38: =SUMIF('F-2 Off-Site WaterC'' Creation'!$AG$12:$AG$259,'Off-site gain site summary'!$W38,'F-2 Off-Site WaterC'' Creation'!$AC$12:$AC$259) -> 0 | AB38: 0 | AC38: =IFERROR(_xlfn.XLOOKUP(W38,'F-2 Off-Site WaterC'' Creation'!AG43:AG289,'F-2 Off-Site WaterC'' Creation'!AA43:AA290), IFERROR(_xlfn.XLOOKUP(W38,'F-1 Off-Site WaterC'' Baseline'!AG41:AG288,'F-1 Off-Site WaterC'' Baseline'!T41:T288)," ")) ->  | AD38: 0
A39: ='D-1 Off-Site Habitat Baseline'!AF43 -> 0 | C39: =SUMIF('D-1 Off-Site Habitat Baseline'!AF43:AF46,B39,'D-1 Off-Site Habitat Baseline'!T43:T46) -> 0 | D39: =SUMIF('D-1 Off-Site Habitat Baseline'!$AF$11:$AF$258,'Off-site gain site summary'!$B$7,'D-1 Off-Site Habitat Baseline'!$X$11:$X$258) -> 0 | F39: =SUMIF('D-3 Off-Site Habitat Enhancment'!$AU$12:$AU$258,'Off-site gain site summary'!B39,'D-3 Off-Site Habitat Enhancment'!$AQ$12:$AQ$258) -> 0 | H39: =SUMIF('D-2 Off-Site Habitat Creation'!$AF$11:$AF$256,'Off-site gain site summary'!B39,'D-2 Off-Site Habitat Creation'!$AB$11:$AB$256) -> 0 | J39: 0 | K39: =IFERROR(_xlfn.XLOOKUP(B39,'D-2 Off-Site Habitat Creation'!$AF$11:$AF$256,'D-2 Off-Site Habitat Creation'!$Z$11:$Z$256), IFERROR(_xlfn.XLOOKUP(B39,'D-1 Off-Site Habitat Baseline'!AF43:AF290,'D-1 Off-Site Habitat Baseline'!S43:S290), " ")) ->  | L39: 0 | M39: ='E-1 Off-Site Hedge Baseline'!AB42 -> 0 | O39: =SUMIF('E-1 Off-Site Hedge Baseline'!AB42:AB289,'Off-site gain site summary'!N39,'E-1 Off-Site Hedge Baseline'!Q42:Q289) -> 0 | P39: =SUMIF('E-1 Off-Site Hedge Baseline'!$AB$10:$AB$257,'Off-site gain site summary'!$N39,'E-1 Off-Site Hedge Baseline'!$U$10:$U$257) -> 0 | Q39: =SUMIF('E-3 Off-Site Hedge Enhancement'!$AO$12:$AO$257,'Off-site gain site summary'!$N39,'E-3 Off-Site Hedge Enhancement'!$AK$12:$AK$257) -> 0 | R39: =SUMIF('E-2 Off-Site Hedge Creation'!$AD$12:$AD$259,'Off-site gain site summary'!$N39,'E-2 Off-Site Hedge Creation'!$Z$12:$Z$259) -> 0 | S39: 0 | T39: =IFERROR(_xlfn.XLOOKUP(N39,'E-2 Off-Site Hedge Creation'!AD44:AD291,'E-2 Off-Site Hedge Creation'!N44:N291), IFERROR(_xlfn.XLOOKUP(N39,'E-1 Off-Site Hedge Baseline'!AB42:AB289,'E-1 Off-Site Hedge Baseline'!P42:P289), " ")) ->  | U39: 0 | V39: ='F-1 Off-Site WaterC'' Baseline'!AG42 -> 0 | X39: =SUMIF('F-1 Off-Site WaterC'' Baseline'!$AG$10:$AG$257,'Off-site gain site summary'!$W39,'F-1 Off-Site WaterC'' Baseline'!$U$10:$U$257) -> 0 | Y39: =SUMIF('F-1 Off-Site WaterC'' Baseline'!$AG$10:$AG$257,'Off-site gain site summary'!$W39,'F-1 Off-Site WaterC'' Baseline'!$Y$10:$Y$257) -> 0 | Z39: =SUMIF('F-3 Off-Site WaterC Enhancement'!$AT$12:$AT$257,'Off-site gain site summary'!$W39,'F-3 Off-Site WaterC Enhancement'!$AP$12:$AP$257) -> 0 | AA39: =SUMIF('F-2 Off-Site WaterC'' Creation'!$AG$12:$AG$259,'Off-site gain site summary'!$W39,'F-2 Off-Site WaterC'' Creation'!$AC$12:$AC$259) -> 0 | AB39: 0 | AC39: =IFERROR(_xlfn.XLOOKUP(W39,'F-2 Off-Site WaterC'' Creation'!AG44:AG290,'F-2 Off-Site WaterC'' Creation'!AA44:AA291), IFERROR(_xlfn.XLOOKUP(W39,'F-1 Off-Site WaterC'' Baseline'!AG42:AG289,'F-1 Off-Site WaterC'' Baseline'!T42:T289)," ")) ->  | AD39: 0
A40: ='D-1 Off-Site Habitat Baseline'!AF44 -> 0 | C40: =SUMIF('D-1 Off-Site Habitat Baseline'!AF44:AF47,B40,'D-1 Off-Site Habitat Baseline'!T44:T47) -> 0 | D40: =SUMIF('D-1 Off-Site Habitat Baseline'!$AF$11:$AF$258,'Off-site gain site summary'!$B$7,'D-1 Off-Site Habitat Baseline'!$X$11:$X$258) -> 0 | F40: =SUMIF('D-3 Off-Site Habitat Enhancment'!$AU$12:$AU$258,'Off-site gain site summary'!B40,'D-3 Off-Site Habitat Enhancment'!$AQ$12:$AQ$258) -> 0 | H40: =SUMIF('D-2 Off-Site Habitat Creation'!$AF$11:$AF$256,'Off-site gain site summary'!B40,'D-2 Off-Site Habitat Creation'!$AB$11:$AB$256) -> 0 | J40: 0 | K40: =IFERROR(_xlfn.XLOOKUP(B40,'D-2 Off-Site Habitat Creation'!$AF$11:$AF$256,'D-2 Off-Site Habitat Creation'!$Z$11:$Z$256), IFERROR(_xlfn.XLOOKUP(B40,'D-1 Off-Site Habitat Baseline'!AF44:AF291,'D-1 Off-Site Habitat Baseline'!S44:S291), " ")) ->  | L40: 0 | M40: ='E-1 Off-Site Hedge Baseline'!AB43 -> 0 | O40: =SUMIF('E-1 Off-Site Hedge Baseline'!AB43:AB290,'Off-site gain site summary'!N40,'E-1 Off-Site Hedge Baseline'!Q43:Q290) -> 0 | P40: =SUMIF('E-1 Off-Site Hedge Baseline'!$AB$10:$AB$257,'Off-site gain site summary'!$N40,'E-1 Off-Site Hedge Baseline'!$U$10:$U$257) -> 0 | Q40: =SUMIF('E-3 Off-Site Hedge Enhancement'!$AO$12:$AO$257,'Off-site gain site summary'!$N40,'E-3 Off-Site Hedge Enhancement'!$AK$12:$AK$257) -> 0 | R40: =SUMIF('E-2 Off-Site Hedge Creation'!$AD$12:$AD$259,'Off-site gain site summary'!$N40,'E-2 Off-Site Hedge Creation'!$Z$12:$Z$259) -> 0 | S40: 0 | T40: =IFERROR(_xlfn.XLOOKUP(N40,'E-2 Off-Site Hedge Creation'!AD45:AD292,'E-2 Off-Site Hedge Creation'!N45:N292), IFERROR(_xlfn.XLOOKUP(N40,'E-1 Off-Site Hedge Baseline'!AB43:AB290,'E-1 Off-Site Hedge Baseline'!P43:P290), " ")) ->  | U40: 0 | V40: ='F-1 Off-Site WaterC'' Baseline'!AG43 -> 0 | X40: =SUMIF('F-1 Off-Site WaterC'' Baseline'!$AG$10:$AG$257,'Off-site gain site summary'!$W40,'F-1 Off-Site WaterC'' Baseline'!$U$10:$U$257) -> 0 | Y40: =SUMIF('F-1 Off-Site WaterC'' Baseline'!$AG$10:$AG$257,'Off-site gain site summary'!$W40,'F-1 Off-Site WaterC'' Baseline'!$Y$10:$Y$257) -> 0 | Z40: =SUMIF('F-3 Off-Site WaterC Enhancement'!$AT$12:$AT$257,'Off-site gain site summary'!$W40,'F-3 Off-Site WaterC Enhancement'!$AP$12:$AP$257) -> 0 | AA40: =SUMIF('F-2 Off-Site WaterC'' Creation'!$AG$12:$AG$259,'Off-site gain site summary'!$W40,'F-2 Off-Site WaterC'' Creation'!$AC$12:$AC$259) -> 0 | AB40: 0 | AC40: =IFERROR(_xlfn.XLOOKUP(W40,'F-2 Off-Site WaterC'' Creation'!AG45:AG291,'F-2 Off-Site WaterC'' Creation'!AA45:AA292), IFERROR(_xlfn.XLOOKUP(W40,'F-1 Off-Site WaterC'' Baseline'!AG43:AG290,'F-1 Off-Site WaterC'' Baseline'!T43:T290)," ")) ->  | AD40: 0
A41: ='D-1 Off-Site Habitat Baseline'!AF45 -> 0 | C41: =SUMIF('D-1 Off-Site Habitat Baseline'!AF45:AF48,B41,'D-1 Off-Site Habitat Baseline'!T45:T48) -> 0 | D41: =SUMIF('D-1 Off-Site Habitat Baseline'!$AF$11:$AF$258,'Off-site gain site summary'!$B$7,'D-1 Off-Site Habitat Baseline'!$X$11:$X$258) -> 0 | F41: =SUMIF('D-3 Off-Site Habitat Enhancment'!$AU$12:$AU$258,'Off-site gain site summary'!B41,'D-3 Off-Site Habitat Enhancment'!$AQ$12:$AQ$258) -> 0 | H41: =SUMIF('D-2 Off-Site Habitat Creation'!$AF$11:$AF$256,'Off-site gain site summary'!B41,'D-2 Off-Site Habitat Creation'!$AB$11:$AB$256) -> 0 | J41: 0 | K41: =IFERROR(_xlfn.XLOOKUP(B41,'D-2 Off-Site Habitat Creation'!$AF$11:$AF$256,'D-2 Off-Site Habitat Creation'!$Z$11:$Z$256), IFERROR(_xlfn.XLOOKUP(B41,'D-1 Off-Site Habitat Baseline'!AF45:AF292,'D-1 Off-Site Habitat Baseline'!S45:S292), " ")) ->  | L41: 0 | M41: ='E-1 Off-Site Hedge Baseline'!AB44 -> 0 | O41: =SUMIF('E-1 Off-Site Hedge Baseline'!AB44:AB291,'Off-site gain site summary'!N41,'E-1 Off-Site Hedge Baseline'!Q44:Q291) -> 0 | P41: =SUMIF('E-1 Off-Site Hedge Baseline'!$AB$10:$AB$257,'Off-site gain site summary'!$N41,'E-1 Off-Site Hedge Baseline'!$U$10:$U$257) -> 0 | Q41: =SUMIF('E-3 Off-Site Hedge Enhancement'!$AO$12:$AO$257,'Off-site gain site summary'!$N41,'E-3 Off-Site Hedge Enhancement'!$AK$12:$AK$257) -> 0 | R41: =SUMIF('E-2 Off-Site Hedge Creation'!$AD$12:$AD$259,'Off-site gain site summary'!$N41,'E-2 Off-Site Hedge Creation'!$Z$12:$Z$259) -> 0 | S41: 0 | T41: =IFERROR(_xlfn.XLOOKUP(N41,'E-2 Off-Site Hedge Creation'!AD46:AD293,'E-2 Off-Site Hedge Creation'!N46:N293), IFERROR(_xlfn.XLOOKUP(N41,'E-1 Off-Site Hedge Baseline'!AB44:AB291,'E-1 Off-Site Hedge Baseline'!P44:P291), " ")) ->  | U41: 0 | V41: ='F-1 Off-Site WaterC'' Baseline'!AG44 -> 0 | X41: =SUMIF('F-1 Off-Site WaterC'' Baseline'!$AG$10:$AG$257,'Off-site gain site summary'!$W41,'F-1 Off-Site WaterC'' Baseline'!$U$10:$U$257) -> 0 | Y41: =SUMIF('F-1 Off-Site WaterC'' Baseline'!$AG$10:$AG$257,'Off-site gain site summary'!$W41,'F-1 Off-Site WaterC'' Baseline'!$Y$10:$Y$257) -> 0 | Z41: =SUMIF('F-3 Off-Site WaterC Enhancement'!$AT$12:$AT$257,'Off-site gain site summary'!$W41,'F-3 Off-Site WaterC Enhancement'!$AP$12:$AP$257) -> 0 | AA41: =SUMIF('F-2 Off-Site WaterC'' Creation'!$AG$12:$AG$259,'Off-site gain site summary'!$W41,'F-2 Off-Site WaterC'' Creation'!$AC$12:$AC$259) -> 0 | AB41: 0 | AC41: =IFERROR(_xlfn.XLOOKUP(W41,'F-2 Off-Site WaterC'' Creation'!AG46:AG292,'F-2 Off-Site WaterC'' Creation'!AA46:AA293), IFERROR(_xlfn.XLOOKUP(W41,'F-1 Off-Site WaterC'' Baseline'!AG44:AG291,'F-1 Off-Site WaterC'' Baseline'!T44:T291)," ")) ->  | AD41: 0
A42: ='D-1 Off-Site Habitat Baseline'!AF46 -> 0 | C42: =SUMIF('D-1 Off-Site Habitat Baseline'!AF46:AF49,B42,'D-1 Off-Site Habitat Baseline'!T46:T49) -> 0 | D42: =SUMIF('D-1 Off-Site Habitat Baseline'!$AF$11:$AF$258,'Off-site gain site summary'!$B$7,'D-1 Off-Site Habitat Baseline'!$X$11:$X$258) -> 0 | F42: =SUMIF('D-3 Off-Site Habitat Enhancment'!$AU$12:$AU$258,'Off-site gain site summary'!B42,'D-3 Off-Site Habitat Enhancment'!$AQ$12:$AQ$258) -> 0 | H42: =SUMIF('D-2 Off-Site Habitat Creation'!$AF$11:$AF$256,'Off-site gain site summary'!B42,'D-2 Off-Site Habitat Creation'!$AB$11:$AB$256) -> 0 | J42: 0 | K42: =IFERROR(_xlfn.XLOOKUP(B42,'D-2 Off-Site Habitat Creation'!$AF$11:$AF$256,'D-2 Off-Site Habitat Creation'!$Z$11:$Z$256), IFERROR(_xlfn.XLOOKUP(B42,'D-1 Off-Site Habitat Baseline'!AF46:AF293,'D-1 Off-Site Habitat Baseline'!S46:S293), " ")) ->  | L42: 0 | M42: ='E-1 Off-Site Hedge Baseline'!AB45 -> 0 | O42: =SUMIF('E-1 Off-Site Hedge Baseline'!AB45:AB292,'Off-site gain site summary'!N42,'E-1 Off-Site Hedge Baseline'!Q45:Q292) -> 0 | P42: =SUMIF('E-1 Off-Site Hedge Baseline'!$AB$10:$AB$257,'Off-site gain site summary'!$N42,'E-1 Off-Site Hedge Baseline'!$U$10:$U$257) -> 0 | Q42: =SUMIF('E-3 Off-Site Hedge Enhancement'!$AO$12:$AO$257,'Off-site gain site summary'!$N42,'E-3 Off-Site Hedge Enhancement'!$AK$12:$AK$257) -> 0 | R42: =SUMIF('E-2 Off-Site Hedge Creation'!$AD$12:$AD$259,'Off-site gain site summary'!$N42,'E-2 Off-Site Hedge Creation'!$Z$12:$Z$259) -> 0 | S42: 0 | T42: =IFERROR(_xlfn.XLOOKUP(N42,'E-2 Off-Site Hedge Creation'!AD47:AD294,'E-2 Off-Site Hedge Creation'!N47:N294), IFERROR(_xlfn.XLOOKUP(N42,'E-1 Off-Site Hedge Baseline'!AB45:AB292,'E-1 Off-Site Hedge Baseline'!P45:P292), " ")) ->  | U42: 0 | V42: ='F-1 Off-Site WaterC'' Baseline'!AG45 -> 0 | X42: =SUMIF('F-1 Off-Site WaterC'' Baseline'!$AG$10:$AG$257,'Off-site gain site summary'!$W42,'F-1 Off-Site WaterC'' Baseline'!$U$10:$U$257) -> 0 | Y42: =SUMIF('F-1 Off-Site WaterC'' Baseline'!$AG$10:$AG$257,'Off-site gain site summary'!$W42,'F-1 Off-Site WaterC'' Baseline'!$Y$10:$Y$257) -> 0 | Z42: =SUMIF('F-3 Off-Site WaterC Enhancement'!$AT$12:$AT$257,'Off-site gain site summary'!$W42,'F-3 Off-Site WaterC Enhancement'!$AP$12:$AP$257) -> 0 | AA42: =SUMIF('F-2 Off-Site WaterC'' Creation'!$AG$12:$AG$259,'Off-site gain site summary'!$W42,'F-2 Off-Site WaterC'' Creation'!$AC$12:$AC$259) -> 0 | AB42: 0 | AC42: =IFERROR(_xlfn.XLOOKUP(W42,'F-2 Off-Site WaterC'' Creation'!AG47:AG293,'F-2 Off-Site WaterC'' Creation'!AA47:AA294), IFERROR(_xlfn.XLOOKUP(W42,'F-1 Off-Site WaterC'' Baseline'!AG45:AG292,'F-1 Off-Site WaterC'' Baseline'!T45:T292)," ")) ->  | AD42: 0
A43: ='D-1 Off-Site Habitat Baseline'!AF47 -> 0 | C43: =SUMIF('D-1 Off-Site Habitat Baseline'!AF47:AF50,B43,'D-1 Off-Site Habitat Baseline'!T47:T50) -> 0 | D43: =SUMIF('D-1 Off-Site Habitat Baseline'!$AF$11:$AF$258,'Off-site gain site summary'!$B$7,'D-1 Off-Site Habitat Baseline'!$X$11:$X$258) -> 0 | F43: =SUMIF('D-3 Off-Site Habitat Enhancment'!$AU$12:$AU$258,'Off-site gain site summary'!B43,'D-3 Off-Site Habitat Enhancment'!$AQ$12:$AQ$258) -> 0 | H43: =SUMIF('D-2 Off-Site Habitat Creation'!$AF$11:$AF$256,'Off-site gain site summary'!B43,'D-2 Off-Site Habitat Creation'!$AB$11:$AB$256) -> 0 | J43: 0 | K43: =IFERROR(_xlfn.XLOOKUP(B43,'D-2 Off-Site Habitat Creation'!$AF$11:$AF$256,'D-2 Off-Site Habitat Creation'!$Z$11:$Z$256), IFERROR(_xlfn.XLOOKUP(B43,'D-1 Off-Site Habitat Baseline'!AF47:AF294,'D-1 Off-Site Habitat Baseline'!S47:S294), " ")) ->  | L43: 0 | M43: ='E-1 Off-Site Hedge Baseline'!AB46 -> 0 | O43: =SUMIF('E-1 Off-Site Hedge Baseline'!AB46:AB293,'Off-site gain site summary'!N43,'E-1 Off-Site Hedge Baseline'!Q46:Q293) -> 0 | P43: =SUMIF('E-1 Off-Site Hedge Baseline'!$AB$10:$AB$257,'Off-site gain site summary'!$N43,'E-1 Off-Site Hedge Baseline'!$U$10:$U$257) -> 0 | Q43: =SUMIF('E-3 Off-Site Hedge Enhancement'!$AO$12:$AO$257,'Off-site gain site summary'!$N43,'E-3 Off-Site Hedge Enhancement'!$AK$12:$AK$257) -> 0 | R43: =SUMIF('E-2 Off-Site Hedge Creation'!$AD$12:$AD$259,'Off-site gain site summary'!$N43,'E-2 Off-Site Hedge Creation'!$Z$12:$Z$259) -> 0 | S43: 0 | T43: =IFERROR(_xlfn.XLOOKUP(N43,'E-2 Off-Site Hedge Creation'!AD48:AD295,'E-2 Off-Site Hedge Creation'!N48:N295), IFERROR(_xlfn.XLOOKUP(N43,'E-1 Off-Site Hedge Baseline'!AB46:AB293,'E-1 Off-Site Hedge Baseline'!P46:P293), " ")) ->  | U43: 0 | V43: ='F-1 Off-Site WaterC'' Baseline'!AG46 -> 0 | X43: =SUMIF('F-1 Off-Site WaterC'' Baseline'!$AG$10:$AG$257,'Off-site gain site summary'!$W43,'F-1 Off-Site WaterC'' Baseline'!$U$10:$U$257) -> 0 | Y43: =SUMIF('F-1 Off-Site WaterC'' Baseline'!$AG$10:$AG$257,'Off-site gain site summary'!$W43,'F-1 Off-Site WaterC'' Baseline'!$Y$10:$Y$257) -> 0 | Z43: =SUMIF('F-3 Off-Site WaterC Enhancement'!$AT$12:$AT$257,'Off-site gain site summary'!$W43,'F-3 Off-Site WaterC Enhancement'!$AP$12:$AP$257) -> 0 | AA43: =SUMIF('F-2 Off-Site WaterC'' Creation'!$AG$12:$AG$259,'Off-site gain site summary'!$W43,'F-2 Off-Site WaterC'' Creation'!$AC$12:$AC$259) -> 0 | AB43: 0 | AC43: =IFERROR(_xlfn.XLOOKUP(W43,'F-2 Off-Site WaterC'' Creation'!AG48:AG294,'F-2 Off-Site WaterC'' Creation'!AA48:AA295), IFERROR(_xlfn.XLOOKUP(W43,'F-1 Off-Site WaterC'' Baseline'!AG46:AG293,'F-1 Off-Site WaterC'' Baseline'!T46:T293)," ")) ->  | AD43: 0
A44: ='D-1 Off-Site Habitat Baseline'!AF48 -> 0 | C44: =SUMIF('D-1 Off-Site Habitat Baseline'!AF48:AF51,B44,'D-1 Off-Site Habitat Baseline'!T48:T51) -> 0 | D44: =SUMIF('D-1 Off-Site Habitat Baseline'!$AF$11:$AF$258,'Off-site gain site summary'!$B$7,'D-1 Off-Site Habitat Baseline'!$X$11:$X$258) -> 0 | F44: =SUMIF('D-3 Off-Site Habitat Enhancment'!$AU$12:$AU$258,'Off-site gain site summary'!B44,'D-3 Off-Site Habitat Enhancment'!$AQ$12:$AQ$258) -> 0 | H44: =SUMIF('D-2 Off-Site Habitat Creation'!$AF$11:$AF$256,'Off-site gain site summary'!B44,'D-2 Off-Site Habitat Creation'!$AB$11:$AB$256) -> 0 | J44: 0 | K44: =IFERROR(_xlfn.XLOOKUP(B44,'D-2 Off-Site Habitat Creation'!$AF$11:$AF$256,'D-2 Off-Site Habitat Creation'!$Z$11:$Z$256), IFERROR(_xlfn.XLOOKUP(B44,'D-1 Off-Site Habitat Baseline'!AF48:AF295,'D-1 Off-Site Habitat Baseline'!S48:S295), " ")) ->  | L44: 0 | M44: ='E-1 Off-Site Hedge Baseline'!AB47 -> 0 | O44: =SUMIF('E-1 Off-Site Hedge Baseline'!AB47:AB294,'Off-site gain site summary'!N44,'E-1 Off-Site Hedge Baseline'!Q47:Q294) -> 0 | P44: =SUMIF('E-1 Off-Site Hedge Baseline'!$AB$10:$AB$257,'Off-site gain site summary'!$N44,'E-1 Off-Site Hedge Baseline'!$U$10:$U$257) -> 0 | Q44: =SUMIF('E-3 Off-Site Hedge Enhancement'!$AO$12:$AO$257,'Off-site gain site summary'!$N44,'E-3 Off-Site Hedge Enhancement'!$AK$12:$AK$257) -> 0 | R44: =SUMIF('E-2 Off-Site Hedge Creation'!$AD$12:$AD$259,'Off-site gain site summary'!$N44,'E-2 Off-Site Hedge Creation'!$Z$12:$Z$259) -> 0 | S44: 0 | T44: =IFERROR(_xlfn.XLOOKUP(N44,'E-2 Off-Site Hedge Creation'!AD49:AD296,'E-2 Off-Site Hedge Creation'!N49:N296), IFERROR(_xlfn.XLOOKUP(N44,'E-1 Off-Site Hedge Baseline'!AB47:AB294,'E-1 Off-Site Hedge Baseline'!P47:P294), " ")) ->  | U44: 0 | V44: ='F-1 Off-Site WaterC'' Baseline'!AG47 -> 0 | X44: =SUMIF('F-1 Off-Site WaterC'' Baseline'!$AG$10:$AG$257,'Off-site gain site summary'!$W44,'F-1 Off-Site WaterC'' Baseline'!$U$10:$U$257) -> 0 | Y44: =SUMIF('F-1 Off-Site WaterC'' Baseline'!$AG$10:$AG$257,'Off-site gain site summary'!$W44,'F-1 Off-Site WaterC'' Baseline'!$Y$10:$Y$257) -> 0 | Z44: =SUMIF('F-3 Off-Site WaterC Enhancement'!$AT$12:$AT$257,'Off-site gain site summary'!$W44,'F-3 Off-Site WaterC Enhancement'!$AP$12:$AP$257) -> 0 | AA44: =SUMIF('F-2 Off-Site WaterC'' Creation'!$AG$12:$AG$259,'Off-site gain site summary'!$W44,'F-2 Off-Site WaterC'' Creation'!$AC$12:$AC$259) -> 0 | AB44: 0 | AC44: =IFERROR(_xlfn.XLOOKUP(W44,'F-2 Off-Site WaterC'' Creation'!AG49:AG295,'F-2 Off-Site WaterC'' Creation'!AA49:AA296), IFERROR(_xlfn.XLOOKUP(W44,'F-1 Off-Site WaterC'' Baseline'!AG47:AG294,'F-1 Off-Site WaterC'' Baseline'!T47:T294)," ")) ->  | AD44: 0
A45: ='D-1 Off-Site Habitat Baseline'!AF49 -> 0 | C45: =SUMIF('D-1 Off-Site Habitat Baseline'!AF49:AF52,B45,'D-1 Off-Site Habitat Baseline'!T49:T52) -> 0 | D45: =SUMIF('D-1 Off-Site Habitat Baseline'!$AF$11:$AF$258,'Off-site gain site summary'!$B$7,'D-1 Off-Site Habitat Baseline'!$X$11:$X$258) -> 0 | F45: =SUMIF('D-3 Off-Site Habitat Enhancment'!$AU$12:$AU$258,'Off-site gain site summary'!B45,'D-3 Off-Site Habitat Enhancment'!$AQ$12:$AQ$258) -> 0 | H45: =SUMIF('D-2 Off-Site Habitat Creation'!$AF$11:$AF$256,'Off-site gain site summary'!B45,'D-2 Off-Site Habitat Creation'!$AB$11:$AB$256) -> 0 | J45: 0 | K45: =IFERROR(_xlfn.XLOOKUP(B45,'D-2 Off-Site Habitat Creation'!$AF$11:$AF$256,'D-2 Off-Site Habitat Creation'!$Z$11:$Z$256), IFERROR(_xlfn.XLOOKUP(B45,'D-1 Off-Site Habitat Baseline'!AF49:AF296,'D-1 Off-Site Habitat Baseline'!S49:S296), " ")) ->  | L45: 0 | M45: ='E-1 Off-Site Hedge Baseline'!AB48 -> 0 | O45: =SUMIF('E-1 Off-Site Hedge Baseline'!AB48:AB295,'Off-site gain site summary'!N45,'E-1 Off-Site Hedge Baseline'!Q48:Q295) -> 0 | P45: =SUMIF('E-1 Off-Site Hedge Baseline'!$AB$10:$AB$257,'Off-site gain site summary'!$N45,'E-1 Off-Site Hedge Baseline'!$U$10:$U$257) -> 0 | Q45: =SUMIF('E-3 Off-Site Hedge Enhancement'!$AO$12:$AO$257,'Off-site gain site summary'!$N45,'E-3 Off-Site Hedge Enhancement'!$AK$12:$AK$257) -> 0 | R45: =SUMIF('E-2 Off-Site Hedge Creation'!$AD$12:$AD$259,'Off-site gain site summary'!$N45,'E-2 Off-Site Hedge Creation'!$Z$12:$Z$259) -> 0 | S45: 0 | T45: =IFERROR(_xlfn.XLOOKUP(N45,'E-2 Off-Site Hedge Creation'!AD50:AD297,'E-2 Off-Site Hedge Creation'!N50:N297), IFERROR(_xlfn.XLOOKUP(N45,'E-1 Off-Site Hedge Baseline'!AB48:AB295,'E-1 Off-Site Hedge Baseline'!P48:P295), " ")) ->  | U45: 0 | V45: ='F-1 Off-Site WaterC'' Baseline'!AG48 -> 0 | X45: =SUMIF('F-1 Off-Site WaterC'' Baseline'!$AG$10:$AG$257,'Off-site gain site summary'!$W45,'F-1 Off-Site WaterC'' Baseline'!$U$10:$U$257) -> 0 | Y45: =SUMIF('F-1 Off-Site WaterC'' Baseline'!$AG$10:$AG$257,'Off-site gain site summary'!$W45,'F-1 Off-Site WaterC'' Baseline'!$Y$10:$Y$257) -> 0 | Z45: =SUMIF('F-3 Off-Site WaterC Enhancement'!$AT$12:$AT$257,'Off-site gain site summary'!$W45,'F-3 Off-Site WaterC Enhancement'!$AP$12:$AP$257) -> 0 | AA45: =SUMIF('F-2 Off-Site WaterC'' Creation'!$AG$12:$AG$259,'Off-site gain site summary'!$W45,'F-2 Off-Site WaterC'' Creation'!$AC$12:$AC$259) -> 0 | AB45: 0 | AC45: =IFERROR(_xlfn.XLOOKUP(W45,'F-2 Off-Site WaterC'' Creation'!AG50:AG296,'F-2 Off-Site WaterC'' Creation'!AA50:AA297), IFERROR(_xlfn.XLOOKUP(W45,'F-1 Off-Site WaterC'' Baseline'!AG48:AG295,'F-1 Off-Site WaterC'' Baseline'!T48:T295)," ")) ->  | AD45: 0
A46: ='D-1 Off-Site Habitat Baseline'!AF50 -> 0 | C46: =SUMIF('D-1 Off-Site Habitat Baseline'!AF50:AF53,B46,'D-1 Off-Site Habitat Baseline'!T50:T53) -> 0 | D46: =SUMIF('D-1 Off-Site Habitat Baseline'!$AF$11:$AF$258,'Off-site gain site summary'!$B$7,'D-1 Off-Site Habitat Baseline'!$X$11:$X$258) -> 0 | F46: =SUMIF('D-3 Off-Site Habitat Enhancment'!$AU$12:$AU$258,'Off-site gain site summary'!B46,'D-3 Off-Site Habitat Enhancment'!$AQ$12:$AQ$258) -> 0 | H46: =SUMIF('D-2 Off-Site Habitat Creation'!$AF$11:$AF$256,'Off-site gain site summary'!B46,'D-2 Off-Site Habitat Creation'!$AB$11:$AB$256) -> 0 | J46: 0 | K46: =IFERROR(_xlfn.XLOOKUP(B46,'D-2 Off-Site Habitat Creation'!$AF$11:$AF$256,'D-2 Off-Site Habitat Creation'!$Z$11:$Z$256), IFERROR(_xlfn.XLOOKUP(B46,'D-1 Off-Site Habitat Baseline'!AF50:AF297,'D-1 Off-Site Habitat Baseline'!S50:S297), " ")) ->  | L46: 0 | M46: ='E-1 Off-Site Hedge Baseline'!AB49 -> 0 | O46: =SUMIF('E-1 Off-Site Hedge Baseline'!AB49:AB296,'Off-site gain site summary'!N46,'E-1 Off-Site Hedge Baseline'!Q49:Q296) -> 0 | P46: =SUMIF('E-1 Off-Site Hedge Baseline'!$AB$10:$AB$257,'Off-site gain site summary'!$N46,'E-1 Off-Site Hedge Baseline'!$U$10:$U$257) -> 0 | Q46: =SUMIF('E-3 Off-Site Hedge Enhancement'!$AO$12:$AO$257,'Off-site gain site summary'!$N46,'E-3 Off-Site Hedge Enhancement'!$AK$12:$AK$257) -> 0 | R46: =SUMIF('E-2 Off-Site Hedge Creation'!$AD$12:$AD$259,'Off-site gain site summary'!$N46,'E-2 Off-Site Hedge Creation'!$Z$12:$Z$259) -> 0 | S46: 0 | T46: =IFERROR(_xlfn.XLOOKUP(N46,'E-2 Off-Site Hedge Creation'!AD51:AD298,'E-2 Off-Site Hedge Creation'!N51:N298), IFERROR(_xlfn.XLOOKUP(N46,'E-1 Off-Site Hedge Baseline'!AB49:AB296,'E-1 Off-Site Hedge Baseline'!P49:P296), " ")) ->  | U46: 0 | V46: ='F-1 Off-Site WaterC'' Baseline'!AG49 -> 0 | X46: =SUMIF('F-1 Off-Site WaterC'' Baseline'!$AG$10:$AG$257,'Off-site gain site summary'!$W46,'F-1 Off-Site WaterC'' Baseline'!$U$10:$U$257) -> 0 | Y46: =SUMIF('F-1 Off-Site WaterC'' Baseline'!$AG$10:$AG$257,'Off-site gain site summary'!$W46,'F-1 Off-Site WaterC'' Baseline'!$Y$10:$Y$257) -> 0 | Z46: =SUMIF('F-3 Off-Site WaterC Enhancement'!$AT$12:$AT$257,'Off-site gain site summary'!$W46,'F-3 Off-Site WaterC Enhancement'!$AP$12:$AP$257) -> 0 | AA46: =SUMIF('F-2 Off-Site WaterC'' Creation'!$AG$12:$AG$259,'Off-site gain site summary'!$W46,'F-2 Off-Site WaterC'' Creation'!$AC$12:$AC$259) -> 0 | AB46: 0 | AC46: =IFERROR(_xlfn.XLOOKUP(W46,'F-2 Off-Site WaterC'' Creation'!AG51:AG297,'F-2 Off-Site WaterC'' Creation'!AA51:AA298), IFERROR(_xlfn.XLOOKUP(W46,'F-1 Off-Site WaterC'' Baseline'!AG49:AG296,'F-1 Off-Site WaterC'' Baseline'!T49:T296)," ")) ->  | AD46: 0
A47: ='D-1 Off-Site Habitat Baseline'!AF51 -> 0 | C47: =SUMIF('D-1 Off-Site Habitat Baseline'!AF51:AF54,B47,'D-1 Off-Site Habitat Baseline'!T51:T54) -> 0 | D47: =SUMIF('D-1 Off-Site Habitat Baseline'!$AF$11:$AF$258,'Off-site gain site summary'!$B$7,'D-1 Off-Site Habitat Baseline'!$X$11:$X$258) -> 0 | F47: =SUMIF('D-3 Off-Site Habitat Enhancment'!$AU$12:$AU$258,'Off-site gain site summary'!B47,'D-3 Off-Site Habitat Enhancment'!$AQ$12:$AQ$258) -> 0 | H47: =SUMIF('D-2 Off-Site Habitat Creation'!$AF$11:$AF$256,'Off-site gain site summary'!B47,'D-2 Off-Site Habitat Creation'!$AB$11:$AB$256) -> 0 | J47: 0 | K47: =IFERROR(_xlfn.XLOOKUP(B47,'D-2 Off-Site Habitat Creation'!$AF$11:$AF$256,'D-2 Off-Site Habitat Creation'!$Z$11:$Z$256), IFERROR(_xlfn.XLOOKUP(B47,'D-1 Off-Site Habitat Baseline'!AF51:AF298,'D-1 Off-Site Habitat Baseline'!S51:S298), " ")) ->  | L47: 0 | M47: ='E-1 Off-Site Hedge Baseline'!AB50 -> 0 | O47: =SUMIF('E-1 Off-Site Hedge Baseline'!AB50:AB297,'Off-site gain site summary'!N47,'E-1 Off-Site Hedge Baseline'!Q50:Q297) -> 0 | P47: =SUMIF('E-1 Off-Site Hedge Baseline'!$AB$10:$AB$257,'Off-site gain site summary'!$N47,'E-1 Off-Site Hedge Baseline'!$U$10:$U$257) -> 0 | Q47: =SUMIF('E-3 Off-Site Hedge Enhancement'!$AO$12:$AO$257,'Off-site gain site summary'!$N47,'E-3 Off-Site Hedge Enhancement'!$AK$12:$AK$257) -> 0 | R47: =SUMIF('E-2 Off-Site Hedge Creation'!$AD$12:$AD$259,'Off-site gain site summary'!$N47,'E-2 Off-Site Hedge Creation'!$Z$12:$Z$259) -> 0 | S47: 0 | T47: =IFERROR(_xlfn.XLOOKUP(N47,'E-2 Off-Site Hedge Creation'!AD52:AD299,'E-2 Off-Site Hedge Creation'!N52:N299), IFERROR(_xlfn.XLOOKUP(N47,'E-1 Off-Site Hedge Baseline'!AB50:AB297,'E-1 Off-Site Hedge Baseline'!P50:P297), " ")) ->  | U47: 0 | V47: ='F-1 Off-Site WaterC'' Baseline'!AG50 -> 0 | X47: =SUMIF('F-1 Off-Site WaterC'' Baseline'!$AG$10:$AG$257,'Off-site gain site summary'!$W47,'F-1 Off-Site WaterC'' Baseline'!$U$10:$U$257) -> 0 | Y47: =SUMIF('F-1 Off-Site WaterC'' Baseline'!$AG$10:$AG$257,'Off-site gain site summary'!$W47,'F-1 Off-Site WaterC'' Baseline'!$Y$10:$Y$257) -> 0 | Z47: =SUMIF('F-3 Off-Site WaterC Enhancement'!$AT$12:$AT$257,'Off-site gain site summary'!$W47,'F-3 Off-Site WaterC Enhancement'!$AP$12:$AP$257) -> 0 | AA47: =SUMIF('F-2 Off-Site WaterC'' Creation'!$AG$12:$AG$259,'Off-site gain site summary'!$W47,'F-2 Off-Site WaterC'' Creation'!$AC$12:$AC$259) -> 0 | AB47: 0 | AC47: =IFERROR(_xlfn.XLOOKUP(W47,'F-2 Off-Site WaterC'' Creation'!AG52:AG298,'F-2 Off-Site WaterC'' Creation'!AA52:AA299), IFERROR(_xlfn.XLOOKUP(W47,'F-1 Off-Site WaterC'' Baseline'!AG50:AG297,'F-1 Off-Site WaterC'' Baseline'!T50:T297)," ")) ->  | AD47: 0
A48: ='D-1 Off-Site Habitat Baseline'!AF52 -> 0 | C48: =SUMIF('D-1 Off-Site Habitat Baseline'!AF52:AF55,B48,'D-1 Off-Site Habitat Baseline'!T52:T55) -> 0 | D48: =SUMIF('D-1 Off-Site Habitat Baseline'!$AF$11:$AF$258,'Off-site gain site summary'!$B$7,'D-1 Off-Site Habitat Baseline'!$X$11:$X$258) -> 0 | F48: =SUMIF('D-3 Off-Site Habitat Enhancment'!$AU$12:$AU$258,'Off-site gain site summary'!B48,'D-3 Off-Site Habitat Enhancment'!$AQ$12:$AQ$258) -> 0 | H48: =SUMIF('D-2 Off-Site Habitat Creation'!$AF$11:$AF$256,'Off-site gain site summary'!B48,'D-2 Off-Site Habitat Creation'!$AB$11:$AB$256) -> 0 | J48: 0 | K48: =IFERROR(_xlfn.XLOOKUP(B48,'D-2 Off-Site Habitat Creation'!$AF$11:$AF$256,'D-2 Off-Site Habitat Creation'!$Z$11:$Z$256), IFERROR(_xlfn.XLOOKUP(B48,'D-1 Off-Site Habitat Baseline'!AF52:AF299,'D-1 Off-Site Habitat Baseline'!S52:S299), " ")) ->  | L48: 0 | M48: ='E-1 Off-Site Hedge Baseline'!AB51 -> 0 | O48: =SUMIF('E-1 Off-Site Hedge Baseline'!AB51:AB298,'Off-site gain site summary'!N48,'E-1 Off-Site Hedge Baseline'!Q51:Q298) -> 0 | P48: =SUMIF('E-1 Off-Site Hedge Baseline'!$AB$10:$AB$257,'Off-site gain site summary'!$N48,'E-1 Off-Site Hedge Baseline'!$U$10:$U$257) -> 0 | Q48: =SUMIF('E-3 Off-Site Hedge Enhancement'!$AO$12:$AO$257,'Off-site gain site summary'!$N48,'E-3 Off-Site Hedge Enhancement'!$AK$12:$AK$257) -> 0 | R48: =SUMIF('E-2 Off-Site Hedge Creation'!$AD$12:$AD$259,'Off-site gain site summary'!$N48,'E-2 Off-Site Hedge Creation'!$Z$12:$Z$259) -> 0 | S48: 0 | T48: =IFERROR(_xlfn.XLOOKUP(N48,'E-2 Off-Site Hedge Creation'!AD53:AD300,'E-2 Off-Site Hedge Creation'!N53:N300), IFERROR(_xlfn.XLOOKUP(N48,'E-1 Off-Site Hedge Baseline'!AB51:AB298,'E-1 Off-Site Hedge Baseline'!P51:P298), " ")) ->  | U48: 0 | V48: ='F-1 Off-Site WaterC'' Baseline'!AG51 -> 0 | X48: =SUMIF('F-1 Off-Site WaterC'' Baseline'!$AG$10:$AG$257,'Off-site gain site summary'!$W48,'F-1 Off-Site WaterC'' Baseline'!$U$10:$U$257) -> 0 | Y48: =SUMIF('F-1 Off-Site WaterC'' Baseline'!$AG$10:$AG$257,'Off-site gain site summary'!$W48,'F-1 Off-Site WaterC'' Baseline'!$Y$10:$Y$257) -> 0 | Z48: =SUMIF('F-3 Off-Site WaterC Enhancement'!$AT$12:$AT$257,'Off-site gain site summary'!$W48,'F-3 Off-Site WaterC Enhancement'!$AP$12:$AP$257) -> 0 | AA48: =SUMIF('F-2 Off-Site WaterC'' Creation'!$AG$12:$AG$259,'Off-site gain site summary'!$W48,'F-2 Off-Site WaterC'' Creation'!$AC$12:$AC$259) -> 0 | AB48: 0 | AC48: =IFERROR(_xlfn.XLOOKUP(W48,'F-2 Off-Site WaterC'' Creation'!AG53:AG299,'F-2 Off-Site WaterC'' Creation'!AA53:AA300), IFERROR(_xlfn.XLOOKUP(W48,'F-1 Off-Site WaterC'' Baseline'!AG51:AG298,'F-1 Off-Site WaterC'' Baseline'!T51:T298)," ")) ->  | AD48: 0
A49: ='D-1 Off-Site Habitat Baseline'!AF53 -> 0 | C49: =SUMIF('D-1 Off-Site Habitat Baseline'!AF53:AF56,B49,'D-1 Off-Site Habitat Baseline'!T53:T56) -> 0 | D49: =SUMIF('D-1 Off-Site Habitat Baseline'!$AF$11:$AF$258,'Off-site gain site summary'!$B$7,'D-1 Off-Site Habitat Baseline'!$X$11:$X$258) -> 0 | F49: =SUMIF('D-3 Off-Site Habitat Enhancment'!$AU$12:$AU$258,'Off-site gain site summary'!B49,'D-3 Off-Site Habitat Enhancment'!$AQ$12:$AQ$258) -> 0 | H49: =SUMIF('D-2 Off-Site Habitat Creation'!$AF$11:$AF$256,'Off-site gain site summary'!B49,'D-2 Off-Site Habitat Creation'!$AB$11:$AB$256) -> 0 | J49: 0 | K49: =IFERROR(_xlfn.XLOOKUP(B49,'D-2 Off-Site Habitat Creation'!$AF$11:$AF$256,'D-2 Off-Site Habitat Creation'!$Z$11:$Z$256), IFERROR(_xlfn.XLOOKUP(B49,'D-1 Off-Site Habitat Baseline'!AF53:AF300,'D-1 Off-Site Habitat Baseline'!S53:S300), " ")) ->  | L49: 0 | M49: ='E-1 Off-Site Hedge Baseline'!AB52 -> 0 | O49: =SUMIF('E-1 Off-Site Hedge Baseline'!AB52:AB299,'Off-site gain site summary'!N49,'E-1 Off-Site Hedge Baseline'!Q52:Q299) -> 0 | P49: =SUMIF('E-1 Off-Site Hedge Baseline'!$AB$10:$AB$257,'Off-site gain site summary'!$N49,'E-1 Off-Site Hedge Baseline'!$U$10:$U$257) -> 0 | Q49: =SUMIF('E-3 Off-Site Hedge Enhancement'!$AO$12:$AO$257,'Off-site gain site summary'!$N49,'E-3 Off-Site Hedge Enhancement'!$AK$12:$AK$257) -> 0 | R49: =SUMIF('E-2 Off-Site Hedge Creation'!$AD$12:$AD$259,'Off-site gain site summary'!$N49,'E-2 Off-Site Hedge Creation'!$Z$12:$Z$259) -> 0 | S49: 0 | T49: =IFERROR(_xlfn.XLOOKUP(N49,'E-2 Off-Site Hedge Creation'!AD54:AD301,'E-2 Off-Site Hedge Creation'!N54:N301), IFERROR(_xlfn.XLOOKUP(N49,'E-1 Off-Site Hedge Baseline'!AB52:AB299,'E-1 Off-Site Hedge Baseline'!P52:P299), " ")) ->  | U49: 0 | V49: ='F-1 Off-Site WaterC'' Baseline'!AG52 -> 0 | X49: =SUMIF('F-1 Off-Site WaterC'' Baseline'!$AG$10:$AG$257,'Off-site gain site summary'!$W49,'F-1 Off-Site WaterC'' Baseline'!$U$10:$U$257) -> 0 | Y49: =SUMIF('F-1 Off-Site WaterC'' Baseline'!$AG$10:$AG$257,'Off-site gain site summary'!$W49,'F-1 Off-Site WaterC'' Baseline'!$Y$10:$Y$257) -> 0 | Z49: =SUMIF('F-3 Off-Site WaterC Enhancement'!$AT$12:$AT$257,'Off-site gain site summary'!$W49,'F-3 Off-Site WaterC Enhancement'!$AP$12:$AP$257) -> 0 | AA49: =SUMIF('F-2 Off-Site WaterC'' Creation'!$AG$12:$AG$259,'Off-site gain site summary'!$W49,'F-2 Off-Site WaterC'' Creation'!$AC$12:$AC$259) -> 0 | AB49: 0 | AC49: =IFERROR(_xlfn.XLOOKUP(W49,'F-2 Off-Site WaterC'' Creation'!AG54:AG300,'F-2 Off-Site WaterC'' Creation'!AA54:AA301), IFERROR(_xlfn.XLOOKUP(W49,'F-1 Off-Site WaterC'' Baseline'!AG52:AG299,'F-1 Off-Site WaterC'' Baseline'!T52:T299)," ")) ->  | AD49: 0
A50: ='D-1 Off-Site Habitat Baseline'!AF54 -> 0 | C50: =SUMIF('D-1 Off-Site Habitat Baseline'!AF54:AF57,B50,'D-1 Off-Site Habitat Baseline'!T54:T57) -> 0 | D50: =SUMIF('D-1 Off-Site Habitat Baseline'!$AF$11:$AF$258,'Off-site gain site summary'!$B$7,'D-1 Off-Site Habitat Baseline'!$X$11:$X$258) -> 0 | F50: =SUMIF('D-3 Off-Site Habitat Enhancment'!$AU$12:$AU$258,'Off-site gain site summary'!B50,'D-3 Off-Site Habitat Enhancment'!$AQ$12:$AQ$258) -> 0 | H50: =SUMIF('D-2 Off-Site Habitat Creation'!$AF$11:$AF$256,'Off-site gain site summary'!B50,'D-2 Off-Site Habitat Creation'!$AB$11:$AB$256) -> 0 | J50: 0 | K50: =IFERROR(_xlfn.XLOOKUP(B50,'D-2 Off-Site Habitat Creation'!$AF$11:$AF$256,'D-2 Off-Site Habitat Creation'!$Z$11:$Z$256), IFERROR(_xlfn.XLOOKUP(B50,'D-1 Off-Site Habitat Baseline'!AF54:AF301,'D-1 Off-Site Habitat Baseline'!S54:S301), " ")) ->  | L50: 0 | M50: ='E-1 Off-Site Hedge Baseline'!AB53 -> 0 | O50: =SUMIF('E-1 Off-Site Hedge Baseline'!AB53:AB300,'Off-site gain site summary'!N50,'E-1 Off-Site Hedge Baseline'!Q53:Q300) -> 0 | P50: =SUMIF('E-1 Off-Site Hedge Baseline'!$AB$10:$AB$257,'Off-site gain site summary'!$N50,'E-1 Off-Site Hedge Baseline'!$U$10:$U$257) -> 0 | Q50: =SUMIF('E-3 Off-Site Hedge Enhancement'!$AO$12:$AO$257,'Off-site gain site summary'!$N50,'E-3 Off-Site Hedge Enhancement'!$AK$12:$AK$257) -> 0 | R50: =SUMIF('E-2 Off-Site Hedge Creation'!$AD$12:$AD$259,'Off-site gain site summary'!$N50,'E-2 Off-Site Hedge Creation'!$Z$12:$Z$259) -> 0 | S50: 0 | T50: =IFERROR(_xlfn.XLOOKUP(N50,'E-2 Off-Site Hedge Creation'!AD55:AD302,'E-2 Off-Site Hedge Creation'!N55:N302), IFERROR(_xlfn.XLOOKUP(N50,'E-1 Off-Site Hedge Baseline'!AB53:AB300,'E-1 Off-Site Hedge Baseline'!P53:P300), " ")) ->  | U50: 0 | V50: ='F-1 Off-Site WaterC'' Baseline'!AG53 -> 0 | X50: =SUMIF('F-1 Off-Site WaterC'' Baseline'!$AG$10:$AG$257,'Off-site gain site summary'!$W50,'F-1 Off-Site WaterC'' Baseline'!$U$10:$U$257) -> 0 | Y50: =SUMIF('F-1 Off-Site WaterC'' Baseline'!$AG$10:$AG$257,'Off-site gain site summary'!$W50,'F-1 Off-Site WaterC'' Baseline'!$Y$10:$Y$257) -> 0 | Z50: =SUMIF('F-3 Off-Site WaterC Enhancement'!$AT$12:$AT$257,'Off-site gain site summary'!$W50,'F-3 Off-Site WaterC Enhancement'!$AP$12:$AP$257) -> 0 | AA50: =SUMIF('F-2 Off-Site WaterC'' Creation'!$AG$12:$AG$259,'Off-site gain site summary'!$W50,'F-2 Off-Site WaterC'' Creation'!$AC$12:$AC$259) -> 0 | AB50: 0 | AC50: =IFERROR(_xlfn.XLOOKUP(W50,'F-2 Off-Site WaterC'' Creation'!AG55:AG301,'F-2 Off-Site WaterC'' Creation'!AA55:AA302), IFERROR(_xlfn.XLOOKUP(W50,'F-1 Off-Site WaterC'' Baseline'!AG53:AG300,'F-1 Off-Site WaterC'' Baseline'!T53:T300)," ")) ->  | AD50: 0
A51: ='D-1 Off-Site Habitat Baseline'!AF55 -> 0 | C51: =SUMIF('D-1 Off-Site Habitat Baseline'!AF55:AF58,B51,'D-1 Off-Site Habitat Baseline'!T55:T58) -> 0 | D51: =SUMIF('D-1 Off-Site Habitat Baseline'!$AF$11:$AF$258,'Off-site gain site summary'!$B$7,'D-1 Off-Site Habitat Baseline'!$X$11:$X$258) -> 0 | F51: =SUMIF('D-3 Off-Site Habitat Enhancment'!$AU$12:$AU$258,'Off-site gain site summary'!B51,'D-3 Off-Site Habitat Enhancment'!$AQ$12:$AQ$258) -> 0 | H51: =SUMIF('D-2 Off-Site Habitat Creation'!$AF$11:$AF$256,'Off-site gain site summary'!B51,'D-2 Off-Site Habitat Creation'!$AB$11:$AB$256) -> 0 | J51: 0 | K51: =IFERROR(_xlfn.XLOOKUP(B51,'D-2 Off-Site Habitat Creation'!$AF$11:$AF$256,'D-2 Off-Site Habitat Creation'!$Z$11:$Z$256), IFERROR(_xlfn.XLOOKUP(B51,'D-1 Off-Site Habitat Baseline'!AF55:AF302,'D-1 Off-Site Habitat Baseline'!S55:S302), " ")) ->  | L51: 0 | M51: ='E-1 Off-Site Hedge Baseline'!AB54 -> 0 | O51: =SUMIF('E-1 Off-Site Hedge Baseline'!AB54:AB301,'Off-site gain site summary'!N51,'E-1 Off-Site Hedge Baseline'!Q54:Q301) -> 0 | P51: =SUMIF('E-1 Off-Site Hedge Baseline'!$AB$10:$AB$257,'Off-site gain site summary'!$N51,'E-1 Off-Site Hedge Baseline'!$U$10:$U$257) -> 0 | Q51: =SUMIF('E-3 Off-Site Hedge Enhancement'!$AO$12:$AO$257,'Off-site gain site summary'!$N51,'E-3 Off-Site Hedge Enhancement'!$AK$12:$AK$257) -> 0 | R51: =SUMIF('E-2 Off-Site Hedge Creation'!$AD$12:$AD$259,'Off-site gain site summary'!$N51,'E-2 Off-Site Hedge Creation'!$Z$12:$Z$259) -> 0 | S51: 0 | T51: =IFERROR(_xlfn.XLOOKUP(N51,'E-2 Off-Site Hedge Creation'!AD56:AD303,'E-2 Off-Site Hedge Creation'!N56:N303), IFERROR(_xlfn.XLOOKUP(N51,'E-1 Off-Site Hedge Baseline'!AB54:AB301,'E-1 Off-Site Hedge Baseline'!P54:P301), " ")) ->  | U51: 0 | V51: ='F-1 Off-Site WaterC'' Baseline'!AG54 -> 0 | X51: =SUMIF('F-1 Off-Site WaterC'' Baseline'!$AG$10:$AG$257,'Off-site gain site summary'!$W51,'F-1 Off-Site WaterC'' Baseline'!$U$10:$U$257) -> 0 | Y51: =SUMIF('F-1 Off-Site WaterC'' Baseline'!$AG$10:$AG$257,'Off-site gain site summary'!$W51,'F-1 Off-Site WaterC'' Baseline'!$Y$10:$Y$257) -> 0 | Z51: =SUMIF('F-3 Off-Site WaterC Enhancement'!$AT$12:$AT$257,'Off-site gain site summary'!$W51,'F-3 Off-Site WaterC Enhancement'!$AP$12:$AP$257) -> 0 | AA51: =SUMIF('F-2 Off-Site WaterC'' Creation'!$AG$12:$AG$259,'Off-site gain site summary'!$W51,'F-2 Off-Site WaterC'' Creation'!$AC$12:$AC$259) -> 0 | AB51: 0 | AC51: =IFERROR(_xlfn.XLOOKUP(W51,'F-2 Off-Site WaterC'' Creation'!AG56:AG302,'F-2 Off-Site WaterC'' Creation'!AA56:AA303), IFERROR(_xlfn.XLOOKUP(W51,'F-1 Off-Site WaterC'' Baseline'!AG54:AG301,'F-1 Off-Site WaterC'' Baseline'!T54:T301)," ")) ->  | AD51: 0
A52: ='D-1 Off-Site Habitat Baseline'!AF56 -> 0 | C52: =SUMIF('D-1 Off-Site Habitat Baseline'!AF56:AF59,B52,'D-1 Off-Site Habitat Baseline'!T56:T59) -> 0 | D52: =SUMIF('D-1 Off-Site Habitat Baseline'!$AF$11:$AF$258,'Off-site gain site summary'!$B$7,'D-1 Off-Site Habitat Baseline'!$X$11:$X$258) -> 0 | F52: =SUMIF('D-3 Off-Site Habitat Enhancment'!$AU$12:$AU$258,'Off-site gain site summary'!B52,'D-3 Off-Site Habitat Enhancment'!$AQ$12:$AQ$258) -> 0 | H52: =SUMIF('D-2 Off-Site Habitat Creation'!$AF$11:$AF$256,'Off-site gain site summary'!B52,'D-2 Off-Site Habitat Creation'!$AB$11:$AB$256) -> 0 | J52: 0 | K52: =IFERROR(_xlfn.XLOOKUP(B52,'D-2 Off-Site Habitat Creation'!$AF$11:$AF$256,'D-2 Off-Site Habitat Creation'!$Z$11:$Z$256), IFERROR(_xlfn.XLOOKUP(B52,'D-1 Off-Site Habitat Baseline'!AF56:AF303,'D-1 Off-Site Habitat Baseline'!S56:S303), " ")) ->  | L52: 0 | M52: ='E-1 Off-Site Hedge Baseline'!AB55 -> 0 | O52: =SUMIF('E-1 Off-Site Hedge Baseline'!AB55:AB302,'Off-site gain site summary'!N52,'E-1 Off-Site Hedge Baseline'!Q55:Q302) -> 0 | P52: =SUMIF('E-1 Off-Site Hedge Baseline'!$AB$10:$AB$257,'Off-site gain site summary'!$N52,'E-1 Off-Site Hedge Baseline'!$U$10:$U$257) -> 0 | Q52: =SUMIF('E-3 Off-Site Hedge Enhancement'!$AO$12:$AO$257,'Off-site gain site summary'!$N52,'E-3 Off-Site Hedge Enhancement'!$AK$12:$AK$257) -> 0 | R52: =SUMIF('E-2 Off-Site Hedge Creation'!$AD$12:$AD$259,'Off-site gain site summary'!$N52,'E-2 Off-Site Hedge Creation'!$Z$12:$Z$259) -> 0 | S52: 0 | T52: =IFERROR(_xlfn.XLOOKUP(N52,'E-2 Off-Site Hedge Creation'!AD57:AD304,'E-2 Off-Site Hedge Creation'!N57:N304), IFERROR(_xlfn.XLOOKUP(N52,'E-1 Off-Site Hedge Baseline'!AB55:AB302,'E-1 Off-Site Hedge Baseline'!P55:P302), " ")) ->  | U52: 0 | V52: ='F-1 Off-Site WaterC'' Baseline'!AG55 -> 0 | X52: =SUMIF('F-1 Off-Site WaterC'' Baseline'!$AG$10:$AG$257,'Off-site gain site summary'!$W52,'F-1 Off-Site WaterC'' Baseline'!$U$10:$U$257) -> 0 | Y52: =SUMIF('F-1 Off-Site WaterC'' Baseline'!$AG$10:$AG$257,'Off-site gain site summary'!$W52,'F-1 Off-Site WaterC'' Baseline'!$Y$10:$Y$257) -> 0 | Z52: =SUMIF('F-3 Off-Site WaterC Enhancement'!$AT$12:$AT$257,'Off-site gain site summary'!$W52,'F-3 Off-Site WaterC Enhancement'!$AP$12:$AP$257) -> 0 | AA52: =SUMIF('F-2 Off-Site WaterC'' Creation'!$AG$12:$AG$259,'Off-site gain site summary'!$W52,'F-2 Off-Site WaterC'' Creation'!$AC$12:$AC$259) -> 0 | AB52: 0 | AC52: =IFERROR(_xlfn.XLOOKUP(W52,'F-2 Off-Site WaterC'' Creation'!AG57:AG303,'F-2 Off-Site WaterC'' Creation'!AA57:AA304), IFERROR(_xlfn.XLOOKUP(W52,'F-1 Off-Site WaterC'' Baseline'!AG55:AG302,'F-1 Off-Site WaterC'' Baseline'!T55:T302)," ")) ->  | AD52: 0
A53: ='D-1 Off-Site Habitat Baseline'!AF57 -> 0 | C53: =SUMIF('D-1 Off-Site Habitat Baseline'!AF57:AF60,B53,'D-1 Off-Site Habitat Baseline'!T57:T60) -> 0 | D53: =SUMIF('D-1 Off-Site Habitat Baseline'!$AF$11:$AF$258,'Off-site gain site summary'!$B$7,'D-1 Off-Site Habitat Baseline'!$X$11:$X$258) -> 0 | F53: =SUMIF('D-3 Off-Site Habitat Enhancment'!$AU$12:$AU$258,'Off-site gain site summary'!B53,'D-3 Off-Site Habitat Enhancment'!$AQ$12:$AQ$258) -> 0 | H53: =SUMIF('D-2 Off-Site Habitat Creation'!$AF$11:$AF$256,'Off-site gain site summary'!B53,'D-2 Off-Site Habitat Creation'!$AB$11:$AB$256) -> 0 | J53: 0 | K53: =IFERROR(_xlfn.XLOOKUP(B53,'D-2 Off-Site Habitat Creation'!$AF$11:$AF$256,'D-2 Off-Site Habitat Creation'!$Z$11:$Z$256), IFERROR(_xlfn.XLOOKUP(B53,'D-1 Off-Site Habitat Baseline'!AF57:AF304,'D-1 Off-Site Habitat Baseline'!S57:S304), " ")) ->  | L53: 0 | M53: ='E-1 Off-Site Hedge Baseline'!AB56 -> 0 | O53: =SUMIF('E-1 Off-Site Hedge Baseline'!AB56:AB303,'Off-site gain site summary'!N53,'E-1 Off-Site Hedge Baseline'!Q56:Q303) -> 0 | P53: =SUMIF('E-1 Off-Site Hedge Baseline'!$AB$10:$AB$257,'Off-site gain site summary'!$N53,'E-1 Off-Site Hedge Baseline'!$U$10:$U$257) -> 0 | Q53: =SUMIF('E-3 Off-Site Hedge Enhancement'!$AO$12:$AO$257,'Off-site gain site summary'!$N53,'E-3 Off-Site Hedge Enhancement'!$AK$12:$AK$257) -> 0 | R53: =SUMIF('E-2 Off-Site Hedge Creation'!$AD$12:$AD$259,'Off-site gain site summary'!$N53,'E-2 Off-Site Hedge Creation'!$Z$12:$Z$259) -> 0 | S53: 0 | T53: =IFERROR(_xlfn.XLOOKUP(N53,'E-2 Off-Site Hedge Creation'!AD58:AD305,'E-2 Off-Site Hedge Creation'!N58:N305), IFERROR(_xlfn.XLOOKUP(N53,'E-1 Off-Site Hedge Baseline'!AB56:AB303,'E-1 Off-Site Hedge Baseline'!P56:P303), " ")) ->  | U53: 0 | V53: ='F-1 Off-Site WaterC'' Baseline'!AG56 -> 0 | X53: =SUMIF('F-1 Off-Site WaterC'' Baseline'!$AG$10:$AG$257,'Off-site gain site summary'!$W53,'F-1 Off-Site WaterC'' Baseline'!$U$10:$U$257) -> 0 | Y53: =SUMIF('F-1 Off-Site WaterC'' Baseline'!$AG$10:$AG$257,'Off-site gain site summary'!$W53,'F-1 Off-Site WaterC'' Baseline'!$Y$10:$Y$257) -> 0 | Z53: =SUMIF('F-3 Off-Site WaterC Enhancement'!$AT$12:$AT$257,'Off-site gain site summary'!$W53,'F-3 Off-Site WaterC Enhancement'!$AP$12:$AP$257) -> 0 | AA53: =SUMIF('F-2 Off-Site WaterC'' Creation'!$AG$12:$AG$259,'Off-site gain site summary'!$W53,'F-2 Off-Site WaterC'' Creation'!$AC$12:$AC$259) -> 0 | AB53: 0 | AC53: =IFERROR(_xlfn.XLOOKUP(W53,'F-2 Off-Site WaterC'' Creation'!AG58:AG304,'F-2 Off-Site WaterC'' Creation'!AA58:AA305), IFERROR(_xlfn.XLOOKUP(W53,'F-1 Off-Site WaterC'' Baseline'!AG56:AG303,'F-1 Off-Site WaterC'' Baseline'!T56:T303)," ")) ->  | AD53: 0
A54: ='D-1 Off-Site Habitat Baseline'!AF58 -> 0 | C54: =SUMIF('D-1 Off-Site Habitat Baseline'!AF58:AF61,B54,'D-1 Off-Site Habitat Baseline'!T58:T61) -> 0 | D54: =SUMIF('D-1 Off-Site Habitat Baseline'!$AF$11:$AF$258,'Off-site gain site summary'!$B$7,'D-1 Off-Site Habitat Baseline'!$X$11:$X$258) -> 0 | F54: =SUMIF('D-3 Off-Site Habitat Enhancment'!$AU$12:$AU$258,'Off-site gain site summary'!B54,'D-3 Off-Site Habitat Enhancment'!$AQ$12:$AQ$258) -> 0 | H54: =SUMIF('D-2 Off-Site Habitat Creation'!$AF$11:$AF$256,'Off-site gain site summary'!B54,'D-2 Off-Site Habitat Creation'!$AB$11:$AB$256) -> 0 | J54: 0 | K54: =IFERROR(_xlfn.XLOOKUP(B54,'D-2 Off-Site Habitat Creation'!$AF$11:$AF$256,'D-2 Off-Site Habitat Creation'!$Z$11:$Z$256), IFERROR(_xlfn.XLOOKUP(B54,'D-1 Off-Site Habitat Baseline'!AF58:AF305,'D-1 Off-Site Habitat Baseline'!S58:S305), " ")) ->  | L54: 0 | M54: ='E-1 Off-Site Hedge Baseline'!AB57 -> 0 | O54: =SUMIF('E-1 Off-Site Hedge Baseline'!AB57:AB304,'Off-site gain site summary'!N54,'E-1 Off-Site Hedge Baseline'!Q57:Q304) -> 0 | P54: =SUMIF('E-1 Off-Site Hedge Baseline'!$AB$10:$AB$257,'Off-site gain site summary'!$N54,'E-1 Off-Site Hedge Baseline'!$U$10:$U$257) -> 0 | Q54: =SUMIF('E-3 Off-Site Hedge Enhancement'!$AO$12:$AO$257,'Off-site gain site summary'!$N54,'E-3 Off-Site Hedge Enhancement'!$AK$12:$AK$257) -> 0 | R54: =SUMIF('E-2 Off-Site Hedge Creation'!$AD$12:$AD$259,'Off-site gain site summary'!$N54,'E-2 Off-Site Hedge Creation'!$Z$12:$Z$259) -> 0 | S54: 0 | T54: =IFERROR(_xlfn.XLOOKUP(N54,'E-2 Off-Site Hedge Creation'!AD59:AD306,'E-2 Off-Site Hedge Creation'!N59:N306), IFERROR(_xlfn.XLOOKUP(N54,'E-1 Off-Site Hedge Baseline'!AB57:AB304,'E-1 Off-Site Hedge Baseline'!P57:P304), " ")) ->  | U54: 0 | V54: ='F-1 Off-Site WaterC'' Baseline'!AG57 -> 0 | X54: =SUMIF('F-1 Off-Site WaterC'' Baseline'!$AG$10:$AG$257,'Off-site gain site summary'!$W54,'F-1 Off-Site WaterC'' Baseline'!$U$10:$U$257) -> 0 | Y54: =SUMIF('F-1 Off-Site WaterC'' Baseline'!$AG$10:$AG$257,'Off-site gain site summary'!$W54,'F-1 Off-Site WaterC'' Baseline'!$Y$10:$Y$257) -> 0 | Z54: =SUMIF('F-3 Off-Site WaterC Enhancement'!$AT$12:$AT$257,'Off-site gain site summary'!$W54,'F-3 Off-Site WaterC Enhancement'!$AP$12:$AP$257) -> 0 | AA54: =SUMIF('F-2 Off-Site WaterC'' Creation'!$AG$12:$AG$259,'Off-site gain site summary'!$W54,'F-2 Off-Site WaterC'' Creation'!$AC$12:$AC$259) -> 0 | AB54: 0 | AC54: =IFERROR(_xlfn.XLOOKUP(W54,'F-2 Off-Site WaterC'' Creation'!AG59:AG305,'F-2 Off-Site WaterC'' Creation'!AA59:AA306), IFERROR(_xlfn.XLOOKUP(W54,'F-1 Off-Site WaterC'' Baseline'!AG57:AG304,'F-1 Off-Site WaterC'' Baseline'!T57:T304)," ")) ->  | AD54: 0
A55: ='D-1 Off-Site Habitat Baseline'!AF59 -> 0 | C55: =SUMIF('D-1 Off-Site Habitat Baseline'!AF59:AF62,B55,'D-1 Off-Site Habitat Baseline'!T59:T62) -> 0 | D55: =SUMIF('D-1 Off-Site Habitat Baseline'!$AF$11:$AF$258,'Off-site gain site summary'!$B$7,'D-1 Off-Site Habitat Baseline'!$X$11:$X$258) -> 0 | F55: =SUMIF('D-3 Off-Site Habitat Enhancment'!$AU$12:$AU$258,'Off-site gain site summary'!B55,'D-3 Off-Site Habitat Enhancment'!$AQ$12:$AQ$258) -> 0 | H55: =SUMIF('D-2 Off-Site Habitat Creation'!$AF$11:$AF$256,'Off-site gain site summary'!B55,'D-2 Off-Site Habitat Creation'!$AB$11:$AB$256) -> 0 | J55: 0 | K55: =IFERROR(_xlfn.XLOOKUP(B55,'D-2 Off-Site Habitat Creation'!$AF$11:$AF$256,'D-2 Off-Site Habitat Creation'!$Z$11:$Z$256), IFERROR(_xlfn.XLOOKUP(B55,'D-1 Off-Site Habitat Baseline'!AF59:AF306,'D-1 Off-Site Habitat Baseline'!S59:S306), " ")) ->  | L55: 0 | M55: ='E-1 Off-Site Hedge Baseline'!AB58 -> 0 | O55: =SUMIF('E-1 Off-Site Hedge Baseline'!AB58:AB305,'Off-site gain site summary'!N55,'E-1 Off-Site Hedge Baseline'!Q58:Q305) -> 0 | P55: =SUMIF('E-1 Off-Site Hedge Baseline'!$AB$10:$AB$257,'Off-site gain site summary'!$N55,'E-1 Off-Site Hedge Baseline'!$U$10:$U$257) -> 0 | Q55: =SUMIF('E-3 Off-Site Hedge Enhancement'!$AO$12:$AO$257,'Off-site gain site summary'!$N55,'E-3 Off-Site Hedge Enhancement'!$AK$12:$AK$257) -> 0 | R55: =SUMIF('E-2 Off-Site Hedge Creation'!$AD$12:$AD$259,'Off-site gain site summary'!$N55,'E-2 Off-Site Hedge Creation'!$Z$12:$Z$259) -> 0 | S55: 0 | T55: =IFERROR(_xlfn.XLOOKUP(N55,'E-2 Off-Site Hedge Creation'!AD60:AD307,'E-2 Off-Site Hedge Creation'!N60:N307), IFERROR(_xlfn.XLOOKUP(N55,'E-1 Off-Site Hedge Baseline'!AB58:AB305,'E-1 Off-Site Hedge Baseline'!P58:P305), " ")) ->  | U55: 0 | V55: ='F-1 Off-Site WaterC'' Baseline'!AG58 -> 0 | X55: =SUMIF('F-1 Off-Site WaterC'' Baseline'!$AG$10:$AG$257,'Off-site gain site summary'!$W55,'F-1 Off-Site WaterC'' Baseline'!$U$10:$U$257) -> 0 | Y55: =SUMIF('F-1 Off-Site WaterC'' Baseline'!$AG$10:$AG$257,'Off-site gain site summary'!$W55,'F-1 Off-Site WaterC'' Baseline'!$Y$10:$Y$257) -> 0 | Z55: =SUMIF('F-3 Off-Site WaterC Enhancement'!$AT$12:$AT$257,'Off-site gain site summary'!$W55,'F-3 Off-Site WaterC Enhancement'!$AP$12:$AP$257) -> 0 | AA55: =SUMIF('F-2 Off-Site WaterC'' Creation'!$AG$12:$AG$259,'Off-site gain site summary'!$W55,'F-2 Off-Site WaterC'' Creation'!$AC$12:$AC$259) -> 0 | AB55: 0 | AC55: =IFERROR(_xlfn.XLOOKUP(W55,'F-2 Off-Site WaterC'' Creation'!AG60:AG306,'F-2 Off-Site WaterC'' Creation'!AA60:AA307), IFERROR(_xlfn.XLOOKUP(W55,'F-1 Off-Site WaterC'' Baseline'!AG58:AG305,'F-1 Off-Site WaterC'' Baseline'!T58:T305)," ")) ->  | AD55: 0
A56: ='D-1 Off-Site Habitat Baseline'!AF60 -> 0 | C56: =SUMIF('D-1 Off-Site Habitat Baseline'!AF60:AF63,B56,'D-1 Off-Site Habitat Baseline'!T60:T63) -> 0 | D56: =SUMIF('D-1 Off-Site Habitat Baseline'!$AF$11:$AF$258,'Off-site gain site summary'!$B$7,'D-1 Off-Site Habitat Baseline'!$X$11:$X$258) -> 0 | F56: =SUMIF('D-3 Off-Site Habitat Enhancment'!$AU$12:$AU$258,'Off-site gain site summary'!B56,'D-3 Off-Site Habitat Enhancment'!$AQ$12:$AQ$258) -> 0 | H56: =SUMIF('D-2 Off-Site Habitat Creation'!$AF$11:$AF$256,'Off-site gain site summary'!B56,'D-2 Off-Site Habitat Creation'!$AB$11:$AB$256) -> 0 | J56: 0 | K56: =IFERROR(_xlfn.XLOOKUP(B56,'D-2 Off-Site Habitat Creation'!$AF$11:$AF$256,'D-2 Off-Site Habitat Creation'!$Z$11:$Z$256), IFERROR(_xlfn.XLOOKUP(B56,'D-1 Off-Site Habitat Baseline'!AF60:AF307,'D-1 Off-Site Habitat Baseline'!S60:S307), " ")) ->  | L56: 0 | M56: ='E-1 Off-Site Hedge Baseline'!AB59 -> 0 | O56: =SUMIF('E-1 Off-Site Hedge Baseline'!AB59:AB306,'Off-site gain site summary'!N56,'E-1 Off-Site Hedge Baseline'!Q59:Q306) -> 0 | P56: =SUMIF('E-1 Off-Site Hedge Baseline'!$AB$10:$AB$257,'Off-site gain site summary'!$N56,'E-1 Off-Site Hedge Baseline'!$U$10:$U$257) -> 0 | Q56: =SUMIF('E-3 Off-Site Hedge Enhancement'!$AO$12:$AO$257,'Off-site gain site summary'!$N56,'E-3 Off-Site Hedge Enhancement'!$AK$12:$AK$257) -> 0 | R56: =SUMIF('E-2 Off-Site Hedge Creation'!$AD$12:$AD$259,'Off-site gain site summary'!$N56,'E-2 Off-Site Hedge Creation'!$Z$12:$Z$259) -> 0 | S56: 0 | T56: =IFERROR(_xlfn.XLOOKUP(N56,'E-2 Off-Site Hedge Creation'!AD61:AD308,'E-2 Off-Site Hedge Creation'!N61:N308), IFERROR(_xlfn.XLOOKUP(N56,'E-1 Off-Site Hedge Baseline'!AB59:AB306,'E-1 Off-Site Hedge Baseline'!P59:P306), " ")) ->  | U56: 0 | V56: ='F-1 Off-Site WaterC'' Baseline'!AG59 -> 0 | X56: =SUMIF('F-1 Off-Site WaterC'' Baseline'!$AG$10:$AG$257,'Off-site gain site summary'!$W56,'F-1 Off-Site WaterC'' Baseline'!$U$10:$U$257) -> 0 | Y56: =SUMIF('F-1 Off-Site WaterC'' Baseline'!$AG$10:$AG$257,'Off-site gain site summary'!$W56,'F-1 Off-Site WaterC'' Baseline'!$Y$10:$Y$257) -> 0 | Z56: =SUMIF('F-3 Off-Site WaterC Enhancement'!$AT$12:$AT$257,'Off-site gain site summary'!$W56,'F-3 Off-Site WaterC Enhancement'!$AP$12:$AP$257) -> 0 | AA56: =SUMIF('F-2 Off-Site WaterC'' Creation'!$AG$12:$AG$259,'Off-site gain site summary'!$W56,'F-2 Off-Site WaterC'' Creation'!$AC$12:$AC$259) -> 0 | AB56: 0 | AC56: =IFERROR(_xlfn.XLOOKUP(W56,'F-2 Off-Site WaterC'' Creation'!AG61:AG307,'F-2 Off-Site WaterC'' Creation'!AA61:AA308), IFERROR(_xlfn.XLOOKUP(W56,'F-1 Off-Site WaterC'' Baseline'!AG59:AG306,'F-1 Off-Site WaterC'' Baseline'!T59:T306)," ")) ->  | AD56: 0
A57: ='D-1 Off-Site Habitat Baseline'!AF61 -> 0 | C57: =SUMIF('D-1 Off-Site Habitat Baseline'!AF61:AF64,B57,'D-1 Off-Site Habitat Baseline'!T61:T64) -> 0 | D57: =SUMIF('D-1 Off-Site Habitat Baseline'!$AF$11:$AF$258,'Off-site gain site summary'!$B$7,'D-1 Off-Site Habitat Baseline'!$X$11:$X$258) -> 0 | F57: =SUMIF('D-3 Off-Site Habitat Enhancment'!$AU$12:$AU$258,'Off-site gain site summary'!B57,'D-3 Off-Site Habitat Enhancment'!$AQ$12:$AQ$258) -> 0 | H57: =SUMIF('D-2 Off-Site Habitat Creation'!$AF$11:$AF$256,'Off-site gain site summary'!B57,'D-2 Off-Site Habitat Creation'!$AB$11:$AB$256) -> 0 | J57: 0 | K57: =IFERROR(_xlfn.XLOOKUP(B57,'D-2 Off-Site Habitat Creation'!$AF$11:$AF$256,'D-2 Off-Site Habitat Creation'!$Z$11:$Z$256), IFERROR(_xlfn.XLOOKUP(B57,'D-1 Off-Site Habitat Baseline'!AF61:AF308,'D-1 Off-Site Habitat Baseline'!S61:S308), " ")) ->  | L57: 0 | M57: ='E-1 Off-Site Hedge Baseline'!AB60 -> 0 | O57: =SUMIF('E-1 Off-Site Hedge Baseline'!AB60:AB307,'Off-site gain site summary'!N57,'E-1 Off-Site Hedge Baseline'!Q60:Q307) -> 0 | P57: =SUMIF('E-1 Off-Site Hedge Baseline'!$AB$10:$AB$257,'Off-site gain site summary'!$N57,'E-1 Off-Site Hedge Baseline'!$U$10:$U$257) -> 0 | Q57: =SUMIF('E-3 Off-Site Hedge Enhancement'!$AO$12:$AO$257,'Off-site gain site summary'!$N57,'E-3 Off-Site Hedge Enhancement'!$AK$12:$AK$257) -> 0 | R57: =SUMIF('E-2 Off-Site Hedge Creation'!$AD$12:$AD$259,'Off-site gain site summary'!$N57,'E-2 Off-Site Hedge Creation'!$Z$12:$Z$259) -> 0 | S57: 0 | T57: =IFERROR(_xlfn.XLOOKUP(N57,'E-2 Off-Site Hedge Creation'!AD62:AD309,'E-2 Off-Site Hedge Creation'!N62:N309), IFERROR(_xlfn.XLOOKUP(N57,'E-1 Off-Site Hedge Baseline'!AB60:AB307,'E-1 Off-Site Hedge Baseline'!P60:P307), " ")) ->  | U57: 0 | V57: ='F-1 Off-Site WaterC'' Baseline'!AG60 -> 0 | X57: =SUMIF('F-1 Off-Site WaterC'' Baseline'!$AG$10:$AG$257,'Off-site gain site summary'!$W57,'F-1 Off-Site WaterC'' Baseline'!$U$10:$U$257) -> 0 | Y57: =SUMIF('F-1 Off-Site WaterC'' Baseline'!$AG$10:$AG$257,'Off-site gain site summary'!$W57,'F-1 Off-Site WaterC'' Baseline'!$Y$10:$Y$257) -> 0 | Z57: =SUMIF('F-3 Off-Site WaterC Enhancement'!$AT$12:$AT$257,'Off-site gain site summary'!$W57,'F-3 Off-Site WaterC Enhancement'!$AP$12:$AP$257) -> 0 | AA57: =SUMIF('F-2 Off-Site WaterC'' Creation'!$AG$12:$AG$259,'Off-site gain site summary'!$W57,'F-2 Off-Site WaterC'' Creation'!$AC$12:$AC$259) -> 0 | AB57: 0 | AC57: =IFERROR(_xlfn.XLOOKUP(W57,'F-2 Off-Site WaterC'' Creation'!AG62:AG308,'F-2 Off-Site WaterC'' Creation'!AA62:AA309), IFERROR(_xlfn.XLOOKUP(W57,'F-1 Off-Site WaterC'' Baseline'!AG60:AG307,'F-1 Off-Site WaterC'' Baseline'!T60:T307)," ")) ->  | AD57: 0
A58: ='D-1 Off-Site Habitat Baseline'!AF62 -> 0 | C58: =SUMIF('D-1 Off-Site Habitat Baseline'!AF62:AF65,B58,'D-1 Off-Site Habitat Baseline'!T62:T65) -> 0 | D58: =SUMIF('D-1 Off-Site Habitat Baseline'!$AF$11:$AF$258,'Off-site gain site summary'!$B$7,'D-1 Off-Site Habitat Baseline'!$X$11:$X$258) -> 0 | F58: =SUMIF('D-3 Off-Site Habitat Enhancment'!$AU$12:$AU$258,'Off-site gain site summary'!B58,'D-3 Off-Site Habitat Enhancment'!$AQ$12:$AQ$258) -> 0 | H58: =SUMIF('D-2 Off-Site Habitat Creation'!$AF$11:$AF$256,'Off-site gain site summary'!B58,'D-2 Off-Site Habitat Creation'!$AB$11:$AB$256) -> 0 | J58: 0 | K58: =IFERROR(_xlfn.XLOOKUP(B58,'D-2 Off-Site Habitat Creation'!$AF$11:$AF$256,'D-2 Off-Site Habitat Creation'!$Z$11:$Z$256), IFERROR(_xlfn.XLOOKUP(B58,'D-1 Off-Site Habitat Baseline'!AF62:AF309,'D-1 Off-Site Habitat Baseline'!S62:S309), " ")) ->  | L58: 0 | M58: ='E-1 Off-Site Hedge Baseline'!AB61 -> 0 | O58: =SUMIF('E-1 Off-Site Hedge Baseline'!AB61:AB308,'Off-site gain site summary'!N58,'E-1 Off-Site Hedge Baseline'!Q61:Q308) -> 0 | P58: =SUMIF('E-1 Off-Site Hedge Baseline'!$AB$10:$AB$257,'Off-site gain site summary'!$N58,'E-1 Off-Site Hedge Baseline'!$U$10:$U$257) -> 0 | Q58: =SUMIF('E-3 Off-Site Hedge Enhancement'!$AO$12:$AO$257,'Off-site gain site summary'!$N58,'E-3 Off-Site Hedge Enhancement'!$AK$12:$AK$257) -> 0 | R58: =SUMIF('E-2 Off-Site Hedge Creation'!$AD$12:$AD$259,'Off-site gain site summary'!$N58,'E-2 Off-Site Hedge Creation'!$Z$12:$Z$259) -> 0 | S58: 0 | T58: =IFERROR(_xlfn.XLOOKUP(N58,'E-2 Off-Site Hedge Creation'!AD63:AD310,'E-2 Off-Site Hedge Creation'!N63:N310), IFERROR(_xlfn.XLOOKUP(N58,'E-1 Off-Site Hedge Baseline'!AB61:AB308,'E-1 Off-Site Hedge Baseline'!P61:P308), " ")) ->  | U58: 0 | V58: ='F-1 Off-Site WaterC'' Baseline'!AG61 -> 0 | X58: =SUMIF('F-1 Off-Site WaterC'' Baseline'!$AG$10:$AG$257,'Off-site gain site summary'!$W58,'F-1 Off-Site WaterC'' Baseline'!$U$10:$U$257) -> 0 | Y58: =SUMIF('F-1 Off-Site WaterC'' Baseline'!$AG$10:$AG$257,'Off-site gain site summary'!$W58,'F-1 Off-Site WaterC'' Baseline'!$Y$10:$Y$257) -> 0 | Z58: =SUMIF('F-3 Off-Site WaterC Enhancement'!$AT$12:$AT$257,'Off-site gain site summary'!$W58,'F-3 Off-Site WaterC Enhancement'!$AP$12:$AP$257) -> 0 | AA58: =SUMIF('F-2 Off-Site WaterC'' Creation'!$AG$12:$AG$259,'Off-site gain site summary'!$W58,'F-2 Off-Site WaterC'' Creation'!$AC$12:$AC$259) -> 0 | AB58: 0 | AC58: =IFERROR(_xlfn.XLOOKUP(W58,'F-2 Off-Site WaterC'' Creation'!AG63:AG309,'F-2 Off-Site WaterC'' Creation'!AA63:AA310), IFERROR(_xlfn.XLOOKUP(W58,'F-1 Off-Site WaterC'' Baseline'!AG61:AG308,'F-1 Off-Site WaterC'' Baseline'!T61:T308)," ")) ->  | AD58: 0
A59: ='D-1 Off-Site Habitat Baseline'!AF63 -> 0 | C59: =SUMIF('D-1 Off-Site Habitat Baseline'!AF63:AF66,B59,'D-1 Off-Site Habitat Baseline'!T63:T66) -> 0 | D59: =SUMIF('D-1 Off-Site Habitat Baseline'!$AF$11:$AF$258,'Off-site gain site summary'!$B$7,'D-1 Off-Site Habitat Baseline'!$X$11:$X$258) -> 0 | F59: =SUMIF('D-3 Off-Site Habitat Enhancment'!$AU$12:$AU$258,'Off-site gain site summary'!B59,'D-3 Off-Site Habitat Enhancment'!$AQ$12:$AQ$258) -> 0 | H59: =SUMIF('D-2 Off-Site Habitat Creation'!$AF$11:$AF$256,'Off-site gain site summary'!B59,'D-2 Off-Site Habitat Creation'!$AB$11:$AB$256) -> 0 | J59: 0 | K59: =IFERROR(_xlfn.XLOOKUP(B59,'D-2 Off-Site Habitat Creation'!$AF$11:$AF$256,'D-2 Off-Site Habitat Creation'!$Z$11:$Z$256), IFERROR(_xlfn.XLOOKUP(B59,'D-1 Off-Site Habitat Baseline'!AF63:AF310,'D-1 Off-Site Habitat Baseline'!S63:S310), " ")) ->  | L59: 0 | M59: ='E-1 Off-Site Hedge Baseline'!AB62 -> 0 | O59: =SUMIF('E-1 Off-Site Hedge Baseline'!AB62:AB309,'Off-site gain site summary'!N59,'E-1 Off-Site Hedge Baseline'!Q62:Q309) -> 0 | P59: =SUMIF('E-1 Off-Site Hedge Baseline'!$AB$10:$AB$257,'Off-site gain site summary'!$N59,'E-1 Off-Site Hedge Baseline'!$U$10:$U$257) -> 0 | Q59: =SUMIF('E-3 Off-Site Hedge Enhancement'!$AO$12:$AO$257,'Off-site gain site summary'!$N59,'E-3 Off-Site Hedge Enhancement'!$AK$12:$AK$257) -> 0 | R59: =SUMIF('E-2 Off-Site Hedge Creation'!$AD$12:$AD$259,'Off-site gain site summary'!$N59,'E-2 Off-Site Hedge Creation'!$Z$12:$Z$259) -> 0 | S59: 0 | T59: =IFERROR(_xlfn.XLOOKUP(N59,'E-2 Off-Site Hedge Creation'!AD64:AD311,'E-2 Off-Site Hedge Creation'!N64:N311), IFERROR(_xlfn.XLOOKUP(N59,'E-1 Off-Site Hedge Baseline'!AB62:AB309,'E-1 Off-Site Hedge Baseline'!P62:P309), " ")) ->  | U59: 0 | V59: ='F-1 Off-Site WaterC'' Baseline'!AG62 -> 0 | X59: =SUMIF('F-1 Off-Site WaterC'' Baseline'!$AG$10:$AG$257,'Off-site gain site summary'!$W59,'F-1 Off-Site WaterC'' Baseline'!$U$10:$U$257) -> 0 | Y59: =SUMIF('F-1 Off-Site WaterC'' Baseline'!$AG$10:$AG$257,'Off-site gain site summary'!$W59,'F-1 Off-Site WaterC'' Baseline'!$Y$10:$Y$257) -> 0 | Z59: =SUMIF('F-3 Off-Site WaterC Enhancement'!$AT$12:$AT$257,'Off-site gain site summary'!$W59,'F-3 Off-Site WaterC Enhancement'!$AP$12:$AP$257) -> 0 | AA59: =SUMIF('F-2 Off-Site WaterC'' Creation'!$AG$12:$AG$259,'Off-site gain site summary'!$W59,'F-2 Off-Site WaterC'' Creation'!$AC$12:$AC$259) -> 0 | AB59: 0 | AC59: =IFERROR(_xlfn.XLOOKUP(W59,'F-2 Off-Site WaterC'' Creation'!AG64:AG310,'F-2 Off-Site WaterC'' Creation'!AA64:AA311), IFERROR(_xlfn.XLOOKUP(W59,'F-1 Off-Site WaterC'' Baseline'!AG62:AG309,'F-1 Off-Site WaterC'' Baseline'!T62:T309)," ")) ->  | AD59: 0
A60: ='D-1 Off-Site Habitat Baseline'!AF64 -> 0 | C60: =SUMIF('D-1 Off-Site Habitat Baseline'!AF64:AF67,B60,'D-1 Off-Site Habitat Baseline'!T64:T67) -> 0 | D60: =SUMIF('D-1 Off-Site Habitat Baseline'!$AF$11:$AF$258,'Off-site gain site summary'!$B$7,'D-1 Off-Site Habitat Baseline'!$X$11:$X$258) -> 0 | F60: =SUMIF('D-3 Off-Site Habitat Enhancment'!$AU$12:$AU$258,'Off-site gain site summary'!B60,'D-3 Off-Site Habitat Enhancment'!$AQ$12:$AQ$258) -> 0 | H60: =SUMIF('D-2 Off-Site Habitat Creation'!$AF$11:$AF$256,'Off-site gain site summary'!B60,'D-2 Off-Site Habitat Creation'!$AB$11:$AB$256) -> 0 | J60: 0 | K60: =IFERROR(_xlfn.XLOOKUP(B60,'D-2 Off-Site Habitat Creation'!$AF$11:$AF$256,'D-2 Off-Site Habitat Creation'!$Z$11:$Z$256), IFERROR(_xlfn.XLOOKUP(B60,'D-1 Off-Site Habitat Baseline'!AF64:AF311,'D-1 Off-Site Habitat Baseline'!S64:S311), " ")) ->  | L60: 0 | M60: ='E-1 Off-Site Hedge Baseline'!AB63 -> 0 | O60: =SUMIF('E-1 Off-Site Hedge Baseline'!AB63:AB310,'Off-site gain site summary'!N60,'E-1 Off-Site Hedge Baseline'!Q63:Q310) -> 0 | P60: =SUMIF('E-1 Off-Site Hedge Baseline'!$AB$10:$AB$257,'Off-site gain site summary'!$N60,'E-1 Off-Site Hedge Baseline'!$U$10:$U$257) -> 0 | Q60: =SUMIF('E-3 Off-Site Hedge Enhancement'!$AO$12:$AO$257,'Off-site gain site summary'!$N60,'E-3 Off-Site Hedge Enhancement'!$AK$12:$AK$257) -> 0 | R60: =SUMIF('E-2 Off-Site Hedge Creation'!$AD$12:$AD$259,'Off-site gain site summary'!$N60,'E-2 Off-Site Hedge Creation'!$Z$12:$Z$259) -> 0 | S60: 0 | T60: =IFERROR(_xlfn.XLOOKUP(N60,'E-2 Off-Site Hedge Creation'!AD65:AD312,'E-2 Off-Site Hedge Creation'!N65:N312), IFERROR(_xlfn.XLOOKUP(N60,'E-1 Off-Site Hedge Baseline'!AB63:AB310,'E-1 Off-Site Hedge Baseline'!P63:P310), " ")) ->  | U60: 0 | V60: ='F-1 Off-Site WaterC'' Baseline'!AG63 -> 0 | X60: =SUMIF('F-1 Off-Site WaterC'' Baseline'!$AG$10:$AG$257,'Off-site gain site summary'!$W60,'F-1 Off-Site WaterC'' Baseline'!$U$10:$U$257) -> 0 | Y60: =SUMIF('F-1 Off-Site WaterC'' Baseline'!$AG$10:$AG$257,'Off-site gain site summary'!$W60,'F-1 Off-Site WaterC'' Baseline'!$Y$10:$Y$257) -> 0 | Z60: =SUMIF('F-3 Off-Site WaterC Enhancement'!$AT$12:$AT$257,'Off-site gain site summary'!$W60,'F-3 Off-Site WaterC Enhancement'!$AP$12:$AP$257) -> 0 | AA60: =SUMIF('F-2 Off-Site WaterC'' Creation'!$AG$12:$AG$259,'Off-site gain site summary'!$W60,'F-2 Off-Site WaterC'' Creation'!$AC$12:$AC$259) -> 0 | AB60: 0 | AC60: =IFERROR(_xlfn.XLOOKUP(W60,'F-2 Off-Site WaterC'' Creation'!AG65:AG311,'F-2 Off-Site WaterC'' Creation'!AA65:AA312), IFERROR(_xlfn.XLOOKUP(W60,'F-1 Off-Site WaterC'' Baseline'!AG63:AG310,'F-1 Off-Site WaterC'' Baseline'!T63:T310)," ")) ->  | AD60: 0
A61: ='D-1 Off-Site Habitat Baseline'!AF65 -> 0 | C61: =SUMIF('D-1 Off-Site Habitat Baseline'!AF65:AF68,B61,'D-1 Off-Site Habitat Baseline'!T65:T68) -> 0 | D61: =SUMIF('D-1 Off-Site Habitat Baseline'!$AF$11:$AF$258,'Off-site gain site summary'!$B$7,'D-1 Off-Site Habitat Baseline'!$X$11:$X$258) -> 0 | F61: =SUMIF('D-3 Off-Site Habitat Enhancment'!$AU$12:$AU$258,'Off-site gain site summary'!B61,'D-3 Off-Site Habitat Enhancment'!$AQ$12:$AQ$258) -> 0 | H61: =SUMIF('D-2 Off-Site Habitat Creation'!$AF$11:$AF$256,'Off-site gain site summary'!B61,'D-2 Off-Site Habitat Creation'!$AB$11:$AB$256) -> 0 | J61: 0 | K61: =IFERROR(_xlfn.XLOOKUP(B61,'D-2 Off-Site Habitat Creation'!$AF$11:$AF$256,'D-2 Off-Site Habitat Creation'!$Z$11:$Z$256), IFERROR(_xlfn.XLOOKUP(B61,'D-1 Off-Site Habitat Baseline'!AF65:AF312,'D-1 Off-Site Habitat Baseline'!S65:S312), " ")) ->  | L61: 0 | M61: ='E-1 Off-Site Hedge Baseline'!AB64 -> 0 | O61: =SUMIF('E-1 Off-Site Hedge Baseline'!AB64:AB311,'Off-site gain site summary'!N61,'E-1 Off-Site Hedge Baseline'!Q64:Q311) -> 0 | P61: =SUMIF('E-1 Off-Site Hedge Baseline'!$AB$10:$AB$257,'Off-site gain site summary'!$N61,'E-1 Off-Site Hedge Baseline'!$U$10:$U$257) -> 0 | Q61: =SUMIF('E-3 Off-Site Hedge Enhancement'!$AO$12:$AO$257,'Off-site gain site summary'!$N61,'E-3 Off-Site Hedge Enhancement'!$AK$12:$AK$257) -> 0 | R61: =SUMIF('E-2 Off-Site Hedge Creation'!$AD$12:$AD$259,'Off-site gain site summary'!$N61,'E-2 Off-Site Hedge Creation'!$Z$12:$Z$259) -> 0 | S61: 0 | T61: =IFERROR(_xlfn.XLOOKUP(N61,'E-2 Off-Site Hedge Creation'!AD66:AD313,'E-2 Off-Site Hedge Creation'!N66:N313), IFERROR(_xlfn.XLOOKUP(N61,'E-1 Off-Site Hedge Baseline'!AB64:AB311,'E-1 Off-Site Hedge Baseline'!P64:P311), " ")) ->  | U61: 0 | V61: ='F-1 Off-Site WaterC'' Baseline'!AG64 -> 0 | X61: =SUMIF('F-1 Off-Site WaterC'' Baseline'!$AG$10:$AG$257,'Off-site gain site summary'!$W61,'F-1 Off-Site WaterC'' Baseline'!$U$10:$U$257) -> 0 | Y61: =SUMIF('F-1 Off-Site WaterC'' Baseline'!$AG$10:$AG$257,'Off-site gain site summary'!$W61,'F-1 Off-Site WaterC'' Baseline'!$Y$10:$Y$257) -> 0 | Z61: =SUMIF('F-3 Off-Site WaterC Enhancement'!$AT$12:$AT$257,'Off-site gain site summary'!$W61,'F-3 Off-Site WaterC Enhancement'!$AP$12:$AP$257) -> 0 | AA61: =SUMIF('F-2 Off-Site WaterC'' Creation'!$AG$12:$AG$259,'Off-site gain site summary'!$W61,'F-2 Off-Site WaterC'' Creation'!$AC$12:$AC$259) -> 0 | AB61: 0 | AC61: =IFERROR(_xlfn.XLOOKUP(W61,'F-2 Off-Site WaterC'' Creation'!AG66:AG312,'F-2 Off-Site WaterC'' Creation'!AA66:AA313), IFERROR(_xlfn.XLOOKUP(W61,'F-1 Off-Site WaterC'' Baseline'!AG64:AG311,'F-1 Off-Site WaterC'' Baseline'!T64:T311)," ")) ->  | AD61: 0
A62: ='D-1 Off-Site Habitat Baseline'!AF66 -> 0 | C62: =SUMIF('D-1 Off-Site Habitat Baseline'!AF66:AF69,B62,'D-1 Off-Site Habitat Baseline'!T66:T69) -> 0 | D62: =SUMIF('D-1 Off-Site Habitat Baseline'!$AF$11:$AF$258,'Off-site gain site summary'!$B$7,'D-1 Off-Site Habitat Baseline'!$X$11:$X$258) -> 0 | F62: =SUMIF('D-3 Off-Site Habitat Enhancment'!$AU$12:$AU$258,'Off-site gain site summary'!B62,'D-3 Off-Site Habitat Enhancment'!$AQ$12:$AQ$258) -> 0 | H62: =SUMIF('D-2 Off-Site Habitat Creation'!$AF$11:$AF$256,'Off-site gain site summary'!B62,'D-2 Off-Site Habitat Creation'!$AB$11:$AB$256) -> 0 | J62: 0 | K62: =IFERROR(_xlfn.XLOOKUP(B62,'D-2 Off-Site Habitat Creation'!$AF$11:$AF$256,'D-2 Off-Site Habitat Creation'!$Z$11:$Z$256), IFERROR(_xlfn.XLOOKUP(B62,'D-1 Off-Site Habitat Baseline'!AF66:AF313,'D-1 Off-Site Habitat Baseline'!S66:S313), " ")) ->  | L62: 0 | M62: ='E-1 Off-Site Hedge Baseline'!AB65 -> 0 | O62: =SUMIF('E-1 Off-Site Hedge Baseline'!AB65:AB312,'Off-site gain site summary'!N62,'E-1 Off-Site Hedge Baseline'!Q65:Q312) -> 0 | P62: =SUMIF('E-1 Off-Site Hedge Baseline'!$AB$10:$AB$257,'Off-site gain site summary'!$N62,'E-1 Off-Site Hedge Baseline'!$U$10:$U$257) -> 0 | Q62: =SUMIF('E-3 Off-Site Hedge Enhancement'!$AO$12:$AO$257,'Off-site gain site summary'!$N62,'E-3 Off-Site Hedge Enhancement'!$AK$12:$AK$257) -> 0 | R62: =SUMIF('E-2 Off-Site Hedge Creation'!$AD$12:$AD$259,'Off-site gain site summary'!$N62,'E-2 Off-Site Hedge Creation'!$Z$12:$Z$259) -> 0 | S62: 0 | T62: =IFERROR(_xlfn.XLOOKUP(N62,'E-2 Off-Site Hedge Creation'!AD67:AD314,'E-2 Off-Site Hedge Creation'!N67:N314), IFERROR(_xlfn.XLOOKUP(N62,'E-1 Off-Site Hedge Baseline'!AB65:AB312,'E-1 Off-Site Hedge Baseline'!P65:P312), " ")) ->  | U62: 0 | V62: ='F-1 Off-Site WaterC'' Baseline'!AG65 -> 0 | X62: =SUMIF('F-1 Off-Site WaterC'' Baseline'!$AG$10:$AG$257,'Off-site gain site summary'!$W62,'F-1 Off-Site WaterC'' Baseline'!$U$10:$U$257) -> 0 | Y62: =SUMIF('F-1 Off-Site WaterC'' Baseline'!$AG$10:$AG$257,'Off-site gain site summary'!$W62,'F-1 Off-Site WaterC'' Baseline'!$Y$10:$Y$257) -> 0 | Z62: =SUMIF('F-3 Off-Site WaterC Enhancement'!$AT$12:$AT$257,'Off-site gain site summary'!$W62,'F-3 Off-Site WaterC Enhancement'!$AP$12:$AP$257) -> 0 | AA62: =SUMIF('F-2 Off-Site WaterC'' Creation'!$AG$12:$AG$259,'Off-site gain site summary'!$W62,'F-2 Off-Site WaterC'' Creation'!$AC$12:$AC$259) -> 0 | AB62: 0 | AC62: =IFERROR(_xlfn.XLOOKUP(W62,'F-2 Off-Site WaterC'' Creation'!AG67:AG313,'F-2 Off-Site WaterC'' Creation'!AA67:AA314), IFERROR(_xlfn.XLOOKUP(W62,'F-1 Off-Site WaterC'' Baseline'!AG65:AG312,'F-1 Off-Site WaterC'' Baseline'!T65:T312)," ")) ->  | AD62: 0
A63: ='D-1 Off-Site Habitat Baseline'!AF67 -> 0 | C63: =SUMIF('D-1 Off-Site Habitat Baseline'!AF67:AF70,B63,'D-1 Off-Site Habitat Baseline'!T67:T70) -> 0 | D63: =SUMIF('D-1 Off-Site Habitat Baseline'!$AF$11:$AF$258,'Off-site gain site summary'!$B$7,'D-1 Off-Site Habitat Baseline'!$X$11:$X$258) -> 0 | F63: =SUMIF('D-3 Off-Site Habitat Enhancment'!$AU$12:$AU$258,'Off-site gain site summary'!B63,'D-3 Off-Site Habitat Enhancment'!$AQ$12:$AQ$258) -> 0 | H63: =SUMIF('D-2 Off-Site Habitat Creation'!$AF$11:$AF$256,'Off-site gain site summary'!B63,'D-2 Off-Site Habitat Creation'!$AB$11:$AB$256) -> 0 | J63: 0 | K63: =IFERROR(_xlfn.XLOOKUP(B63,'D-2 Off-Site Habitat Creation'!$AF$11:$AF$256,'D-2 Off-Site Habitat Creation'!$Z$11:$Z$256), IFERROR(_xlfn.XLOOKUP(B63,'D-1 Off-Site Habitat Baseline'!AF67:AF314,'D-1 Off-Site Habitat Baseline'!S67:S314), " ")) ->  | L63: 0 | M63: ='E-1 Off-Site Hedge Baseline'!AB66 -> 0 | O63: =SUMIF('E-1 Off-Site Hedge Baseline'!AB66:AB313,'Off-site gain site summary'!N63,'E-1 Off-Site Hedge Baseline'!Q66:Q313) -> 0 | P63: =SUMIF('E-1 Off-Site Hedge Baseline'!$AB$10:$AB$257,'Off-site gain site summary'!$N63,'E-1 Off-Site Hedge Baseline'!$U$10:$U$257) -> 0 | Q63: =SUMIF('E-3 Off-Site Hedge Enhancement'!$AO$12:$AO$257,'Off-site gain site summary'!$N63,'E-3 Off-Site Hedge Enhancement'!$AK$12:$AK$257) -> 0 | R63: =SUMIF('E-2 Off-Site Hedge Creation'!$AD$12:$AD$259,'Off-site gain site summary'!$N63,'E-2 Off-Site Hedge Creation'!$Z$12:$Z$259) -> 0 | S63: 0 | T63: =IFERROR(_xlfn.XLOOKUP(N63,'E-2 Off-Site Hedge Creation'!AD68:AD315,'E-2 Off-Site Hedge Creation'!N68:N315), IFERROR(_xlfn.XLOOKUP(N63,'E-1 Off-Site Hedge Baseline'!AB66:AB313,'E-1 Off-Site Hedge Baseline'!P66:P313), " ")) ->  | U63: 0 | V63: ='F-1 Off-Site WaterC'' Baseline'!AG66 -> 0 | X63: =SUMIF('F-1 Off-Site WaterC'' Baseline'!$AG$10:$AG$257,'Off-site gain site summary'!$W63,'F-1 Off-Site WaterC'' Baseline'!$U$10:$U$257) -> 0 | Y63: =SUMIF('F-1 Off-Site WaterC'' Baseline'!$AG$10:$AG$257,'Off-site gain site summary'!$W63,'F-1 Off-Site WaterC'' Baseline'!$Y$10:$Y$257) -> 0 | Z63: =SUMIF('F-3 Off-Site WaterC Enhancement'!$AT$12:$AT$257,'Off-site gain site summary'!$W63,'F-3 Off-Site WaterC Enhancement'!$AP$12:$AP$257) -> 0 | AA63: =SUMIF('F-2 Off-Site WaterC'' Creation'!$AG$12:$AG$259,'Off-site gain site summary'!$W63,'F-2 Off-Site WaterC'' Creation'!$AC$12:$AC$259) -> 0 | AB63: 0 | AC63: =IFERROR(_xlfn.XLOOKUP(W63,'F-2 Off-Site WaterC'' Creation'!AG68:AG314,'F-2 Off-Site WaterC'' Creation'!AA68:AA315), IFERROR(_xlfn.XLOOKUP(W63,'F-1 Off-Site WaterC'' Baseline'!AG66:AG313,'F-1 Off-Site WaterC'' Baseline'!T66:T313)," ")) ->  | AD63: 0
A64: ='D-1 Off-Site Habitat Baseline'!AF68 -> 0 | C64: =SUMIF('D-1 Off-Site Habitat Baseline'!AF68:AF71,B64,'D-1 Off-Site Habitat Baseline'!T68:T71) -> 0 | D64: =SUMIF('D-1 Off-Site Habitat Baseline'!$AF$11:$AF$258,'Off-site gain site summary'!$B$7,'D-1 Off-Site Habitat Baseline'!$X$11:$X$258) -> 0 | F64: =SUMIF('D-3 Off-Site Habitat Enhancment'!$AU$12:$AU$258,'Off-site gain site summary'!B64,'D-3 Off-Site Habitat Enhancment'!$AQ$12:$AQ$258) -> 0 | H64: =SUMIF('D-2 Off-Site Habitat Creation'!$AF$11:$AF$256,'Off-site gain site summary'!B64,'D-2 Off-Site Habitat Creation'!$AB$11:$AB$256) -> 0 | J64: 0 | K64: =IFERROR(_xlfn.XLOOKUP(B64,'D-2 Off-Site Habitat Creation'!$AF$11:$AF$256,'D-2 Off-Site Habitat Creation'!$Z$11:$Z$256), IFERROR(_xlfn.XLOOKUP(B64,'D-1 Off-Site Habitat Baseline'!AF68:AF315,'D-1 Off-Site Habitat Baseline'!S68:S315), " ")) ->  | L64: 0 | M64: ='E-1 Off-Site Hedge Baseline'!AB67 -> 0 | O64: =SUMIF('E-1 Off-Site Hedge Baseline'!AB67:AB314,'Off-site gain site summary'!N64,'E-1 Off-Site Hedge Baseline'!Q67:Q314) -> 0 | P64: =SUMIF('E-1 Off-Site Hedge Baseline'!$AB$10:$AB$257,'Off-site gain site summary'!$N64,'E-1 Off-Site Hedge Baseline'!$U$10:$U$257) -> 0 | Q64: =SUMIF('E-3 Off-Site Hedge Enhancement'!$AO$12:$AO$257,'Off-site gain site summary'!$N64,'E-3 Off-Site Hedge Enhancement'!$AK$12:$AK$257) -> 0 | R64: =SUMIF('E-2 Off-Site Hedge Creation'!$AD$12:$AD$259,'Off-site gain site summary'!$N64,'E-2 Off-Site Hedge Creation'!$Z$12:$Z$259) -> 0 | S64: 0 | T64: =IFERROR(_xlfn.XLOOKUP(N64,'E-2 Off-Site Hedge Creation'!AD69:AD316,'E-2 Off-Site Hedge Creation'!N69:N316), IFERROR(_xlfn.XLOOKUP(N64,'E-1 Off-Site Hedge Baseline'!AB67:AB314,'E-1 Off-Site Hedge Baseline'!P67:P314), " ")) ->  | U64: 0 | V64: ='F-1 Off-Site WaterC'' Baseline'!AG67 -> 0 | X64: =SUMIF('F-1 Off-Site WaterC'' Baseline'!$AG$10:$AG$257,'Off-site gain site summary'!$W64,'F-1 Off-Site WaterC'' Baseline'!$U$10:$U$257) -> 0 | Y64: =SUMIF('F-1 Off-Site WaterC'' Baseline'!$AG$10:$AG$257,'Off-site gain site summary'!$W64,'F-1 Off-Site WaterC'' Baseline'!$Y$10:$Y$257) -> 0 | Z64: =SUMIF('F-3 Off-Site WaterC Enhancement'!$AT$12:$AT$257,'Off-site gain site summary'!$W64,'F-3 Off-Site WaterC Enhancement'!$AP$12:$AP$257) -> 0 | AA64: =SUMIF('F-2 Off-Site WaterC'' Creation'!$AG$12:$AG$259,'Off-site gain site summary'!$W64,'F-2 Off-Site WaterC'' Creation'!$AC$12:$AC$259) -> 0 | AB64: 0 | AC64: =IFERROR(_xlfn.XLOOKUP(W64,'F-2 Off-Site WaterC'' Creation'!AG69:AG315,'F-2 Off-Site WaterC'' Creation'!AA69:AA316), IFERROR(_xlfn.XLOOKUP(W64,'F-1 Off-Site WaterC'' Baseline'!AG67:AG314,'F-1 Off-Site WaterC'' Baseline'!T67:T314)," ")) ->  | AD64: 0
A65: ='D-1 Off-Site Habitat Baseline'!AF69 -> 0 | C65: =SUMIF('D-1 Off-Site Habitat Baseline'!AF69:AF72,B65,'D-1 Off-Site Habitat Baseline'!T69:T72) -> 0 | D65: =SUMIF('D-1 Off-Site Habitat Baseline'!$AF$11:$AF$258,'Off-site gain site summary'!$B$7,'D-1 Off-Site Habitat Baseline'!$X$11:$X$258) -> 0 | F65: =SUMIF('D-3 Off-Site Habitat Enhancment'!$AU$12:$AU$258,'Off-site gain site summary'!B65,'D-3 Off-Site Habitat Enhancment'!$AQ$12:$AQ$258) -> 0 | H65: =SUMIF('D-2 Off-Site Habitat Creation'!$AF$11:$AF$256,'Off-site gain site summary'!B65,'D-2 Off-Site Habitat Creation'!$AB$11:$AB$256) -> 0 | J65: 0 | K65: =IFERROR(_xlfn.XLOOKUP(B65,'D-2 Off-Site Habitat Creation'!$AF$11:$AF$256,'D-2 Off-Site Habitat Creation'!$Z$11:$Z$256), IFERROR(_xlfn.XLOOKUP(B65,'D-1 Off-Site Habitat Baseline'!AF69:AF316,'D-1 Off-Site Habitat Baseline'!S69:S316), " ")) ->  | L65: 0 | M65: ='E-1 Off-Site Hedge Baseline'!AB68 -> 0 | O65: =SUMIF('E-1 Off-Site Hedge Baseline'!AB68:AB315,'Off-site gain site summary'!N65,'E-1 Off-Site Hedge Baseline'!Q68:Q315) -> 0 | P65: =SUMIF('E-1 Off-Site Hedge Baseline'!$AB$10:$AB$257,'Off-site gain site summary'!$N65,'E-1 Off-Site Hedge Baseline'!$U$10:$U$257) -> 0 | Q65: =SUMIF('E-3 Off-Site Hedge Enhancement'!$AO$12:$AO$257,'Off-site gain site summary'!$N65,'E-3 Off-Site Hedge Enhancement'!$AK$12:$AK$257) -> 0 | R65: =SUMIF('E-2 Off-Site Hedge Creation'!$AD$12:$AD$259,'Off-site gain site summary'!$N65,'E-2 Off-Site Hedge Creation'!$Z$12:$Z$259) -> 0 | S65: 0 | T65: =IFERROR(_xlfn.XLOOKUP(N65,'E-2 Off-Site Hedge Creation'!AD70:AD317,'E-2 Off-Site Hedge Creation'!N70:N317), IFERROR(_xlfn.XLOOKUP(N65,'E-1 Off-Site Hedge Baseline'!AB68:AB315,'E-1 Off-Site Hedge Baseline'!P68:P315), " ")) ->  | U65: 0 | V65: ='F-1 Off-Site WaterC'' Baseline'!AG68 -> 0 | X65: =SUMIF('F-1 Off-Site WaterC'' Baseline'!$AG$10:$AG$257,'Off-site gain site summary'!$W65,'F-1 Off-Site WaterC'' Baseline'!$U$10:$U$257) -> 0 | Y65: =SUMIF('F-1 Off-Site WaterC'' Baseline'!$AG$10:$AG$257,'Off-site gain site summary'!$W65,'F-1 Off-Site WaterC'' Baseline'!$Y$10:$Y$257) -> 0 | Z65: =SUMIF('F-3 Off-Site WaterC Enhancement'!$AT$12:$AT$257,'Off-site gain site summary'!$W65,'F-3 Off-Site WaterC Enhancement'!$AP$12:$AP$257) -> 0 | AA65: =SUMIF('F-2 Off-Site WaterC'' Creation'!$AG$12:$AG$259,'Off-site gain site summary'!$W65,'F-2 Off-Site WaterC'' Creation'!$AC$12:$AC$259) -> 0 | AB65: 0 | AC65: =IFERROR(_xlfn.XLOOKUP(W65,'F-2 Off-Site WaterC'' Creation'!AG70:AG316,'F-2 Off-Site WaterC'' Creation'!AA70:AA317), IFERROR(_xlfn.XLOOKUP(W65,'F-1 Off-Site WaterC'' Baseline'!AG68:AG315,'F-1 Off-Site WaterC'' Baseline'!T68:T315)," ")) ->  | AD65: 0
A66: ='D-1 Off-Site Habitat Baseline'!AF70 -> 0 | C66: =SUMIF('D-1 Off-Site Habitat Baseline'!AF70:AF73,B66,'D-1 Off-Site Habitat Baseline'!T70:T73) -> 0 | D66: =SUMIF('D-1 Off-Site Habitat Baseline'!$AF$11:$AF$258,'Off-site gain site summary'!$B$7,'D-1 Off-Site Habitat Baseline'!$X$11:$X$258) -> 0 | F66: =SUMIF('D-3 Off-Site Habitat Enhancment'!$AU$12:$AU$258,'Off-site gain site summary'!B66,'D-3 Off-Site Habitat Enhancment'!$AQ$12:$AQ$258) -> 0 | H66: =SUMIF('D-2 Off-Site Habitat Creation'!$AF$11:$AF$256,'Off-site gain site summary'!B66,'D-2 Off-Site Habitat Creation'!$AB$11:$AB$256) -> 0 | J66: 0 | K66: =IFERROR(_xlfn.XLOOKUP(B66,'D-2 Off-Site Habitat Creation'!$AF$11:$AF$256,'D-2 Off-Site Habitat Creation'!$Z$11:$Z$256), IFERROR(_xlfn.XLOOKUP(B66,'D-1 Off-Site Habitat Baseline'!AF70:AF317,'D-1 Off-Site Habitat Baseline'!S70:S317), " ")) ->  | L66: 0 | M66: ='E-1 Off-Site Hedge Baseline'!AB69 -> 0 | O66: =SUMIF('E-1 Off-Site Hedge Baseline'!AB69:AB316,'Off-site gain site summary'!N66,'E-1 Off-Site Hedge Baseline'!Q69:Q316) -> 0 | P66: =SUMIF('E-1 Off-Site Hedge Baseline'!$AB$10:$AB$257,'Off-site gain site summary'!$N66,'E-1 Off-Site Hedge Baseline'!$U$10:$U$257) -> 0 | Q66: =SUMIF('E-3 Off-Site Hedge Enhancement'!$AO$12:$AO$257,'Off-site gain site summary'!$N66,'E-3 Off-Site Hedge Enhancement'!$AK$12:$AK$257) -> 0 | R66: =SUMIF('E-2 Off-Site Hedge Creation'!$AD$12:$AD$259,'Off-site gain site summary'!$N66,'E-2 Off-Site Hedge Creation'!$Z$12:$Z$259) -> 0 | S66: 0 | T66: =IFERROR(_xlfn.XLOOKUP(N66,'E-2 Off-Site Hedge Creation'!AD71:AD318,'E-2 Off-Site Hedge Creation'!N71:N318), IFERROR(_xlfn.XLOOKUP(N66,'E-1 Off-Site Hedge Baseline'!AB69:AB316,'E-1 Off-Site Hedge Baseline'!P69:P316), " ")) ->  | U66: 0 | V66: ='F-1 Off-Site WaterC'' Baseline'!AG69 -> 0 | X66: =SUMIF('F-1 Off-Site WaterC'' Baseline'!$AG$10:$AG$257,'Off-site gain site summary'!$W66,'F-1 Off-Site WaterC'' Baseline'!$U$10:$U$257) -> 0 | Y66: =SUMIF('F-1 Off-Site WaterC'' Baseline'!$AG$10:$AG$257,'Off-site gain site summary'!$W66,'F-1 Off-Site WaterC'' Baseline'!$Y$10:$Y$257) -> 0 | Z66: =SUMIF('F-3 Off-Site WaterC Enhancement'!$AT$12:$AT$257,'Off-site gain site summary'!$W66,'F-3 Off-Site WaterC Enhancement'!$AP$12:$AP$257) -> 0 | AA66: =SUMIF('F-2 Off-Site WaterC'' Creation'!$AG$12:$AG$259,'Off-site gain site summary'!$W66,'F-2 Off-Site WaterC'' Creation'!$AC$12:$AC$259) -> 0 | AB66: 0 | AC66: =IFERROR(_xlfn.XLOOKUP(W66,'F-2 Off-Site WaterC'' Creation'!AG71:AG317,'F-2 Off-Site WaterC'' Creation'!AA71:AA318), IFERROR(_xlfn.XLOOKUP(W66,'F-1 Off-Site WaterC'' Baseline'!AG69:AG316,'F-1 Off-Site WaterC'' Baseline'!T69:T316)," ")) ->  | AD66: 0
A67: ='D-1 Off-Site Habitat Baseline'!AF71 -> 0 | C67: =SUMIF('D-1 Off-Site Habitat Baseline'!AF71:AF74,B67,'D-1 Off-Site Habitat Baseline'!T71:T74) -> 0 | D67: =SUMIF('D-1 Off-Site Habitat Baseline'!$AF$11:$AF$258,'Off-site gain site summary'!$B$7,'D-1 Off-Site Habitat Baseline'!$X$11:$X$258) -> 0 | F67: =SUMIF('D-3 Off-Site Habitat Enhancment'!$AU$12:$AU$258,'Off-site gain site summary'!B67,'D-3 Off-Site Habitat Enhancment'!$AQ$12:$AQ$258) -> 0 | H67: =SUMIF('D-2 Off-Site Habitat Creation'!$AF$11:$AF$256,'Off-site gain site summary'!B67,'D-2 Off-Site Habitat Creation'!$AB$11:$AB$256) -> 0 | J67: 0 | K67: =IFERROR(_xlfn.XLOOKUP(B67,'D-2 Off-Site Habitat Creation'!$AF$11:$AF$256,'D-2 Off-Site Habitat Creation'!$Z$11:$Z$256), IFERROR(_xlfn.XLOOKUP(B67,'D-1 Off-Site Habitat Baseline'!AF71:AF318,'D-1 Off-Site Habitat Baseline'!S71:S318), " ")) ->  | L67: 0 | M67: ='E-1 Off-Site Hedge Baseline'!AB70 -> 0 | O67: =SUMIF('E-1 Off-Site Hedge Baseline'!AB70:AB317,'Off-site gain site summary'!N67,'E-1 Off-Site Hedge Baseline'!Q70:Q317) -> 0 | P67: =SUMIF('E-1 Off-Site Hedge Baseline'!$AB$10:$AB$257,'Off-site gain site summary'!$N67,'E-1 Off-Site Hedge Baseline'!$U$10:$U$257) -> 0 | Q67: =SUMIF('E-3 Off-Site Hedge Enhancement'!$AO$12:$AO$257,'Off-site gain site summary'!$N67,'E-3 Off-Site Hedge Enhancement'!$AK$12:$AK$257) -> 0 | R67: =SUMIF('E-2 Off-Site Hedge Creation'!$AD$12:$AD$259,'Off-site gain site summary'!$N67,'E-2 Off-Site Hedge Creation'!$Z$12:$Z$259) -> 0 | S67: 0 | T67: =IFERROR(_xlfn.XLOOKUP(N67,'E-2 Off-Site Hedge Creation'!AD72:AD319,'E-2 Off-Site Hedge Creation'!N72:N319), IFERROR(_xlfn.XLOOKUP(N67,'E-1 Off-Site Hedge Baseline'!AB70:AB317,'E-1 Off-Site Hedge Baseline'!P70:P317), " ")) ->  | U67: 0 | V67: ='F-1 Off-Site WaterC'' Baseline'!AG70 -> 0 | X67: =SUMIF('F-1 Off-Site WaterC'' Baseline'!$AG$10:$AG$257,'Off-site gain site summary'!$W67,'F-1 Off-Site WaterC'' Baseline'!$U$10:$U$257) -> 0 | Y67: =SUMIF('F-1 Off-Site WaterC'' Baseline'!$AG$10:$AG$257,'Off-site gain site summary'!$W67,'F-1 Off-Site WaterC'' Baseline'!$Y$10:$Y$257) -> 0 | Z67: =SUMIF('F-3 Off-Site WaterC Enhancement'!$AT$12:$AT$257,'Off-site gain site summary'!$W67,'F-3 Off-Site WaterC Enhancement'!$AP$12:$AP$257) -> 0 | AA67: =SUMIF('F-2 Off-Site WaterC'' Creation'!$AG$12:$AG$259,'Off-site gain site summary'!$W67,'F-2 Off-Site WaterC'' Creation'!$AC$12:$AC$259) -> 0 | AB67: 0 | AC67: =IFERROR(_xlfn.XLOOKUP(W67,'F-2 Off-Site WaterC'' Creation'!AG72:AG318,'F-2 Off-Site WaterC'' Creation'!AA72:AA319), IFERROR(_xlfn.XLOOKUP(W67,'F-1 Off-Site WaterC'' Baseline'!AG70:AG317,'F-1 Off-Site WaterC'' Baseline'!T70:T317)," ")) ->  | AD67: 0
A68: ='D-1 Off-Site Habitat Baseline'!AF72 -> 0 | C68: =SUMIF('D-1 Off-Site Habitat Baseline'!AF72:AF75,B68,'D-1 Off-Site Habitat Baseline'!T72:T75) -> 0 | D68: =SUMIF('D-1 Off-Site Habitat Baseline'!$AF$11:$AF$258,'Off-site gain site summary'!$B$7,'D-1 Off-Site Habitat Baseline'!$X$11:$X$258) -> 0 | F68: =SUMIF('D-3 Off-Site Habitat Enhancment'!$AU$12:$AU$258,'Off-site gain site summary'!B68,'D-3 Off-Site Habitat Enhancment'!$AQ$12:$AQ$258) -> 0 | H68: =SUMIF('D-2 Off-Site Habitat Creation'!$AF$11:$AF$256,'Off-site gain site summary'!B68,'D-2 Off-Site Habitat Creation'!$AB$11:$AB$256) -> 0 | J68: 0 | K68: =IFERROR(_xlfn.XLOOKUP(B68,'D-2 Off-Site Habitat Creation'!$AF$11:$AF$256,'D-2 Off-Site Habitat Creation'!$Z$11:$Z$256), IFERROR(_xlfn.XLOOKUP(B68,'D-1 Off-Site Habitat Baseline'!AF72:AF319,'D-1 Off-Site Habitat Baseline'!S72:S319), " ")) ->  | L68: 0 | M68: ='E-1 Off-Site Hedge Baseline'!AB71 -> 0 | O68: =SUMIF('E-1 Off-Site Hedge Baseline'!AB71:AB318,'Off-site gain site summary'!N68,'E-1 Off-Site Hedge Baseline'!Q71:Q318) -> 0 | P68: =SUMIF('E-1 Off-Site Hedge Baseline'!$AB$10:$AB$257,'Off-site gain site summary'!$N68,'E-1 Off-Site Hedge Baseline'!$U$10:$U$257) -> 0 | Q68: =SUMIF('E-3 Off-Site Hedge Enhancement'!$AO$12:$AO$257,'Off-site gain site summary'!$N68,'E-3 Off-Site Hedge Enhancement'!$AK$12:$AK$257) -> 0 | R68: =SUMIF('E-2 Off-Site Hedge Creation'!$AD$12:$AD$259,'Off-site gain site summary'!$N68,'E-2 Off-Site Hedge Creation'!$Z$12:$Z$259) -> 0 | S68: 0 | T68: =IFERROR(_xlfn.XLOOKUP(N68,'E-2 Off-Site Hedge Creation'!AD73:AD320,'E-2 Off-Site Hedge Creation'!N73:N320), IFERROR(_xlfn.XLOOKUP(N68,'E-1 Off-Site Hedge Baseline'!AB71:AB318,'E-1 Off-Site Hedge Baseline'!P71:P318), " ")) ->  | U68: 0 | V68: ='F-1 Off-Site WaterC'' Baseline'!AG71 -> 0 | X68: =SUMIF('F-1 Off-Site WaterC'' Baseline'!$AG$10:$AG$257,'Off-site gain site summary'!$W68,'F-1 Off-Site WaterC'' Baseline'!$U$10:$U$257) -> 0 | Y68: =SUMIF('F-1 Off-Site WaterC'' Baseline'!$AG$10:$AG$257,'Off-site gain site summary'!$W68,'F-1 Off-Site WaterC'' Baseline'!$Y$10:$Y$257) -> 0 | Z68: =SUMIF('F-3 Off-Site WaterC Enhancement'!$AT$12:$AT$257,'Off-site gain site summary'!$W68,'F-3 Off-Site WaterC Enhancement'!$AP$12:$AP$257) -> 0 | AA68: =SUMIF('F-2 Off-Site WaterC'' Creation'!$AG$12:$AG$259,'Off-site gain site summary'!$W68,'F-2 Off-Site WaterC'' Creation'!$AC$12:$AC$259) -> 0 | AB68: 0 | AC68: =IFERROR(_xlfn.XLOOKUP(W68,'F-2 Off-Site WaterC'' Creation'!AG73:AG319,'F-2 Off-Site WaterC'' Creation'!AA73:AA320), IFERROR(_xlfn.XLOOKUP(W68,'F-1 Off-Site WaterC'' Baseline'!AG71:AG318,'F-1 Off-Site WaterC'' Baseline'!T71:T318)," ")) ->  | AD68: 0
A69: ='D-1 Off-Site Habitat Baseline'!AF73 -> 0 | C69: =SUMIF('D-1 Off-Site Habitat Baseline'!AF73:AF76,B69,'D-1 Off-Site Habitat Baseline'!T73:T76) -> 0 | D69: =SUMIF('D-1 Off-Site Habitat Baseline'!$AF$11:$AF$258,'Off-site gain site summary'!$B$7,'D-1 Off-Site Habitat Baseline'!$X$11:$X$258) -> 0 | F69: =SUMIF('D-3 Off-Site Habitat Enhancment'!$AU$12:$AU$258,'Off-site gain site summary'!B69,'D-3 Off-Site Habitat Enhancment'!$AQ$12:$AQ$258) -> 0 | H69: =SUMIF('D-2 Off-Site Habitat Creation'!$AF$11:$AF$256,'Off-site gain site summary'!B69,'D-2 Off-Site Habitat Creation'!$AB$11:$AB$256) -> 0 | J69: 0 | K69: =IFERROR(_xlfn.XLOOKUP(B69,'D-2 Off-Site Habitat Creation'!$AF$11:$AF$256,'D-2 Off-Site Habitat Creation'!$Z$11:$Z$256), IFERROR(_xlfn.XLOOKUP(B69,'D-1 Off-Site Habitat Baseline'!AF73:AF320,'D-1 Off-Site Habitat Baseline'!S73:S320), " ")) ->  | L69: 0 | M69: ='E-1 Off-Site Hedge Baseline'!AB72 -> 0 | O69: =SUMIF('E-1 Off-Site Hedge Baseline'!AB72:AB319,'Off-site gain site summary'!N69,'E-1 Off-Site Hedge Baseline'!Q72:Q319) -> 0 | P69: =SUMIF('E-1 Off-Site Hedge Baseline'!$AB$10:$AB$257,'Off-site gain site summary'!$N69,'E-1 Off-Site Hedge Baseline'!$U$10:$U$257) -> 0 | Q69: =SUMIF('E-3 Off-Site Hedge Enhancement'!$AO$12:$AO$257,'Off-site gain site summary'!$N69,'E-3 Off-Site Hedge Enhancement'!$AK$12:$AK$257) -> 0 | R69: =SUMIF('E-2 Off-Site Hedge Creation'!$AD$12:$AD$259,'Off-site gain site summary'!$N69,'E-2 Off-Site Hedge Creation'!$Z$12:$Z$259) -> 0 | S69: 0 | T69: =IFERROR(_xlfn.XLOOKUP(N69,'E-2 Off-Site Hedge Creation'!AD74:AD321,'E-2 Off-Site Hedge Creation'!N74:N321), IFERROR(_xlfn.XLOOKUP(N69,'E-1 Off-Site Hedge Baseline'!AB72:AB319,'E-1 Off-Site Hedge Baseline'!P72:P319), " ")) ->  | U69: 0 | V69: ='F-1 Off-Site WaterC'' Baseline'!AG72 -> 0 | X69: =SUMIF('F-1 Off-Site WaterC'' Baseline'!$AG$10:$AG$257,'Off-site gain site summary'!$W69,'F-1 Off-Site WaterC'' Baseline'!$U$10:$U$257) -> 0 | Y69: =SUMIF('F-1 Off-Site WaterC'' Baseline'!$AG$10:$AG$257,'Off-site gain site summary'!$W69,'F-1 Off-Site WaterC'' Baseline'!$Y$10:$Y$257) -> 0 | Z69: =SUMIF('F-3 Off-Site WaterC Enhancement'!$AT$12:$AT$257,'Off-site gain site summary'!$W69,'F-3 Off-Site WaterC Enhancement'!$AP$12:$AP$257) -> 0 | AA69: =SUMIF('F-2 Off-Site WaterC'' Creation'!$AG$12:$AG$259,'Off-site gain site summary'!$W69,'F-2 Off-Site WaterC'' Creation'!$AC$12:$AC$259) -> 0 | AB69: 0 | AC69: =IFERROR(_xlfn.XLOOKUP(W69,'F-2 Off-Site WaterC'' Creation'!AG74:AG320,'F-2 Off-Site WaterC'' Creation'!AA74:AA321), IFERROR(_xlfn.XLOOKUP(W69,'F-1 Off-Site WaterC'' Baseline'!AG72:AG319,'F-1 Off-Site WaterC'' Baseline'!T72:T319)," ")) ->  | AD69: 0
A70: ='D-1 Off-Site Habitat Baseline'!AF74 -> 0 | C70: =SUMIF('D-1 Off-Site Habitat Baseline'!AF74:AF77,B70,'D-1 Off-Site Habitat Baseline'!T74:T77) -> 0 | D70: =SUMIF('D-1 Off-Site Habitat Baseline'!$AF$11:$AF$258,'Off-site gain site summary'!$B$7,'D-1 Off-Site Habitat Baseline'!$X$11:$X$258) -> 0 | F70: =SUMIF('D-3 Off-Site Habitat Enhancment'!$AU$12:$AU$258,'Off-site gain site summary'!B70,'D-3 Off-Site Habitat Enhancment'!$AQ$12:$AQ$258) -> 0 | H70: =SUMIF('D-2 Off-Site Habitat Creation'!$AF$11:$AF$256,'Off-site gain site summary'!B70,'D-2 Off-Site Habitat Creation'!$AB$11:$AB$256) -> 0 | J70: 0 | K70: =IFERROR(_xlfn.XLOOKUP(B70,'D-2 Off-Site Habitat Creation'!$AF$11:$AF$256,'D-2 Off-Site Habitat Creation'!$Z$11:$Z$256), IFERROR(_xlfn.XLOOKUP(B70,'D-1 Off-Site Habitat Baseline'!AF74:AF321,'D-1 Off-Site Habitat Baseline'!S74:S321), " ")) ->  | L70: 0 | M70: ='E-1 Off-Site Hedge Baseline'!AB73 -> 0 | O70: =SUMIF('E-1 Off-Site Hedge Baseline'!AB73:AB320,'Off-site gain site summary'!N70,'E-1 Off-Site Hedge Baseline'!Q73:Q320) -> 0 | P70: =SUMIF('E-1 Off-Site Hedge Baseline'!$AB$10:$AB$257,'Off-site gain site summary'!$N70,'E-1 Off-Site Hedge Baseline'!$U$10:$U$257) -> 0 | Q70: =SUMIF('E-3 Off-Site Hedge Enhancement'!$AO$12:$AO$257,'Off-site gain site summary'!$N70,'E-3 Off-Site Hedge Enhancement'!$AK$12:$AK$257) -> 0 | R70: =SUMIF('E-2 Off-Site Hedge Creation'!$AD$12:$AD$259,'Off-site gain site summary'!$N70,'E-2 Off-Site Hedge Creation'!$Z$12:$Z$259) -> 0 | S70: 0 | T70: =IFERROR(_xlfn.XLOOKUP(N70,'E-2 Off-Site Hedge Creation'!AD75:AD322,'E-2 Off-Site Hedge Creation'!N75:N322), IFERROR(_xlfn.XLOOKUP(N70,'E-1 Off-Site Hedge Baseline'!AB73:AB320,'E-1 Off-Site Hedge Baseline'!P73:P320), " ")) ->  | U70: 0 | V70: ='F-1 Off-Site WaterC'' Baseline'!AG73 -> 0 | X70: =SUMIF('F-1 Off-Site WaterC'' Baseline'!$AG$10:$AG$257,'Off-site gain site summary'!$W70,'F-1 Off-Site WaterC'' Baseline'!$U$10:$U$257) -> 0 | Y70: =SUMIF('F-1 Off-Site WaterC'' Baseline'!$AG$10:$AG$257,'Off-site gain site summary'!$W70,'F-1 Off-Site WaterC'' Baseline'!$Y$10:$Y$257) -> 0 | Z70: =SUMIF('F-3 Off-Site WaterC Enhancement'!$AT$12:$AT$257,'Off-site gain site summary'!$W70,'F-3 Off-Site WaterC Enhancement'!$AP$12:$AP$257) -> 0 | AA70: =SUMIF('F-2 Off-Site WaterC'' Creation'!$AG$12:$AG$259,'Off-site gain site summary'!$W70,'F-2 Off-Site WaterC'' Creation'!$AC$12:$AC$259) -> 0 | AB70: 0 | AC70: =IFERROR(_xlfn.XLOOKUP(W70,'F-2 Off-Site WaterC'' Creation'!AG75:AG321,'F-2 Off-Site WaterC'' Creation'!AA75:AA322), IFERROR(_xlfn.XLOOKUP(W70,'F-1 Off-Site WaterC'' Baseline'!AG73:AG320,'F-1 Off-Site WaterC'' Baseline'!T73:T320)," ")) ->  | AD70: 0
A71: ='D-1 Off-Site Habitat Baseline'!AF75 -> 0 | C71: =SUMIF('D-1 Off-Site Habitat Baseline'!AF75:AF78,B71,'D-1 Off-Site Habitat Baseline'!T75:T78) -> 0 | D71: =SUMIF('D-1 Off-Site Habitat Baseline'!$AF$11:$AF$258,'Off-site gain site summary'!$B$7,'D-1 Off-Site Habitat Baseline'!$X$11:$X$258) -> 0 | F71: =SUMIF('D-3 Off-Site Habitat Enhancment'!$AU$12:$AU$258,'Off-site gain site summary'!B71,'D-3 Off-Site Habitat Enhancment'!$AQ$12:$AQ$258) -> 0 | H71: =SUMIF('D-2 Off-Site Habitat Creation'!$AF$11:$AF$256,'Off-site gain site summary'!B71,'D-2 Off-Site Habitat Creation'!$AB$11:$AB$256) -> 0 | J71: 0 | K71: =IFERROR(_xlfn.XLOOKUP(B71,'D-2 Off-Site Habitat Creation'!$AF$11:$AF$256,'D-2 Off-Site Habitat Creation'!$Z$11:$Z$256), IFERROR(_xlfn.XLOOKUP(B71,'D-1 Off-Site Habitat Baseline'!AF75:AF322,'D-1 Off-Site Habitat Baseline'!S75:S322), " ")) ->  | L71: 0 | M71: ='E-1 Off-Site Hedge Baseline'!AB74 -> 0 | O71: =SUMIF('E-1 Off-Site Hedge Baseline'!AB74:AB321,'Off-site gain site summary'!N71,'E-1 Off-Site Hedge Baseline'!Q74:Q321) -> 0 | P71: =SUMIF('E-1 Off-Site Hedge Baseline'!$AB$10:$AB$257,'Off-site gain site summary'!$N71,'E-1 Off-Site Hedge Baseline'!$U$10:$U$257) -> 0 | Q71: =SUMIF('E-3 Off-Site Hedge Enhancement'!$AO$12:$AO$257,'Off-site gain site summary'!$N71,'E-3 Off-Site Hedge Enhancement'!$AK$12:$AK$257) -> 0 | R71: =SUMIF('E-2 Off-Site Hedge Creation'!$AD$12:$AD$259,'Off-site gain site summary'!$N71,'E-2 Off-Site Hedge Creation'!$Z$12:$Z$259) -> 0 | S71: 0 | T71: =IFERROR(_xlfn.XLOOKUP(N71,'E-2 Off-Site Hedge Creation'!AD76:AD323,'E-2 Off-Site Hedge Creation'!N76:N323), IFERROR(_xlfn.XLOOKUP(N71,'E-1 Off-Site Hedge Baseline'!AB74:AB321,'E-1 Off-Site Hedge Baseline'!P74:P321), " ")) ->  | U71: 0 | V71: ='F-1 Off-Site WaterC'' Baseline'!AG74 -> 0 | X71: =SUMIF('F-1 Off-Site WaterC'' Baseline'!$AG$10:$AG$257,'Off-site gain site summary'!$W71,'F-1 Off-Site WaterC'' Baseline'!$U$10:$U$257) -> 0 | Y71: =SUMIF('F-1 Off-Site WaterC'' Baseline'!$AG$10:$AG$257,'Off-site gain site summary'!$W71,'F-1 Off-Site WaterC'' Baseline'!$Y$10:$Y$257) -> 0 | Z71: =SUMIF('F-3 Off-Site WaterC Enhancement'!$AT$12:$AT$257,'Off-site gain site summary'!$W71,'F-3 Off-Site WaterC Enhancement'!$AP$12:$AP$257) -> 0 | AA71: =SUMIF('F-2 Off-Site WaterC'' Creation'!$AG$12:$AG$259,'Off-site gain site summary'!$W71,'F-2 Off-Site WaterC'' Creation'!$AC$12:$AC$259) -> 0 | AB71: 0 | AC71: =IFERROR(_xlfn.XLOOKUP(W71,'F-2 Off-Site WaterC'' Creation'!AG76:AG322,'F-2 Off-Site WaterC'' Creation'!AA76:AA323), IFERROR(_xlfn.XLOOKUP(W71,'F-1 Off-Site WaterC'' Baseline'!AG74:AG321,'F-1 Off-Site WaterC'' Baseline'!T74:T321)," ")) ->  | AD71: 0
A72: ='D-1 Off-Site Habitat Baseline'!AF76 -> 0 | C72: =SUMIF('D-1 Off-Site Habitat Baseline'!AF76:AF79,B72,'D-1 Off-Site Habitat Baseline'!T76:T79) -> 0 | D72: =SUMIF('D-1 Off-Site Habitat Baseline'!$AF$11:$AF$258,'Off-site gain site summary'!$B$7,'D-1 Off-Site Habitat Baseline'!$X$11:$X$258) -> 0 | F72: =SUMIF('D-3 Off-Site Habitat Enhancment'!$AU$12:$AU$258,'Off-site gain site summary'!B72,'D-3 Off-Site Habitat Enhancment'!$AQ$12:$AQ$258) -> 0 | H72: =SUMIF('D-2 Off-Site Habitat Creation'!$AF$11:$AF$256,'Off-site gain site summary'!B72,'D-2 Off-Site Habitat Creation'!$AB$11:$AB$256) -> 0 | J72: =(H72+F72+D72)-(C72) -> 0 | K72: =IFERROR(_xlfn.XLOOKUP(B72,'D-2 Off-Site Habitat Creation'!$AF$11:$AF$256,'D-2 Off-Site Habitat Creation'!$Z$11:$Z$256), IFERROR(_xlfn.XLOOKUP(B72,'D-1 Off-Site Habitat Baseline'!AF76:AF323,'D-1 Off-Site Habitat Baseline'!S76:S323), " ")) ->  | L72: =IF(J72>0,IFERROR(J72*K72, "0"), J72) -> 0 | M72: ='E-1 Off-Site Hedge Baseline'!AB75 -> 0 | O72: =SUMIF('E-1 Off-Site Hedge Baseline'!AB75:AB322,'Off-site gain site summary'!N72,'E-1 Off-Site Hedge Baseline'!Q75:Q322) -> 0 | P72: =SUMIF('E-1 Off-Site Hedge Baseline'!$AB$10:$AB$257,'Off-site gain site summary'!$N72,'E-1 Off-Site Hedge Baseline'!$U$10:$U$257) -> 0 | Q72: =SUMIF('E-3 Off-Site Hedge Enhancement'!$AO$12:$AO$257,'Off-site gain site summary'!$N72,'E-3 Off-Site Hedge Enhancement'!$AK$12:$AK$257) -> 0 | R72: =SUMIF('E-2 Off-Site Hedge Creation'!$AD$12:$AD$259,'Off-site gain site summary'!$N72,'E-2 Off-Site Hedge Creation'!$Z$12:$Z$259) -> 0 | S72: =(R72+Q72+P72)-O72 -> 0 | T72: =IFERROR(_xlfn.XLOOKUP(N72,'E-2 Off-Site Hedge Creation'!AD77:AD324,'E-2 Off-Site Hedge Creation'!N77:N324), IFERROR(_xlfn.XLOOKUP(N72,'E-1 Off-Site Hedge Baseline'!AB75:AB322,'E-1 Off-Site Hedge Baseline'!P75:P322), " ")) ->  | U72: =IF(S72>0,IFERROR(S72*T72, "0"), S72) -> 0 | V72: ='F-1 Off-Site WaterC'' Baseline'!AG75 -> 0 | X72: =SUMIF('F-1 Off-Site WaterC'' Baseline'!$AG$10:$AG$257,'Off-site gain site summary'!$W72,'F-1 Off-Site WaterC'' Baseline'!$U$10:$U$257) -> 0 | Y72: =SUMIF('F-1 Off-Site WaterC'' Baseline'!$AG$10:$AG$257,'Off-site gain site summary'!$W72,'F-1 Off-Site WaterC'' Baseline'!$Y$10:$Y$257) -> 0 | Z72: =SUMIF('F-3 Off-Site WaterC Enhancement'!$AT$12:$AT$257,'Off-site gain site summary'!$W72,'F-3 Off-Site WaterC Enhancement'!$AP$12:$AP$257) -> 0 | AA72: =SUMIF('F-2 Off-Site WaterC'' Creation'!$AG$12:$AG$259,'Off-site gain site summary'!$W72,'F-2 Off-Site WaterC'' Creation'!$AC$12:$AC$259) -> 0 | AB72: =(Z72+AA72+Y72)-X72 -> 0 | AC72: =IFERROR(_xlfn.XLOOKUP(W72,'F-2 Off-Site WaterC'' Creation'!AG77:AG323,'F-2 Off-Site WaterC'' Creation'!AA77:AA324), IFERROR(_xlfn.XLOOKUP(W72,'F-1 Off-Site WaterC'' Baseline'!AG75:AG322,'F-1 Off-Site WaterC'' Baseline'!T75:T322)," ")) ->  | AD72: =IF(AB72>0,IFERROR(AB72*AC72, "0"), AB72) -> 0
A73: ='D-1 Off-Site Habitat Baseline'!AF77 -> 0 | C73: =SUMIF('D-1 Off-Site Habitat Baseline'!AF77:AF80,B73,'D-1 Off-Site Habitat Baseline'!T77:T80) -> 0 | D73: =SUMIF('D-1 Off-Site Habitat Baseline'!$AF$11:$AF$258,'Off-site gain site summary'!$B$7,'D-1 Off-Site Habitat Baseline'!$X$11:$X$258) -> 0 | F73: =SUMIF('D-3 Off-Site Habitat Enhancment'!$AU$12:$AU$258,'Off-site gain site summary'!B73,'D-3 Off-Site Habitat Enhancment'!$AQ$12:$AQ$258) -> 0 | H73: =SUMIF('D-2 Off-Site Habitat Creation'!$AF$11:$AF$256,'Off-site gain site summary'!B73,'D-2 Off-Site Habitat Creation'!$AB$11:$AB$256) -> 0 | J73: 0 | K73: =IFERROR(_xlfn.XLOOKUP(B73,'D-2 Off-Site Habitat Creation'!$AF$11:$AF$256,'D-2 Off-Site Habitat Creation'!$Z$11:$Z$256), IFERROR(_xlfn.XLOOKUP(B73,'D-1 Off-Site Habitat Baseline'!AF77:AF324,'D-1 Off-Site Habitat Baseline'!S77:S324), " ")) ->  | L73: 0 | M73: ='E-1 Off-Site Hedge Baseline'!AB76 -> 0 | O73: =SUMIF('E-1 Off-Site Hedge Baseline'!AB76:AB323,'Off-site gain site summary'!N73,'E-1 Off-Site Hedge Baseline'!Q76:Q323) -> 0 | P73: =SUMIF('E-1 Off-Site Hedge Baseline'!$AB$10:$AB$257,'Off-site gain site summary'!$N73,'E-1 Off-Site Hedge Baseline'!$U$10:$U$257) -> 0 | Q73: =SUMIF('E-3 Off-Site Hedge Enhancement'!$AO$12:$AO$257,'Off-site gain site summary'!$N73,'E-3 Off-Site Hedge Enhancement'!$AK$12:$AK$257) -> 0 | R73: =SUMIF('E-2 Off-Site Hedge Creation'!$AD$12:$AD$259,'Off-site gain site summary'!$N73,'E-2 Off-Site Hedge Creation'!$Z$12:$Z$259) -> 0 | S73: 0 | T73: =IFERROR(_xlfn.XLOOKUP(N73,'E-2 Off-Site Hedge Creation'!AD78:AD325,'E-2 Off-Site Hedge Creation'!N78:N325), IFERROR(_xlfn.XLOOKUP(N73,'E-1 Off-Site Hedge Baseline'!AB76:AB323,'E-1 Off-Site Hedge Baseline'!P76:P323), " ")) ->  | U73: 0 | V73: ='F-1 Off-Site WaterC'' Baseline'!AG76 -> 0 | X73: =SUMIF('F-1 Off-Site WaterC'' Baseline'!$AG$10:$AG$257,'Off-site gain site summary'!$W73,'F-1 Off-Site WaterC'' Baseline'!$U$10:$U$257) -> 0 | Y73: =SUMIF('F-1 Off-Site WaterC'' Baseline'!$AG$10:$AG$257,'Off-site gain site summary'!$W73,'F-1 Off-Site WaterC'' Baseline'!$Y$10:$Y$257) -> 0 | Z73: =SUMIF('F-3 Off-Site WaterC Enhancement'!$AT$12:$AT$257,'Off-site gain site summary'!$W73,'F-3 Off-Site WaterC Enhancement'!$AP$12:$AP$257) -> 0 | AA73: =SUMIF('F-2 Off-Site WaterC'' Creation'!$AG$12:$AG$259,'Off-site gain site summary'!$W73,'F-2 Off-Site WaterC'' Creation'!$AC$12:$AC$259) -> 0 | AB73: 0 | AC73: =IFERROR(_xlfn.XLOOKUP(W73,'F-2 Off-Site WaterC'' Creation'!AG78:AG324,'F-2 Off-Site WaterC'' Creation'!AA78:AA325), IFERROR(_xlfn.XLOOKUP(W73,'F-1 Off-Site WaterC'' Baseline'!AG76:AG323,'F-1 Off-Site WaterC'' Baseline'!T76:T323)," ")) ->  | AD73: 0
A74: ='D-1 Off-Site Habitat Baseline'!AF78 -> 0 | C74: =SUMIF('D-1 Off-Site Habitat Baseline'!AF78:AF81,B74,'D-1 Off-Site Habitat Baseline'!T78:T81) -> 0 | D74: =SUMIF('D-1 Off-Site Habitat Baseline'!$AF$11:$AF$258,'Off-site gain site summary'!$B$7,'D-1 Off-Site Habitat Baseline'!$X$11:$X$258) -> 0 | F74: =SUMIF('D-3 Off-Site Habitat Enhancment'!$AU$12:$AU$258,'Off-site gain site summary'!B74,'D-3 Off-Site Habitat Enhancment'!$AQ$12:$AQ$258) -> 0 | H74: =SUMIF('D-2 Off-Site Habitat Creation'!$AF$11:$AF$256,'Off-site gain site summary'!B74,'D-2 Off-Site Habitat Creation'!$AB$11:$AB$256) -> 0 | J74: 0 | K74: =IFERROR(_xlfn.XLOOKUP(B74,'D-2 Off-Site Habitat Creation'!$AF$11:$AF$256,'D-2 Off-Site Habitat Creation'!$Z$11:$Z$256), IFERROR(_xlfn.XLOOKUP(B74,'D-1 Off-Site Habitat Baseline'!AF78:AF325,'D-1 Off-Site Habitat Baseline'!S78:S325), " ")) ->  | L74: 0 | M74: ='E-1 Off-Site Hedge Baseline'!AB77 -> 0 | O74: =SUMIF('E-1 Off-Site Hedge Baseline'!AB77:AB324,'Off-site gain site summary'!N74,'E-1 Off-Site Hedge Baseline'!Q77:Q324) -> 0 | P74: =SUMIF('E-1 Off-Site Hedge Baseline'!$AB$10:$AB$257,'Off-site gain site summary'!$N74,'E-1 Off-Site Hedge Baseline'!$U$10:$U$257) -> 0 | Q74: =SUMIF('E-3 Off-Site Hedge Enhancement'!$AO$12:$AO$257,'Off-site gain site summary'!$N74,'E-3 Off-Site Hedge Enhancement'!$AK$12:$AK$257) -> 0 | R74: =SUMIF('E-2 Off-Site Hedge Creation'!$AD$12:$AD$259,'Off-site gain site summary'!$N74,'E-2 Off-Site Hedge Creation'!$Z$12:$Z$259) -> 0 | S74: 0 | T74: =IFERROR(_xlfn.XLOOKUP(N74,'E-2 Off-Site Hedge Creation'!AD79:AD326,'E-2 Off-Site Hedge Creation'!N79:N326), IFERROR(_xlfn.XLOOKUP(N74,'E-1 Off-Site Hedge Baseline'!AB77:AB324,'E-1 Off-Site Hedge Baseline'!P77:P324), " ")) ->  | U74: 0 | V74: ='F-1 Off-Site WaterC'' Baseline'!AG77 -> 0 | X74: =SUMIF('F-1 Off-Site WaterC'' Baseline'!$AG$10:$AG$257,'Off-site gain site summary'!$W74,'F-1 Off-Site WaterC'' Baseline'!$U$10:$U$257) -> 0 | Y74: =SUMIF('F-1 Off-Site WaterC'' Baseline'!$AG$10:$AG$257,'Off-site gain site summary'!$W74,'F-1 Off-Site WaterC'' Baseline'!$Y$10:$Y$257) -> 0 | Z74: =SUMIF('F-3 Off-Site WaterC Enhancement'!$AT$12:$AT$257,'Off-site gain site summary'!$W74,'F-3 Off-Site WaterC Enhancement'!$AP$12:$AP$257) -> 0 | AA74: =SUMIF('F-2 Off-Site WaterC'' Creation'!$AG$12:$AG$259,'Off-site gain site summary'!$W74,'F-2 Off-Site WaterC'' Creation'!$AC$12:$AC$259) -> 0 | AB74: 0 | AC74: =IFERROR(_xlfn.XLOOKUP(W74,'F-2 Off-Site WaterC'' Creation'!AG79:AG325,'F-2 Off-Site WaterC'' Creation'!AA79:AA326), IFERROR(_xlfn.XLOOKUP(W74,'F-1 Off-Site WaterC'' Baseline'!AG77:AG324,'F-1 Off-Site WaterC'' Baseline'!T77:T324)," ")) ->  | AD74: 0
A75: ='D-1 Off-Site Habitat Baseline'!AF79 -> 0 | C75: =SUMIF('D-1 Off-Site Habitat Baseline'!AF79:AF82,B75,'D-1 Off-Site Habitat Baseline'!T79:T82) -> 0 | D75: =SUMIF('D-1 Off-Site Habitat Baseline'!$AF$11:$AF$258,'Off-site gain site summary'!$B$7,'D-1 Off-Site Habitat Baseline'!$X$11:$X$258) -> 0 | F75: =SUMIF('D-3 Off-Site Habitat Enhancment'!$AU$12:$AU$258,'Off-site gain site summary'!B75,'D-3 Off-Site Habitat Enhancment'!$AQ$12:$AQ$258) -> 0 | H75: =SUMIF('D-2 Off-Site Habitat Creation'!$AF$11:$AF$256,'Off-site gain site summary'!B75,'D-2 Off-Site Habitat Creation'!$AB$11:$AB$256) -> 0 | J75: 0 | K75: =IFERROR(_xlfn.XLOOKUP(B75,'D-2 Off-Site Habitat Creation'!$AF$11:$AF$256,'D-2 Off-Site Habitat Creation'!$Z$11:$Z$256), IFERROR(_xlfn.XLOOKUP(B75,'D-1 Off-Site Habitat Baseline'!AF79:AF326,'D-1 Off-Site Habitat Baseline'!S79:S326), " ")) ->  | L75: 0 | M75: ='E-1 Off-Site Hedge Baseline'!AB78 -> 0 | O75: =SUMIF('E-1 Off-Site Hedge Baseline'!AB78:AB325,'Off-site gain site summary'!N75,'E-1 Off-Site Hedge Baseline'!Q78:Q325) -> 0 | P75: =SUMIF('E-1 Off-Site Hedge Baseline'!$AB$10:$AB$257,'Off-site gain site summary'!$N75,'E-1 Off-Site Hedge Baseline'!$U$10:$U$257) -> 0 | Q75: =SUMIF('E-3 Off-Site Hedge Enhancement'!$AO$12:$AO$257,'Off-site gain site summary'!$N75,'E-3 Off-Site Hedge Enhancement'!$AK$12:$AK$257) -> 0 | R75: =SUMIF('E-2 Off-Site Hedge Creation'!$AD$12:$AD$259,'Off-site gain site summary'!$N75,'E-2 Off-Site Hedge Creation'!$Z$12:$Z$259) -> 0 | S75: 0 | T75: =IFERROR(_xlfn.XLOOKUP(N75,'E-2 Off-Site Hedge Creation'!AD80:AD327,'E-2 Off-Site Hedge Creation'!N80:N327), IFERROR(_xlfn.XLOOKUP(N75,'E-1 Off-Site Hedge Baseline'!AB78:AB325,'E-1 Off-Site Hedge Baseline'!P78:P325), " ")) ->  | U75: 0 | V75: ='F-1 Off-Site WaterC'' Baseline'!AG78 -> 0 | X75: =SUMIF('F-1 Off-Site WaterC'' Baseline'!$AG$10:$AG$257,'Off-site gain site summary'!$W75,'F-1 Off-Site WaterC'' Baseline'!$U$10:$U$257) -> 0 | Y75: =SUMIF('F-1 Off-Site WaterC'' Baseline'!$AG$10:$AG$257,'Off-site gain site summary'!$W75,'F-1 Off-Site WaterC'' Baseline'!$Y$10:$Y$257) -> 0 | Z75: =SUMIF('F-3 Off-Site WaterC Enhancement'!$AT$12:$AT$257,'Off-site gain site summary'!$W75,'F-3 Off-Site WaterC Enhancement'!$AP$12:$AP$257) -> 0 | AA75: =SUMIF('F-2 Off-Site WaterC'' Creation'!$AG$12:$AG$259,'Off-site gain site summary'!$W75,'F-2 Off-Site WaterC'' Creation'!$AC$12:$AC$259) -> 0 | AB75: 0 | AC75: =IFERROR(_xlfn.XLOOKUP(W75,'F-2 Off-Site WaterC'' Creation'!AG80:AG326,'F-2 Off-Site WaterC'' Creation'!AA80:AA327), IFERROR(_xlfn.XLOOKUP(W75,'F-1 Off-Site WaterC'' Baseline'!AG78:AG325,'F-1 Off-Site WaterC'' Baseline'!T78:T325)," ")) ->  | AD75: 0
A76: ='D-1 Off-Site Habitat Baseline'!AF80 -> 0 | C76: =SUMIF('D-1 Off-Site Habitat Baseline'!AF80:AF83,B76,'D-1 Off-Site Habitat Baseline'!T80:T83) -> 0 | D76: =SUMIF('D-1 Off-Site Habitat Baseline'!$AF$11:$AF$258,'Off-site gain site summary'!$B$7,'D-1 Off-Site Habitat Baseline'!$X$11:$X$258) -> 0 | F76: =SUMIF('D-3 Off-Site Habitat Enhancment'!$AU$12:$AU$258,'Off-site gain site summary'!B76,'D-3 Off-Site Habitat Enhancment'!$AQ$12:$AQ$258) -> 0 | H76: =SUMIF('D-2 Off-Site Habitat Creation'!$AF$11:$AF$256,'Off-site gain site summary'!B76,'D-2 Off-Site Habitat Creation'!$AB$11:$AB$256) -> 0 | J76: 0 | K76: =IFERROR(_xlfn.XLOOKUP(B76,'D-2 Off-Site Habitat Creation'!$AF$11:$AF$256,'D-2 Off-Site Habitat Creation'!$Z$11:$Z$256), IFERROR(_xlfn.XLOOKUP(B76,'D-1 Off-Site Habitat Baseline'!AF80:AF327,'D-1 Off-Site Habitat Baseline'!S80:S327), " ")) ->  | L76: 0 | M76: ='E-1 Off-Site Hedge Baseline'!AB79 -> 0 | O76: =SUMIF('E-1 Off-Site Hedge Baseline'!AB79:AB326,'Off-site gain site summary'!N76,'E-1 Off-Site Hedge Baseline'!Q79:Q326) -> 0 | P76: =SUMIF('E-1 Off-Site Hedge Baseline'!$AB$10:$AB$257,'Off-site gain site summary'!$N76,'E-1 Off-Site Hedge Baseline'!$U$10:$U$257) -> 0 | Q76: =SUMIF('E-3 Off-Site Hedge Enhancement'!$AO$12:$AO$257,'Off-site gain site summary'!$N76,'E-3 Off-Site Hedge Enhancement'!$AK$12:$AK$257) -> 0 | R76: =SUMIF('E-2 Off-Site Hedge Creation'!$AD$12:$AD$259,'Off-site gain site summary'!$N76,'E-2 Off-Site Hedge Creation'!$Z$12:$Z$259) -> 0 | S76: 0 | T76: =IFERROR(_xlfn.XLOOKUP(N76,'E-2 Off-Site Hedge Creation'!AD81:AD328,'E-2 Off-Site Hedge Creation'!N81:N328), IFERROR(_xlfn.XLOOKUP(N76,'E-1 Off-Site Hedge Baseline'!AB79:AB326,'E-1 Off-Site Hedge Baseline'!P79:P326), " ")) ->  | U76: 0 | V76: ='F-1 Off-Site WaterC'' Baseline'!AG79 -> 0 | X76: =SUMIF('F-1 Off-Site WaterC'' Baseline'!$AG$10:$AG$257,'Off-site gain site summary'!$W76,'F-1 Off-Site WaterC'' Baseline'!$U$10:$U$257) -> 0 | Y76: =SUMIF('F-1 Off-Site WaterC'' Baseline'!$AG$10:$AG$257,'Off-site gain site summary'!$W76,'F-1 Off-Site WaterC'' Baseline'!$Y$10:$Y$257) -> 0 | Z76: =SUMIF('F-3 Off-Site WaterC Enhancement'!$AT$12:$AT$257,'Off-site gain site summary'!$W76,'F-3 Off-Site WaterC Enhancement'!$AP$12:$AP$257) -> 0 | AA76: =SUMIF('F-2 Off-Site WaterC'' Creation'!$AG$12:$AG$259,'Off-site gain site summary'!$W76,'F-2 Off-Site WaterC'' Creation'!$AC$12:$AC$259) -> 0 | AB76: 0 | AC76: =IFERROR(_xlfn.XLOOKUP(W76,'F-2 Off-Site WaterC'' Creation'!AG81:AG327,'F-2 Off-Site WaterC'' Creation'!AA81:AA328), IFERROR(_xlfn.XLOOKUP(W76,'F-1 Off-Site WaterC'' Baseline'!AG79:AG326,'F-1 Off-Site WaterC'' Baseline'!T79:T326)," ")) ->  | AD76: 0
A77: ='D-1 Off-Site Habitat Baseline'!AF81 -> 0 | C77: =SUMIF('D-1 Off-Site Habitat Baseline'!AF81:AF84,B77,'D-1 Off-Site Habitat Baseline'!T81:T84) -> 0 | D77: =SUMIF('D-1 Off-Site Habitat Baseline'!$AF$11:$AF$258,'Off-site gain site summary'!$B$7,'D-1 Off-Site Habitat Baseline'!$X$11:$X$258) -> 0 | F77: =SUMIF('D-3 Off-Site Habitat Enhancment'!$AU$12:$AU$258,'Off-site gain site summary'!B77,'D-3 Off-Site Habitat Enhancment'!$AQ$12:$AQ$258) -> 0 | H77: =SUMIF('D-2 Off-Site Habitat Creation'!$AF$11:$AF$256,'Off-site gain site summary'!B77,'D-2 Off-Site Habitat Creation'!$AB$11:$AB$256) -> 0 | J77: 0 | K77: =IFERROR(_xlfn.XLOOKUP(B77,'D-2 Off-Site Habitat Creation'!$AF$11:$AF$256,'D-2 Off-Site Habitat Creation'!$Z$11:$Z$256), IFERROR(_xlfn.XLOOKUP(B77,'D-1 Off-Site Habitat Baseline'!AF81:AF328,'D-1 Off-Site Habitat Baseline'!S81:S328), " ")) ->  | L77: 0 | M77: ='E-1 Off-Site Hedge Baseline'!AB80 -> 0 | O77: =SUMIF('E-1 Off-Site Hedge Baseline'!AB80:AB327,'Off-site gain site summary'!N77,'E-1 Off-Site Hedge Baseline'!Q80:Q327) -> 0 | P77: =SUMIF('E-1 Off-Site Hedge Baseline'!$AB$10:$AB$257,'Off-site gain site summary'!$N77,'E-1 Off-Site Hedge Baseline'!$U$10:$U$257) -> 0 | Q77: =SUMIF('E-3 Off-Site Hedge Enhancement'!$AO$12:$AO$257,'Off-site gain site summary'!$N77,'E-3 Off-Site Hedge Enhancement'!$AK$12:$AK$257) -> 0 | R77: =SUMIF('E-2 Off-Site Hedge Creation'!$AD$12:$AD$259,'Off-site gain site summary'!$N77,'E-2 Off-Site Hedge Creation'!$Z$12:$Z$259) -> 0 | S77: 0 | T77: =IFERROR(_xlfn.XLOOKUP(N77,'E-2 Off-Site Hedge Creation'!AD82:AD329,'E-2 Off-Site Hedge Creation'!N82:N329), IFERROR(_xlfn.XLOOKUP(N77,'E-1 Off-Site Hedge Baseline'!AB80:AB327,'E-1 Off-Site Hedge Baseline'!P80:P327), " ")) ->  | U77: 0 | V77: ='F-1 Off-Site WaterC'' Baseline'!AG80 -> 0 | X77: =SUMIF('F-1 Off-Site WaterC'' Baseline'!$AG$10:$AG$257,'Off-site gain site summary'!$W77,'F-1 Off-Site WaterC'' Baseline'!$U$10:$U$257) -> 0 | Y77: =SUMIF('F-1 Off-Site WaterC'' Baseline'!$AG$10:$AG$257,'Off-site gain site summary'!$W77,'F-1 Off-Site WaterC'' Baseline'!$Y$10:$Y$257) -> 0 | Z77: =SUMIF('F-3 Off-Site WaterC Enhancement'!$AT$12:$AT$257,'Off-site gain site summary'!$W77,'F-3 Off-Site WaterC Enhancement'!$AP$12:$AP$257) -> 0 | AA77: =SUMIF('F-2 Off-Site WaterC'' Creation'!$AG$12:$AG$259,'Off-site gain site summary'!$W77,'F-2 Off-Site WaterC'' Creation'!$AC$12:$AC$259) -> 0 | AB77: 0 | AC77: =IFERROR(_xlfn.XLOOKUP(W77,'F-2 Off-Site WaterC'' Creation'!AG82:AG328,'F-2 Off-Site WaterC'' Creation'!AA82:AA329), IFERROR(_xlfn.XLOOKUP(W77,'F-1 Off-Site WaterC'' Baseline'!AG80:AG327,'F-1 Off-Site WaterC'' Baseline'!T80:T327)," ")) ->  | AD77: 0
A78: ='D-1 Off-Site Habitat Baseline'!AF82 -> 0 | C78: =SUMIF('D-1 Off-Site Habitat Baseline'!AF82:AF85,B78,'D-1 Off-Site Habitat Baseline'!T82:T85) -> 0 | D78: =SUMIF('D-1 Off-Site Habitat Baseline'!$AF$11:$AF$258,'Off-site gain site summary'!$B$7,'D-1 Off-Site Habitat Baseline'!$X$11:$X$258) -> 0 | F78: =SUMIF('D-3 Off-Site Habitat Enhancment'!$AU$12:$AU$258,'Off-site gain site summary'!B78,'D-3 Off-Site Habitat Enhancment'!$AQ$12:$AQ$258) -> 0 | H78: =SUMIF('D-2 Off-Site Habitat Creation'!$AF$11:$AF$256,'Off-site gain site summary'!B78,'D-2 Off-Site Habitat Creation'!$AB$11:$AB$256) -> 0 | J78: 0 | K78: =IFERROR(_xlfn.XLOOKUP(B78,'D-2 Off-Site Habitat Creation'!$AF$11:$AF$256,'D-2 Off-Site Habitat Creation'!$Z$11:$Z$256), IFERROR(_xlfn.XLOOKUP(B78,'D-1 Off-Site Habitat Baseline'!AF82:AF329,'D-1 Off-Site Habitat Baseline'!S82:S329), " ")) ->  | L78: 0 | M78: ='E-1 Off-Site Hedge Baseline'!AB81 -> 0 | O78: =SUMIF('E-1 Off-Site Hedge Baseline'!AB81:AB328,'Off-site gain site summary'!N78,'E-1 Off-Site Hedge Baseline'!Q81:Q328) -> 0 | P78: =SUMIF('E-1 Off-Site Hedge Baseline'!$AB$10:$AB$257,'Off-site gain site summary'!$N78,'E-1 Off-Site Hedge Baseline'!$U$10:$U$257) -> 0 | Q78: =SUMIF('E-3 Off-Site Hedge Enhancement'!$AO$12:$AO$257,'Off-site gain site summary'!$N78,'E-3 Off-Site Hedge Enhancement'!$AK$12:$AK$257) -> 0 | R78: =SUMIF('E-2 Off-Site Hedge Creation'!$AD$12:$AD$259,'Off-site gain site summary'!$N78,'E-2 Off-Site Hedge Creation'!$Z$12:$Z$259) -> 0 | S78: 0 | T78: =IFERROR(_xlfn.XLOOKUP(N78,'E-2 Off-Site Hedge Creation'!AD83:AD330,'E-2 Off-Site Hedge Creation'!N83:N330), IFERROR(_xlfn.XLOOKUP(N78,'E-1 Off-Site Hedge Baseline'!AB81:AB328,'E-1 Off-Site Hedge Baseline'!P81:P328), " ")) ->  | U78: 0 | V78: ='F-1 Off-Site WaterC'' Baseline'!AG81 -> 0 | X78: =SUMIF('F-1 Off-Site WaterC'' Baseline'!$AG$10:$AG$257,'Off-site gain site summary'!$W78,'F-1 Off-Site WaterC'' Baseline'!$U$10:$U$257) -> 0 | Y78: =SUMIF('F-1 Off-Site WaterC'' Baseline'!$AG$10:$AG$257,'Off-site gain site summary'!$W78,'F-1 Off-Site WaterC'' Baseline'!$Y$10:$Y$257) -> 0 | Z78: =SUMIF('F-3 Off-Site WaterC Enhancement'!$AT$12:$AT$257,'Off-site gain site summary'!$W78,'F-3 Off-Site WaterC Enhancement'!$AP$12:$AP$257) -> 0 | AA78: =SUMIF('F-2 Off-Site WaterC'' Creation'!$AG$12:$AG$259,'Off-site gain site summary'!$W78,'F-2 Off-Site WaterC'' Creation'!$AC$12:$AC$259) -> 0 | AB78: 0 | AC78: =IFERROR(_xlfn.XLOOKUP(W78,'F-2 Off-Site WaterC'' Creation'!AG83:AG329,'F-2 Off-Site WaterC'' Creation'!AA83:AA330), IFERROR(_xlfn.XLOOKUP(W78,'F-1 Off-Site WaterC'' Baseline'!AG81:AG328,'F-1 Off-Site WaterC'' Baseline'!T81:T328)," ")) ->  | AD78: 0
A79: ='D-1 Off-Site Habitat Baseline'!AF83 -> 0 | C79: =SUMIF('D-1 Off-Site Habitat Baseline'!AF83:AF86,B79,'D-1 Off-Site Habitat Baseline'!T83:T86) -> 0 | D79: =SUMIF('D-1 Off-Site Habitat Baseline'!$AF$11:$AF$258,'Off-site gain site summary'!$B$7,'D-1 Off-Site Habitat Baseline'!$X$11:$X$258) -> 0 | F79: =SUMIF('D-3 Off-Site Habitat Enhancment'!$AU$12:$AU$258,'Off-site gain site summary'!B79,'D-3 Off-Site Habitat Enhancment'!$AQ$12:$AQ$258) -> 0 | H79: =SUMIF('D-2 Off-Site Habitat Creation'!$AF$11:$AF$256,'Off-site gain site summary'!B79,'D-2 Off-Site Habitat Creation'!$AB$11:$AB$256) -> 0 | J79: 0 | K79: =IFERROR(_xlfn.XLOOKUP(B79,'D-2 Off-Site Habitat Creation'!$AF$11:$AF$256,'D-2 Off-Site Habitat Creation'!$Z$11:$Z$256), IFERROR(_xlfn.XLOOKUP(B79,'D-1 Off-Site Habitat Baseline'!AF83:AF330,'D-1 Off-Site Habitat Baseline'!S83:S330), " ")) ->  | L79: 0 | M79: ='E-1 Off-Site Hedge Baseline'!AB82 -> 0 | O79: =SUMIF('E-1 Off-Site Hedge Baseline'!AB82:AB329,'Off-site gain site summary'!N79,'E-1 Off-Site Hedge Baseline'!Q82:Q329) -> 0 | P79: =SUMIF('E-1 Off-Site Hedge Baseline'!$AB$10:$AB$257,'Off-site gain site summary'!$N79,'E-1 Off-Site Hedge Baseline'!$U$10:$U$257) -> 0 | Q79: =SUMIF('E-3 Off-Site Hedge Enhancement'!$AO$12:$AO$257,'Off-site gain site summary'!$N79,'E-3 Off-Site Hedge Enhancement'!$AK$12:$AK$257) -> 0 | R79: =SUMIF('E-2 Off-Site Hedge Creation'!$AD$12:$AD$259,'Off-site gain site summary'!$N79,'E-2 Off-Site Hedge Creation'!$Z$12:$Z$259) -> 0 | S79: 0 | T79: =IFERROR(_xlfn.XLOOKUP(N79,'E-2 Off-Site Hedge Creation'!AD84:AD331,'E-2 Off-Site Hedge Creation'!N84:N331), IFERROR(_xlfn.XLOOKUP(N79,'E-1 Off-Site Hedge Baseline'!AB82:AB329,'E-1 Off-Site Hedge Baseline'!P82:P329), " ")) ->  | U79: 0 | V79: ='F-1 Off-Site WaterC'' Baseline'!AG82 -> 0 | X79: =SUMIF('F-1 Off-Site WaterC'' Baseline'!$AG$10:$AG$257,'Off-site gain site summary'!$W79,'F-1 Off-Site WaterC'' Baseline'!$U$10:$U$257) -> 0 | Y79: =SUMIF('F-1 Off-Site WaterC'' Baseline'!$AG$10:$AG$257,'Off-site gain site summary'!$W79,'F-1 Off-Site WaterC'' Baseline'!$Y$10:$Y$257) -> 0 | Z79: =SUMIF('F-3 Off-Site WaterC Enhancement'!$AT$12:$AT$257,'Off-site gain site summary'!$W79,'F-3 Off-Site WaterC Enhancement'!$AP$12:$AP$257) -> 0 | AA79: =SUMIF('F-2 Off-Site WaterC'' Creation'!$AG$12:$AG$259,'Off-site gain site summary'!$W79,'F-2 Off-Site WaterC'' Creation'!$AC$12:$AC$259) -> 0 | AB79: 0 | AC79: =IFERROR(_xlfn.XLOOKUP(W79,'F-2 Off-Site WaterC'' Creation'!AG84:AG330,'F-2 Off-Site WaterC'' Creation'!AA84:AA331), IFERROR(_xlfn.XLOOKUP(W79,'F-1 Off-Site WaterC'' Baseline'!AG82:AG329,'F-1 Off-Site WaterC'' Baseline'!T82:T329)," ")) ->  | AD79: 0
A80: ='D-1 Off-Site Habitat Baseline'!AF84 -> 0 | C80: =SUMIF('D-1 Off-Site Habitat Baseline'!AF84:AF87,B80,'D-1 Off-Site Habitat Baseline'!T84:T87) -> 0 | D80: =SUMIF('D-1 Off-Site Habitat Baseline'!$AF$11:$AF$258,'Off-site gain site summary'!$B$7,'D-1 Off-Site Habitat Baseline'!$X$11:$X$258) -> 0 | F80: =SUMIF('D-3 Off-Site Habitat Enhancment'!$AU$12:$AU$258,'Off-site gain site summary'!B80,'D-3 Off-Site Habitat Enhancment'!$AQ$12:$AQ$258) -> 0 | H80: =SUMIF('D-2 Off-Site Habitat Creation'!$AF$11:$AF$256,'Off-site gain site summary'!B80,'D-2 Off-Site Habitat Creation'!$AB$11:$AB$256) -> 0 | J80: 0 | K80: =IFERROR(_xlfn.XLOOKUP(B80,'D-2 Off-Site Habitat Creation'!$AF$11:$AF$256,'D-2 Off-Site Habitat Creation'!$Z$11:$Z$256), IFERROR(_xlfn.XLOOKUP(B80,'D-1 Off-Site Habitat Baseline'!AF84:AF331,'D-1 Off-Site Habitat Baseline'!S84:S331), " ")) ->  | L80: 0 | M80: ='E-1 Off-Site Hedge Baseline'!AB83 -> 0 | O80: =SUMIF('E-1 Off-Site Hedge Baseline'!AB83:AB330,'Off-site gain site summary'!N80,'E-1 Off-Site Hedge Baseline'!Q83:Q330) -> 0 | P80: =SUMIF('E-1 Off-Site Hedge Baseline'!$AB$10:$AB$257,'Off-site gain site summary'!$N80,'E-1 Off-Site Hedge Baseline'!$U$10:$U$257) -> 0 | Q80: =SUMIF('E-3 Off-Site Hedge Enhancement'!$AO$12:$AO$257,'Off-site gain site summary'!$N80,'E-3 Off-Site Hedge Enhancement'!$AK$12:$AK$257) -> 0 | R80: =SUMIF('E-2 Off-Site Hedge Creation'!$AD$12:$AD$259,'Off-site gain site summary'!$N80,'E-2 Off-Site Hedge Creation'!$Z$12:$Z$259) -> 0 | S80: 0 | T80: =IFERROR(_xlfn.XLOOKUP(N80,'E-2 Off-Site Hedge Creation'!AD85:AD332,'E-2 Off-Site Hedge Creation'!N85:N332), IFERROR(_xlfn.XLOOKUP(N80,'E-1 Off-Site Hedge Baseline'!AB83:AB330,'E-1 Off-Site Hedge Baseline'!P83:P330), " ")) ->  | U80: 0 | V80: ='F-1 Off-Site WaterC'' Baseline'!AG83 -> 0 | X80: =SUMIF('F-1 Off-Site WaterC'' Baseline'!$AG$10:$AG$257,'Off-site gain site summary'!$W80,'F-1 Off-Site WaterC'' Baseline'!$U$10:$U$257) -> 0 | Y80: =SUMIF('F-1 Off-Site WaterC'' Baseline'!$AG$10:$AG$257,'Off-site gain site summary'!$W80,'F-1 Off-Site WaterC'' Baseline'!$Y$10:$Y$257) -> 0 | Z80: =SUMIF('F-3 Off-Site WaterC Enhancement'!$AT$12:$AT$257,'Off-site gain site summary'!$W80,'F-3 Off-Site WaterC Enhancement'!$AP$12:$AP$257) -> 0 | AA80: =SUMIF('F-2 Off-Site WaterC'' Creation'!$AG$12:$AG$259,'Off-site gain site summary'!$W80,'F-2 Off-Site WaterC'' Creation'!$AC$12:$AC$259) -> 0 | AB80: 0 | AC80: =IFERROR(_xlfn.XLOOKUP(W80,'F-2 Off-Site WaterC'' Creation'!AG85:AG331,'F-2 Off-Site WaterC'' Creation'!AA85:AA332), IFERROR(_xlfn.XLOOKUP(W80,'F-1 Off-Site WaterC'' Baseline'!AG83:AG330,'F-1 Off-Site WaterC'' Baseline'!T83:T330)," ")) ->  | AD80: 0
A81: ='D-1 Off-Site Habitat Baseline'!AF85 -> 0 | C81: =SUMIF('D-1 Off-Site Habitat Baseline'!AF85:AF88,B81,'D-1 Off-Site Habitat Baseline'!T85:T88) -> 0 | D81: =SUMIF('D-1 Off-Site Habitat Baseline'!$AF$11:$AF$258,'Off-site gain site summary'!$B$7,'D-1 Off-Site Habitat Baseline'!$X$11:$X$258) -> 0 | F81: =SUMIF('D-3 Off-Site Habitat Enhancment'!$AU$12:$AU$258,'Off-site gain site summary'!B81,'D-3 Off-Site Habitat Enhancment'!$AQ$12:$AQ$258) -> 0 | H81: =SUMIF('D-2 Off-Site Habitat Creation'!$AF$11:$AF$256,'Off-site gain site summary'!B81,'D-2 Off-Site Habitat Creation'!$AB$11:$AB$256) -> 0 | J81: 0 | K81: =IFERROR(_xlfn.XLOOKUP(B81,'D-2 Off-Site Habitat Creation'!$AF$11:$AF$256,'D-2 Off-Site Habitat Creation'!$Z$11:$Z$256), IFERROR(_xlfn.XLOOKUP(B81,'D-1 Off-Site Habitat Baseline'!AF85:AF332,'D-1 Off-Site Habitat Baseline'!S85:S332), " ")) ->  | L81: 0 | M81: ='E-1 Off-Site Hedge Baseline'!AB84 -> 0 | O81: =SUMIF('E-1 Off-Site Hedge Baseline'!AB84:AB331,'Off-site gain site summary'!N81,'E-1 Off-Site Hedge Baseline'!Q84:Q331) -> 0 | P81: =SUMIF('E-1 Off-Site Hedge Baseline'!$AB$10:$AB$257,'Off-site gain site summary'!$N81,'E-1 Off-Site Hedge Baseline'!$U$10:$U$257) -> 0 | Q81: =SUMIF('E-3 Off-Site Hedge Enhancement'!$AO$12:$AO$257,'Off-site gain site summary'!$N81,'E-3 Off-Site Hedge Enhancement'!$AK$12:$AK$257) -> 0 | R81: =SUMIF('E-2 Off-Site Hedge Creation'!$AD$12:$AD$259,'Off-site gain site summary'!$N81,'E-2 Off-Site Hedge Creation'!$Z$12:$Z$259) -> 0 | S81: 0 | T81: =IFERROR(_xlfn.XLOOKUP(N81,'E-2 Off-Site Hedge Creation'!AD86:AD333,'E-2 Off-Site Hedge Creation'!N86:N333), IFERROR(_xlfn.XLOOKUP(N81,'E-1 Off-Site Hedge Baseline'!AB84:AB331,'E-1 Off-Site Hedge Baseline'!P84:P331), " ")) ->  | U81: 0 | V81: ='F-1 Off-Site WaterC'' Baseline'!AG84 -> 0 | X81: =SUMIF('F-1 Off-Site WaterC'' Baseline'!$AG$10:$AG$257,'Off-site gain site summary'!$W81,'F-1 Off-Site WaterC'' Baseline'!$U$10:$U$257) -> 0 | Y81: =SUMIF('F-1 Off-Site WaterC'' Baseline'!$AG$10:$AG$257,'Off-site gain site summary'!$W81,'F-1 Off-Site WaterC'' Baseline'!$Y$10:$Y$257) -> 0 | Z81: =SUMIF('F-3 Off-Site WaterC Enhancement'!$AT$12:$AT$257,'Off-site gain site summary'!$W81,'F-3 Off-Site WaterC Enhancement'!$AP$12:$AP$257) -> 0 | AA81: =SUMIF('F-2 Off-Site WaterC'' Creation'!$AG$12:$AG$259,'Off-site gain site summary'!$W81,'F-2 Off-Site WaterC'' Creation'!$AC$12:$AC$259) -> 0 | AB81: 0 | AC81: =IFERROR(_xlfn.XLOOKUP(W81,'F-2 Off-Site WaterC'' Creation'!AG86:AG332,'F-2 Off-Site WaterC'' Creation'!AA86:AA333), IFERROR(_xlfn.XLOOKUP(W81,'F-1 Off-Site WaterC'' Baseline'!AG84:AG331,'F-1 Off-Site WaterC'' Baseline'!T84:T331)," ")) ->  | AD81: 0
A82: ='D-1 Off-Site Habitat Baseline'!AF86 -> 0 | C82: =SUMIF('D-1 Off-Site Habitat Baseline'!AF86:AF89,B82,'D-1 Off-Site Habitat Baseline'!T86:T89) -> 0 | D82: =SUMIF('D-1 Off-Site Habitat Baseline'!$AF$11:$AF$258,'Off-site gain site summary'!$B$7,'D-1 Off-Site Habitat Baseline'!$X$11:$X$258) -> 0 | F82: =SUMIF('D-3 Off-Site Habitat Enhancment'!$AU$12:$AU$258,'Off-site gain site summary'!B82,'D-3 Off-Site Habitat Enhancment'!$AQ$12:$AQ$258) -> 0 | H82: =SUMIF('D-2 Off-Site Habitat Creation'!$AF$11:$AF$256,'Off-site gain site summary'!B82,'D-2 Off-Site Habitat Creation'!$AB$11:$AB$256) -> 0 | J82: 0 | K82: =IFERROR(_xlfn.XLOOKUP(B82,'D-2 Off-Site Habitat Creation'!$AF$11:$AF$256,'D-2 Off-Site Habitat Creation'!$Z$11:$Z$256), IFERROR(_xlfn.XLOOKUP(B82,'D-1 Off-Site Habitat Baseline'!AF86:AF333,'D-1 Off-Site Habitat Baseline'!S86:S333), " ")) ->  | L82: 0 | M82: ='E-1 Off-Site Hedge Baseline'!AB85 -> 0 | O82: =SUMIF('E-1 Off-Site Hedge Baseline'!AB85:AB332,'Off-site gain site summary'!N82,'E-1 Off-Site Hedge Baseline'!Q85:Q332) -> 0 | P82: =SUMIF('E-1 Off-Site Hedge Baseline'!$AB$10:$AB$257,'Off-site gain site summary'!$N82,'E-1 Off-Site Hedge Baseline'!$U$10:$U$257) -> 0 | Q82: =SUMIF('E-3 Off-Site Hedge Enhancement'!$AO$12:$AO$257,'Off-site gain site summary'!$N82,'E-3 Off-Site Hedge Enhancement'!$AK$12:$AK$257) -> 0 | R82: =SUMIF('E-2 Off-Site Hedge Creation'!$AD$12:$AD$259,'Off-site gain site summary'!$N82,'E-2 Off-Site Hedge Creation'!$Z$12:$Z$259) -> 0 | S82: 0 | T82: =IFERROR(_xlfn.XLOOKUP(N82,'E-2 Off-Site Hedge Creation'!AD87:AD334,'E-2 Off-Site Hedge Creation'!N87:N334), IFERROR(_xlfn.XLOOKUP(N82,'E-1 Off-Site Hedge Baseline'!AB85:AB332,'E-1 Off-Site Hedge Baseline'!P85:P332), " ")) ->  | U82: 0 | V82: ='F-1 Off-Site WaterC'' Baseline'!AG85 -> 0 | X82: =SUMIF('F-1 Off-Site WaterC'' Baseline'!$AG$10:$AG$257,'Off-site gain site summary'!$W82,'F-1 Off-Site WaterC'' Baseline'!$U$10:$U$257) -> 0 | Y82: =SUMIF('F-1 Off-Site WaterC'' Baseline'!$AG$10:$AG$257,'Off-site gain site summary'!$W82,'F-1 Off-Site WaterC'' Baseline'!$Y$10:$Y$257) -> 0 | Z82: =SUMIF('F-3 Off-Site WaterC Enhancement'!$AT$12:$AT$257,'Off-site gain site summary'!$W82,'F-3 Off-Site WaterC Enhancement'!$AP$12:$AP$257) -> 0 | AA82: =SUMIF('F-2 Off-Site WaterC'' Creation'!$AG$12:$AG$259,'Off-site gain site summary'!$W82,'F-2 Off-Site WaterC'' Creation'!$AC$12:$AC$259) -> 0 | AB82: 0 | AC82: =IFERROR(_xlfn.XLOOKUP(W82,'F-2 Off-Site WaterC'' Creation'!AG87:AG333,'F-2 Off-Site WaterC'' Creation'!AA87:AA334), IFERROR(_xlfn.XLOOKUP(W82,'F-1 Off-Site WaterC'' Baseline'!AG85:AG332,'F-1 Off-Site WaterC'' Baseline'!T85:T332)," ")) ->  | AD82: 0
A83: ='D-1 Off-Site Habitat Baseline'!AF87 -> 0 | C83: =SUMIF('D-1 Off-Site Habitat Baseline'!AF87:AF90,B83,'D-1 Off-Site Habitat Baseline'!T87:T90) -> 0 | D83: =SUMIF('D-1 Off-Site Habitat Baseline'!$AF$11:$AF$258,'Off-site gain site summary'!$B$7,'D-1 Off-Site Habitat Baseline'!$X$11:$X$258) -> 0 | F83: =SUMIF('D-3 Off-Site Habitat Enhancment'!$AU$12:$AU$258,'Off-site gain site summary'!B83,'D-3 Off-Site Habitat Enhancment'!$AQ$12:$AQ$258) -> 0 | H83: =SUMIF('D-2 Off-Site Habitat Creation'!$AF$11:$AF$256,'Off-site gain site summary'!B83,'D-2 Off-Site Habitat Creation'!$AB$11:$AB$256) -> 0 | J83: 0 | K83: =IFERROR(_xlfn.XLOOKUP(B83,'D-2 Off-Site Habitat Creation'!$AF$11:$AF$256,'D-2 Off-Site Habitat Creation'!$Z$11:$Z$256), IFERROR(_xlfn.XLOOKUP(B83,'D-1 Off-Site Habitat Baseline'!AF87:AF334,'D-1 Off-Site Habitat Baseline'!S87:S334), " ")) ->  | L83: 0 | M83: ='E-1 Off-Site Hedge Baseline'!AB86 -> 0 | O83: =SUMIF('E-1 Off-Site Hedge Baseline'!AB86:AB333,'Off-site gain site summary'!N83,'E-1 Off-Site Hedge Baseline'!Q86:Q333) -> 0 | P83: =SUMIF('E-1 Off-Site Hedge Baseline'!$AB$10:$AB$257,'Off-site gain site summary'!$N83,'E-1 Off-Site Hedge Baseline'!$U$10:$U$257) -> 0 | Q83: =SUMIF('E-3 Off-Site Hedge Enhancement'!$AO$12:$AO$257,'Off-site gain site summary'!$N83,'E-3 Off-Site Hedge Enhancement'!$AK$12:$AK$257) -> 0 | R83: =SUMIF('E-2 Off-Site Hedge Creation'!$AD$12:$AD$259,'Off-site gain site summary'!$N83,'E-2 Off-Site Hedge Creation'!$Z$12:$Z$259) -> 0 | S83: 0 | T83: =IFERROR(_xlfn.XLOOKUP(N83,'E-2 Off-Site Hedge Creation'!AD88:AD335,'E-2 Off-Site Hedge Creation'!N88:N335), IFERROR(_xlfn.XLOOKUP(N83,'E-1 Off-Site Hedge Baseline'!AB86:AB333,'E-1 Off-Site Hedge Baseline'!P86:P333), " ")) ->  | U83: 0 | V83: ='F-1 Off-Site WaterC'' Baseline'!AG86 -> 0 | X83: =SUMIF('F-1 Off-Site WaterC'' Baseline'!$AG$10:$AG$257,'Off-site gain site summary'!$W83,'F-1 Off-Site WaterC'' Baseline'!$U$10:$U$257) -> 0 | Y83: =SUMIF('F-1 Off-Site WaterC'' Baseline'!$AG$10:$AG$257,'Off-site gain site summary'!$W83,'F-1 Off-Site WaterC'' Baseline'!$Y$10:$Y$257) -> 0 | Z83: =SUMIF('F-3 Off-Site WaterC Enhancement'!$AT$12:$AT$257,'Off-site gain site summary'!$W83,'F-3 Off-Site WaterC Enhancement'!$AP$12:$AP$257) -> 0 | AA83: =SUMIF('F-2 Off-Site WaterC'' Creation'!$AG$12:$AG$259,'Off-site gain site summary'!$W83,'F-2 Off-Site WaterC'' Creation'!$AC$12:$AC$259) -> 0 | AB83: 0 | AC83: =IFERROR(_xlfn.XLOOKUP(W83,'F-2 Off-Site WaterC'' Creation'!AG88:AG334,'F-2 Off-Site WaterC'' Creation'!AA88:AA335), IFERROR(_xlfn.XLOOKUP(W83,'F-1 Off-Site WaterC'' Baseline'!AG86:AG333,'F-1 Off-Site WaterC'' Baseline'!T86:T333)," ")) ->  | AD83: 0
